Workbook

Sheet Front Page
C7: A Tool to Estimate the Pre-Event Population at Risk of Medical Consequences in a Disaster
C8: Beta Test Version 2.0 *
C10: Authors:
D11: Sundar S. Shrestha, MS, PhD
D12: Bishwa B. Adhikari, PhD
D13: Charisma Atkins, MS
D15: Martin I Meltzer, MS, PhD
D16: Daniel M. Sosin, MD, MPH
E18: Centers for Disease Control and Prevention
D19: Atlanta, Georgia
D21: Updated: June 16, 2016
D23: *UPDATED fromMedCon: Pre-Event Version 1.0 using National Health Interview Survey (NHIS) Data, 2014. We developed this updated version to make the pre-existing medical condition estimates a more ideal representation of the current US population. Previous versions used NHIS Data, 2006.

Sheet Main Menu1
B10: Step 1. Enter the locale of the specific population
C11: State | D11: USA
C12: City | D12: None
B18: Step 2. Enter the size of population at risk of
B19: displacement following a disaster
C20: Number | D20: 1000000

Sheet INPUT_Hospitalization_Total
B1: Pre-Event Hospitalization
B2: Input Worksheet
B4: Step 3: Enter the rate of hospitalization per day per 100,000
B5: persons due to pre-existing medical conditions
C6: Rate (No.) | D6: 95% Confidence Limits
D7: Lower Limit | E7: Upper Limit
B8: Total | C8: =Calculation_Hosp_MedCon!C18 -> 34.60805627 | D8: =Calculation_Hosp_MedCon!D18 -> 27.98849323 | E8: =Calculation_Hosp_MedCon!E18 -> 43.593744
B11: Step 4: Enter the average length of hospitalization for the given
B12: population
C13: Rate (Days) | D13: 95% Confidence Limits
D14: Lower Limit | E14: Upper Limit
B15: Total | C15: 4.01 | D15: 3.77 | E15: 4.26
B16: Data Source: National Health Interview Survey, NCHS, CDC, 2014
B18: Notes: 1. The rates in the WHITE cells are national estimates per 100,000 population.
B19: 2. If you enter your own estimates in the WHITE cells they MUST be per 100,000 population.

Sheet Calculation_Hosp_MedCon
B2: Calculation: Pre-Event Hospitalization by Medical Condition
B4: Table 1
B5: Pre-event rate of hospitalization per day per 100,000 population
B6: by medical condition
B7: Medical Condition | C7: No. | D7: 95% Confidence Limit
D8: LL | E8: UL
B9: Heart Diseases | C9: =L113 -> 10.8330711 | D9: =M113 -> 7.967186623 | E9: 14.06579868
B10: Hypertension | C10: =L182 -> 16.87379257 | D10: =M182 -> 13.01085155 | E10: 21.02637641
B11: Stroke | C11: =L251 -> 3.356252817 | D11: =M251 -> 2.056038853 | E11: 5.191478967
B12: Respiratory Conditions | C12: =L387 -> 3.800876815 | D12: =M387 -> 2.078925321 | E12: 6.260544145
B13: Cancer | C13: =L455 -> 6.141291299 | D13: =M455 -> 4.205148542 | E13: 8.600424498
B14: Diabetes | C14: =L319 -> 6.846130187 | D14: =M319 -> 4.708344244 | E14: 9.7792054
B15: Musculoskeletal/Connective Tissue | C15: =L523 -> 20.18479122 | D15: =M523 -> 15.98137357 | E15: 25.70028528
B16: Others | C16: =L591 -> 8.191343698 | D16: =M591 -> 6.573989164 | E16: 10.51699236
B17: At least one of above medical conditions | C17: =L659 -> 26.41671257 | D17: =M659 -> 21.41450407 | E17: 33.07675164
B18: Total | C18: =C17+C16 -> 34.60805627 | D18: =D17+D16 -> 27.98849323 | E18: 43.593744
B19: Data Source: National Health Interview Survey, NCHS, CDC, 2014
B21: Notes: 1. The rates entered in white cells are national rates as per 100,000 population. The rates on
B22: yellow colored cells would be calculated for you based on national average estimates
B23: 2. If you have entered your own rates in white cells, go to the previous sheet and re-enter
B24: the TOTAL rate and confidence limits
B27: Adjustment factors and calculation for Table 1
B28: Sum of selected seven med condition | C28: =SUM(C9:C15) -> 68.03620601 | D28: =SUM(D9:D15) -> 50.0078687 | E28: 90.62411338
B29: Ratio of at least with one condition to total | C29: =C17/C18 -> 0.7633110732 | D29: =D17/D18 -> 0.7651181466 | E29: 0.7587499628
B30: Ratio of other than selected condition to at least one condition | C30: =C16/C18 -> 0.2366889268 | D30: 0.8034313347 | E30: 1.23955287
B31: Ratio of total to at least one condition | C31: =C18/C17 -> 1.310081872 | D31: =E18/E17 -> 1.317957231 | E31: =D18/D17 -> 1.306987691
B33: Updated on 12/15/215
A56: FREQUENCY REPORT FOR 2014 NHIS Sample Child FILE
A57: (UNWEIGHTED)
B59: The SURVEYFREQ Procedure
B61: Data Summary
B62: Number of Strata | C62: 300
B63: Number of Clusters | C63: 600
B64: Number of Observations | C64: 36697
B65: Sum of Weights | C65: 103927605
B67: Table of HEARTPROB by HOSP_OVERN
B68: Controlling for CHAD=1
B69: HEARTPROB | C69: HOSP_OVERN | D69: Frequency | E69: Weighted | F69: Std Dev of | G69: 95% Confidence Limits | I69: Percent | J69: Std Err of
E70: Frequency | F70: Wgt Freq | G70: for Wgt Freq | J70: Percent
B71: 0 | C71: 0 | D71: 42295 | E71: 117448466 | F71: 1273101 | G71: 114943127 | H71: 119953805 | I71: 84.1606 | J71: 0.2299
C72: 1 | D72: 2454 | E72: 6961452 | F72: 186509 | G72: 6594421 | H72: 7328483 | I72: 4.9884 | J72: 0.1213
C73: 2 | D73: 371 | E73: 1034964 | F73: 64167 | G73: 908689 | H73: 1161239 | I73: 0.7416 | J73: 0.0457
C74: 3 | D74: 124 | E74: 335703 | F74: 35692 | G74: 265464 | H74: 405942 | I74: 0.2406 | J74: 0.0255
C75: 4 | D75: 43 | E75: 91112 | F75: 21120 | G75: 49551 | H75: 132673 | I75: 0.0653 | J75: 0.0151
C76: 5 | D76: 24 | E76: 68787 | F76: 15733 | G76: 37827 | H76: 99747 | I76: 0.0493 | J76: 0.0113
C77: 6 | D77: 14 | E77: 47659 | F77: 15071 | G77: 18001 | H77: 77317 | I77: 0.0342 | J77: 0.0108
C78: 7 | D78: 5 | E78: 16491 | F78: 8569 | G78: 0 | H78: 33353 | I78: 0.0118 | J78: 0.0061
C79: 8 | D79: 5 | E79: 17849 | F79: 7739 | G79: 2618 | H79: 33080 | I79: 0.0128 | J79: 0.0055
C80: 9 | D80: 4 | E80: 15625 | F80: 8857 | G80: 0 | H80: 33054 | I80: 0.0112 | J80: 0.0063
C81: 10 | D81: 6 | E81: 11197 | F81: 5850 | G81: 0 | H81: 22710 | I81: 0.008 | J81: 0.0042
C82: 12 | D82: 3 | E82: 7061 | F82: 4877 | G82: 0 | H82: 16659 | I82: 0.0051 | J82: 0.0035
C83: 14 | D83: 1 | E83: 3834 | F83: 3834 | G83: 0 | H83: 11379 | I83: 0.0027 | J83: 0.0027
C84: 15 | D84: 3 | E84: 3608 | F84: 2299 | G84: 0 | H84: 8133 | I84: 0.0026 | J84: 0.0016
C85: 16 | D85: 1 | E85: 2022 | F85: 2022 | G85: 0 | H85: 6001 | I85: 0.0014 | J85: 0.0014
C86: 20 | D86: 3 | E86: 5529 | F86: 3197 | G86: 0 | H86: 11821 | I86: 0.004 | J86: 0.0023
C87: 22 | D87: 0 | E87: . | F87: . | G87: . | H87: . | I87: . | J87: .
C88: 24 | D88: 1 | E88: 2011 | F88: 2011 | G88: 0 | H88: 5968 | I88: 0.0014 | J88: 0.0014
C89: 25 | D89: 1 | E89: 2746 | F89: 2746 | G89: 0 | H89: 8150 | I89: 0.002 | J89: 0.002
C90: 30 | D90: 2 | E90: 3806 | F90: 2850 | G90: 0 | H90: 9414 | I90: 0.0027 | J90: 0.002
C91: Total | D91: 45360 | E91: 126079922 | F91: 1346079 | G91: 123430969 | H91: 128728875 | I91: 90.3457 | J91: 0.1847 | L91: Estimate | M91: LL | N91: UL
B92: 1 | C92: 0 | D92: 3601 | E92: 10398782 | F92: 248651 | G92: 9909460 | H92: 10888104 | I92: 7.4515 | J92: 0.1671 | L92: =C92*E92 -> 0 | M92: =C92*G92 -> 0 | N92: =C92*H92 -> 0
C93: 1 | D93: 690 | E93: 1869149 | F93: 85493 | G93: 1700908 | H93: 2037390 | I93: 1.3394 | J93: 0.0605 | L93: =C93*E93 -> 1869149 | M93: =C93*G93 -> 1700908 | N93: =C93*H93 -> 2037390
C94: 2 | D94: 240 | E94: 640064 | F94: 50357 | G94: 540966 | H94: 739162 | I94: 0.4587 | J94: 0.0357 | L94: 1280128 | M94: 1081932 | N94: 1478324
C95: 3 | D95: 103 | E95: 326033 | F95: 37778 | G95: 251690 | H95: 400376 | I95: 0.2336 | J95: 0.0269 | L95: 978099 | M95: 755070 | N95: 1201128
C96: 4 | D96: 36 | E96: 109780 | F96: 22477 | G96: 65547 | H96: 154013 | I96: 0.0787 | J96: 0.016 | L96: 439120 | M96: 262188 | N96: 616052
C97: 5 | D97: 16 | E97: 58487 | F97: 14321 | G97: 30304 | H97: 86670 | I97: 0.0419 | J97: 0.0102 | L97: 292435 | M97: 151520 | N97: 433350
C98: 6 | D98: 9 | E98: 21982 | F98: 9517 | G98: 3254 | H98: 40710 | I98: 0.0158 | J98: 0.0068 | L98: 131892 | M98: 19524 | N98: 244260
C99: 7 | D99: 3 | E99: 7654 | F99: 4424 | G99: 0 | H99: 16359 | I99: 0.0055 | J99: 0.0032 | L99: 53578 | M99: 0 | N99: 114513
C100: 8 | D100: 5 | E100: 10474 | F100: 5584 | G100: 0 | H100: 21462 | I100: 0.0075 | J100: 0.004 | L100: 83792 | M100: 0 | N100: 171696
C101: 9 | D101: 1 | E101: 4263 | F101: 4263 | G101: 0 | H101: 12652 | I101: 0.0031 | J101: 0.0031 | L101: 38367 | M101: 0 | N101: 113868
C102: 10 | D102: 7 | E102: 12619 | F102: 6173 | G102: 471.12483 | H102: 24767 | I102: 0.009 | J102: 0.0044 | L102: 126190 | M102: 4711.2483 | N102: 247670
C103: 12 | D103: 1 | E103: 961 | F103: 961 | G103: 0 | H103: 2852 | I103: 0.0007 | J103: 0.0007 | L103: 11532 | M103: 0 | N103: 34224
C104: 14 | D104: 1 | E104: 2036 | F104: 2036 | G104: 0 | H104: 6043 | I104: 0.0015 | J104: 0.0015 | L104: 28504 | M104: 0 | N104: 84602
C105: 15 | D105: 2 | E105: 4928 | F105: 4362 | G105: 0 | H105: 13511 | I105: 0.0035 | J105: 0.0031 | L105: 73920 | M105: 0 | N105: 202665
C106: 16 | D106: 1 | E106: 4043 | F106: 4043 | G106: 0 | H106: 11999 | I106: 0.0029 | J106: 0.0029 | L106: 64688 | M106: 0 | N106: 191984
C107: 20 | D107: 0 | E107: . | F107: . | G107: . | H107: . | I107: . | J107: .
C108: 22 | D108: 0 | E108: . | F108: . | G108: . | H108: . | I108: . | J108: .
C109: 24 | D109: 0 | E109: . | F109: . | G109: . | H109: . | I109: . | J109: .
C110: 25 | D110: 0 | E110: . | F110: . | G110: . | H110: . | I110: . | J110: .
C111: 30 | D111: 1 | E111: 1554 | F111: 1554 | G111: 0 | H111: 4612 | I111: 0.0011 | J111: 0.0011 | L111: =C111*E111 -> 46620 | M111: =C111*G111 -> 0 | N111: 138360
C112: Total | D112: 4717 | E112: 13472809 | F112: 282734 | G112: 12916415 | H112: 14029203 | I112: 9.6543 | J112: 0.1847 | L112: =SUM(L92:L111) -> 5518014 | M112: =SUM(M92:M111) -> 3975853.248 | N112: 7310086
B113: Total | C113: 0 | D113: 45896 | E113: 127847248 | F113: 1337794 | G113: 125214600 | H113: 130479896 | I113: 91.6121 | J113: 0.1529 | L113: =L112/E133/365*100000 -> 10.8330711 | M113: =M112/G133/365*100000 -> 7.967186623 | N113: =N112/H133/365*100000 -> 14.06579868
C114: 1 | D114: 3144 | E114: 8830601 | F114: 210158 | G114: 8417031 | H114: 9244171 | I114: 6.3278 | J114: 0.135
C115: 2 | D115: 611 | E115: 1675028 | F115: 83228 | G115: 1511243 | H115: 1838813 | I115: 1.2003 | J115: 0.0587
C116: 3 | D116: 227 | E116: 661736 | F116: 53810 | G116: 555844 | H116: 767628 | I116: 0.4742 | J116: 0.0383
C117: 4 | D117: 79 | E117: 200892 | F117: 30943 | G117: 139999 | H117: 261785 | I117: 0.144 | J117: 0.0221
C118: 5 | D118: 40 | E118: 127274 | F118: 21275 | G118: 85408 | H118: 169140 | I118: 0.0912 | J118: 0.0152
C119: 6 | D119: 23 | E119: 69641 | F119: 17645 | G119: 34917 | H119: 104365 | I119: 0.0499 | J119: 0.0127
C120: 7 | D120: 8 | E120: 24145 | F120: 9643 | G120: 5168 | H120: 43122 | I120: 0.0173 | J120: 0.0069
C121: 8 | D121: 10 | E121: 28323 | F121: 9543 | G121: 9542 | H121: 47104 | I121: 0.0203 | J121: 0.0068
C122: 9 | D122: 5 | E122: 19888 | F122: 9829 | G122: 544.91681 | H122: 39231 | I122: 0.0143 | J122: 0.007
C123: 10 | D123: 13 | E123: 23816 | F123: 8501 | G123: 7086 | H123: 40546 | I123: 0.0171 | J123: 0.0061
C124: 12 | D124: 4 | E124: 8022 | F124: 4971 | G124: 0 | H124: 17805 | I124: 0.0057 | J124: 0.0036
C125: 14 | D125: 2 | E125: 5870 | F125: 4341 | G125: 0 | H125: 14413 | I125: 0.0042 | J125: 0.0031
C126: 15 | D126: 5 | E126: 8536 | F126: 4931 | G126: 0 | H126: 18239 | I126: 0.0061 | J126: 0.0035
C127: 16 | D127: 2 | E127: 6065 | F127: 4520 | G127: 0 | H127: 14961 | I127: 0.0043 | J127: 0.0032
C128: 20 | D128: 3 | E128: 5529 | F128: 3197 | G128: 0 | H128: 11821 | I128: 0.004 | J128: 0.0023
C129: 22 | D129: 0 | E129: . | F129: . | G129: . | H129: . | I129: . | J129: .
C130: 24 | D130: 1 | E130: 2011 | F130: 2011 | G130: 0 | H130: 5968 | I130: 0.0014 | J130: 0.0014
C131: 25 | D131: 1 | E131: 2746 | F131: 2746 | G131: 0 | H131: 8150 | I131: 0.002 | J131: 0.002
C132: 30 | D132: 3 | E132: 5360 | F132: 3246 | G132: 0 | H132: 11748 | I132: 0.0038 | J132: 0.0023
C133: Total | D133: 50077 | E133: 139552731 | F133: 1439396 | G133: 136720139 | H133: 142385323 | I133: 100
B136: Table of HYPERTENSION by HOSP_OVERN
B137: Controlling for CHAD=1
B138: HYPERTENSION | C138: HOSP_OVERN | D138: Frequency | E138: Weighted | F138: Std Dev of | G138: 95% Confidence Limits | I138: Percent | J138: Std Err of
E139: Frequency | F139: Wgt Freq | G139: for Wgt Freq | J139: Percent
B140: 0 | C140: 0 | D140: 35371 | E140: 98195872 | F140: 1127610 | G140: 95976844 | H140: 100414900 | I140: 70.3647 | J140: 0.2818
C141: 1 | D141: 1866 | E141: 5335133 | F141: 172738 | G141: 4995202 | H141: 5675064 | I141: 3.823 | J141: 0.114
C142: 2 | D142: 265 | E142: 712674 | F142: 49713 | G142: 614843 | H142: 810505 | I142: 0.5107 | J142: 0.0349
C143: 3 | D143: 97 | E143: 276948 | F143: 35638 | G143: 206816 | H143: 347080 | I143: 0.1985 | J143: 0.0256
C144: 4 | D144: 30 | E144: 66506 | F144: 14621 | G144: 37733 | H144: 95279 | I144: 0.0477 | J144: 0.0104
C145: 5 | D145: 19 | E145: 54158 | F145: 14052 | G145: 26505 | H145: 81811 | I145: 0.0388 | J145: 0.01
C146: 6 | D146: 8 | E146: 31718 | F146: 13095 | G146: 5948 | H146: 57488 | I146: 0.0227 | J146: 0.0094
C147: 7 | D147: 3 | E147: 14074 | F147: 8311 | G147: 0 | H147: 30430 | I147: 0.0101 | J147: 0.006
C148: 8 | D148: 4 | E148: 17167 | F148: 8914 | G148: 0 | H148: 34708 | I148: 0.0123 | J148: 0.0064
C149: 9 | D149: 2 | E149: 3711 | F149: 2726 | G149: 0 | H149: 9075 | I149: 0.0027 | J149: 0.002
C150: 10 | D150: 7 | E150: 9799 | F150: 4744 | G150: 463.35336 | H150: 19135 | I150: 0.007 | J150: 0.0034
C151: 12 | D151: 3 | E151: 7061 | F151: 4877 | G151: 0 | H151: 16659 | I151: 0.0051 | J151: 0.0035
C152: 14 | D152: 1 | E152: 3834 | F152: 3834 | G152: 0 | H152: 11379 | I152: 0.0027 | J152: 0.0027
C153: 15 | D153: 1 | E153: 1777 | F153: 1777 | G153: 0 | H153: 5274 | I153: 0.0013 | J153: 0.0013
C154: 16 | D154: 2 | E154: 6065 | F154: 4520 | G154: 0 | H154: 14961 | I154: 0.0043 | J154: 0.0032
C155: 20 | D155: 0 | E155: . | F155: . | G155: . | H155: . | I155: . | J155: .
C156: 22 | D156: 0 | E156: . | F156: . | G156: . | H156: . | I156: . | J156: .
C157: 24 | D157: 1 | E157: 2011 | F157: 2011 | G157: 0 | H157: 5968 | I157: 0.0014 | J157: 0.0014
C158: 25 | D158: 0 | E158: . | F158: . | G158: . | H158: . | I158: . | J158: .
C159: 30 | D159: 1 | E159: 1240 | F159: 1240 | G159: 0 | H159: 3680 | I159: 0.0009 | J159: 0.0009
C160: Total | D160: 37681 | E160: 104739748 | F160: 1202441 | G160: 102373462 | H160: 107106034 | I160: 75.0539 | J160: 0.28 | L160: Estimate | M160: LL | N160: UL
B161: 1 | C161: 0 | D161: 10525 | E161: 29651376 | F161: 449722 | G161: 28766367 | H161: 30536385 | I161: 21.2474 | J161: 0.2633 | L161: =C161*E161 -> 0 | M161: =C161*G161 -> 0 | N161: =C161*H161 -> 0
C162: 1 | D162: 1278 | E162: 3495468 | F162: 120230 | G162: 3258867 | H162: 3732069 | I162: 2.5048 | J162: 0.0848 | L162: =C162*E162 -> 3495468 | M162: =C162*G162 -> 3258867 | N162: =C162*H162 -> 3732069
C163: 2 | D163: 346 | E163: 962354 | F163: 63348 | G163: 837691 | H163: 1087017 | I163: 0.6896 | J163: 0.0454 | L163: 1924708 | M163: 1675382 | N163: 2174034
C164: 3 | D164: 130 | E164: 384788 | F164: 40167 | G164: 305743 | H164: 463833 | I164: 0.2757 | J164: 0.0285 | L164: 1154364 | M164: 917229 | N164: 1391499
C165: 4 | D165: 49 | E165: 134386 | F165: 25250 | G165: 84696 | H165: 184076 | I165: 0.0963 | J165: 0.018 | L165: 537544 | M165: 338784 | N165: 736304
C166: 5 | D166: 21 | E166: 73116 | F166: 15974 | G166: 41681 | H166: 104551 | I166: 0.0524 | J166: 0.0115 | L166: 365580 | M166: 208405 | N166: 522755
C167: 6 | D167: 15 | E167: 37923 | F167: 11679 | G167: 14939 | H167: 60907 | I167: 0.0272 | J167: 0.0084 | L167: 227538 | M167: 89634 | N167: 365442
C168: 7 | D168: 5 | E168: 10071 | F168: 4890 | G168: 448.66842 | H168: 19693 | I168: 0.0072 | J168: 0.0035 | L168: 70497 | M168: 3140.67894 | N168: 137851
C169: 8 | D169: 6 | E169: 11156 | F169: 5695 | G169: 0 | H169: 22363 | I169: 0.008 | J169: 0.0041 | L169: 89248 | M169: 0 | N169: 178904
C170: 9 | D170: 3 | E170: 16177 | F170: 9444 | G170: 0 | H170: 34761 | I170: 0.0116 | J170: 0.0068 | L170: 145593 | M170: 0 | N170: 312849
C171: 10 | D171: 6 | E171: 14017 | F171: 7055 | G171: 134.41471 | H171: 27900 | I171: 0.01 | J171: 0.0051 | L171: 140170 | M171: 1344.1471 | N171: 279000
C172: 12 | D172: 1 | E172: 961 | F172: 961 | G172: 0 | H172: 2852 | I172: 0.0007 | J172: 0.0007 | L172: 11532 | M172: 0 | N172: 34224
C173: 14 | D173: 1 | E173: 2036 | F173: 2036 | G173: 0 | H173: 6043 | I173: 0.0015 | J173: 0.0015 | L173: 28504 | M173: 0 | N173: 84602
C174: 15 | D174: 4 | E174: 6759 | F174: 4599 | G174: 0 | H174: 15810 | I174: 0.0048 | J174: 0.0033 | L174: 101385 | M174: 0 | N174: 237150
C175: 16 | D175: 0 | E175: . | F175: . | G175: . | H175: . | I175: . | J175: .
C176: 20 | D176: 3 | E176: 5529 | F176: 3197 | G176: 0 | H176: 11821 | I176: 0.004 | J176: 0.0023 | L176: =C176*E176 -> 110580 | M176: =C176*G176 -> 0 | N176: =C176*H176 -> 236420
C177: 22 | D177: 0 | E177: . | F177: . | G177: . | H177: . | I177: . | J177: .
C178: 24 | D178: 0 | E178: . | F178: . | G178: . | H178: . | I178: . | J178: .
C179: 25 | D179: 1 | E179: 2746 | F179: 2746 | G179: 0 | H179: 8150 | I179: 0.002 | J179: 0.002 | L179: =C179*E179 -> 68650 | M179: =C179*G179 -> 0 | N179: =C179*H179 -> 203750
C180: 30 | D180: 2 | E180: 4120 | F180: 3000 | G180: 0 | H180: 10023 | I180: 0.003 | J180: 0.0022 | L180: =C180*E180 -> 123600 | M180: =C180*G180 -> 0 | N180: =C180*H180 -> 300690
C181: Total | D181: 12396 | E181: 34812983 | F181: 489604 | G181: 33849490 | H181: 35776476 | I181: 24.9461 | J181: 0.28 | L181: =SUM(L161:L180) -> 8594961 | M181: =SUM(M161:M180) -> 6492785.826 | N181: =SUM(N161:N180) -> 10927543
B182: Total | C182: 0 | D182: 45896 | E182: 127847248 | F182: 1337794 | G182: 125214600 | H182: 130479896 | I182: 91.6121 | J182: 0.1529 | L182: =L181/E202/365*100000 -> 16.87379257 | M182: =M181/G202/365*100000 -> 13.01085155 | N182: =N181/H202/365*100000 -> 21.02637641
C183: 1 | D183: 3144 | E183: 8830601 | F183: 210158 | G183: 8417031 | H183: 9244171 | I183: 6.3278 | J183: 0.135
C184: 2 | D184: 611 | E184: 1675028 | F184: 83228 | G184: 1511243 | H184: 1838813 | I184: 1.2003 | J184: 0.0587
C185: 3 | D185: 227 | E185: 661736 | F185: 53810 | G185: 555844 | H185: 767628 | I185: 0.4742 | J185: 0.0383
C186: 4 | D186: 79 | E186: 200892 | F186: 30943 | G186: 139999 | H186: 261785 | I186: 0.144 | J186: 0.0221
C187: 5 | D187: 40 | E187: 127274 | F187: 21275 | G187: 85408 | H187: 169140 | I187: 0.0912 | J187: 0.0152
C188: 6 | D188: 23 | E188: 69641 | F188: 17645 | G188: 34917 | H188: 104365 | I188: 0.0499 | J188: 0.0127
C189: 7 | D189: 8 | E189: 24145 | F189: 9643 | G189: 5168 | H189: 43122 | I189: 0.0173 | J189: 0.0069
C190: 8 | D190: 10 | E190: 28323 | F190: 9543 | G190: 9542 | H190: 47104 | I190: 0.0203 | J190: 0.0068
C191: 9 | D191: 5 | E191: 19888 | F191: 9829 | G191: 544.91681 | H191: 39231 | I191: 0.0143 | J191: 0.007
C192: 10 | D192: 13 | E192: 23816 | F192: 8501 | G192: 7086 | H192: 40546 | I192: 0.0171 | J192: 0.0061
C193: 12 | D193: 4 | E193: 8022 | F193: 4971 | G193: 0 | H193: 17805 | I193: 0.0057 | J193: 0.0036
C194: 14 | D194: 2 | E194: 5870 | F194: 4341 | G194: 0 | H194: 14413 | I194: 0.0042 | J194: 0.0031
C195: 15 | D195: 5 | E195: 8536 | F195: 4931 | G195: 0 | H195: 18239 | I195: 0.0061 | J195: 0.0035
C196: 16 | D196: 2 | E196: 6065 | F196: 4520 | G196: 0 | H196: 14961 | I196: 0.0043 | J196: 0.0032
C197: 20 | D197: 3 | E197: 5529 | F197: 3197 | G197: 0 | H197: 11821 | I197: 0.004 | J197: 0.0023
C198: 22 | D198: 0 | E198: . | F198: . | G198: . | H198: . | I198: . | J198: .
C199: 24 | D199: 1 | E199: 2011 | F199: 2011 | G199: 0 | H199: 5968 | I199: 0.0014 | J199: 0.0014
C200: 25 | D200: 1 | E200: 2746 | F200: 2746 | G200: 0 | H200: 8150 | I200: 0.002 | J200: 0.002
C201: 30 | D201: 3 | E201: 5360 | F201: 3246 | G201: 0 | H201: 11748 | I201: 0.0038 | J201: 0.0023
C202: Total | D202: 50077 | E202: 139552731 | F202: 1439396 | G202: 136720139 | H202: 142385323 | I202: 100
B205: Table of STROKE by HOSP_OVERN
B206: Controlling for CHAD=1
B207: STROKE | C207: HOSP_OVERN | D207: Frequency | E207: Weighted | F207: Std Dev of | G207: 95% Confidence Limits | I207: Percent | J207: Std Err of
E208: Frequency | F208: Wgt Freq | G208: for Wgt Freq | J208: Percent
B209: 0 | C209: 0 | D209: 45065 | E209: 125598046 | F209: 1327504 | G209: 122985647 | H209: 128210445 | I209: 90.0004 | J209: 0.1774
C210: 1 | D210: 2932 | E210: 8256637 | F210: 201894 | G210: 7859329 | H210: 8653945 | I210: 5.9165 | J210: 0.13
C211: 2 | D211: 538 | E211: 1498311 | F211: 77686 | G211: 1345432 | H211: 1651190 | I211: 1.0737 | J211: 0.0551
C212: 3 | D212: 192 | E212: 558139 | F212: 47026 | G212: 465596 | H212: 650682 | I212: 0.3999 | J212: 0.0336
C213: 4 | D213: 58 | E213: 138126 | F213: 26126 | G213: 86713 | H213: 189539 | I213: 0.099 | J213: 0.0187
C214: 5 | D214: 39 | E214: 124811 | F214: 21132 | G214: 83226 | H214: 166396 | I214: 0.0894 | J214: 0.0151
C215: 6 | D215: 21 | E215: 67068 | F215: 17487 | G215: 32654 | H215: 101482 | I215: 0.0481 | J215: 0.0125
C216: 7 | D216: 7 | E216: 22094 | F216: 9422 | G216: 3552 | H216: 40636 | I216: 0.0158 | J216: 0.0068
C217: 8 | D217: 10 | E217: 28323 | F217: 9543 | G217: 9542 | H217: 47104 | I217: 0.0203 | J217: 0.0068
C218: 9 | D218: 4 | E218: 17511 | F218: 9538 | G218: 0 | H218: 36280 | I218: 0.0125 | J218: 0.0068
C219: 10 | D219: 10 | E219: 19207 | F219: 7527 | G219: 4395 | H219: 34019 | I219: 0.0138 | J219: 0.0054
C220: 12 | D220: 3 | E220: 7061 | F220: 4877 | G220: 0 | H220: 16659 | I220: 0.0051 | J220: 0.0035
C221: 14 | D221: 2 | E221: 5870 | F221: 4341 | G221: 0 | H221: 14413 | I221: 0.0042 | J221: 0.0031
C222: 15 | D222: 5 | E222: 8536 | F222: 4931 | G222: 0 | H222: 18239 | I222: 0.0061 | J222: 0.0035
C223: 16 | D223: 1 | E223: 2022 | F223: 2022 | G223: 0 | H223: 6001 | I223: 0.0014 | J223: 0.0014
C224: 20 | D224: 2 | E224: 3804 | F224: 2692 | G224: 0 | H224: 9101 | I224: 0.0027 | J224: 0.0019
C225: 22 | D225: 0 | E225: . | F225: . | G225: . | H225: . | I225: . | J225: .
C226: 24 | D226: 1 | E226: 2011 | F226: 2011 | G226: 0 | H226: 5968 | I226: 0.0014 | J226: 0.0014
C227: 25 | D227: 1 | E227: 2746 | F227: 2746 | G227: 0 | H227: 8150 | I227: 0.002 | J227: 0.002
C228: 30 | D228: 3 | E228: 5360 | F228: 3246 | G228: 0 | H228: 11748 | I228: 0.0038 | J228: 0.0023
C229: Total | D229: 48894 | E229: 136365683 | F229: 1416515 | G229: 133578119 | H229: 139153247 | I229: 97.7162 | J229: 0.0821 | L229: Estimate | M229: LL | N229: UL
B230: 1 | C230: 0 | D230: 831 | E230: 2249202 | F230: 98952 | G230: 2054474 | H230: 2443930 | I230: 1.6117 | J230: 0.0701 | L230: 0 | M230: 0 | N230: 0
C231: 1 | D231: 212 | E231: 573964 | F231: 48564 | G231: 478394 | H231: 669534 | I231: 0.4113 | J231: 0.0347 | L231: 573964 | M231: 478394 | N231: 669534
C232: 2 | D232: 73 | E232: 176717 | F232: 27491 | G232: 122616 | H232: 230818 | I232: 0.1266 | J232: 0.0196 | L232: 353434 | M232: 245232 | N232: 461636
C233: 3 | D233: 35 | E233: 103597 | F233: 21693 | G233: 60908 | H233: 146286 | I233: 0.0742 | J233: 0.0155 | L233: 310791 | M233: 182724 | N233: 438858
C234: 4 | D234: 21 | E234: 62766 | F234: 16692 | G234: 29918 | H234: 95614 | I234: 0.045 | J234: 0.0119 | L234: 251064 | M234: 119672 | N234: 382456
C235: 5 | D235: 1 | E235: 2463 | F235: 2463 | G235: 0 | H235: 7310 | I235: 0.0018 | J235: 0.0018 | L235: 12315 | M235: 0 | N235: 36550
... 438 more rows

Sheet INPUT_HosRate_MedCond
B2: Pre-Event Hospitalization by Medical Condition
B3: Input Worksheet
B5: Step 3.1: Enter the rate of hospitalization per day per 100,000
B6: persons due to pre-existing conditions by medical condition
B7: Medical Condition | C7: Rate (No.) | D7: 95% Confidence Limit
D8: Lower Limit | E8: Upper Limit
B9: Heart Diseases | C9: =Calculation_Hosp_MedCon!C9 -> 10.8330711 | D9: =Calculation_Hosp_MedCon!D9 -> 7.967186623 | E9: =Calculation_Hosp_MedCon!E9 -> 14.06579868
B10: Hypertension | C10: =Calculation_Hosp_MedCon!C10 -> 16.87379257 | D10: =Calculation_Hosp_MedCon!D10 -> 13.01085155 | E10: =Calculation_Hosp_MedCon!E10 -> 21.02637641
B11: Stroke | C11: =Calculation_Hosp_MedCon!C11 -> 3.356252817 | D11: =Calculation_Hosp_MedCon!D11 -> 2.056038853 | E11: =Calculation_Hosp_MedCon!E11 -> 5.191478967
B12: Respiratory Problems | C12: =Calculation_Hosp_MedCon!C12 -> 3.800876815 | D12: =Calculation_Hosp_MedCon!D12 -> 2.078925321 | E12: =Calculation_Hosp_MedCon!E12 -> 6.260544145
B13: Cancer | C13: =Calculation_Hosp_MedCon!C13 -> 6.141291299 | D13: =Calculation_Hosp_MedCon!D13 -> 4.205148542 | E13: =Calculation_Hosp_MedCon!E13 -> 8.600424498
B14: Diabetes | C14: =Calculation_Hosp_MedCon!C14 -> 6.846130187 | D14: =Calculation_Hosp_MedCon!D14 -> 4.708344244 | E14: =Calculation_Hosp_MedCon!E14 -> 9.7792054
B15: Musculoskeletal/Connective Tissue | C15: =Calculation_Hosp_MedCon!C15 -> 20.18479122 | D15: =Calculation_Hosp_MedCon!D15 -> 15.98137357 | E15: =Calculation_Hosp_MedCon!E15 -> 25.70028528
B18: Intermediate results: Subtotal and total
B19: At least one of the above medical conditions | C19: =Calculation_Hosp_MedCon!C17 -> 26.41671257 | D19: =Calculation_Hosp_MedCon!D17 -> 21.41450407 | E19: =Calculation_Hosp_MedCon!E17 -> 33.07675164
B20: Other | C20: =Calculation_Hosp_MedCon!C16 -> 8.191343698 | D20: =Calculation_Hosp_MedCon!D16 -> 6.573989164 | E20: =Calculation_Hosp_MedCon!E16 -> 10.51699236
B21: Total | C21: =Calculation_Hosp_MedCon!C18 -> 34.60805627 | D21: =Calculation_Hosp_MedCon!D18 -> 27.98849323 | E21: =Calculation_Hosp_MedCon!E18 -> 43.593744
B22: Data Source: National Health Interview Survey, NCHS, CDC, 2014
B24: Notes: 1. The rates in the WHITE cells are national estimates as per 100,000 population. MedCon:PreEvent
B25: calculates the rates in GOLD cells based on weights derived from national average estimates
B26: 2. If you enter your own estimates in the WHITE cells, go to the previous sheet and re-enter
B27: the TOTAL rate and confidence limits in Step 3
B28: 3. Other= Persons who do not have any of the listed seven medical conditions, but any other conditions.

Sheet Calculation_HosLos_MedCon
B2: Calculation: Pre-Event length of Hospitalization by Medical Condition
B5: Average length of stay per hospital overnight
B6: by medical condition
B7: Medical Condition | C7: Rate (Days) | D7: 95% Confidence Limit
D8: LL | E8: UL
B9: Heart Diseases | C9: =G98 -> 4.480071 | D9: =I98 -> 4.13221975 | E9: 4.82792199
B10: Hypertension | C10: 5.289123 | D10: 4.06045944 | E10: 4.82740289
B11: Stroke | C11: =G100 -> 5.947012 | D11: 4.95934988 | E11: 6.93467342
B12: Respiratory Conditions | C12: =G102 -> 4.565387 | D12: =I102 -> 3.64441835 | E12: =J102 -> 5.4863548
B13: Cancer | C13: 4.771735 | D13: =I103 -> 4.05426653 | E13: =J103 -> 4.65516042
B14: Diabetes | C14: =G101 -> 5.069342 | D14: =I101 -> 4.46019441 | E14: =J101 -> 5.67849029
B15: Musculoskeletal/Connective Tissue | C15: =G104 -> 4.222162 | D15: =I104 -> 3.89290275 | E15: =J104 -> 4.55142175
B16: Others | C16: =G105 -> 3.307877 | D16: =I105 -> 2.92783597 | E16: =J105 -> 3.68791704
B17: At least one medical condition | C17: 4.296 | D17: 3.998 | E17: 4.593
B18: Total | C18: =G106 -> 4.01454 | D18: =I106 -> 3.77237989 | E18: =J106 -> 4.25670095
B19: Data Source: National Health Interview Survey, NCHS, CDC, 2014
B20: Notes: 1. The rates entered in white cells should be per 100,000 population. The rates on
B21: tan colored cells would be calculated for you based on national average estimates
B22: 2. If you have entered your own rates, go to the previous sheet and re-enter
B23: the total rate and confidence limits
B30: Adjustment factors and calculation for Table 1
B31: Sum of selected seven med condition | C31: =SUM(C9:C15) -> 34.344832 | D31: =SUM(D9:D15) -> 29.20381111 | E31: =SUM(E9:E15) -> 36.96142556
B32: Ratio of at least with one condition to total | C32: =C17/C31 -> 0.1250843213 | D32: =D17/C17 -> 0.9306331471 | E32: =E17/C17 -> 1.069134078
B33: Ratio of other than selected condition to at least one condition | C33: =C16/C17 -> 0.7699899907 | D33: =D16/C16 -> 0.8851102898 | E33: =E16/C16 -> 1.114889411
B34: Ratio of Total to at least one condition | C34: =C18/C17 -> 0.9344832402 | D34: =D18/C18 -> 0.9396792385 | E34: =E18/C18 -> 1.060320971
C93: Revision Date: | D93: 2015-12-15
E96: LOS:NHIS 2014 | I96: 95% CI
F97: N | G97: Mean | H97: STD Dev | I97: LL | J97: UL
E98: Heart_problem | F98: 1121 | G98: 4.480071 | H98: 0.1762 | I98: 4.13221975 | J98: 4.82792199
E99: Hypertension | F99: 1880 | G99: 4.443931 | H99: 0.194645 | I99: 4.06045944 | J99: 4.82740289
E100: Stroke | F100: 354 | G100: 5.947012 | H100: 0.490373 | I100: 4.95934988 | J100: 6.93467342
E101: Diabetes | F101: 723 | G101: 5.069342 | H101: 0.307496 | I101: 4.46019441 | J101: 5.67849029
E102: Respiratory | F102: 387 | G102: 4.565387 | H102: 0.459363 | I102: 3.64441835 | J102: 5.4863548
E103: Cancer | F103: 657 | G103: 4.354713 | H103: 0.15134 | I103: 4.05426653 | J103: 4.65516042
E104: Musculoskeletal | F104: 2263 | G104: 4.222162 | H104: 0.167152 | I104: 3.89290275 | J104: 4.55142175
E105: Other | F105: 1179 | G105: 3.307877 | H105: 0.192488 | I105: 2.92783597 | J105: 3.68791704
E106: Total | F106: 4198 | G106: 4.01454 | H106: 0.123036 | I106: 3.77237989 | J106: 4.25670095

Sheet INPUT_HosLOS_MedCond
B1: Pre-Event Length of Hospitalization by Medical Condition
B2: Input Worksheet
B5: Step 4.1: Enter the average length of stay per hospitalization
B6: by medical condition
B7: Medical Condition | C7: Rate (Days) | D7: 95% Confidence Limit
D8: Lower Limit | E8: Upper Limit
B9: Heart Diseases | C9: =Calculation_HosLos_MedCon!C9 -> 4.480071 | D9: =Calculation_HosLos_MedCon!D9 -> 4.13221975 | E9: =Calculation_HosLos_MedCon!E9 -> 4.82792199
B10: Hypertension | C10: =Calculation_HosLos_MedCon!C10 -> 5.289123 | D10: =Calculation_HosLos_MedCon!D10 -> 4.06045944 | E10: =Calculation_HosLos_MedCon!E10 -> 4.82740289
B11: Stroke | C11: =Calculation_HosLos_MedCon!C11 -> 5.947012 | D11: =Calculation_HosLos_MedCon!D11 -> 4.95934988 | E11: =Calculation_HosLos_MedCon!E11 -> 6.93467342
B12: Respiratory Problems | C12: =Calculation_HosLos_MedCon!C12 -> 4.565387 | D12: =Calculation_HosLos_MedCon!D12 -> 3.64441835 | E12: =Calculation_HosLos_MedCon!E12 -> 5.4863548
B13: Cancer | C13: =Calculation_HosLos_MedCon!C13 -> 4.771735 | D13: =Calculation_HosLos_MedCon!D13 -> 4.05426653 | E13: =Calculation_HosLos_MedCon!E13 -> 4.65516042
B14: Diabetes | C14: =Calculation_HosLos_MedCon!C14 -> 5.069342 | D14: =Calculation_HosLos_MedCon!D14 -> 4.46019441 | E14: =Calculation_HosLos_MedCon!E14 -> 5.67849029
B15: Musculoskeletal/Connective Tissue | C15: =Calculation_HosLos_MedCon!C15 -> 4.222162 | D15: =Calculation_HosLos_MedCon!D15 -> 3.89290275 | E15: =Calculation_HosLos_MedCon!E15 -> 4.55142175
B17: Intermediate results: Subtotal and total
B18: At least one of the above medical conditions | C18: =Calculation_HosLos_MedCon!C17 -> 4.296 | D18: =Calculation_HosLos_MedCon!D17 -> 3.998 | E18: =Calculation_HosLos_MedCon!E17 -> 4.593
B19: Other | C19: =Calculation_HosLos_MedCon!C16 -> 3.307877 | D19: =Calculation_HosLos_MedCon!D16 -> 2.92783597 | E19: =Calculation_HosLos_MedCon!E16 -> 3.68791704
B20: Total | C20: =Calculation_HosLos_MedCon!C18 -> 4.01454 | D20: =Calculation_HosLos_MedCon!D18 -> 3.77237989 | E20: =Calculation_HosLos_MedCon!E18 -> 4.25670095
B21: Data source: National Health Interview Survey, NCHS, CDC, 2014
B22: Notes: 1. The rates in the WHITE cells are national estimates as per 100,000 population. MedCon:PreEvent
B23: calculates the rates in GOLD cells based on national average estimates
B24: 2. If you enter your own rates in the WHITE cells, they MUST be per 100,000 population
B25: and go to the previous two sheetz and re-enter the TOTAL rate and confidence limits in Step 4
B26: 3. Other= Persons who do not have any of the listed seven medical conditions but other conditions.

Sheet INPUT_Hos_Season
B1: Pre-Event Hospitalization by Month
B2: Input Worksheet
B3: Step 3.2: Enter the monthly adjustment factors for | G3: Step 3.3: Select the month for which you want to estimate
B4: daily rate of hospitalization by month | G4: the pre-event hospitalization
B5: Month | C5: Adjustment Factor | D5: 95% Confidence Limits
D6: Lower Limit | E6: Upper Limit | H6: Month/Annual
B7: Jan | C7: 1.025423528 | D7: 1.004199845 | E7: 1.046647212
B8: Feb | C8: 1.110042363 | D8: 1.087837053 | E8: 1.132247673 | G8: Intermediate results:
B9: Mar | C9: 1.054588054 | D9: 1.033307267 | E9: 1.075868841 | G9: Rate of hospitalization per day per 100,000 persons
B10: Apr | C10: 1.048423636 | D10: 1.027204919 | E10: 1.069642354 | G10: for the selected month or annual average
B11: May | C11: 1.026013808 | D11: 1.004760952 | E11: 1.047266664 | I11: Rate (No.) | J11: 95% Confidence Limits
B12: Jun | C12: 0.9644469089 | D12: 0.9450238575 | E12: 0.9838699604 | G12: Total | I12: =CHOOSE(Working!A52,Working!C52,Working!C53,Working!C54,Working!C55,Working!C56,Working!C57,Working!C58,Working!C59,Working!C60,Working!C61,Working!C61,Working!C63,Working!C64) -> 34.60805627 | J12: =CHOOSE(Working!A52,Working!D52,Working!D53,Working!D54,Working!D55,Working!D56,Working!D57,Working!D58,Working!D59,Working!D60,Working!D61,Working!D61,Working!D63,Working!D64) -> 27.98849323 | K12: =CHOOSE(Working!A52,Working!E52,Working!E53,Working!E54,Working!E55,Working!E56,Working!E57,Working!E58,Working!E59,Working!E60,Working!E61,Working!E61,Working!E63,Working!E64) -> 43.593744
B13: Jul | C13: 0.9780472346 | D13: 0.958518355 | E13: 0.9975761143
B14: Aug | C14: 0.972388372 | D14: 0.9527654572 | E14: 0.9920112867 | G14: Notes: 1. The rates in the WHITE cells are national estimates as per 100,000 population.
B15: Sep | C15: 0.9257078757 | D15: 0.9069464836 | E15: 0.9444692679 | G15: MedCon:PreEvent calculates the rates in GOLD cells.
B16: Oct | C16: 0.8889910619 | D16: 0.8704925335 | E16: 0.9074895904 | G16: 2. If you enter your own rates in the WHITE cells, they MUST be per 100,000 population
B17: Nov | C17: 0.9371336017 | D17: 0.9184842447 | E17: 0.9557829587
B18: Dec | C18: 1.068793556 | D18: 1.047008766 | E18: 1.090578346
B19: Yearly Average | C19: 1 | D19: 1 | E19: 1
B20: Data source: National Hospital Discharge Survey, NCHS, CDC, 2005
B22: Average annual rate of hospitalization per day per 100,000 persons
C23: Rate (No.) | D23: 95% Confidence Limits
B24: Total | C24: =INPUT_Hospitalization_Total!C8*C19 -> 34.60805627 | D24: =INPUT_Hospitalization_Total!D8*D19 -> 27.98849323 | E24: =INPUT_Hospitalization_Total!E8*E19 -> 43.593744 | G24: From previous sheet

Sheet INPUT_Nursing Homes
B1: Occupation of Nursing Home Beds
B2: Input Worksheet
B3: Step 5: Enter the rate of patients in nursing homes
B4: per 100,000 persons by age category
B5: Age category (in Yrs) | C5: Rate (No.) | D5: 95% Confidence Limits
D6: Lower Limit | E6: Upper Limit
B7: ≤ 5 | C7: 0.4545756162 | D7: 0.09827925165 | E7: 0.8107907686
B8: 5 - 17 | C8: 0.4832640849 | D8: 0.1131804828 | E8: 0.8534819422
B9: 18 - 64 | C9: 58.83048637 | D9: 55.5002333 | E9: 62.16073943
B10: ≥ 65 | C10: 449.6702296 | D10: 443.9171671 | E10: 455.4232922
B11: Total | C11: 509.4385557 | D11: 504.0417083 | E11: 514.8354031
B12: Data source: National Nursing Homes Survey, NCHS, CDC, 2004
B13: Note: The Nursing home beds data are not updated in this version yet
B14: Notes: 1. The rates in White cells are national average estimates per 100,000 population.
B15: 2. If you enter your own estimates, they MUST be per 100,000 population

Sheet Input_Special Needs
B2: "Special Medical Care (SMC)"
B4: Step 10: Evaluate the cut-off criteria options to determine an individual at
B5: risk of "Special Needs" of medical care
B6: Markers | H6: Cut-off Criteria
H7: Option 1 | I7: Option 2 | J7: Option 3 | K7: Option 4 | L7: Option 5 | M7: Option 6
B8: Number of times office visits in 12 months, or | H8: >12 | I8: >9 | J8: >=6 | K8: Self-rated "Poor" health | L8: "Poor" health and >=6 office visits or "Fair" health and >12 office visits | M8: "Poor" health or "Fair" health and >12 office visits
B9: Number of home visits per month in 12 months, or | H9: >4 | I9: >4 | J9: >2
B10: Number of times in hospital overnight in 12 months, or | H10: >6 | I10: >6 | J10: >3
B11: Number of times ER/Ed visits in 12 months, or | H11: >=6 | I11: >=6 | J11: >3
B12: Number of surgeries in 12 months | H12: >=6 | I12: >=6 | J12: >3
B14: Step 11: Select a cut-off option for the "Special Needs" from the Step 10
B15: Step 12: Determine number of clinical visits by those in "Special Needs" in the first month following event
B16: Distribution of office visits before an event by those in "Special Needs" during past 12 months by "Special Needs"option
B17: Option | D17: Number of visits | G17: Total
D18: <6 | E18: 6-12 | F18: >12
B19: Option1 | D19: 0.142 | E19: =1-D19 -> 0.858 | F19: 0 | G19: =SUM(D19:F19) -> 1
B20: Option2 | D20: 0.478 | E20: =1-D20 -> 0.522 | F20: 0 | G20: 1
B21: Option3 | D21: 0.7113 | E21: 0.2887 | F21: 0 | G21: 1
B22: Option4 | D22: 0.8483 | E22: 0.1517 | F22: 0 | G22: 1
B23: Option5 | D23: 0.281 | E23: 0.719 | F23: 0 | G23: 1
B24: Option6 | D24: 0.6708 | E24: 0.3292 | F24: 0 | G24: 1
B25: Data source: National Health Interview Survey, 2006
B26: Assumption: Number of clinical visits by those in "Special Needs" in the first month following disaster corresponding to pre-event number of visits
D27: 1 | E27: 1.5 | F27: 2
B28: Intermediate Results: Average number of visits
B29: Option1 | D29: =D19*$D$27 -> 0.142 | E29: =E19*$E$27 -> 1.287 | F29: =F19*$F$27 -> 0 | G29: =SUM(D29:F29) -> 1.429
B30: Option2 | D30: 0.478 | E30: 0.783 | F30: 0 | G30: 1.261
B31: Option3 | D31: 0.7113 | E31: 0.43305 | F31: 0 | G31: 1.14435
B32: Option4 | D32: 0.8483 | E32: 0.22755 | F32: 0 | G32: 1.07585
B33: Option5 | D33: 0.281 | E33: 1.0785 | F33: 0 | G33: 1.3595
B34: Option6 | D34: 0.6708 | E34: 0.4938 | F34: 0 | G34: 1.1646
B36: Step 13: Determine the distribution of clinical visits by those in "Special Needs"
B37: Week | D37: 1 | E37: 2 | F37: 3 | G37: 4
B38: Proportion | D38: =Distribution!H41 -> 0.6624172185 | E38: =Distribution!O41-Distribution!H41 -> 0.2430463576 | F38: =Distribution!S41-Distribution!O41 -> 0.09453642384 | G38: 0 | H38: =SUM(D38:G38) -> 1
B39: Cum_Proportion | D39: =D38 -> 0.6624172185 | E39: =D39+E38 -> 0.9054635762 | F39: =E39+F38 -> 1 | G39: =F39+G38 -> 1
B40: Note: The sum of the proportions must be 1
E50: SMC1
C51: ovisitcat | D51: 0 | E51: 1 | F51: Total
C53: 1 | D53: 94.73 | E53: 0.3615 | F53: 95.1
D54: [94.55,94.91] | E54: [.3195,.409] | F54: [94.92,95.26]
D55: 110000 | E55: 387 | F55: 110000
C57: 2 | D57: 2.054 | E57: 2.851 | F57: 4.905
D58: [1.958,2.155] | E58: [2.72,2.988] | F58: [4.737,5.079]
D59: 2308 | E59: 3198 | F59: 5506
C61: Total | D61: 96.79 | E61: 3.213 | F61: 100
D62: [96.64,96.93] | E62: [3.075,3.356]
D63: 110000 | E63: 3585 | F63: 110000

Sheet Input_SMC1
B2: Special Medical Care (SMC)
B3: Input Worksheet
B5: Step 6: Evaluate the cut-off criteria to determine an individual at risk of SMC needs
B6: Health Services Utilization Markers | H6: Cut-off Criteria
H7: Option 1 | I7: Option 2 | J7: Option 3 | K7: Option 4 | L7: Option 5 | M7: Option 6
B8: No. of office visits in past 12 months, OR | H8: >12 | I8: >9 | J8: ≥6 | K8: Self-rated "Poor" health | L8: "Poor" health and >=6 office visits or "Fair" health and >12 office visits | M8: "Poor" health or "Fair" health and >12 office visits
B9: No. of home visits/ month in past 12 months, OR | H9: >4 | I9: >4 | J9: >2
B10: No. of times in hospital overnight in past 12 months, OR | H10: >6 | I10: >6 | J10: >3
B11: No. of ER/ED visits in past 12 months, OR | H11: ≥6 | I11: ≥6 | J11: >3
B12: No. of surgeries in past 12 months | H12: ≥6 | I12: ≥6 | J12: >3
B14: Step 7: Select an option for the SMC needs from the Step 6

Sheet Input_SMC2
B2: Input Worksheet
B3: "Special Medical Care" …
B4: Step 12: Determine number of clinical visits by those requiring "Special Medical Care" in the first month following event
B5: Distribution of office visits before an event by those requiring "Special Medical Care" during past 12 months by option | J5: Intermediate results: Average number of clinical visits
B6: Option | D6: Number of visits | G6: Total | J6: Option | L6: Number of visits | O6: Average Total
D7: <6 | E7: 6-12 | F7: >12 | L7: <6 | M7: 6-12 | N7: >12
B8: Option1 | D8: 0.03805632196 | E8: 0.06230573115 | F8: 0.8996379469 | G8: =SUM(D8:F8) -> 1 | J8: Option1 | L8: =D8*$E$17 -> 0.03805632196 | M8: =E8*$F$17 -> 0.09345859672 | N8: =F8*$G$17 -> 1.799275894 | O8: =SUM(L8:N8) -> 1.930790812
B9: Option2 | D9: 0.0236204542 | E9: 0.4180003902 | F9: 0.5583791556 | G9: 1 | J9: Option2 | L9: 0.0236204542 | M9: 0.6270005853 | N9: 1.116758311 | O9: 1.767379351
B10: Option3 | D10: 0.03662035 | E10: 0.6364113326 | F10: 0.3269725485 | G10: 1.000004231 | J10: Option3 | L10: 0.03662035 | M10: 0.954616999 | N10: 0.653945097 | O10: 1.645182446
B11: Option4 | D11: 0.3327114635 | E11: 0.3404737316 | F11: 0.3268148049 | G11: 1 | J11: Option4 | L11: 0.3327114635 | M11: 0.5107105973 | N11: 0.6536296099 | O11: 1.497051671
B12: Option5 | D12: 0 | E12: 0.2755311118 | F12: 0.7244958482 | G12: 1.00002696 | J12: Option5 | L12: 0 | M12: 0.4132966677 | N12: 1.448991696 | O12: 1.862288364
B13: Option6 | D13: 0.2121282923 | E13: 0.2170773152 | F13: 0.5707943925 | G13: 1 | J13: Option6 | L13: 0.2121282923 | M13: 0.3256159728 | N13: 1.141588785 | O13: 1.67933305
B14: Data source: National Health Interview Survey, 2006
B15: Assumption: Number of clinical visits by those in need of "Special Medical Care" in the first month following disaster corresponding to pre-event number of office visits is as follows
B16: Number of office visits before an event past 12 months | E16: <6 | F16: 6-12 | G16: >12
B17: Number of clinical visits in the first month following an event | E17: 1 | F17: 1.5 | G17: 2

Sheet Input_SMC3
B2: Input Worksheet
B3: "Special Medical Care"
B5: Step 13: Determine weekly distribution of clinical visits by those in "Special Medical Care" needs
B6: Week | C6: 1 | D6: 2 | E6: 3 | F6: 4
B7: Proportion | C7: =Distribution!H41 -> 0.6624172185 | D7: =Distribution!O41-Distribution!H41 -> 0.2430463576 | E7: =Distribution!S41-Distribution!O41 -> 0.09453642384 | F7: =1-C7-D7-E7 -> 0 | G7: =SUM(C7:F7) -> 1 | H7: Note: The sum of the proportions must be 1
B8: Cum_Proportion | C8: =C7 -> 0.6624172185 | D8: =C8+D7 -> 0.9054635762 | E8: =D8+E7 -> 1 | F8: =E8+F7 -> 1

Sheet Calculation_SN_Option1
B2: Calculation: Special Need Population
C3: Option 1
B6: Table 1
B7: Rate of special need population per 100,000 population
B8: by medical condition
B9: Medical Condition | C9: Rate | D9: 95% Confidence Limits
D10: LL | E10: UL
B11: Heart diseases | C11: =M82*$O$79 -> 1839.106252 | D11: =N82*$O$79 -> 1717.684035 | E11: 1955.697358
B12: Hypertension | C12: =M96*$O$79 -> 3106.319718 | D12: =N96*$O$79 -> 2978.313239 | E12: 3229.233114
B13: Stroke | C13: =M110*$O$79 -> 511.7735747 | D13: =N110*$O$79 -> 446.7812895 | E13: 574.1799666
B14: Respiratory problems | C14: =M139*$O$79 -> 790.7132968 | D14: =N139*$O$79 -> 714.9707477 | E14: 863.4422243
B15: Cancer | C15: =M153*$O$79 -> 1319.537774 | D15: =N153*$O$79 -> 1215.287676 | E15: 1419.64
B16: Diabetes | C16: =M124*$O$79 -> 1260.49056 | D16: =N124*$O$79 -> 1154.96518 | E16: 1361.817327
B17: Musculoskeletal/connective tissue problems | C17: =M168*$O$79 -> 4758.134042 | D17: =N168*$O$79 -> 4582.817166 | E17: 4926.475463
B18: Total: At least with one condition | C18: =M179*$O$79 -> 5783.87606 | D18: =N179*$O$79 -> 5293.39061 | E18: =O179*$O$79 -> 6257.69694 | G18: Table 3
B19: Other | C19: =M214*$O$79 -> 1340.518374 | D19: =N214*$O$79 -> 1237.925892 | E19: 1439.028937 | G19: Rate of special need population
B20: Total Special Needs | C20: =C18+C19 -> 7124.394434 | D20: =D18+D19 -> 6531.316502 | E20: 7696.725877 | G20: by number of selected medical condition (per 100,000)
G21: No. of Medical Condition | H21: Rate | I21: 95% Confidence Limits
B22: Table 2 | I22: LL | J22: UL
B23: Rate of special need population per 100,000 population | G23: 0 | H23: =N187 -> 1340.518374 | I23: =O187 -> 1237.925892 | J23: 1439.028937
B24: by age category | G24: 1 | H24: =N188 -> 1831.421701 | I24: =O188 -> 1698.690491 | J24: =P188 -> 1958.871842
B25: Age category | C25: Rate | D25: 95% Confidence Limits | G25: 2 | H25: 1626.226147 | I25: 1508.610227 | J25: 1739.162399
D26: LL | E26: UL | G26: 3 | H26: 1223.573332 | I26: 1143.310716 | J26: 1300.642483
B27: <5 Years | C27: =M229*100000 -> 271.6679188 | D27: =N229*100000 -> 224.5389759 | E27: 316.9217097 | G27: 4 | H27: 749.0473261 | I27: 663.8831753 | J27: 830.8229915
B28: 5-17 Years | C28: =M230*100000 -> 506.689475 | D28: 439.9315305 | E28: 570.7912746 | G28: 5 | H28: 290.4565157 | I28: 241.6278995 | J28: 337.3423537
B29: 18-64 Years | C29: 4232.635189 | D29: 4055.864074 | E29: 4402.372989 | G29: 6 | H29: 59.04793078 | I29: 37.26810137 | J29: 79.96119094
B30: >=65 Years | C30: 2113.401851 | D30: 1986.247981 | E30: 2235.496562 | G30: 7 | H30: 4.103108523 | I30: 0 | J30: 10.89367898
B31: Total Special Needs | C31: =SUM(C27:C30) -> 7124.394434 | D31: =SUM(D27:D30) -> 6706.582561 | E31: 7525.582535 | G31: Total | H31: =N195 -> 7124.394434 | I31: =O195 -> 6933.360417 | J31: 7307.827647
B33: Adjustment factors and calculation for Table 1 | G33: Adjustment factors for Table 1
B34: Sum of selected seven med condition | C34: =C50 -> 13586.07522 | D34: =D50 -> 12810.81933 | E34: 14330.48545 | G34: 0 | H34: 0.1881589216 | I34: 0.9234680525 | J34: 1.073486918
B35: Ratio of at least with one condition to total | C35: =C51 -> 0.425720892 | D35: =D51 -> 0.9151977938 | E35: 1.081920995 | G35: 1 | H35: 0.2570634905 | I35: 0.9275255883 | J35: 1.069590822
B36: Ratio of other than selected condition to at least one condition | C36: =C52 -> 0.2317681706 | D36: =D52 -> 0.9234680525 | E36: 1.073486918 | G36: 2 | H36: 0.2282616666 | I36: 0.9276755453 | J36: 1.069446831
B37: Ratio of total to at least one condition | C37: =C53 -> 1.231768171 | D37: =D53 -> 0.9167539168 | E37: 1.056311888 | G37: 3 | H37: 0.1717441872 | I37: 0.9344031015 | J37: 1.062986949
G38: 4 | H38: 0.1051383852 | I38: 0.8863033778 | J38: 1.109172895
G39: 5 | H39: 0.04076929181 | I39: 0.8318900986 | J39: 1.161421196
B40: Adjustment factors for Table 2 | G40: 6 | H40: 0.008288133304 | I40: 0.6311499977 | J40: 1.35417431
G41: 7 | H41: 0.0005759238292 | I41: 0 | J41: 2.654981928
B42: <5 Years | C42: =C27/$C$31 -> 0.03813207162 | D42: =D27/C27 -> 0.8265200281 | E42: =E27/C27 -> 1.166577603 | G42: Total | H42: 1 | I42: 0.9731859292 | J42: 1.025747201
B43: 5-17 Years | C43: =C28/$C$31 -> 0.07112035692 | D43: =D28/C28 -> 0.8682468301 | E43: =E28/C28 -> 1.126511015
B44: 18-64 Years | C44: =C29/$C$31 -> 0.5941045556 | D44: =D29/C29 -> 0.9582361562 | E44: =E29/C29 -> 1.040102157
B45: >=65 Years | C45: =C30/$C$31 -> 0.2966430158 | D45: =D30/C30 -> 0.9398345041 | E45: =E30/C30 -> 1.057771649 | G45: Adjustment factors for Table 1(Calculation)
B46: Total Special Needs | C46: =C31/$C$31 -> 1 | D46: =D31/C31 -> 0.9413547528 | E46: =E31/C31 -> 1.056311888 | G46: 0 | H46: =H23/$H$31 -> 0.1881589216 | I46: =I23/H23 -> 0.9234680525 | J46: =J23/H23 -> 1.073486918
G47: 1 | H47: =H24/$H$31 -> 0.2570634905 | I47: =I24/H24 -> 0.9275255883 | J47: =J24/H24 -> 1.069590822
G48: 2 | H48: 0.2282616666 | I48: 0.9276755453 | J48: 1.069446831
B49: Adjustment factors and calculation for Table 1 (Calculation) | G49: 3 | H49: 0.1717441872 | I49: 0.9344031015 | J49: 1.062986949
B50: Sum of selected seven med condition | C50: =SUM(C11:C17) -> 13586.07522 | D50: =SUM(D11:D17) -> 12810.81933 | E50: =SUM(E11:E17) -> 14330.48545 | G50: 4 | H50: 0.1051383852 | I50: 0.8863033778 | J50: 1.109172895
B51: Ratio of at least with one condition to total | C51: =C18/C50 -> 0.425720892 | D51: =D18/C18 -> 0.9151977938 | E51: =E18/C18 -> 1.081920995 | G51: 5 | H51: 0.04076929181 | I51: 0.8318900986 | J51: 1.161421196
B52: Ratio of other than selected condition to at least one condition | C52: =C19/C18 -> 0.2317681706 | D52: =D19/C19 -> 0.9234680525 | E52: =E19/C19 -> 1.073486918 | G52: 6 | H52: 0.008288133304 | I52: 0.6311499977 | J52: 1.35417431
B53: Ratio of total to at least one condition | C53: =C20/C18 -> 1.231768171 | D53: =D20/C20 -> 0.9167539168 | E53: =E31/C31 -> 1.056311888 | G53: 7 | H53: 0.0005759238292 | I53: 0 | J53: 2.654981928
G54: Total | H54: 1 | I54: 0.9731859292 | J54: 1.025747201
B56: Updated: 05/11/2009
B58: Computation: 2014 Update
B62: FREQUENCY REPORT FOR 2014 NHIS Sample Child FILE
B64: The SURVEYFREQ Procedure
B66: Data Summary
B67: Number of Strata | C67: 300
B68: Number of Clusters | C68: 600
B69: Number of Observations | C69: 112053
B70: Number of Observations Used | C70: 111682
B71: Number of Obs with Nonpositive Weights | C71: 371
B72: Sum of Weights | C72: 313090247
B74: Table of SMC1 by HEARTPROB
B75: Controlling for CHAD=1
B76: SMC1 | C76: HEARTPROB | D76: Frequency | E76: Weighted | F76: Std Dev of | G76: 95% Confidence Limits | I76: Percent | J76: Std Err of
E77: Frequency | F77: Wgt Freq | G77: for Wgt Freq | J77: Percent
B78: 0 | C78: 0 | D78: 42732 | E78: 118704158 | F78: 1284728 | G78: 116175937 | H78: 121232379 | I78: 85.0604 | J78: 0.2183
C79: 1 | D79: 3803 | E79: 10906286 | F79: 244571 | G79: 10424994 | H79: 11387578 | I79: 7.8152 | J79: 0.1611 | M79: Per population to estimate | O79: 100000
C80: Total | D80: 46535 | E80: 129610444 | F80: 1362983 | G80: 126928225 | H80: 132292663 | I80: 92.8756 | J80: 0.1548
B81: 1 | C81: 0 | D81: 2628 | E81: 7375764 | F81: 191876 | G81: 6998170 | H81: 7753358 | I81: 5.2853 | J81: 0.1272 | M81: % | N81: LL (%) | O81: UL (%)
C82: 1 | D82: 914 | E82: 2566523 | F82: 110830 | G82: 2348420 | H82: 2784626 | I82: 1.8391 | J82: 0.0781 | M82: =E82/E86 -> 0.01839106252 | N82: =G82/G86 -> 0.01717684035 | O82: =H82/H86 -> 0.01955697358
C83: Total | D83: 3542 | E83: 9942287 | F83: 235269 | G83: 9479300 | H83: 10405274 | I83: 7.1244 | J83: 0.1548
B84: Total | C84: 0 | D84: 45360 | E84: 126079922 | F84: 1346079 | G84: 123430969 | H84: 128728875 | I84: 90.3457 | J84: 0.1847
C85: 1 | D85: 4717 | E85: 13472809 | F85: 282734 | G85: 12916415 | H85: 14029203 | I85: 9.6543 | J85: 0.1847
C86: Total | D86: 50077 | E86: 139552731 | F86: 1439396 | G86: 136720139 | H86: 142385323 | I86: 100
B88: Table of SMC1 by HYPERTENSION
B89: Controlling for CHAD=1
B90: SMC1 | C90: HYPERTENSION | D90: Frequency | E90: Weighted | F90: Std Dev of | G90: 95% Confidence Limits | I90: Percent | J90: Std Err of
E91: Frequency | F91: Wgt Freq | G91: for Wgt Freq | J91: Percent
B92: 0 | C92: 0 | D92: 35711 | E92: 99132415 | F92: 1144373 | G92: 96880400 | H92: 101384430 | I92: 71.0358 | J92: 0.2811
C93: 1 | D93: 10824 | E93: 30478029 | F93: 450387 | G93: 29591711 | H93: 31364347 | I93: 21.8398 | J93: 0.2606
C94: Total | D94: 46535 | E94: 129610444 | F94: 1362983 | G94: 126928225 | H94: 132292663 | I94: 92.8756 | J94: 0.1548
B95: 1 | C95: 0 | D95: 1970 | E95: 5607333 | F95: 176752 | G95: 5259502 | H95: 5955164 | I95: 4.0181 | J95: 0.1186 | M95: % | N95: LL (%) | O95: UL (%)
C96: 1 | D96: 1572 | E96: 4334954 | F96: 133645 | G96: 4071954 | H96: 4597954 | I96: 3.1063 | J96: 0.0936 | M96: =E96/E100 -> 0.03106319718 | N96: =G96/G100 -> 0.02978313239 | O96: =H96/H100 -> 0.03229233114
C97: Total | D97: 3542 | E97: 9942287 | F97: 235269 | G97: 9479300 | H97: 10405274 | I97: 7.1244 | J97: 0.1548
B98: Total | C98: 0 | D98: 37681 | E98: 104739748 | F98: 1202441 | G98: 102373462 | H98: 107106034 | I98: 75.0539 | J98: 0.28
C99: 1 | D99: 12396 | E99: 34812983 | F99: 489604 | G99: 33849490 | H99: 35776476 | I99: 24.9461 | J99: 0.28
C100: Total | D100: 50077 | E100: 139552731 | F100: 1439396 | G100: 136720139 | H100: 142385323 | I100: 100
B102: Table of SMC1 by STROKE
B103: Controlling for CHAD=1
B104: SMC1 | C104: STROKE | D104: Frequency | E104: Weighted | F104: Std Dev of | G104: 95% Confidence Limits | I104: Percent | J104: Std Err of
E105: Frequency | F105: Wgt Freq | G105: for Wgt Freq | J105: Percent
B106: 0 | C106: 0 | D106: 45624 | E106: 127137590 | F106: 1346431 | G106: 124487944 | H106: 129787236 | I106: 91.1036 | J106: 0.1706
C107: 1 | D107: 911 | E107: 2472854 | F107: 104602 | G107: 2267008 | H107: 2678700 | I107: 1.772 | J107: 0.0736
C108: Total | D108: 46535 | E108: 129610444 | F108: 1362983 | G108: 126928225 | H108: 132292663 | I108: 92.8756 | J108: 0.1548
B109: 1 | C109: 0 | D109: 3270 | E109: 9228093 | F109: 222955 | G109: 8789340 | H109: 9666846 | I109: 6.6126 | J109: 0.1473 | M109: % | N109: LL (%) | O109: UL (%)
C110: 1 | D110: 272 | E110: 714194 | F110: 52520 | G110: 610840 | H110: 817548 | I110: 0.5118 | J110: 0.0373 | M110: =E110/E114 -> 0.005117735747 | N110: =G110/G114 -> 0.004467812895 | O110: =H110/H114 -> 0.005741799666
C111: Total | D111: 3542 | E111: 9942287 | F111: 235269 | G111: 9479300 | H111: 10405274 | I111: 7.1244 | J111: 0.1548
B112: Total | C112: 0 | D112: 48894 | E112: 136365683 | F112: 1416515 | G112: 133578119 | H112: 139153247 | I112: 97.7162 | J112: 0.0821
C113: 1 | D113: 1183 | E113: 3187048 | F113: 117644 | G113: 2955535 | H113: 3418561 | I113: 2.2838 | J113: 0.0821
C114: Total | D114: 50077 | E114: 139552731 | F114: 1439396 | G114: 136720139 | H114: 142385323 | I114: 100
B116: Table of SMC1 by DIABETES
B117: Controlling for CHAD=1
B118: SMC1 | C118: DIABETES | D118: Frequency | E118: Weighted | F118: Std Dev of | G118: 95% Confidence Limits | I118: Percent | J118: Std Err of
E119: Frequency | F119: Wgt Freq | G119: for Wgt Freq | J119: Percent
B120: 0 | C120: 0 | D120: 43350 | E120: 121056662 | F120: 1298468 | G120: 118501403 | H120: 123611921 | I120: 86.7462 | J120: 0.1919
C121: 1 | D121: 3185 | E121: 8553782 | F121: 200931 | G121: 8158368 | H121: 8949196 | I121: 6.1294 | J121: 0.1339
C122: Total | D122: 46535 | E122: 129610444 | F122: 1362983 | G122: 126928225 | H122: 132292663 | I122: 92.8756 | J122: 0.1548
B123: 1 | C123: 0 | D123: 2895 | E123: 8183238 | F123: 211795 | G123: 7766446 | H123: 8600030 | I123: 5.8639 | J123: 0.1404 | M123: % | N123: LL (%) | O123: UL (%)
C124: 1 | D124: 647 | E124: 1759049 | F124: 91457 | G124: 1579070 | H124: 1939028 | I124: 1.2605 | J124: 0.065 | M124: =E124/E128 -> 0.0126049056 | N124: =G124/G128 -> 0.0115496518 | O124: =H124/H128 -> 0.01361817327
C125: Total | D125: 3542 | E125: 9942287 | F125: 235269 | G125: 9479300 | H125: 10405274 | I125: 7.1244 | J125: 0.1548
B126: Total | C126: 0 | D126: 46245 | E126: 129239900 | F126: 1366390 | G126: 126550978 | H126: 131928822 | I126: 92.6101 | J126: 0.1461
C127: 1 | D127: 3832 | E127: 10312831 | F127: 221372 | G127: 9877192 | H127: 10748470 | I127: 7.3899 | J127: 0.1461
C128: Total | D128: 50077 | E128: 139552731 | F128: 1439396 | G128: 136720139 | H128: 142385323 | I128: 100
B131: Table of SMC1 by RESPIRATORY
B132: Controlling for CHAD=1
B133: SMC1 | C133: RESPIRATORY | D133: Frequency | E133: Weighted | F133: Std Dev of | G133: 95% Confidence Limits | I133: Percent | J133: Std Err of
E134: Frequency | F134: Wgt Freq | G134: for Wgt Freq | J134: Percent
B135: 0 | C135: 0 | D135: 43614 | E135: 121651720 | F135: 1262654 | G135: 119166940 | H135: 124136500 | I135: 87.1726 | J135: 0.2035
C136: 1 | D136: 2921 | E136: 7958724 | F136: 214492 | G136: 7536624 | H136: 8380824 | I136: 5.703 | J136: 0.1318
C137: Total | D137: 46535 | E137: 129610444 | F137: 1362983 | G137: 126928225 | H137: 132292663 | I137: 92.8756 | J137: 0.1548
B138: 1 | C138: 0 | D138: 3118 | E138: 8838825 | F138: 218329 | G138: 8409175 | H138: 9268475 | I138: 6.3337 | J138: 0.1448 | M138: % | N138: LL (%) | O138: UL (%)
C139: 1 | D139: 424 | E139: 1103462 | F139: 64004 | G139: 977509 | H139: 1229415 | I139: 0.7907 | J139: 0.0452 | M139: =E139/E143 -> 0.007907132968 | N139: =G139/G143 -> 0.007149707477 | O139: =H139/H143 -> 0.008634422243
C140: Total | D140: 3542 | E140: 9942287 | F140: 235269 | G140: 9479300 | H140: 10405274 | I140: 7.1244 | J140: 0.1548
B141: Total | C141: 0 | D141: 46732 | E141: 130490545 | F141: 1328214 | G141: 127876749 | H141: 133104341 | I141: 93.5063 | J141: 0.1426
C142: 1 | D142: 3345 | E142: 9062186 | F142: 233146 | G142: 8603378 | H142: 9520994 | I142: 6.4937 | J142: 0.1426
C143: Total | D143: 50077 | E143: 139552731 | F143: 1439396 | G143: 136720139 | H143: 142385323 | I143: 100
B145: Table of SMC1 by CANCER
B146: Controlling for CHAD=1
B147: SMC1 | C147: CANCER | D147: Frequency | E147: Weighted | F147: Std Dev of | G147: 95% Confidence Limits | I147: Percent | J147: Std Err of
E148: Frequency | F148: Wgt Freq | G148: for Wgt Freq | J148: Percent
B149: 0 | C149: 0 | D149: 43743 | E149: 121490772 | F149: 1293943 | G149: 118944418 | H149: 124037126 | I149: 87.0573 | J149: 0.1891
C150: 1 | D150: 2792 | E150: 8119672 | F150: 207073 | G150: 7712172 | H150: 8527172 | I150: 5.8184 | J150: 0.1372
C151: Total | D151: 46535 | E151: 129610444 | F151: 1362983 | G151: 126928225 | H151: 132292663 | I151: 92.8756 | J151: 0.1548
B152: 1 | C152: 0 | D152: 2886 | E152: 8100836 | F152: 209930 | G152: 7687714 | H152: 8513958 | I152: 5.8049 | J152: 0.1356 | M152: % | N152: LL (%) | O152: UL (%)
C153: 1 | D153: 656 | E153: 1841451 | F153: 91421 | G153: 1661543 | H153: 2021359 | I153: 1.3195 | J153: 0.0666 | M153: =E153/E157 -> 0.01319537774 | N153: =G153/G157 -> 0.01215287676 | O153: =H153/H157 -> 0.0141964
C154: Total | D154: 3542 | E154: 9942287 | F154: 235269 | G154: 9479300 | H154: 10405274 | I154: 7.1244 | J154: 0.1548
B155: Total | C155: 0 | D155: 46629 | E155: 129591608 | F155: 1374492 | G155: 126886741 | H155: 132296475 | I155: 92.8621 | J155: 0.1523
C156: 1 | D156: 3448 | E156: 9961123 | F156: 226503 | G156: 9515387 | H156: 10406859 | I156: 7.1379 | J156: 0.1523
C157: Total | D157: 50077 | E157: 139552731 | F157: 1439396 | G157: 136720139 | H157: 142385323 | I157: 100
B160: Table of SMC1 by MUSCULOSKELETAL
B161: Controlling for CHAD=1
B162: SMC1 | C162: MUSCULOSKELETAL | D162: Frequency | E162: Weighted | F162: Std Dev of | G162: 95% Confidence Limits | I162: Percent | J162: Std Err of
E163: Frequency | F163: Wgt Freq | G163: for Wgt Freq | J163: Percent
B164: 0 | C164: 0 | D164: 32218 | E164: 89458202 | F164: 1035362 | G164: 87420710 | H164: 91495694 | I164: 64.1035 | J164: 0.2878
C165: 1 | D165: 14317 | E165: 40152242 | F165: 547520 | G165: 39074776 | H165: 41229708 | I165: 28.7721 | J165: 0.2752
C166: Total | D166: 46535 | E166: 129610444 | F166: 1362983 | G166: 126928225 | H166: 132292663 | I166: 92.8756 | J166: 0.1548
B167: 1 | C167: 0 | D167: 1198 | E167: 3302181 | F167: 121569 | G167: 3062945 | H167: 3541417 | I167: 2.3663 | J167: 0.0836 | M167: % | N167: LL (%) | O167: UL (%)
C168: 1 | D168: 2344 | E168: 6640106 | F168: 190290 | G168: 6265634 | H168: 7014578 | I168: 4.7581 | J168: 0.1297 | M168: =E168/E172 -> 0.04758134042 | N168: =G168/G172 -> 0.04582817166 | O168: =H168/H172 -> 0.04926475463
C169: Total | D169: 3542 | E169: 9942287 | F169: 235269 | G169: 9479300 | H169: 10405274 | I169: 7.1244 | J169: 0.1548
B170: Total | C170: 0 | D170: 33416 | E170: 92760383 | F170: 1067187 | G170: 90660263 | H170: 94860503 | I170: 66.4698 | J170: 0.2884
C171: 1 | D171: 16661 | E171: 46792348 | F171: 603239 | G171: 45605233 | H171: 47979463 | I171: 33.5302 | J171: 0.2884
C172: Total | D172: 50077 | E172: 139552731 | F172: 1439396 | G172: 136720139 | H172: 142385323 | I172: 100
B174: Table of SMC1 by NMCONDITION
B175: Controlling for CHAD=1
B176: SMC1 | C176: NMCONDITION | D176: Frequency | E176: Weighted | F176: Std Dev of | G176: 95% Confidence Limits | I176: Percent | J176: Std Err of
E177: Frequency | F177: Wgt Freq | G177: for Wgt Freq | J177: Percent | M177: At least 1 condition
B178: 0 | C178: 0 | D178: 24463 | E178: 67761759 | F178: 847314 | G178: 66094328 | H178: 69429190 | I178: 48.5564 | J178: 0.2946
C179: 1 | D179: 11762 | E179: 32968255 | F179: 448405 | G179: 32085838 | H179: 33850672 | I179: 23.6242 | J179: 0.2186 | M179: =SUM(E188:E194)/E204 -> 0.0578387606 | N179: =SUM(G188:G194)/G204 -> 0.0529339061 | O179: =SUM(H188:H194)/H204 -> 0.0625769694
C180: 2 | D180: 5876 | E180: 16412790 | F180: 297624 | G180: 15827095 | H180: 16998485 | I180: 11.761 | J180: 0.1798
C181: 3 | D181: 2927 | E181: 8265877 | F181: 208943 | G181: 7854698 | H181: 8677056 | I181: 5.9231 | J181: 0.1429
C182: 4 | D182: 1144 | E182: 3154935 | F182: 122722 | G182: 2913430 | H182: 3396440 | I182: 2.2607 | J182: 0.0824
C183: 5 | D183: 300 | E183: 859730 | F183: 60606 | G183: 740464 | H183: 978996 | I183: 0.6161 | J183: 0.0435
C184: 6 | D184: 59 | E184: 177953 | F184: 28855 | G184: 121169 | H184: 234737 | I184: 0.1275 | J184: 0.0207
C185: 7 | D185: 4 | E185: 9145 | F185: 5411 | G185: 0 | H185: 19793 | I185: 0.0066 | J185: 0.0039
C186: Total | D186: 46535 | E186: 129610444 | F186: 1362983 | G186: 126928225 | H186: 132292663 | I186: 92.8756 | J186: 0.1548 | M186: condition | N186: per 100,000 | O186: LL | P186: UL
B187: 1 | C187: 0 | D187: 653 | E187: 1870730 | F187: 90572 | G187: 1692494 | H187: 2048966 | I187: 1.3405 | J187: 0.0628 | M187: 0 | N187: =E187/$E$204*100000 -> 1340.518374 | O187: =G187/$G$204*100000 -> 1237.925892 | P187: =H187/$H$204*100000 -> 1439.028937
C188: 1 | D188: 914 | E188: 2555799 | F188: 118576 | G188: 2322452 | H188: 2789146 | I188: 1.8314 | J188: 0.0824 | M188: 1 | N188: =E188/$E$204*100000 -> 1831.421701 | O188: =G188/$G$204*100000 -> 1698.690491 | P188: =H188/$H$204*100000 -> 1958.871842
C189: 2 | D189: 800 | E189: 2269443 | F189: 105122 | G189: 2062574 | H189: 2476312 | I189: 1.6262 | J189: 0.0738 | M189: 2 | N189: 1626.226147 | O189: 1508.610227 | P189: 1739.162399
C190: 3 | D190: 618 | E190: 1707530 | F190: 73374 | G190: 1563136 | H190: 1851924 | I190: 1.2236 | J190: 0.0521 | M190: 3 | N190: 1223.573332 | O190: 1143.310716 | P190: 1300.642483
C191: 4 | D191: 366 | E191: 1045316 | F191: 69950 | G191: 907662 | H191: 1182970 | I191: 0.749 | J191: 0.0502 | M191: 4 | N191: 749.0473261 | O191: 663.8831753 | P191: 830.8229915
C192: 5 | D192: 151 | E192: 405340 | F192: 38105 | G192: 330354 | H192: 480326 | I192: 0.2905 | J192: 0.0271 | M192: 5 | N192: 290.4565157 | O192: 241.6278995 | P192: 337.3423537
C193: 6 | D193: 38 | E193: 82403 | F193: 15982 | G193: 50953 | H193: 113853 | I193: 0.059 | J193: 0.0115 | M193: 6 | N193: 59.04793078 | O193: 37.26810137 | P193: 79.96119094
C194: 7 | D194: 2 | E194: 5726 | F194: 4972 | G194: 0 | H194: 15511 | I194: 0.0041 | J194: 0.0036 | M194: 7 | N194: 4.103108523 | O194: 0 | P194: 10.89367898
C195: Total | D195: 3542 | E195: 9942287 | F195: 235269 | G195: 9479300 | H195: 10405274 | I195: 7.1244 | J195: 0.1548 | N195: =E195/E204*100000 -> 7124.394434 | O195: =G195/G204*100000 -> 6933.360417 | P195: =H195/H204*100000 -> 7307.827647 | R195: Total
B196: Total | C196: 0 | D196: 25116 | E196: 69632489 | F196: 869024 | G196: 67922335 | H196: 71342643 | I196: 49.8969 | J196: 0.297
C197: 1 | D197: 12676 | E197: 35524054 | F197: 473508 | G197: 34592236 | H197: 36455872 | I197: 25.4556 | J197: 0.2224
C198: 2 | D198: 6676 | E198: 18682233 | F198: 321456 | G198: 18049639 | H198: 19314827 | I198: 13.3872 | J198: 0.1903
C199: 3 | D199: 3545 | E199: 9973407 | F199: 225862 | G199: 9528933 | H199: 10417881 | I199: 7.1467 | J199: 0.1531
C200: 4 | D200: 1510 | E200: 4200251 | F200: 141479 | G200: 3921834 | H200: 4478668 | I200: 3.0098 | J200: 0.0952
C201: 5 | D201: 451 | E201: 1265070 | F201: 68964 | G201: 1129357 | H201: 1400783 | I201: 0.9065 | J201: 0.0492
C202: 6 | D202: 97 | E202: 260356 | F202: 32573 | G202: 196256 | H202: 324456 | I202: 0.1866 | J202: 0.0234
C203: 7 | D203: 6 | E203: 14871 | F203: 7349 | G203: 409.34671 | H203: 29333 | I203: 0.0107 | J203: 0.0053
C204: Total | D204: 50077 | E204: 139552731 | F204: 1439396 | G204: 136720139 | H204: 142385323 | I204: 100
B206: Table of SMC1 by OTHER
B207: Controlling for CHAD=1
B208: SMC1 | C208: OTHER | D208: Frequency | E208: Weighted | F208: Std Dev of | G208: 95% Confidence Limits | I208: Percent | J208: Std Err of
E209: Frequency | F209: Wgt Freq | G209: for Wgt Freq | J209: Percent
B210: 0 | C210: 0 | D210: 22072 | E210: 61848685 | F210: 726391 | G210: 60419218 | H210: 63278152 | I210: 44.3192 | J210: 0.2906
C211: 1 | D211: 24463 | E211: 67761759 | F211: 847314 | G211: 66094328 | H211: 69429190 | I211: 48.5564 | J211: 0.2946
C212: Total | D212: 46535 | E212: 129610444 | F212: 1362983 | G212: 126928225 | H212: 132292663 | I212: 92.8756 | J212: 0.1548
B213: 1 | C213: 0 | D213: 2889 | E213: 8071557 | F213: 208947 | G213: 7660370 | H213: 8482744 | I213: 5.7839 | J213: 0.1412
C214: 1 | D214: 653 | E214: 1870730 | F214: 90572 | G214: 1692494 | H214: 2048966 | I214: 1.3405 | J214: 0.0628 | M214: =E214/E218 -> 0.01340518374 | N214: =G214/G218 -> 0.01237925892 | O214: =H214/H218 -> 0.01439028937
C215: Total | D215: 3542 | E215: 9942287 | F215: 235269 | G215: 9479300 | H215: 10405274 | I215: 7.1244 | J215: 0.1548
B216: Total | C216: 0 | D216: 24961 | E216: 69920242 | F216: 789979 | G216: 68365640 | H216: 71474844 | I216: 50.1031 | J216: 0.297
C217: 1 | D217: 25116 | E217: 69632489 | F217: 869024 | G217: 67922335 | H217: 71342643 | I217: 49.8969 | J217: 0.297
C218: Total | D218: 50077 | E218: 139552731 | F218: 1439396 | G218: 136720139 | H218: 142385323 | I218: 100
B220: Table of SMC1 by AGECAT
B221: Controlling for CHAD=1
B222: SMC1 | C222: AGECAT | D222: Frequency | E222: Weighted | F222: Std Dev of | G222: 95% Confidence Limits | I222: Percent | J222: Std Err of
E223: Frequency | F223: Wgt Freq | G223: for Wgt Freq | J223: Percent
... 1874 more rows

Sheet Input_SMC_Option1
B2: Special Medical Care (SMC)
B3: Input Worksheet for Option 1: Medical Condition
B5: Step 8: Enter the rates of those needing SMC per 100,000 persons by medical condition
B6: Medical Conditions | C6: Rate (No.) | D6: 95% Confidence Limits
D7: Lower Limit | E7: Upper Limit
B8: Heart diseases | C8: =Calculation_SN_Option1!C11 -> 1839.106252 | D8: =Calculation_SN_Option1!D11 -> 1717.684035 | E8: =Calculation_SN_Option1!E11 -> 1955.697358
B9: Hypertension | C9: =Calculation_SN_Option1!C12 -> 3106.319718 | D9: =Calculation_SN_Option1!D12 -> 2978.313239 | E9: =Calculation_SN_Option1!E12 -> 3229.233114
B10: Stroke | C10: =Calculation_SN_Option1!C13 -> 511.7735747 | D10: =Calculation_SN_Option1!D13 -> 446.7812895 | E10: =Calculation_SN_Option1!E13 -> 574.1799666
B11: Respiratory problems | C11: =Calculation_SN_Option1!C14 -> 790.7132968 | D11: =Calculation_SN_Option1!D14 -> 714.9707477 | E11: =Calculation_SN_Option1!E14 -> 863.4422243
B12: Cancer | C12: =Calculation_SN_Option1!C15 -> 1319.537774 | D12: =Calculation_SN_Option1!D15 -> 1215.287676 | E12: =Calculation_SN_Option1!E15 -> 1419.64 | G12: Additional Intermediate Results for Option 1:
B13: Diabetes | C13: =Calculation_SN_Option1!C16 -> 1260.49056 | D13: =Calculation_SN_Option1!D16 -> 1154.96518 | E13: =Calculation_SN_Option1!E16 -> 1361.817327 | G13: Distribution by
B14: Musculoskeletal/connective tissue problems | C14: =Calculation_SN_Option1!C17 -> 4758.134042 | D14: =Calculation_SN_Option1!D17 -> 4582.817166 | E14: =Calculation_SN_Option1!E17 -> 4926.475463
B16: Intermediate results: Subtotal and total
B17: At least one of the above medical conditions | C17: =SUM(C8:C14)*Calculation_SN_Option1!C35 -> 5783.87606 | D17: =C17*Calculation_SN_Option1!D35 -> 5293.39061 | E17: =C17*Calculation_SN_Option1!E35 -> 6257.69694
B18: Other | C18: =C17*Calculation_SN_Option1!C36 -> 1340.518374 | D18: =C18*Calculation_SN_Option1!D36 -> 1237.925892 | E18: =C18*Calculation_SN_Option1!E36 -> 1439.028937
B19: Total | C19: =C17*Calculation_SN_Option1!C37 -> 7124.394434 | D19: =C19*Calculation_SN_Option1!D37 -> 6531.316502 | E19: =C19*Calculation_SN_Option1!E37 -> 7525.582535
B20: Data source: National Health Interview Survey, NCHS, CDC, 2014
B22: Notes: 1. The rates in the WHITE cells are national estimates per 100,000 persons. MedCon:PreEvent calculates the rates in the GOLD
B23: colored cells based on weights derived from national estimates. 2. If you enter your own rates, they MUST be per 100,000 population
B24: 3. Other= Persons who do not have any of the listed seven medical conditions but need SMC

Sheet Input_SMC_Option11
B2: Special Medical Care (SMC)
B3: Input Worksheet for Option 1: Clinical Visits
B5: Step 9: Determine the number of clinical visits by those needing SMC in the first month following a disaster
F6: No. of office visits by those needing SMC in past 12 months due to pre-existing medical conditions
F8: <6 | G8: 6-12 | H8: >12
B9: Proportion of total office visits before an event in past 12 months* | F9: ='Input_Special Needs'!D19 -> 0.142 | G9: ='Input_Special Needs'!E19 -> 0.858 | H9: ='Input_Special Needs'!F19 -> 0 | I9: =F9+G9+H9 -> 1 | J9: Note: The sum of the proportions must be 1
B10: Assumption: No. of clinical visits in the first month following a disaster | F10: 1 | G10: 1.5 | H10: 2
B11: *Data source: National Health Interview Survey, NCHS, CDC, 2014
B13: Intermediate results:
B14: Average number of clinical visits by those needing SMC in the first month following a disaster | I14: =(F9*F10+G9*G10+H9*H10) -> 1.429
B16: Step 10: Enter the distribution of clinical visits by week among those needing SMC in the first month following a disaster
B17: Week | E17: 1 | F17: 2 | G17: 3 | H17: 4
B18: Proportion* | E18: =Distribution!H41 -> 0.6624172185 | F18: =Distribution!O41-Distribution!H41 -> 0.2430463576 | G18: =Distribution!S41-Distribution!O41 -> 0.09453642384 | H18: =1-E18-F18-G18 -> 0 | I18: =SUM(E18:H18) -> 1 | J18: Note: The sum of the proportions must be 1
B19: Cum_Proportion | E19: =E18 -> 0.6624172185 | F19: =E19+F18 -> 0.9054635762 | G19: =F19+G18 -> 1 | H19: =G19+H18 -> 1
B20: * Data Source: Gavagan TF, Smart K, Palacio H, Dyer C, Greenberg S, Sirbaugh P, et al. Hurricane Katrina: medical response at the Houston Astrodome/Ralient Center Complex. Southern Med J 2006;99(9):933-939
B21: Additional Intermediate Results for Option 1:Distribution by

Sheet Input_SMC_Option1_NoMedCon
B2: Special Medical Care (SMC)
B3: Intermediate Results for Option 1: No. of Medical Conditions
B5: Step 8.1: Rate of those needing SMC by number of the selected medical condition per 100,000 persons
B6: No. of Medical Conditions | C6: Rate (No.) | D6: 95% Confidence Limits
D7: Lower Limit | E7: Upper Limit
B8: Other | C8: =Calculation_SN_Option1!H23 -> 1340.518374 | D8: =Calculation_SN_Option1!I23 -> 1237.925892 | E8: =Calculation_SN_Option1!J23 -> 1439.028937
B9: 1 | C9: =Calculation_SN_Option1!H24 -> 1831.421701 | D9: =Calculation_SN_Option1!I24 -> 1698.690491 | E9: =Calculation_SN_Option1!J24 -> 1958.871842
B10: 2 | C10: =Calculation_SN_Option1!H25 -> 1626.226147 | D10: =Calculation_SN_Option1!I25 -> 1508.610227 | E10: =Calculation_SN_Option1!J25 -> 1739.162399
B11: 3 | C11: =Calculation_SN_Option1!H26 -> 1223.573332 | D11: =Calculation_SN_Option1!I26 -> 1143.310716 | E11: =Calculation_SN_Option1!J26 -> 1300.642483
B12: 4 | C12: =Calculation_SN_Option1!H27 -> 749.0473261 | D12: =Calculation_SN_Option1!I27 -> 663.8831753 | E12: =Calculation_SN_Option1!J27 -> 830.8229915
B13: 5 | C13: =Calculation_SN_Option1!H28 -> 290.4565157 | D13: =Calculation_SN_Option1!I28 -> 241.6278995 | E13: =Calculation_SN_Option1!J28 -> 337.3423537
B14: 6 | C14: =Calculation_SN_Option1!H29 -> 59.04793078 | D14: =Calculation_SN_Option1!I29 -> 37.26810137 | E14: =Calculation_SN_Option1!J29 -> 79.96119094
B15: 7 | C15: =Calculation_SN_Option1!H30 -> 4.103108523 | D15: =Calculation_SN_Option1!I30 -> 0 | E15: =Calculation_SN_Option1!J30 -> 10.89367898
B16: Total | C16: =Calculation_SN_Option1!H31 -> 7124.394434 | D16: =Calculation_SN_Option1!I31 -> 6933.360417 | E16: =Calculation_SN_Option1!J31 -> 7307.827647
B17: Data source: National Health Interview Survey, NCHS, CDC, 2014
B19: Note: 1. Values in Gold cells are estimated based on weights derived from national
B20: estimates of the distribution of SMC needs with Option 1
B21: 2. Other= Persons who do not have any of the listed seven medical conditions but need SMC

Sheet Input_SMC_Option1_Age
B2: Special Medical Care (SMC)
B3: Intermediate Results for Option 1: Age Category
B5: Step 8.2: Rates of those needing SMC per 100,000 persons by age category
B6: Age Category (Yrs.) | C6: Rate (No.) | D6: 95% Confidence Limits
D7: Lower Limit | E7: Upper Limit
B8: <5 | C8: =Input_SMC_Option1!$C$19*Calculation_SN_Option1!C42 -> 271.6679188 | D8: =C8*Calculation_SN_Option1!D42 -> 224.5389759 | E8: =C8*Calculation_SN_Option1!E42 -> 316.9217097
B9: 5-17 | C9: =Input_SMC_Option1!$C$19*Calculation_SN_Option1!C43 -> 506.689475 | D9: =C9*Calculation_SN_Option1!D43 -> 439.9315305 | E9: =C9*Calculation_SN_Option1!E43 -> 570.7912746
B10: 18-64 | C10: =Input_SMC_Option1!$C$19*Calculation_SN_Option1!C44 -> 4232.635189 | D10: =C10*Calculation_SN_Option1!D44 -> 4055.864074 | E10: =C10*Calculation_SN_Option1!E44 -> 4402.372989
B11: ≥65 | C11: =Input_SMC_Option1!$C$19*Calculation_SN_Option1!C45 -> 2113.401851 | D11: =C11*Calculation_SN_Option1!D45 -> 1986.247981 | E11: =C11*Calculation_SN_Option1!E45 -> 2235.496562
B12: Total | C12: =Input_SMC_Option1!$C$19*Calculation_SN_Option1!C46 -> 7124.394434 | D12: =C12*Calculation_SN_Option1!D46 -> 6706.582561 | E12: =C12*Calculation_SN_Option1!E46 -> 7525.582535
B13: Data source: National Health Interview Survey, NCHS, CDC, 2014
B15: Note: Values in Yellow cells are estimated based on weights derived from national estimates of the distribution of SMC needs with option 1

Sheet Input_SMC_Option1_ClinicalVisit
B2: Special Medical Care (SMC)
B3: Intermediate Results for Option 1: Clinical Visits
B5: Step 10.1: Distribution of clinical visits by week among those needing SMC per 100,000 persons
B6: Week | C6: Rate (No.) | D6: 95% Confidence Limits
D7: Lower Limit | E7: Upper Limit
B8: 1 | C8: =Input_SMC_Option1!$C$19*Input_SMC_Option11!$I$14*Input_SMC_Option11!E18 -> 6743.910488 | D8: =Input_SMC_Option1!$D$19*Input_SMC_Option11!$I$14*Input_SMC_Option11!E18 -> 6182.506354 | E8: =Input_SMC_Option1!$E$19*Input_SMC_Option11!$I$14*Input_SMC_Option11!E18 -> 7123.672819
B9: 2 | C9: =Input_SMC_Option1!$C$19*Input_SMC_Option11!$I$14*Input_SMC_Option11!F18 -> 2474.39655 | D9: =Input_SMC_Option1!$D$19*Input_SMC_Option11!$I$14*Input_SMC_Option11!F18 -> 2268.412729 | E9: =Input_SMC_Option1!$E$19*Input_SMC_Option11!$I$14*Input_SMC_Option11!F18 -> 2613.734491
B10: 3 | C10: =Input_SMC_Option1!$C$19*Input_SMC_Option11!$I$14*Input_SMC_Option11!G18 -> 962.4526089 | D10: =Input_SMC_Option1!$D$19*Input_SMC_Option11!$I$14*Input_SMC_Option11!G18 -> 882.3321989 | E10: =Input_SMC_Option1!$E$19*Input_SMC_Option11!$I$14*Input_SMC_Option11!G18 -> 1016.650132
B11: 4 | C11: =Input_SMC_Option1!$C$19*Input_SMC_Option11!$I$14*Input_SMC_Option11!H18 -> 0 | D11: =Input_SMC_Option1!$D$19*Input_SMC_Option11!$I$14*Input_SMC_Option11!H18 -> 0 | E11: =Input_SMC_Option1!$E$19*Input_SMC_Option11!$I$14*Input_SMC_Option11!H18 -> 0
B12: Total Visits | C12: =Input_SMC_Option1!$C$19*Input_SMC_Option11!$I$14 -> 10180.75965 | D12: =Input_SMC_Option1!$D$19*Input_SMC_Option11!I14 -> 9333.251281 | E12: =Input_SMC_Option1!$E$19*Input_SMC_Option11!$I$14 -> 10754.05744

Sheet Calculation_SN_Option2
B2: Calculation: Special Need Population
C3: Option 2
B6: Table 1
B7: Rate of special need population per 100,000 population
B8: by medical condition
B9: Medical Condition | C9: Rate | D9: 95% Confidence Limits
D10: LL | E10: UL
B11: Heart diseases | C11: =K69*100000 -> 2830.480616 | D11: =L69*100000 -> 2686.493758 | E11: 2968.738569
B12: Hypertension | C12: =K97*100000 -> 5043.051433 | D12: =L97*100000 -> 4884.273121 | E12: 5195.512321
B13: Stroke | C13: =K125*100000 -> 753.3087977 | D13: =L125*100000 -> 673.3419134 | E13: 830.0939838
B14: Respiratory problems | C14: =K181*100000 -> 1303.740161 | D14: =L181*100000 -> 1201.250973 | E14: 1402.151541
B15: Cancer | C15: =K209*100000 -> 2024.768688 | D15: =L209*100000 -> 1904.728169 | E15: 2140.033071
B16: Diabetes | C16: =K153*100000 -> 2056.541624 | D16: =L153*100000 -> 1932.074542 | E16: 2176.056446
B17: Musculoskeletal/connective tissue problems | C17: =K237*100000 -> 7366.302993 | D17: =L237*100000 -> 7180.171167 | E17: 7545.029062
B18: Total: At least with one condition | C18: =L278-L270 -> 9235.248144 | D18: =M278-M270 -> 9160.312513 | E18: 9307.20226 | G18: Table 3
B19: Other | C19: =K329*100000 -> 2497.018134 | D19: =L329*100000 -> 2374.317364 | E19: 2614.836924 | G19: Rate of special need population
B20: Total Special Needs | C20: =C18+C19 -> 11732.26628 | D20: =D18+D19 -> 11534.62988 | E20: =E18+E19 -> 11922.03918 | G20: by number of selected medical condition (per 100,000)
G21: No. of Medical Condition | H21: Rate | I21: 95% Confidence Limits
B22: Table 2 | I22: LL | J22: UL
B23: Rate of special need population per 100,000 population | G23: 0 | H23: =L270 -> 2497.018134 | I23: =M270 -> 2374.317364 | J23: 2614.836924
B24: by age category | G24: 1 | H24: =L271 -> 3010.416901 | I24: 2861.333399 | J24: 3153.568714
B25: Age category | C25: Rate | D25: 95% Confidence Limits | G25: 2 | H25: 2588.825008 | I25: 2456.150955 | J25: 2716.220267
D26: LL | E26: UL | G26: 3 | H26: 1983.686726 | I26: 1885.453759 | J26: 2078.011229
B27: <5 Years | C27: =K358*100000 -> 618.8320313 | D27: =L358*100000 -> 550.823021 | E27: 684.1351197 | G27: 4 | H27: 1131.501325 | I27: 1033.023379 | J27: 1226.06106
B28: 5-17 Years | C28: =K359*100000 -> 923.8364529 | D28: 841.1043233 | E28: 1003.276862 | G28: 5 | H28: 416.2240293 | I28: 359.5878439 | J28: 470.6067914
B29: 18-64 Years | C29: 6734.068859 | D29: 6537.499936 | E29: 6922.816757 | G29: 6 | H29: 100.217315 | I29: 68.95619087 | J29: 130.234631
B30: >=65 Years | C30: 3455.528936 | D30: 3317.439576 | E30: 3588.124037 | G30: 7 | H30: 4.376840178 | I30: 0 | J30: 11.18233233
B31: Total Special Needs | C31: 11732.26628 | D31: 11534.62988 | E31: 11922.03918 | G31: Total | H31: =L278 -> 11732.26628 | I31: =M278 -> 11534.62988 | J31: 11922.03918
B33: Adjustment factors for Table 1 | G33: Adjustment factors for Table 1
B34: Sum of selected seven med condition | C34: =C50 -> 21378.19431 | D34: =D50 -> 20462.33364 | E34: 22257.61499 | G34: 0 | H34: =H46 -> 0.2128334011 | I34: =I46 -> 0.9508610815 | J34: 1.047183794
B35: Ratio of at least with one condition to total | C35: =C51 -> 0.4319938349 | D35: 0.9918859103 | E35: 1.007791249 | G35: 1 | H35: =H47 -> 0.2565929574 | I35: 0.9504774564 | J35: 1.047552156
B36: Ratio of other than selected condition to at least one condition | C36: 0.2703791057 | D36: 0.9508610815 | E36: 1.047183794 | G36: 2 | H36: =H48 -> 0.2206585622 | I36: 0.9487512471 | J36: 1.049209683
B37: Ratio of total to at least one condition | C37: 1.270379106 | D37: 0.9831544565 | E37: 1.016175298 | G37: 3 | H37: =H49 -> 0.169079586 | I37: 0.9504795967 | J37: 1.047550101
G38: 4 | H38: =H50 -> 0.09644354278 | I38: 0.9129670082 | J38: 1.08357015
G39: 5 | H39: =H51 -> 0.03547686521 | I39: 0.8639286023 | J39: 1.13065743
B40: Adjustment factors for Table 2 | G40: 6 | H40: =H52 -> 0.008542025267 | I40: 0.6880666367 | J40: 1.299522253
G41: 7 | H41: =H53 -> 0.0003730600784 | I41: 0 | J41: 2.554887058
B42: <5 Years | C42: =C27/$C$31 -> 0.05274616316 | D42: =D27/C27 -> 0.890101018 | E42: =E27/C27 -> 1.105526355 | G42: Total | H42: =H54 -> 1 | I42: 0.9831544565 | J42: 1.016175298
B43: 5-17 Years | C43: =C28/$C$31 -> 0.07874322241 | D43: =D28/C28 -> 0.9104472125 | E43: =E28/C28 -> 1.085989688
B44: 18-64 Years | C44: =C29/$C$31 -> 0.573978522 | D44: =D29/C29 -> 0.9708097843 | E44: =E29/C29 -> 1.028028804
B45: >=65 Years | C45: =C30/$C$31 -> 0.2945320924 | D45: =D30/C30 -> 0.9600381413 | E45: =E30/C30 -> 1.038371868 | G45: Adjustment factors for Table 1(Calculation)
B46: Total Special Needs | C46: =C31/$C$31 -> 1 | D46: =D31/C31 -> 0.9831544565 | E46: =E31/C31 -> 1.016175298 | G46: 0 | H46: =H23/$H$31 -> 0.2128334011 | I46: =I23/H23 -> 0.9508610815 | J46: =J23/H23 -> 1.047183794
G47: 1 | H47: =H24/$H$31 -> 0.2565929574 | I47: =I24/H24 -> 0.9504774564 | J47: =J24/H24 -> 1.047552156
G48: 2 | H48: 0.2206585622 | I48: 0.9487512471 | J48: 1.049209683
B49: Adjustment factors and calculation for Table 1 (Calculation) | G49: 3 | H49: 0.169079586 | I49: 0.9504795967 | J49: 1.047550101
B50: Sum of selected seven med condition | C50: =SUM(C11:C17) -> 21378.19431 | D50: =SUM(D11:D17) -> 20462.33364 | E50: =SUM(E11:E17) -> 22257.61499 | G50: 4 | H50: 0.09644354278 | I50: 0.9129670082 | J50: 1.08357015
B51: Ratio of at least with one condition to total | C51: =C18/C50 -> 0.4319938349 | D51: =D18/C18 -> 0.9918859103 | E51: =E18/C18 -> 1.007791249 | G51: 5 | H51: 0.03547686521 | I51: 0.8639286023 | J51: 1.13065743
B52: Ratio of other than selected condition to at least one condition | C52: =C19/C18 -> 0.2703791057 | D52: =D19/C19 -> 0.9508610815 | E52: =E19/C19 -> 1.047183794 | G52: 6 | H52: 0.008542025267 | I52: 0.6880666367 | J52: 1.299522253
B53: Ratio of total to at least one condition | C53: =C20/C18 -> 1.270379106 | D53: =D20/C20 -> 0.9831544565 | E53: =E31/C31 -> 1.016175298 | G53: 7 | H53: 0.0003730600784 | I53: 0 | J53: 2.554887058
G54: Total | H54: 1 | I54: 0.9831544565 | J54: 1.016175298
B56: Updated: 01/20/2016
B61: Table of SMC2 by HEARTPROB
B62: Controlling for CHAD=1
B63: SMC2 | C63: HEARTPROB | D63: Frequency | E63: Weighted | F63: Std Dev of | G63: 95% Confidence Limits | I63: Percent | J63: Std Err of
E64: Frequency | F64: Wgt Freq | G64: for Wgt Freq | J64: Percent
B65: 0 | C65: 0 | D65: 40903 | E65: 113657237 | F65: 1250558 | G65: 111196260 | H65: 116118214 | I65: 81.4439 | J65: 0.2454
C66: 1 | D66: 3324 | E66: 9522796 | F66: 226184 | G66: 9077688 | H66: 9967904 | I66: 6.8238 | J66: 0.1486
C67: Total | D67: 44227 | E67: 123180033 | F67: 1321596 | G67: 120579260 | H67: 125780806 | I67: 88.2677 | J67: 0.1938
B68: 1 | C68: 0 | D68: 4457 | E68: 12422685 | F68: 255483 | G68: 11919920 | H68: 12925450 | I68: 8.9018 | J68: 0.1625 | K68: % | L68: LL (%) | M68: UL (%)
C69: 1 | D69: 1393 | E69: 3950013 | F69: 140777 | G69: 3672978 | H69: 4227048 | I69: 2.8305 | J69: 0.0994 | K69: =E69/E73 -> 0.02830480616 | L69: =G69/G73 -> 0.02686493758 | M69: =H69/H73 -> 0.02968738569
C70: Total | D70: 5850 | E70: 16372698 | F70: 306182 | G70: 15770162 | H70: 16975234 | I70: 11.7323 | J70: 0.1938
B71: Total | C71: 0 | D71: 45360 | E71: 126079922 | F71: 1346079 | G71: 123430969 | H71: 128728875 | I71: 90.3457 | J71: 0.1847
C72: 1 | D72: 4717 | E72: 13472809 | F72: 282734 | G72: 12916415 | H72: 14029203 | I72: 9.6543 | J72: 0.1847
C73: Total | D73: 50077 | E73: 139552731 | F73: 1439396 | G73: 136720139 | H73: 142385323 | I73: 100
B75: Table of SMC2 by HEARTPROB
B76: Controlling for CHAD=2
B77: SMC2 | C77: HEARTPROB | D77: Frequency | E77: Weighted | F77: Std Dev of | G77: 95% Confidence Limits | I77: Percent | J77: Std Err of
E78: Frequency | F78: Wgt Freq | G78: for Wgt Freq | J78: Percent
B79: 0 | C79: 0 | D79: 61562 | E79: 173421445 | F79: 2127392 | G79: 169234943 | H79: 177607947 | I79: 99.9331 | J79: 0.0131
C80: 1 | D80: 0 | E80: . | F80: . | G80: . | H80: . | I80: . | J80: .
C81: Total | D81: 61562 | E81: 173421445 | F81: 2127392 | G81: 169234943 | H81: 177607947 | I81: 99.9331 | J81: 0.0131
B82: 1 | C82: 0 | D82: 43 | E82: 116071 | F82: 22734 | G82: 71332 | H82: 160810 | I82: 0.0669 | J82: 0.0131
C83: 1 | D83: 0 | E83: . | F83: . | G83: . | H83: . | I83: . | J83: .
C84: Total | D84: 43 | E84: 116071 | F84: 22734 | G84: 71332 | H84: 160810 | I84: 0.0669 | J84: 0.0131
B85: Total | C85: 0 | D85: 61605 | E85: 173537516 | F85: 2128034 | G85: 169349751 | H85: 177725281 | I85: 100 | J85: 0
C86: 1 | D86: 0 | E86: . | F86: . | G86: . | H86: . | I86: . | J86: .
C87: Total | D87: 61605 | E87: 173537516 | F87: 2128034 | G87: 169349751 | H87: 177725281 | I87: 100
B89: Table of SMC2 by HYPERTENSION
B90: Controlling for CHAD=1
B91: SMC2 | C91: HYPERTENSION | D91: Frequency | E91: Weighted | F91: Std Dev of | G91: 95% Confidence Limits | I91: Percent | J91: Std Err of
E92: Frequency | F92: Wgt Freq | G92: for Wgt Freq | J92: Percent
B93: 0 | C93: 0 | D93: 34374 | E93: 95404766 | F93: 1117869 | G93: 93204908 | H93: 97604624 | I93: 68.3647 | J93: 0.2907
C94: 1 | D94: 9853 | E94: 27775267 | F94: 433975 | G94: 26921245 | H94: 28629289 | I94: 19.9031 | J94: 0.2552
C95: Total | D95: 44227 | E95: 123180033 | F95: 1321596 | G95: 120579260 | H95: 125780806 | I95: 88.2677 | J95: 0.1938
B96: 1 | C96: 0 | D96: 3307 | E96: 9334982 | F96: 221627 | G96: 8898842 | H96: 9771122 | I96: 6.6892 | J96: 0.1434 | K96: % | L96: LL (%) | M96: UL (%)
C97: 1 | D97: 2543 | E97: 7037716 | F97: 182901 | G97: 6677785 | H97: 7397647 | I97: 5.0431 | J97: 0.127 | K97: =E97/E101 -> 0.05043051433 | L97: =G97/G101 -> 0.04884273121 | M97: =H97/H101 -> 0.05195512321
C98: Total | D98: 5850 | E98: 16372698 | F98: 306182 | G98: 15770162 | H98: 16975234 | I98: 11.7323 | J98: 0.1938
B99: Total | C99: 0 | D99: 37681 | E99: 104739748 | F99: 1202441 | G99: 102373462 | H99: 107106034 | I99: 75.0539 | J99: 0.28
C100: 1 | D100: 12396 | E100: 34812983 | F100: 489604 | G100: 33849490 | H100: 35776476 | I100: 24.9461 | J100: 0.28
C101: Total | D101: 50077 | E101: 139552731 | F101: 1439396 | G101: 136720139 | H101: 142385323 | I101: 100
B103: Table of SMC2 by HYPERTENSION
B104: Controlling for CHAD=2
B105: SMC2 | C105: HYPERTENSION | D105: Frequency | E105: Weighted | F105: Std Dev of | G105: 95% Confidence Limits | I105: Percent | J105: Std Err of
E106: Frequency | F106: Wgt Freq | G106: for Wgt Freq | J106: Percent
B107: 0 | C107: 0 | D107: 61562 | E107: 173421445 | F107: 2127392 | G107: 169234943 | H107: 177607947 | I107: 99.9331 | J107: 0.0131
C108: 1 | D108: 0 | E108: . | F108: . | G108: . | H108: . | I108: . | J108: .
C109: Total | D109: 61562 | E109: 173421445 | F109: 2127392 | G109: 169234943 | H109: 177607947 | I109: 99.9331 | J109: 0.0131
B110: 1 | C110: 0 | D110: 43 | E110: 116071 | F110: 22734 | G110: 71332 | H110: 160810 | I110: 0.0669 | J110: 0.0131
C111: 1 | D111: 0 | E111: . | F111: . | G111: . | H111: . | I111: . | J111: .
C112: Total | D112: 43 | E112: 116071 | F112: 22734 | G112: 71332 | H112: 160810 | I112: 0.0669 | J112: 0.0131
B113: Total | C113: 0 | D113: 61605 | E113: 173537516 | F113: 2128034 | G113: 169349751 | H113: 177725281 | I113: 100 | J113: 0
C114: 1 | D114: 0 | E114: . | F114: . | G114: . | H114: . | I114: . | J114: .
C115: Total | D115: 61605 | E115: 173537516 | F115: 2128034 | G115: 169349751 | H115: 177725281 | I115: 100
B117: Table of SMC2 by STROKE
B118: Controlling for CHAD=1
B119: SMC2 | C119: STROKE | D119: Frequency | E119: Weighted | F119: Std Dev of | G119: 95% Confidence Limits | I119: Percent | J119: Std Err of
E120: Frequency | F120: Wgt Freq | G120: for Wgt Freq | J120: Percent
B121: 0 | C121: 0 | D121: 43453 | E121: 121044248 | F121: 1307314 | G121: 118471581 | H121: 123616915 | I121: 86.7373 | J121: 0.2039
C122: 1 | D122: 774 | E122: 2135785 | F122: 100240 | G122: 1938522 | H122: 2333048 | I122: 1.5305 | J122: 0.0708
C123: Total | D123: 44227 | E123: 123180033 | F123: 1321596 | G123: 120579260 | H123: 125780806 | I123: 88.2677 | J123: 0.1938
B124: 1 | C124: 0 | D124: 5441 | E124: 15321435 | F124: 290135 | G124: 14750478 | H124: 15892392 | I124: 10.979 | J124: 0.1845 | K124: % | L124: LL (%) | M124: UL (%)
C125: 1 | D125: 409 | E125: 1051263 | F125: 66400 | G125: 920594 | H125: 1181932 | I125: 0.7533 | J125: 0.0471 | K125: =E125/E129 -> 0.007533087977 | L125: =G125/G129 -> 0.006733419134 | M125: =H125/H129 -> 0.008300939838
C126: Total | D126: 5850 | E126: 16372698 | F126: 306182 | G126: 15770162 | H126: 16975234 | I126: 11.7323 | J126: 0.1938
B127: Total | C127: 0 | D127: 48894 | E127: 136365683 | F127: 1416515 | G127: 133578119 | H127: 139153247 | I127: 97.7162 | J127: 0.0821
C128: 1 | D128: 1183 | E128: 3187048 | F128: 117644 | G128: 2955535 | H128: 3418561 | I128: 2.2838 | J128: 0.0821
C129: Total | D129: 50077 | E129: 139552731 | F129: 1439396 | G129: 136720139 | H129: 142385323 | I129: 100
B131: Table of SMC2 by STROKE
B132: Controlling for CHAD=2
B133: SMC2 | C133: STROKE | D133: Frequency | E133: Weighted | F133: Std Dev of | G133: 95% Confidence Limits | I133: Percent | J133: Std Err of
E134: Frequency | F134: Wgt Freq | G134: for Wgt Freq | J134: Percent
B135: 0 | C135: 0 | D135: 61562 | E135: 173421445 | F135: 2127392 | G135: 169234943 | H135: 177607947 | I135: 99.9331 | J135: 0.0131
C136: 1 | D136: 0 | E136: . | F136: . | G136: . | H136: . | I136: . | J136: .
C137: Total | D137: 61562 | E137: 173421445 | F137: 2127392 | G137: 169234943 | H137: 177607947 | I137: 99.9331 | J137: 0.0131
B138: 1 | C138: 0 | D138: 43 | E138: 116071 | F138: 22734 | G138: 71332 | H138: 160810 | I138: 0.0669 | J138: 0.0131
C139: 1 | D139: 0 | E139: . | F139: . | G139: . | H139: . | I139: . | J139: .
C140: Total | D140: 43 | E140: 116071 | F140: 22734 | G140: 71332 | H140: 160810 | I140: 0.0669 | J140: 0.0131
B141: Total | C141: 0 | D141: 61605 | E141: 173537516 | F141: 2128034 | G141: 169349751 | H141: 177725281 | I141: 100 | J141: 0
C142: 1 | D142: 0 | E142: . | F142: . | G142: . | H142: . | I142: . | J142: .
C143: Total | D143: 61605 | E143: 173537516 | F143: 2128034 | G143: 169349751 | H143: 177725281 | I143: 100
B145: Table of SMC2 by DIABETES
B146: Controlling for CHAD=1
B147: SMC2 | C147: DIABETES | D147: Frequency | E147: Weighted | F147: Std Dev of | G147: 95% Confidence Limits | I147: Percent | J147: Std Err of
E148: Frequency | F148: Wgt Freq | G148: for Wgt Freq | J148: Percent
B149: 0 | C149: 0 | D149: 41447 | E149: 115737162 | F149: 1260073 | G149: 113257461 | H149: 118216863 | I149: 82.9344 | J149: 0.2162
C150: 1 | D150: 2780 | E150: 7442871 | F150: 191329 | G150: 7066354 | H150: 7819388 | I150: 5.3334 | J150: 0.1277
C151: Total | D151: 44227 | E151: 123180033 | F151: 1321596 | G151: 120579260 | H151: 125780806 | I151: 88.2677 | J151: 0.1938
B152: 1 | C152: 0 | D152: 4798 | E152: 13502738 | F152: 271406 | G152: 12968638 | H152: 14036838 | I152: 9.6757 | J152: 0.1719 | K152: % | L152: LL (%) | M152: UL (%)
C153: 1 | D153: 1052 | E153: 2869960 | F153: 116075 | G153: 2641535 | H153: 3098385 | I153: 2.0565 | J153: 0.0826 | K153: =E153/E157 -> 0.02056541624 | L153: =G153/G157 -> 0.01932074542 | M153: =H153/H157 -> 0.02176056446
C154: Total | D154: 5850 | E154: 16372698 | F154: 306182 | G154: 15770162 | H154: 16975234 | I154: 11.7323 | J154: 0.1938
B155: Total | C155: 0 | D155: 46245 | E155: 129239900 | F155: 1366390 | G155: 126550978 | H155: 131928822 | I155: 92.6101 | J155: 0.1461
C156: 1 | D156: 3832 | E156: 10312831 | F156: 221372 | G156: 9877192 | H156: 10748470 | I156: 7.3899 | J156: 0.1461
C157: Total | D157: 50077 | E157: 139552731 | F157: 1439396 | G157: 136720139 | H157: 142385323 | I157: 100
B159: Table of SMC2 by DIABETES
B160: Controlling for CHAD=2
B161: SMC2 | C161: DIABETES | D161: Frequency | E161: Weighted | F161: Std Dev of | G161: 95% Confidence Limits | I161: Percent | J161: Std Err of
E162: Frequency | F162: Wgt Freq | G162: for Wgt Freq | J162: Percent
B163: 0 | C163: 0 | D163: 61562 | E163: 173421445 | F163: 2127392 | G163: 169234943 | H163: 177607947 | I163: 99.9331 | J163: 0.0131
C164: 1 | D164: 0 | E164: . | F164: . | G164: . | H164: . | I164: . | J164: .
C165: Total | D165: 61562 | E165: 173421445 | F165: 2127392 | G165: 169234943 | H165: 177607947 | I165: 99.9331 | J165: 0.0131
B166: 1 | C166: 0 | D166: 43 | E166: 116071 | F166: 22734 | G166: 71332 | H166: 160810 | I166: 0.0669 | J166: 0.0131
C167: 1 | D167: 0 | E167: . | F167: . | G167: . | H167: . | I167: . | J167: .
C168: Total | D168: 43 | E168: 116071 | F168: 22734 | G168: 71332 | H168: 160810 | I168: 0.0669 | J168: 0.0131
B169: Total | C169: 0 | D169: 61605 | E169: 173537516 | F169: 2128034 | G169: 169349751 | H169: 177725281 | I169: 100 | J169: 0
C170: 1 | D170: 0 | E170: . | F170: . | G170: . | H170: . | I170: . | J170: .
C171: Total | D171: 61605 | E171: 173537516 | F171: 2128034 | G171: 169349751 | H171: 177725281 | I171: 100
B173: Table of SMC2 by RESPIRATORY
B174: Controlling for CHAD=1
B175: SMC2 | C175: RESPIRATORY | D175: Frequency | E175: Weighted | F175: Std Dev of | G175: 95% Confidence Limits | I175: Percent | J175: Std Err of
E176: Frequency | F176: Wgt Freq | G176: for Wgt Freq | J176: Percent
B177: 0 | C177: 0 | D177: 41572 | E177: 115937252 | F177: 1232993 | G177: 113510842 | H177: 118363662 | I177: 83.0777 | J177: 0.2285
C178: 1 | D178: 2655 | E178: 7242781 | F178: 197349 | G178: 6854417 | H178: 7631145 | I178: 5.19 | J178: 0.1224
C179: Total | D179: 44227 | E179: 123180033 | F179: 1321596 | G179: 120579260 | H179: 125780806 | I179: 88.2677 | J179: 0.1938
B180: 1 | C180: 0 | D180: 5160 | E180: 14553293 | F180: 280857 | G180: 14000595 | H180: 15105991 | I180: 10.4285 | J180: 0.1822 | K180: % | L180: LL (%) | M180: UL (%)
C181: 1 | D181: 690 | E181: 1819405 | F181: 89970 | G181: 1642352 | H181: 1996458 | I181: 1.3037 | J181: 0.0624 | K181: =E181/E185 -> 0.01303740161 | L181: =G181/G185 -> 0.01201250973 | M181: =H181/H185 -> 0.01402151541
C182: Total | D182: 5850 | E182: 16372698 | F182: 306182 | G182: 15770162 | H182: 16975234 | I182: 11.7323 | J182: 0.1938
B183: Total | C183: 0 | D183: 46732 | E183: 130490545 | F183: 1328214 | G183: 127876749 | H183: 133104341 | I183: 93.5063 | J183: 0.1426
C184: 1 | D184: 3345 | E184: 9062186 | F184: 233146 | G184: 8603378 | H184: 9520994 | I184: 6.4937 | J184: 0.1426
C185: Total | D185: 50077 | E185: 139552731 | F185: 1439396 | G185: 136720139 | H185: 142385323 | I185: 100
B187: Table of SMC2 by RESPIRATORY
B188: Controlling for CHAD=2
B189: SMC2 | C189: RESPIRATORY | D189: Frequency | E189: Weighted | F189: Std Dev of | G189: 95% Confidence Limits | I189: Percent | J189: Std Err of
E190: Frequency | F190: Wgt Freq | G190: for Wgt Freq | J190: Percent
B191: 0 | C191: 0 | D191: 61562 | E191: 173421445 | F191: 2127392 | G191: 169234943 | H191: 177607947 | I191: 99.9331 | J191: 0.0131
C192: 1 | D192: 0 | E192: . | F192: . | G192: . | H192: . | I192: . | J192: .
C193: Total | D193: 61562 | E193: 173421445 | F193: 2127392 | G193: 169234943 | H193: 177607947 | I193: 99.9331 | J193: 0.0131
B194: 1 | C194: 0 | D194: 43 | E194: 116071 | F194: 22734 | G194: 71332 | H194: 160810 | I194: 0.0669 | J194: 0.0131
C195: 1 | D195: 0 | E195: . | F195: . | G195: . | H195: . | I195: . | J195: .
C196: Total | D196: 43 | E196: 116071 | F196: 22734 | G196: 71332 | H196: 160810 | I196: 0.0669 | J196: 0.0131
B197: Total | C197: 0 | D197: 61605 | E197: 173537516 | F197: 2128034 | G197: 169349751 | H197: 177725281 | I197: 100 | J197: 0
C198: 1 | D198: 0 | E198: . | F198: . | G198: . | H198: . | I198: . | J198: .
C199: Total | D199: 61605 | E199: 173537516 | F199: 2128034 | G199: 169349751 | H199: 177725281 | I199: 100
B201: Table of SMC2 by CANCER
B202: Controlling for CHAD=1
B203: SMC2 | C203: CANCER | D203: Frequency | E203: Weighted | F203: Std Dev of | G203: 95% Confidence Limits | I203: Percent | J203: Std Err of
E204: Frequency | F204: Wgt Freq | G204: for Wgt Freq | J204: Percent
B205: 0 | C205: 0 | D205: 41775 | E205: 116044530 | F205: 1261091 | G205: 113562825 | H205: 118526235 | I205: 83.1546 | J205: 0.2204
C206: 1 | D206: 2452 | E206: 7135503 | F206: 188485 | G206: 6764582 | H206: 7506424 | I206: 5.1131 | J206: 0.1253
C207: Total | D207: 44227 | E207: 123180033 | F207: 1321596 | G207: 120579260 | H207: 125780806 | I207: 88.2677 | J207: 0.1938
B208: 1 | C208: 0 | D208: 4854 | E208: 13547078 | F208: 280286 | G208: 12995503 | H208: 14098653 | I208: 9.7075 | J208: 0.1761 | K208: % | L208: LL (%) | M208: UL (%)
C209: 1 | D209: 996 | E209: 2825620 | F209: 112543 | G209: 2604147 | H209: 3047093 | I209: 2.0248 | J209: 0.0814 | K209: =E209/E213 -> 0.02024768688 | L209: =G209/G213 -> 0.01904728169 | M209: =H209/H213 -> 0.02140033071
C210: Total | D210: 5850 | E210: 16372698 | F210: 306182 | G210: 15770162 | H210: 16975234 | I210: 11.7323 | J210: 0.1938
B211: Total | C211: 0 | D211: 46629 | E211: 129591608 | F211: 1374492 | G211: 126886741 | H211: 132296475 | I211: 92.8621 | J211: 0.1523
C212: 1 | D212: 3448 | E212: 9961123 | F212: 226503 | G212: 9515387 | H212: 10406859 | I212: 7.1379 | J212: 0.1523
C213: Total | D213: 50077 | E213: 139552731 | F213: 1439396 | G213: 136720139 | H213: 142385323 | I213: 100
B215: Table of SMC2 by CANCER
B216: Controlling for CHAD=2
B217: SMC2 | C217: CANCER | D217: Frequency | E217: Weighted | F217: Std Dev of | G217: 95% Confidence Limits | I217: Percent | J217: Std Err of
E218: Frequency | F218: Wgt Freq | G218: for Wgt Freq | J218: Percent
B219: 0 | C219: 0 | D219: 61562 | E219: 173421445 | F219: 2127392 | G219: 169234943 | H219: 177607947 | I219: 99.9331 | J219: 0.0131
C220: 1 | D220: 0 | E220: . | F220: . | G220: . | H220: . | I220: . | J220: .
... 209 more rows

Sheet Input_SMC_Option2
B2: Special Medical Care (SMC)
B3: Input Worksheet for Option 2: Medical Condition
B5: Step 8: Enter the rate of those needing SMC per 100,000 persons by medical condition
B6: Medical Conditions | C6: Rate (No.) | D6: 95% Confidence Limits
D7: Lower Limit | E7: Upper Limit
B8: Heart diseases | C8: =Calculation_SN_Option2!C11 -> 2830.480616 | D8: =Calculation_SN_Option2!D11 -> 2686.493758 | E8: =Calculation_SN_Option2!E11 -> 2968.738569
B9: Hypertension | C9: =Calculation_SN_Option2!C12 -> 5043.051433 | D9: =Calculation_SN_Option2!D12 -> 4884.273121 | E9: =Calculation_SN_Option2!E12 -> 5195.512321
B10: Stroke | C10: =Calculation_SN_Option2!C13 -> 753.3087977 | D10: =Calculation_SN_Option2!D13 -> 673.3419134 | E10: =Calculation_SN_Option2!E13 -> 830.0939838
B11: Respiratory problems | C11: =Calculation_SN_Option2!C14 -> 1303.740161 | D11: =Calculation_SN_Option2!D14 -> 1201.250973 | E11: =Calculation_SN_Option2!E14 -> 1402.151541 | G11: Additional Intermediate Results for Option 2:
B12: Cancer | C12: =Calculation_SN_Option2!C15 -> 2024.768688 | D12: =Calculation_SN_Option2!D15 -> 1904.728169 | E12: =Calculation_SN_Option2!E15 -> 2140.033071 | G12: Distribution by:
B13: Diabetes | C13: =Calculation_SN_Option2!C16 -> 2056.541624 | D13: =Calculation_SN_Option2!D16 -> 1932.074542 | E13: =Calculation_SN_Option2!E16 -> 2176.056446
B14: Musculoskeletal/connective tissue problems | C14: =Calculation_SN_Option2!C17 -> 7366.302993 | D14: =Calculation_SN_Option2!D17 -> 7180.171167 | E14: =Calculation_SN_Option2!E17 -> 7545.029062
B16: Intermediate results: Subtotal and total
B17: At least one of the above medical conditions | C17: =SUM(C8:C14)*Calculation_SN_Option2!C35 -> 9235.248144 | D17: =C17*Calculation_SN_Option2!D35 -> 9160.312513 | E17: =C17*Calculation_SN_Option2!E35 -> 9307.20226
B18: Other | C18: =C17*Calculation_SN_Option2!C36 -> 2497.018134 | D18: =C18*Calculation_SN_Option2!D36 -> 2374.317364 | E18: =C18*Calculation_SN_Option2!E36 -> 2614.836924
B19: Total | C19: =C17*Calculation_SN_Option2!C37 -> 11732.26628 | D19: =C19*Calculation_SN_Option2!D37 -> 11534.62988 | E19: =C19*Calculation_SN_Option2!E37 -> 11922.03918
B20: Data source: National Health Interview Survey, NCHS, CDC, 2014
B22: Notes: 1. The rates in the WHITE cells are national estimates per 100,000 persons. MedCon:PreEvent calculates the rates in the GOLD
B23: colored cells based on weights derived from national estimates. 2. If you enter your own rates, they MUST be per 100,000 population
B24: 3. Other= Persons who do not have any of the listed seven medical conditions but need SMC

Sheet Input_SMC_Option22
B2: "Special Medical Care"
B3: Input Worksheet for Option 2: Clinical Visits
B5: Step9: Determine the number of clinical visits by those needing "Special Medical Care" in the first month following an event
F6: Number of office visits by those needing "Special Medical Care" in past 12 months due to pre-existing medical conditions
F8: <6 | G8: 6-12 | H8: >12
B9: Proportion of total office visits before an event in past 12 months* | F9: ='Input_Special Needs'!D20 -> 0.478 | G9: ='Input_Special Needs'!E20 -> 0.522 | H9: ='Input_Special Needs'!F20 -> 0 | I9: =F9+G9+H9 -> 1 | J9: Note: The sum of the proportions must be 1
B10: Assumption: Number of clinical visits in the first month following a disaster | F10: 1 | G10: 1.5 | H10: 2
B11: *Data source: National Health Interview Survey, 2014
B13: Intermediate results:
B14: Average number of clinical visits by those needing "Special Medical Care" in the first month following disaster | I14: =(F9*F10+G9*G10+H9*H10) -> 1.261
B16: Step 10: Enter the distribution of clinical visits by week among those needing "Special Medical Care"
B17: Week | E17: 1 | F17: 2 | G17: 3 | H17: 4
B18: Proportion | E18: =Distribution!H41 -> 0.6624172185 | F18: =Distribution!O41-Distribution!H41 -> 0.2430463576 | G18: =Distribution!S41-Distribution!O41 -> 0.09453642384 | H18: =1-E18-F18-G18 -> 0 | I18: =SUM(E18:H18) -> 1 | J18: Note: The sum of the proportions must be 1
B19: Cum_Proportion | E19: =E18 -> 0.6624172185 | F19: =E19+F18 -> 0.9054635762 | G19: =F19+G18 -> 1 | H19: =G19+H18 -> 1
B21: Additional Intermediate Results for Option 1:Distribution by

Sheet Input_SMC_Option2_NoMedCon
B2: Special Medical Care (SMC)
B3: Intermediate Results for Option 2: No. of Medical Conditions
B5: Step 8.1: Rate of those needing SMC by number of the selected medical condition per 100,000 persons
B6: No. of Medical Conditions | C6: Rate (No.) | D6: 95% Confidence Limits
D7: Lower Limit | E7: Upper Limit
B8: Other | C8: =Input_SMC_Option2!$C$19*Calculation_SN_Option2!H34 -> 2497.018134 | D8: =C8*Calculation_SN_Option2!I34 -> 2374.317364 | E8: =C8*Calculation_SN_Option2!J34 -> 2614.836924
B9: 1 | C9: =Input_SMC_Option2!$C$19*Calculation_SN_Option2!H35 -> 3010.416901 | D9: =C9*Calculation_SN_Option2!I35 -> 2861.333399 | E9: =C9*Calculation_SN_Option2!J35 -> 3153.568714
B10: 2 | C10: =Input_SMC_Option2!$C$19*Calculation_SN_Option2!H36 -> 2588.825008 | D10: =C10*Calculation_SN_Option2!I36 -> 2456.150955 | E10: =C10*Calculation_SN_Option2!J36 -> 2716.220267
B11: 3 | C11: =Input_SMC_Option2!$C$19*Calculation_SN_Option2!H37 -> 1983.686726 | D11: =C11*Calculation_SN_Option2!I37 -> 1885.453759 | E11: =C11*Calculation_SN_Option2!J37 -> 2078.011229
B12: 4 | C12: =Input_SMC_Option2!$C$19*Calculation_SN_Option2!H38 -> 1131.501325 | D12: =C12*Calculation_SN_Option2!I38 -> 1033.023379 | E12: =C12*Calculation_SN_Option2!J38 -> 1226.06106
B13: 5 | C13: =Input_SMC_Option2!$C$19*Calculation_SN_Option2!H39 -> 416.2240293 | D13: =C13*Calculation_SN_Option2!I39 -> 359.5878439 | E13: =C13*Calculation_SN_Option2!J39 -> 470.6067914
B14: 6 | C14: =Input_SMC_Option2!$C$19*Calculation_SN_Option2!H40 -> 100.217315 | D14: =C14*Calculation_SN_Option2!I40 -> 68.95619087 | E14: =C14*Calculation_SN_Option2!J40 -> 130.234631
B15: 7 | C15: =Input_SMC_Option2!$C$19*Calculation_SN_Option2!H41 -> 4.376840178 | D15: =C15*Calculation_SN_Option2!I41 -> 0 | E15: =C15*Calculation_SN_Option2!J41 -> 11.18233233
B16: Total | C16: =Input_SMC_Option2!$C$19*Calculation_SN_Option2!H42 -> 11732.26628 | D16: =C16*Calculation_SN_Option2!I42 -> 11534.62988 | E16: =C16*Calculation_SN_Option2!J42 -> 11922.03918
B17: Data source: National Health Interview Survey, 2014
B19: Note: 1. Values in Gold cells are estimated based on weights derived from national
B20: estimates of the distribution of SMC needs with Option 2
B21: 2. Other= Persons who do not have any of the listed seven medical conditions but need SMC

Sheet Input_SMC_Option2_Age
B2: Special Medical Care (SMC)
B3: Intermediate Results for Option 2: Age Category
B5: Step 8.2: Rates of those needing SMC per 100,000 persons by age category
B6: Age Category | C6: Rate (No.) | D6: 95% Confidence Limits
D7: LL | E7: UL
B8: <5 | C8: =Input_SMC_Option2!$C$19*Calculation_SN_Option2!C42 -> 618.8320313 | D8: =C8*Calculation_SN_Option2!D42 -> 550.823021 | E8: =C8*Calculation_SN_Option2!E42 -> 684.1351197
B9: 5-17 | C9: =Input_SMC_Option2!$C$19*Calculation_SN_Option2!C43 -> 923.8364529 | D9: =C9*Calculation_SN_Option2!D43 -> 841.1043233 | E9: =C9*Calculation_SN_Option2!E43 -> 1003.276862
B10: 18-64 | C10: =Input_SMC_Option2!$C$19*Calculation_SN_Option2!C44 -> 6734.068859 | D10: =C10*Calculation_SN_Option2!D44 -> 6537.499936 | E10: =C10*Calculation_SN_Option2!E44 -> 6922.816757
B11: ≥65 | C11: =Input_SMC_Option2!$C$19*Calculation_SN_Option2!C45 -> 3455.528936 | D11: =C11*Calculation_SN_Option2!D45 -> 3317.439576 | E11: =C11*Calculation_SN_Option2!E45 -> 3588.124037
B12: Total | C12: =Input_SMC_Option2!$C$19*Calculation_SN_Option2!C46 -> 11732.26628 | D12: =C12*Calculation_SN_Option2!D46 -> 11534.62988 | E12: =C12*Calculation_SN_Option2!E46 -> 11922.03918
B13: Data source: National Health Interview Survey, 2014
B15: Note: Values in Gold cells are estimated based on weights derived from national estimates of the distribution of SMC needs with option 2

Sheet Input_SMC_Option2_ClinicalVisit
B2: "Special Medical Care"
B3: Intermediate Results for Option 2: Clinical Visits
B5: Step 10.1: Distribution of clinical visits by week among those needing "Special Medical Care" per 100,000 persons
B6: Week | C6: Rate | D6: 95% Confidence Limits
D7: LL | E7: UL
B8: 1 | C8: =Input_SMC_Option2!$C$19*Input_SMC_Option22!$I$14*Input_SMC_Option22!E18 -> 9800.057202 | D8: =Input_SMC_Option2!$D$19*Input_SMC_Option22!$I$14*Input_SMC_Option22!E18 -> 9634.969911 | E8: =Input_SMC_Option2!$E$19*Input_SMC_Option22!$I$14*Input_SMC_Option22!E18 -> 9958.576049
B9: 2 | C9: =Input_SMC_Option2!$C$19*Input_SMC_Option22!$I$14*Input_SMC_Option22!F18 -> 3595.722062 | D9: =Input_SMC_Option2!$D$19*Input_SMC_Option22!$I$14*Input_SMC_Option22!F18 -> 3535.15017 | E9: =Input_SMC_Option2!$E$19*Input_SMC_Option22!$I$14*Input_SMC_Option22!F18 -> 3653.883939
B10: 3 | C10: =Input_SMC_Option2!$C$19*Input_SMC_Option22!$I$14*Input_SMC_Option22!G18 -> 1398.608513 | D10: =Input_SMC_Option2!$D$19*Input_SMC_Option22!$I$14*Input_SMC_Option22!G18 -> 1375.048193 | E10: =Input_SMC_Option2!$E$19*Input_SMC_Option22!$I$14*Input_SMC_Option22!G18 -> 1421.231423
B11: 4 | C11: =Input_SMC_Option2!$C$19*Input_SMC_Option22!$I$14*Input_SMC_Option22!H18 -> 0 | D11: =Input_SMC_Option2!$D$19*Input_SMC_Option22!$I$14*Input_SMC_Option22!H18 -> 0 | E11: =Input_SMC_Option2!$E$19*Input_SMC_Option22!$I$14*Input_SMC_Option22!H18 -> 0
B12: Total Visits | C12: =Input_SMC_Option2!$C$19*Input_SMC_Option22!$I$14 -> 14794.38778 | D12: =Input_SMC_Option2!$D$19*Input_SMC2!$O$9 -> 20386.06666 | E12: =Input_SMC_Option2!$E$19*Input_SMC2!$O$9 -> 21070.76587
B13: Data source: National Health Interview Survey, 2014

Sheet Calculation_SN_Option3
B2: Calculation: Special Need Population
C3: Option 3
B6: Table 1
B7: Rate of special need population per 100,000 population
B8: by medical condition
B9: Medical Condition | C9: Rate | D9: 95% Confidence Limits
D10: LL | E10: UL
B11: Heart diseases | C11: =K68*100000 -> 4390.267361 | D11: =L68*100000 -> 4210.352653 | E11: =M68*100000 -> 4563.023676
B12: Hypertension | C12: =K96*100000 -> 8521.582426 | D12: =L96*100000 -> 8339.284968 | E12: 8696.626688
B13: Stroke | C13: =K124*100000 -> 1102.581074 | D13: =L124*100000 -> 1010.30105 | E13: 1191.189488
B14: Respiratory problems | C14: =K180*100000 -> 2153.305047 | D14: =L180*100000 -> 2023.331032 | E14: 2278.107695
B15: Cancer | C15: =K208*100000 -> 3204.633093 | D15: =L208*100000 -> 3054.440283 | E15: 3348.850078
B16: Diabetes | C16: =K152*100000 -> 3296.12754 | D16: =L152*100000 -> 3163.249417 | E16: 3423.718749
B17: Musculoskeletal/connective tissue problems | C17: =K236*100000 -> 11760.27935 | D17: =L236*100000 -> 11554.41774 | E17: 11957.95019
B18: Total: At least with one condition | C18: =H31-H23 -> 15489.18953 | D18: =I31-I23 -> 14805.36894 | E18: 16148.40527 | G18: Table 3
B19: Other | C19: =K328*100000 -> 5697.299467 | D19: =L328*100000 -> 5511.697878 | E19: 5875.516397 | G19: Rate of special need population
B20: Total Special Needs | C20: =C18+C19 -> 21186.489 | D20: =D18+D19 -> 20317.06682 | E20: 22023.92167 | G20: by number of selected medical condition (per 100,000)
G21: No. of Medical Condition | H21: Rate | I21: 95% Confidence Limits
B22: Table 2 | I22: LL | J22: UL | L22: % | M22: Cumulative % | N22: No. | O22: Cumulative_No.
B23: Rate of special need population per 100,000 population | G23: 0 | H23: =L269 -> 5697.299467 | I23: =M269 -> 5511.697878 | J23: 5875.516397 | L23: =H23/$H$31*100 -> 26.89119215 | M23: =L23 -> 26.89119215 | N23: =H23 -> 5697.299467 | O23: =N23 -> 5697.299467
B24: by age category | G24: 1 | H24: =L270 -> 5444.107002 | I24: =M270 -> 5262.418582 | J24: =N270 -> 5618.566459 | L24: =H24/$H$31*100 -> 25.69612644 | M24: =L24+M23 -> 52.5873186 | N24: =H24 -> 5444.107002 | O24: =N24+O23 -> 11141.40647
B25: Age category | C25: Rate | D25: 95% Confidence Limits | G25: 2 | H25: 4417.515842 | I25: 4261.76644 | J25: 4567.068335 | L25: 20.85062722 | M25: =L25+M24 -> 73.43794582 | N25: 4417.515842 | O25: =N25+O24 -> 15558.92231
D26: LL | E26: UL | G26: 3 | H26: 3238.373744 | I26: 3114.462164 | J26: 3357.355168 | L26: 15.28508921 | M26: 88.72303503 | N26: 3238.373744 | O26: 18797.29606
B27: <5 Years | C27: =K357*100000 -> 1690.009205 | D27: =L357*100000 -> 1580.042279 | E27: 1795.600801 | G27: 4 | H27: 1641.63036 | I27: 1527.948271 | J27: 1750.7893 | L27: 7.748477626 | M27: 96.47151266 | N27: 1641.63036 | O27: 20438.92642
B28: 5-17 Years | C28: =K358*100000 -> 2015.125738 | D28: =L358*100000 -> 1862.544186 | E28: =M358*100000 -> 2161.636421 | G28: 5 | H28: 621.7578071 | I28: 551.5829676 | J28: 689.1405514 | L28: 2.934690156 | M28: 99.40620281 | N28: 621.7578071 | O28: 21060.68422
B29: 18-64 Years | C29: 11523.78164 | D29: 11331.0249 | E29: 11708.86904 | G29: 6 | H29: 121.4279354 | I29: 87.1905199 | J29: 154.3031229 | L29: 0.5731385478 | M29: 99.97934136 | N29: 121.4279354 | O29: 21182.11216
B30: >=65 Years | C30: 5957.57241 | D30: 5769.899049 | E30: 6137.778681 | G30: 7 | H30: 4.376840178 | I30: 0 | J30: 11.18233233 | L30: 0.02065863852 | M30: 100 | N30: 4.376840178 | O30: 21186.489
B31: Total Special Needs | C31: 21186.489 | D31: 20956.94695 | E31: 21406.8981 | G31: Total | H31: =SUM(H23:H30) -> 21186.489 | I31: =SUM(I23:I30) -> 20317.06682 | J31: 22023.92167 | L31: 100 | N31: 21186.489
B33: Adjustment factors for Table 1 | G33: Adjustment factors for Table 1
B34: Sum of selected seven med condition | C34: =C50 -> 34428.77589 | D34: =D50 -> 33355.37715 | E34: 35459.46656 | G34: 0 | H34: 0.2745869284 | I34: 0.970124292 | J34: 1.028134271
B35: Ratio of at least with one condition to total | C35: =C51 -> 0.4498908001 | D35: 0.9558517516 | E35: 1.042559731 | G35: 1 | H35: 0.2569612644 | I35: 0.9666265891 | J35: 1.03204556
B36: Ratio of other than selected condition to at least one condition | C36: 0.3678242465 | D36: 0.9674228833 | E36: 1.031280948 | G36: 2 | H36: 0.2085062722 | I36: 0.9647427631 | J36: 1.033854433
B37: Ratio of total to at least one condition | C37: 1.367824246 | D37: 0.988792583 | E37: 1.010554143 | G37: 3 | H37: 0.1528508921 | I37: 0.9617364796 | J37: 1.036741103
G38: 4 | H38: 0.07748477626 | I38: 0.9307504956 | J38: 1.066494226
G39: 5 | H39: 0.02934690156 | I39: 0.8871347674 | J39: 1.108374585
B40: Adjustment factors for Table 2 | G40: 6 | H40: 0.005731385478 | I40: 0.7180433369 | J40: 1.270738257
G41: 7 | H41: 0.0002065863852 | I41: 0 | J41: 2.554887058
B42: <5 Years | C42: =C27/$C$31 -> 0.07976825256 | D42: =D27/C27 -> 0.9349311673 | E42: =E27/C27 -> 1.062479894 | G42: Total | H42: 1 | I42: 0.9589633669 | J42: 1.039526732
B43: 5-17 Years | C43: =C28/$C$31 -> 0.09511371789 | D43: =D28/C28 -> 0.9242818704 | E43: =E28/C28 -> 1.07270548
B44: 18-64 Years | C44: =C29/$C$31 -> 0.5439212531 | D44: =D29/C29 -> 0.983273135 | E44: =E29/C29 -> 1.016061342
B45: >=65 Years | C45: =C30/$C$31 -> 0.2811967764 | D45: =D30/C30 -> 0.9684983499 | E45: =E30/C30 -> 1.030248272 | G45: Adjustment factors for Table 1(Calculation)
B46: Total Special Needs | C46: =C31/$C$31 -> 1 | D46: =D31/C31 -> 0.98916564 | E46: =E31/C31 -> 1.010403286 | G46: 0 | H46: =H34 -> 0.2745869284 | I46: =I34 -> 0.970124292 | J46: 1.028134271
G47: 1 | H47: =H24/$H$31 -> 0.2569612644 | I47: =I24/H24 -> 0.9666265891 | J47: =J24/H24 -> 1.03204556
G48: 2 | H48: 0.2085062722 | I48: 0.9647427631 | J48: 1.033854433
B49: Adjustment factors and calculation for Table 1 (Calculation) | G49: 3 | H49: 0.1528508921 | I49: 0.9617364796 | J49: 1.036741103
B50: Sum of selected seven med condition | C50: =SUM(C11:C17) -> 34428.77589 | D50: =SUM(D11:D17) -> 33355.37715 | E50: =SUM(E11:E17) -> 35459.46656 | G50: 4 | H50: 0.07748477626 | I50: 0.9307504956 | J50: 1.066494226
B51: Ratio of at least with one condition to total | C51: =C18/C50 -> 0.4498908001 | D51: =D18/C18 -> 0.9558517516 | E51: =E18/C18 -> 1.042559731 | G51: 5 | H51: 0.02934690156 | I51: 0.8871347674 | J51: 1.108374585
B52: Ratio of other than selected condition to at least one condition | C52: =C19/C18 -> 0.3678242465 | D52: =D19/C19 -> 0.9674228833 | E52: =E19/C19 -> 1.031280948 | G52: 6 | H52: 0.005731385478 | I52: 0.7180433369 | J52: 1.270738257
B53: Ratio of total to at least one condition | C53: =C20/C18 -> 1.367824246 | D53: =D20/C20 -> 0.9589633669 | E53: =E31/C31 -> 1.010403286 | G53: 7 | H53: 0.0002065863852 | I53: 0 | J53: 2.554887058
G54: Total | H54: 1 | I54: 0.9589633669 | J54: 1.039526732
B56: Updated: 01/20/2016
B60: Table of SMC3 by HEARTPROB
B61: Controlling for CHAD=1
B62: SMC3 | C62: HEARTPROB | D62: Frequency | E62: Weighted | F62: Std Dev of | G62: 95% Confidence Limits | I62: Percent | J62: Std Err of
E63: Frequency | F63: Wgt Freq | G63: for Wgt Freq | J63: Percent
B64: 0 | C64: 0 | D64: 36998 | E64: 102640336 | F64: 1146557 | G64: 100384023 | H64: 104896649 | I64: 73.5495 | J64: 0.2755
C65: 1 | D65: 2595 | E65: 7346071 | F65: 190423 | G65: 6971338 | H65: 7720804 | I65: 5.264 | J65: 0.13
C66: Total | D66: 39593 | E66: 109986407 | F66: 1194522 | G66: 107635703 | H66: 112337111 | I66: 78.8135 | J66: 0.2547
B67: 1 | C67: 0 | D67: 8362 | E67: 23439586 | F67: 391848 | G67: 22668468 | H67: 24210704 | I67: 16.7962 | J67: 0.2214 | K67: % | L67: LL (%) | M67: UL (%)
C68: 1 | D68: 2122 | E68: 6126738 | F68: 188189 | G68: 5756400 | H68: 6497076 | I68: 4.3903 | J68: 0.1283 | K68: =E68/E72 -> 0.04390267361 | L68: =G68/G72 -> 0.04210352653 | M68: =H68/H72 -> 0.04563023676
C69: Total | D69: 10484 | E69: 29566324 | F69: 464432 | G69: 28652367 | H69: 30480281 | I69: 21.1865 | J69: 0.2547
B70: Total | C70: 0 | D70: 45360 | E70: 126079922 | F70: 1346079 | G70: 123430969 | H70: 128728875 | I70: 90.3457 | J70: 0.1847
C71: 1 | D71: 4717 | E71: 13472809 | F71: 282734 | G71: 12916415 | H71: 14029203 | I71: 9.6543 | J71: 0.1847
C72: Total | D72: 50077 | E72: 139552731 | F72: 1439396 | G72: 136720139 | H72: 142385323 | I72: 100
B74: Table of SMC3 by HEARTPROB
B75: Controlling for CHAD=2
B76: SMC3 | C76: HEARTPROB | D76: Frequency | E76: Weighted | F76: Std Dev of | G76: 95% Confidence Limits | I76: Percent | J76: Std Err of
E77: Frequency | F77: Wgt Freq | G77: for Wgt Freq | J77: Percent
B78: 0 | C78: 0 | D78: 61435 | E78: 173033144 | F78: 2127028 | G78: 168847359 | H78: 177218929 | I78: 99.7094 | J78: 0.0272
C79: 1 | D79: 0 | E79: . | F79: . | G79: . | H79: . | I79: . | J79: .
C80: Total | D80: 61435 | E80: 173033144 | F80: 2127028 | G80: 168847359 | H80: 177218929 | I80: 99.7094 | J80: 0.0272
B81: 1 | C81: 0 | D81: 170 | E81: 504372 | F81: 46937 | G81: 412005 | H81: 596739 | I81: 0.2906 | J81: 0.0272
C82: 1 | D82: 0 | E82: . | F82: . | G82: . | H82: . | I82: . | J82: .
C83: Total | D83: 170 | E83: 504372 | F83: 46937 | G83: 412005 | H83: 596739 | I83: 0.2906 | J83: 0.0272
B84: Total | C84: 0 | D84: 61605 | E84: 173537516 | F84: 2128034 | G84: 169349751 | H84: 177725281 | I84: 100 | J84: 0
C85: 1 | D85: 0 | E85: . | F85: . | G85: . | H85: . | I85: . | J85: .
C86: Total | D86: 61605 | E86: 173537516 | F86: 2128034 | G86: 169349751 | H86: 177725281 | I86: 100
B88: Table of SMC3 by HYPERTENSION
B89: Controlling for CHAD=1
B90: SMC3 | C90: HYPERTENSION | D90: Frequency | E90: Weighted | F90: Std Dev of | G90: 95% Confidence Limits | I90: Percent | J90: Std Err of
E91: Frequency | F91: Wgt Freq | G91: for Wgt Freq | J91: Percent
B92: 0 | C92: 0 | D92: 31444 | E92: 87065525 | F92: 1022638 | G92: 85053072 | H92: 89077978 | I92: 62.389 | J92: 0.304
C93: 1 | D93: 8149 | E93: 22920882 | F93: 388662 | G93: 22156033 | H93: 23685731 | I93: 16.4245 | J93: 0.2354
C94: Total | D94: 39593 | E94: 109986407 | F94: 1194522 | G94: 107635703 | H94: 112337111 | I94: 78.8135 | J94: 0.2547
B95: 1 | C95: 0 | D95: 6237 | E95: 17674223 | F95: 341264 | G95: 17002649 | H95: 18345797 | I95: 12.6649 | J95: 0.1949 | K95: % | L95: LL (%) | M95: UL (%)
C96: 1 | D96: 4247 | E96: 11892101 | F96: 249310 | G96: 11401482 | H96: 12382720 | I96: 8.5216 | J96: 0.1677 | K96: =E96/E100 -> 0.08521582426 | L96: =G96/G100 -> 0.08339284968 | M96: =H96/H100 -> 0.08696626688
C97: Total | D97: 10484 | E97: 29566324 | F97: 464432 | G97: 28652367 | H97: 30480281 | I97: 21.1865 | J97: 0.2547
B98: Total | C98: 0 | D98: 37681 | E98: 104739748 | F98: 1202441 | G98: 102373462 | H98: 107106034 | I98: 75.0539 | J98: 0.28
C99: 1 | D99: 12396 | E99: 34812983 | F99: 489604 | G99: 33849490 | H99: 35776476 | I99: 24.9461 | J99: 0.28
C100: Total | D100: 50077 | E100: 139552731 | F100: 1439396 | G100: 136720139 | H100: 142385323 | I100: 100
B102: Table of SMC3 by HYPERTENSION
B103: Controlling for CHAD=2
B104: SMC3 | C104: HYPERTENSION | D104: Frequency | E104: Weighted | F104: Std Dev of | G104: 95% Confidence Limits | I104: Percent | J104: Std Err of
E105: Frequency | F105: Wgt Freq | G105: for Wgt Freq | J105: Percent
B106: 0 | C106: 0 | D106: 61435 | E106: 173033144 | F106: 2127028 | G106: 168847359 | H106: 177218929 | I106: 99.7094 | J106: 0.0272
C107: 1 | D107: 0 | E107: . | F107: . | G107: . | H107: . | I107: . | J107: .
C108: Total | D108: 61435 | E108: 173033144 | F108: 2127028 | G108: 168847359 | H108: 177218929 | I108: 99.7094 | J108: 0.0272
B109: 1 | C109: 0 | D109: 170 | E109: 504372 | F109: 46937 | G109: 412005 | H109: 596739 | I109: 0.2906 | J109: 0.0272
C110: 1 | D110: 0 | E110: . | F110: . | G110: . | H110: . | I110: . | J110: .
C111: Total | D111: 170 | E111: 504372 | F111: 46937 | G111: 412005 | H111: 596739 | I111: 0.2906 | J111: 0.0272
B112: Total | C112: 0 | D112: 61605 | E112: 173537516 | F112: 2128034 | G112: 169349751 | H112: 177725281 | I112: 100 | J112: 0
C113: 1 | D113: 0 | E113: . | F113: . | G113: . | H113: . | I113: . | J113: .
C114: Total | D114: 61605 | E114: 173537516 | F114: 2128034 | G114: 169349751 | H114: 177725281 | I114: 100
B116: Table of SMC3 by STROKE
B117: Controlling for CHAD=1
B118: SMC3 | C118: STROKE | D118: Frequency | E118: Weighted | F118: Std Dev of | G118: 95% Confidence Limits | I118: Percent | J118: Std Err of
E119: Frequency | F119: Wgt Freq | G119: for Wgt Freq | J119: Percent
B120: 0 | C120: 0 | D120: 38989 | E120: 108338041 | F120: 1183908 | G120: 106008226 | H120: 110667856 | I120: 77.6323 | J120: 0.2553
C121: 1 | D121: 604 | E121: 1648366 | F121: 87547 | G121: 1476082 | H121: 1820650 | I121: 1.1812 | J121: 0.0623
C122: Total | D122: 39593 | E122: 109986407 | F122: 1194522 | G122: 107635703 | H122: 112337111 | I122: 78.8135 | J122: 0.2547
B123: 1 | C123: 0 | D123: 9905 | E123: 28027642 | F123: 439872 | G123: 27162017 | H123: 28893267 | I123: 20.0839 | J123: 0.2415 | K123: % | L123: LL (%) | M123: UL (%)
C124: 1 | D124: 579 | E124: 1538682 | F124: 79982 | G124: 1381285 | H124: 1696079 | I124: 1.1026 | J124: 0.0561 | K124: =E124/E128 -> 0.01102581074 | L124: =G124/G128 -> 0.0101030105 | M124: =H124/H128 -> 0.01191189488
C125: Total | D125: 10484 | E125: 29566324 | F125: 464432 | G125: 28652367 | H125: 30480281 | I125: 21.1865 | J125: 0.2547
B126: Total | C126: 0 | D126: 48894 | E126: 136365683 | F126: 1416515 | G126: 133578119 | H126: 139153247 | I126: 97.7162 | J126: 0.0821
C127: 1 | D127: 1183 | E127: 3187048 | F127: 117644 | G127: 2955535 | H127: 3418561 | I127: 2.2838 | J127: 0.0821
C128: Total | D128: 50077 | E128: 139552731 | F128: 1439396 | G128: 136720139 | H128: 142385323 | I128: 100
B130: Table of SMC3 by STROKE
B131: Controlling for CHAD=2
B132: SMC3 | C132: STROKE | D132: Frequency | E132: Weighted | F132: Std Dev of | G132: 95% Confidence Limits | I132: Percent | J132: Std Err of
E133: Frequency | F133: Wgt Freq | G133: for Wgt Freq | J133: Percent
B134: 0 | C134: 0 | D134: 61435 | E134: 173033144 | F134: 2127028 | G134: 168847359 | H134: 177218929 | I134: 99.7094 | J134: 0.0272
C135: 1 | D135: 0 | E135: . | F135: . | G135: . | H135: . | I135: . | J135: .
C136: Total | D136: 61435 | E136: 173033144 | F136: 2127028 | G136: 168847359 | H136: 177218929 | I136: 99.7094 | J136: 0.0272
B137: 1 | C137: 0 | D137: 170 | E137: 504372 | F137: 46937 | G137: 412005 | H137: 596739 | I137: 0.2906 | J137: 0.0272
C138: 1 | D138: 0 | E138: . | F138: . | G138: . | H138: . | I138: . | J138: .
C139: Total | D139: 170 | E139: 504372 | F139: 46937 | G139: 412005 | H139: 596739 | I139: 0.2906 | J139: 0.0272
B140: Total | C140: 0 | D140: 61605 | E140: 173537516 | F140: 2128034 | G140: 169349751 | H140: 177725281 | I140: 100 | J140: 0
C141: 1 | D141: 0 | E141: . | F141: . | G141: . | H141: . | I141: . | J141: .
C142: Total | D142: 61605 | E142: 173537516 | F142: 2128034 | G142: 169349751 | H142: 177725281 | I142: 100
B144: Table of SMC3 by DIABETES
B145: Controlling for CHAD=1
B146: SMC3 | C146: DIABETES | D146: Frequency | E146: Weighted | F146: Std Dev of | G146: 95% Confidence Limits | I146: Percent | J146: Std Err of
E147: Frequency | F147: Wgt Freq | G147: for Wgt Freq | J147: Percent
B148: 0 | C148: 0 | D148: 37466 | E148: 104273412 | F148: 1147989 | G148: 102014280 | H148: 106532544 | I148: 74.7197 | J148: 0.2661
C149: 1 | D149: 2127 | E149: 5712995 | F149: 164282 | G149: 5389705 | H149: 6036285 | I149: 4.0938 | J149: 0.1112
C150: Total | D150: 39593 | E150: 109986407 | F150: 1194522 | G150: 107635703 | H150: 112337111 | I150: 78.8135 | J150: 0.2547
B151: 1 | C151: 0 | D151: 8779 | E151: 24966488 | F151: 422071 | G151: 24135892 | H151: 25797084 | I151: 17.8904 | J151: 0.2355 | K151: % | L151: LL (%) | M151: UL (%)
C152: 1 | D152: 1705 | E152: 4599836 | F152: 139762 | G152: 4324799 | H152: 4874873 | I152: 3.2961 | J152: 0.0976 | K152: =E152/E156 -> 0.0329612754 | L152: =G152/G156 -> 0.03163249417 | M152: =H152/H156 -> 0.03423718749
C153: Total | D153: 10484 | E153: 29566324 | F153: 464432 | G153: 28652367 | H153: 30480281 | I153: 21.1865 | J153: 0.2547
B154: Total | C154: 0 | D154: 46245 | E154: 129239900 | F154: 1366390 | G154: 126550978 | H154: 131928822 | I154: 92.6101 | J154: 0.1461
C155: 1 | D155: 3832 | E155: 10312831 | F155: 221372 | G155: 9877192 | H155: 10748470 | I155: 7.3899 | J155: 0.1461
C156: Total | D156: 50077 | E156: 139552731 | F156: 1439396 | G156: 136720139 | H156: 142385323 | I156: 100
B158: Table of SMC3 by DIABETES
B159: Controlling for CHAD=2
B160: SMC3 | C160: DIABETES | D160: Frequency | E160: Weighted | F160: Std Dev of | G160: 95% Confidence Limits | I160: Percent | J160: Std Err of
E161: Frequency | F161: Wgt Freq | G161: for Wgt Freq | J161: Percent
B162: 0 | C162: 0 | D162: 61435 | E162: 173033144 | F162: 2127028 | G162: 168847359 | H162: 177218929 | I162: 99.7094 | J162: 0.0272
C163: 1 | D163: 0 | E163: . | F163: . | G163: . | H163: . | I163: . | J163: .
C164: Total | D164: 61435 | E164: 173033144 | F164: 2127028 | G164: 168847359 | H164: 177218929 | I164: 99.7094 | J164: 0.0272
B165: 1 | C165: 0 | D165: 170 | E165: 504372 | F165: 46937 | G165: 412005 | H165: 596739 | I165: 0.2906 | J165: 0.0272
C166: 1 | D166: 0 | E166: . | F166: . | G166: . | H166: . | I166: . | J166: .
C167: Total | D167: 170 | E167: 504372 | F167: 46937 | G167: 412005 | H167: 596739 | I167: 0.2906 | J167: 0.0272
B168: Total | C168: 0 | D168: 61605 | E168: 173537516 | F168: 2128034 | G168: 169349751 | H168: 177725281 | I168: 100 | J168: 0
C169: 1 | D169: 0 | E169: . | F169: . | G169: . | H169: . | I169: . | J169: .
C170: Total | D170: 61605 | E170: 173537516 | F170: 2128034 | G170: 169349751 | H170: 177725281 | I170: 100
B172: Table of SMC3 by RESPIRATORY
B173: Controlling for CHAD=1
B174: SMC3 | C174: RESPIRATORY | D174: Frequency | E174: Weighted | F174: Std Dev of | G174: 95% Confidence Limits | I174: Percent | J174: Std Err of
E175: Frequency | F175: Wgt Freq | G175: for Wgt Freq | J175: Percent
B176: 0 | C176: 0 | D176: 37358 | E176: 103929217 | F176: 1119989 | G176: 101725187 | H176: 106133247 | I176: 74.4731 | J176: 0.274
C177: 1 | D177: 2235 | E177: 6057190 | F177: 177565 | G177: 5707760 | H177: 6406620 | I177: 4.3404 | J177: 0.1121
C178: Total | D178: 39593 | E178: 109986407 | F178: 1194522 | G178: 107635703 | H178: 112337111 | I178: 78.8135 | J178: 0.2547
B179: 1 | C179: 0 | D179: 9374 | E179: 26561328 | F179: 427370 | G179: 25720305 | H179: 27402351 | I179: 19.0332 | J179: 0.2428 | K179: % | L179: LL (%) | M179: UL (%)
C180: 1 | D180: 1110 | E180: 3004996 | F180: 121294 | G180: 2766301 | H180: 3243691 | I180: 2.1533 | J180: 0.0827 | K180: =E180/E184 -> 0.02153305047 | L180: =G180/G184 -> 0.02023331032 | M180: =H180/H184 -> 0.02278107695
C181: Total | D181: 10484 | E181: 29566324 | F181: 464432 | G181: 28652367 | H181: 30480281 | I181: 21.1865 | J181: 0.2547
B182: Total | C182: 0 | D182: 46732 | E182: 130490545 | F182: 1328214 | G182: 127876749 | H182: 133104341 | I182: 93.5063 | J182: 0.1426
C183: 1 | D183: 3345 | E183: 9062186 | F183: 233146 | G183: 8603378 | H183: 9520994 | I183: 6.4937 | J183: 0.1426
C184: Total | D184: 50077 | E184: 139552731 | F184: 1439396 | G184: 136720139 | H184: 142385323 | I184: 100
B186: Table of SMC3 by RESPIRATORY
B187: Controlling for CHAD=2
B188: SMC3 | C188: RESPIRATORY | D188: Frequency | E188: Weighted | F188: Std Dev of | G188: 95% Confidence Limits | I188: Percent | J188: Std Err of
E189: Frequency | F189: Wgt Freq | G189: for Wgt Freq | J189: Percent
B190: 0 | C190: 0 | D190: 61435 | E190: 173033144 | F190: 2127028 | G190: 168847359 | H190: 177218929 | I190: 99.7094 | J190: 0.0272
C191: 1 | D191: 0 | E191: . | F191: . | G191: . | H191: . | I191: . | J191: .
C192: Total | D192: 61435 | E192: 173033144 | F192: 2127028 | G192: 168847359 | H192: 177218929 | I192: 99.7094 | J192: 0.0272
B193: 1 | C193: 0 | D193: 170 | E193: 504372 | F193: 46937 | G193: 412005 | H193: 596739 | I193: 0.2906 | J193: 0.0272
C194: 1 | D194: 0 | E194: . | F194: . | G194: . | H194: . | I194: . | J194: .
C195: Total | D195: 170 | E195: 504372 | F195: 46937 | G195: 412005 | H195: 596739 | I195: 0.2906 | J195: 0.0272
B196: Total | C196: 0 | D196: 61605 | E196: 173537516 | F196: 2128034 | G196: 169349751 | H196: 177725281 | I196: 100 | J196: 0
C197: 1 | D197: 0 | E197: . | F197: . | G197: . | H197: . | I197: . | J197: .
C198: Total | D198: 61605 | E198: 173537516 | F198: 2128034 | G198: 169349751 | H198: 177725281 | I198: 100
B200: Table of SMC3 by CANCER
B201: Controlling for CHAD=1
B202: SMC3 | C202: CANCER | D202: Frequency | E202: Weighted | F202: Std Dev of | G202: 95% Confidence Limits | I202: Percent | J202: Std Err of
E203: Frequency | F203: Wgt Freq | G203: for Wgt Freq | J203: Percent
B204: 0 | C204: 0 | D204: 37664 | E204: 104497437 | F204: 1149362 | G204: 102235605 | H204: 106759269 | I204: 74.8803 | J204: 0.2594
C205: 1 | D205: 1929 | E205: 5488970 | F205: 160682 | G205: 5172763 | H205: 5805177 | I205: 3.9333 | J205: 0.1097
C206: Total | D206: 39593 | E206: 109986407 | F206: 1194522 | G206: 107635703 | H206: 112337111 | I206: 78.8135 | J206: 0.2547
B207: 1 | C207: 0 | D207: 8965 | E207: 25094171 | F207: 417157 | G207: 24273246 | H207: 25915096 | I207: 17.9819 | J207: 0.2296 | K207: % | L207: LL (%) | M207: UL (%)
C208: 1 | D208: 1519 | E208: 4472153 | F208: 150474 | G208: 4176035 | H208: 4768271 | I208: 3.2046 | J208: 0.1059 | K208: =E208/E212 -> 0.03204633093 | L208: =G208/G212 -> 0.03054440283 | M208: =H208/H212 -> 0.03348850078
C209: Total | D209: 10484 | E209: 29566324 | F209: 464432 | G209: 28652367 | H209: 30480281 | I209: 21.1865 | J209: 0.2547
B210: Total | C210: 0 | D210: 46629 | E210: 129591608 | F210: 1374492 | G210: 126886741 | H210: 132296475 | I210: 92.8621 | J210: 0.1523
C211: 1 | D211: 3448 | E211: 9961123 | F211: 226503 | G211: 9515387 | H211: 10406859 | I211: 7.1379 | J211: 0.1523
C212: Total | D212: 50077 | E212: 139552731 | F212: 1439396 | G212: 136720139 | H212: 142385323 | I212: 100
B214: Table of SMC3 by CANCER
B215: Controlling for CHAD=2
B216: SMC3 | C216: CANCER | D216: Frequency | E216: Weighted | F216: Std Dev of | G216: 95% Confidence Limits | I216: Percent | J216: Std Err of
E217: Frequency | F217: Wgt Freq | G217: for Wgt Freq | J217: Percent
B218: 0 | C218: 0 | D218: 61435 | E218: 173033144 | F218: 2127028 | G218: 168847359 | H218: 177218929 | I218: 99.7094 | J218: 0.0272
C219: 1 | D219: 0 | E219: . | F219: . | G219: . | H219: . | I219: . | J219: .
... 209 more rows

Sheet Input_SMC_Option3
B2: Special Medical Care (SMC)
B3: Input Worksheet for Option 3: Medical Conditions
B5: Step 8: Enter the rate of those needing SMC per 100,000 persons by medical condition
B6: Medical Conditions | C6: Rate (No.) | D6: 95% Confidence Limits
D7: LL | E7: UL
B8: Heart diseases | C8: =Calculation_SN_Option3!C11 -> 4390.267361 | D8: =Calculation_SN_Option3!D11 -> 4210.352653 | E8: =Calculation_SN_Option3!E11 -> 4563.023676
B9: Hypertension | C9: =Calculation_SN_Option3!C12 -> 8521.582426 | D9: =Calculation_SN_Option3!D12 -> 8339.284968 | E9: =Calculation_SN_Option3!E12 -> 8696.626688
B10: Stroke | C10: =Calculation_SN_Option3!C13 -> 1102.581074 | D10: =Calculation_SN_Option3!D13 -> 1010.30105 | E10: =Calculation_SN_Option3!E13 -> 1191.189488
B11: Respiratory problems | C11: =Calculation_SN_Option3!C14 -> 2153.305047 | D11: =Calculation_SN_Option3!D14 -> 2023.331032 | E11: =Calculation_SN_Option3!E14 -> 2278.107695 | G11: Additional Intermediate Results for Option 3:
B12: Cancer | C12: =Calculation_SN_Option3!C15 -> 3204.633093 | D12: =Calculation_SN_Option3!D15 -> 3054.440283 | E12: =Calculation_SN_Option3!E15 -> 3348.850078 | G12: Distribution by:
B13: Diabetes | C13: =Calculation_SN_Option3!C16 -> 3296.12754 | D13: =Calculation_SN_Option3!D16 -> 3163.249417 | E13: =Calculation_SN_Option3!E16 -> 3423.718749
B14: Musculoskeletal/connective tissue problems | C14: =Calculation_SN_Option3!C17 -> 11760.27935 | D14: =Calculation_SN_Option3!D17 -> 11554.41774 | E14: =Calculation_SN_Option3!E17 -> 11957.95019
B16: Intermediate results: Subtotal and total
B17: At least one of the above medical conditions | C17: =SUM(C8:C14)*Calculation_SN_Option3!C35 -> 15489.18953 | D17: =C17*Calculation_SN_Option3!D35 -> 14805.36894 | E17: =C17*Calculation_SN_Option3!E35 -> 16148.40527
B18: Other | C18: =C17*Calculation_SN_Option3!C36 -> 5697.299467 | D18: =C18*Calculation_SN_Option3!D36 -> 5511.697878 | E18: =C18*Calculation_SN_Option3!E36 -> 5875.516397
B19: Total | C19: =C17*Calculation_SN_Option3!C37 -> 21186.489 | D19: =C19*Calculation_SN_Option3!D37 -> 20949.04318 | E19: =C19*Calculation_SN_Option3!E37 -> 21410.09424
B20: Data source: National Health Interview Survey, NCHS, CDC, 2014
B22: Notes: 1. The rates in the WHITE cells are national estimates per 100,000 persons. MedCon:PreEvent calculates the rates in the Gold
B23: colored cells based on weights derived from national estimates. 2. If you enter your own rates, they MUST be per 100,000 population
B24: 3. Other= Persons who do not have any of the listed seven medical conditions but need SMC

Sheet Input_SMC_Option33
B2: Special Medical Care (SMC)
B3: Input Worksheet for Option 3: Clinical Visits
B5: Step9: Determine the number of clinical visits by those needing SMC in the first month following an event
F6: No. of Office visits by those needing SMC in past 12 months due to pre-existing medical conditions
F8: <6 | G8: 6-12 | H8: >12
B9: Proportion of total office visits before an event in past 12 months* | F9: ='Input_Special Needs'!D21 -> 0.7113 | G9: ='Input_Special Needs'!E21 -> 0.2887 | H9: ='Input_Special Needs'!F21 -> 0 | I9: =F9+G9+H9 -> 1 | J9: Note: The sum of the proportions must be 1
B10: Assumption: No. of clinical visits in the first month following an event | F10: 1 | G10: 1.5 | H10: 2
B11: *Data source: National Health Interview Survey, 2014
B13: Intermediate results:
B14: Average number of clinical visits by those needing SMC in the first month following disaster | I14: =(F9*F10+G9*G10+H9*H10) -> 1.14435
B16: Step 10: Determine distribution of clinical visits by week among those needing "Special Medical Care"
B17: Week | E17: 1 | F17: 2 | G17: 3 | H17: 4
B18: Proportion | E18: =Distribution!H41 -> 0.6624172185 | F18: =Distribution!O41-Distribution!H41 -> 0.2430463576 | G18: =Distribution!S41-Distribution!O41 -> 0.09453642384 | H18: =1-E18-F18-G18 -> 0 | I18: =SUM(E18:H18) -> 1 | J18: Note: The sum of the proportions must be 1
B19: Cum_Proportion | E19: =E18 -> 0.6624172185 | F19: =E19+F18 -> 0.9054635762 | G19: =F19+G18 -> 1 | H19: =G19+H18 -> 1
B21: Additional Intermediate Results for Option 1:Distribution by

Sheet Input_SMC_Option3_NoMedCon
B2: Special Medical Care (SMC)
B3: Intermediate Results for Option 3: No. of Medical Conditions
B5: Step 8.1: Rate of those needing SMC by number of the selected medical condition per 100,000 persons
B6: No. of Medical Conditions | C6: Rate (No.) | D6: 95% Confidence Limits
D7: Lower Limit | E7: Upper Limit
B8: Other | C8: =Input_SMC_Option3!$C$19*Calculation_SN_Option3!H34 -> 5817.532939 | D8: =C8*Calculation_SN_Option3!I34 -> 5643.730023 | E8: =C8*Calculation_SN_Option3!J34 -> 5981.204985
B9: 1 | C9: =Input_SMC_Option3!$C$19*Calculation_SN_Option3!H35 -> 5444.107002 | D9: =C9*Calculation_SN_Option3!I35 -> 5262.418582 | E9: =C9*Calculation_SN_Option3!J35 -> 5618.566459
B10: 2 | C10: =Input_SMC_Option3!$C$19*Calculation_SN_Option3!H36 -> 4417.515842 | D10: =C10*Calculation_SN_Option3!I36 -> 4261.76644 | E10: =C10*Calculation_SN_Option3!J36 -> 4567.068335
B11: 3 | C11: =Input_SMC_Option3!$C$19*Calculation_SN_Option3!H37 -> 3238.373744 | D11: =C11*Calculation_SN_Option3!I37 -> 3114.462164 | E11: =C11*Calculation_SN_Option3!J37 -> 3357.355168
B12: 4 | C12: =Input_SMC_Option3!$C$19*Calculation_SN_Option3!H38 -> 1641.63036 | D12: =C12*Calculation_SN_Option3!I38 -> 1527.948271 | E12: =C12*Calculation_SN_Option3!J38 -> 1750.7893
B13: 5 | C13: =Input_SMC_Option3!$C$19*Calculation_SN_Option3!H39 -> 621.7578071 | D13: =C13*Calculation_SN_Option3!I39 -> 551.5829676 | E13: =C13*Calculation_SN_Option3!J39 -> 689.1405514
B14: 6 | C14: =Input_SMC_Option3!$C$19*Calculation_SN_Option3!H40 -> 121.4279354 | D14: =C14*Calculation_SN_Option3!I40 -> 87.1905199 | E14: =C14*Calculation_SN_Option3!J40 -> 154.3031229
B15: 7 | C15: =Input_SMC_Option3!$C$19*Calculation_SN_Option3!H41 -> 4.376840178 | D15: =C15*Calculation_SN_Option3!I41 -> 0 | E15: =C15*Calculation_SN_Option3!J41 -> 11.18233233
B16: Total | C16: =Input_SMC_Option3!$C$19*Calculation_SN_Option3!H42 -> 21186.489 | D16: =C16*Calculation_SN_Option3!I42 -> 20317.06682 | E16: =C16*Calculation_SN_Option3!J42 -> 22023.92167
B17: Data source: National Health Interview Survey, 2014
B19: Note: 1. Values in Gold cells are estimated based on weights derived from national
B20: estimates of the distribution of SMC needs with Option 3
B21: 2. Other= Persons who do not have any of the listed seven medical conditions but need SMC

Sheet Input_SMC_Option3_Age
B2: Special Medical Care (SMC)
B3: Intermediate Results for Option 3: Age Category
B5: Step 8.2: Rates of those needing SMC per 100,000 persons by age category
B6: Age Category | C6: Rate (No.) | D6: 95% Confidence Limits
D7: Lower Limit | E7: Upper Limit
B8: <5 | C8: =Input_SMC_Option3!$C$19*Calculation_SN_Option3!C42 -> 1690.009205 | D8: =C8*Calculation_SN_Option3!D42 -> 1580.042279 | E8: =C8*Calculation_SN_Option3!E42 -> 1795.600801
B9: 5-17 | C9: =Input_SMC_Option3!$C$19*Calculation_SN_Option3!C43 -> 2015.125738 | D9: =C9*Calculation_SN_Option3!D43 -> 1862.544186 | E9: =C9*Calculation_SN_Option3!E43 -> 2161.636421
B10: 18-64 | C10: =Input_SMC_Option3!$C$19*Calculation_SN_Option3!C44 -> 11523.78164 | D10: =C10*Calculation_SN_Option3!D44 -> 11331.0249 | E10: =C10*Calculation_SN_Option3!E44 -> 11708.86904
B11: ≥65 | C11: =Input_SMC_Option3!$C$19*Calculation_SN_Option3!C45 -> 5957.57241 | D11: =C11*Calculation_SN_Option3!D45 -> 5769.899049 | E11: =C11*Calculation_SN_Option3!E45 -> 6137.778681
B12: Total | C12: =Input_SMC_Option3!$C$19*Calculation_SN_Option3!C46 -> 21186.489 | D12: =C12*Calculation_SN_Option3!D46 -> 20956.94695 | E12: =C12*Calculation_SN_Option3!E46 -> 21406.8981
B13: Data source: National Health Interview Survey, 2014
B15: Note: Values in Gold cells are estimated based on weights derived from national estimates of the distribution of SMC needs with Option 3

Sheet Input_SMC_Option3_ClinicalVisit
B2: Special Medical Care (SMC)
B3: Intermediate Results for Option 3: Clinical Visits
B5: Step 10.1: Distribution of clinical visits by week among those needing SMC per 100,000 persons
B6: Week | C6: Rate (Visits) | D6: 95% Confidence Limits
D7: Lower Limit | E7: Upper Limit
B8: 1 | C8: =Input_SMC_Option3!$C$19*Input_SMC_Option33!$I$14*Input_SMC_Option33!E18 -> 16060.14561 | D8: =Input_SMC_Option3!$D$19*Input_SMC_Option33!$I$14*Input_SMC_Option33!E18 -> 15880.15286 | E8: =Input_SMC_Option3!$E$19*Input_SMC_Option33!$I$14*Input_SMC_Option33!E18 -> 16229.64669
B9: 2 | C9: =Input_SMC_Option3!$C$19*Input_SMC_Option33!$I$14*Input_SMC_Option33!F18 -> 5892.60029 | D9: =Input_SMC_Option3!$D$19*Input_SMC_Option33!$I$14*Input_SMC_Option33!F18 -> 5826.559461 | E9: =Input_SMC_Option3!$E$19*Input_SMC_Option33!$I$14*Input_SMC_Option33!F18 -> 5954.791638
B10: 3 | C10: =Input_SMC_Option3!$C$19*Input_SMC_Option33!$I$14*Input_SMC_Option33!G18 -> 2292.012783 | D10: =Input_SMC_Option3!$D$19*Input_SMC_Option33!$I$14*Input_SMC_Option33!G18 -> 2266.32524 | E10: =Input_SMC_Option3!$E$19*Input_SMC_Option33!$I$14*Input_SMC_Option33!G18 -> 2316.203014
B11: 4 | C11: =Input_SMC_Option3!$C$19*Input_SMC_Option33!$I$14*Input_SMC_Option33!H18 -> 0 | D11: =Input_SMC_Option3!$D$19*Input_SMC_Option33!$I$14*Input_SMC_Option33!H18 -> 0 | E11: =Input_SMC_Option3!$E$19*Input_SMC_Option33!$I$14*Input_SMC_Option33!H18 -> 0
B12: Total Visits | C12: =Input_SMC_Option3!$C$19*Input_SMC_Option33!$I$14 -> 24244.75869 | D12: =Input_SMC_Option3!$D$19*Input_SMC_Option33!$I$14 -> 23973.03756 | E12: =Input_SMC_Option3!$E$19*Input_SMC_Option33!$I$14 -> 24500.64134
B13: Data source: National Health Interview Survey, 2014

Sheet Calculation_SN_Option4
B2: Calculation: Special Need Population
C3: Option 4
B6: Table 1
B7: Rate of special need population per 100,000 population
B8: by medical condition
B9: Medical Condition | C9: Rate | D9: 95% Confidence Limits
D10: LL | E10: UL
B11: Heart diseases | C11: =K67*100000 -> 1050.035345 | D11: =L67*100000 -> 955.0048804 | E11: 1141.284766
B12: Hypertension | C12: =K95*100000 -> 1653.971931 | D12: =L95*100000 -> 1549.645879 | E12: 1754.14709
B13: Stroke | C13: =K123*100000 -> 356.7912978 | D13: =L123*100000 -> 302.8807629 | E13: 408.5568567
B14: Respiratory problems | C14: =K179*100000 -> 440.8749263 | D14: =L179*100000 -> 384.0392526 | E14: 495.4492395
B15: Cancer | C15: =K207*100000 -> 506.9173458 | D15: =L207*100000 -> 441.6255019 | E15: 569.6113777
B16: Diabetes | C16: =K151*100000 -> 895.0795811 | D16: =L151*100000 -> 814.4696225 | E16: 972.4822551
B17: Musculoskeletal/connective tissue problems | C17: =K235*100000 -> 2046.165617 | D17: =L235*100000 -> 1914.305397 | E17: 2172.779423
B18: Total: At least with one condition | C18: =H31-H23 -> 2392.618171 | D18: =I31-I23 -> 2058.844455 | E18: 2716.445711 | G18: Table 3
B19: Other | C19: =H23 -> 135.8368257 | D19: 76.22150688 | E19: 152.1404635 | G19: Rate of special need population
B20: Total Special Needs | C20: =C18+C19 -> 2528.454997 | D20: =D18+D19 -> 2135.065961 | E20: 2868.586175 | G20: by number of selected medical condition (per 100,000)
G21: No. of Medical Condition | H21: Rate | I21: 95% Confidence Limits
B22: Table 2 | I22: LL | J22: UL | L22: % | M22: Cumulative % | N22: No. | O22: Cumulative_No.
B23: Rate of special need population per 100,000 population | G23: 0 | H23: =L268 -> 135.8368257 | I23: =M268 -> 92.33241052 | J23: 177.6103005 | L23: =H23/$H$31*100 -> 5.37232523 | M23: =L23 -> 5.37232523 | N23: =H23 -> 135.8368257 | O23: =N23 -> 135.8368257
B24: by age category | G24: 1 | H24: =L269 -> 380.0957503 | I24: =M269 -> 318.8586577 | J24: =N269 -> 438.8963601 | L24: =H24/$H$31*100 -> 15.03272753 | M24: =L24+M23 -> 20.40505276 | N24: =H24 -> 380.0957503 | O24: =N24+O23 -> 515.9325761
B25: Age category | C25: Rate | D25: 95% Confidence Limits | G25: 2 | H25: 567.6098162 | I25: 503.548347 | J25: 629.1224272 | L25: 22.44887953 | M25: =L25+M24 -> 42.85393229 | N25: 567.6098162 | O25: =N25+O24 -> 1083.542392
D26: LL | E26: UL | G26: 3 | H26: 692.222211 | I26: 617.5644687 | J26: 763.9094937 | L26: 27.37728027 | M26: 70.23121256 | N26: 692.222211 | O26: 1775.764603
B27: <5 Years | C27: =K356*100000 -> 7.433032608 | D27: =L356*100000 -> 0.120495211 | E27: 14.45443924 | G27: 4 | H27: 473.5923083 | I27: 408.9536509 | J27: 535.6591423 | L27: 18.73050178 | M27: 88.96171435 | N27: 473.5923083 | O27: 2249.356912
B28: 5-17 Years | C28: =K357*100000 -> 48.43473826 | D28: =L357*100000 -> 18.13412434 | E28: =M357*100000 -> 77.52976056 | G28: 5 | H28: 214.6177992 | I28: 170.5469302 | J28: 256.9351899 | L28: 8.48810042 | M28: 97.44981477 | N28: 214.6177992 | O28: 2463.974711
B29: 18-64 Years | C29: 1565.430489 | D29: 1449.624038 | E29: 1676.629269 | G29: 6 | H29: 60.96620209 | I29: 39.37239999 | J29: 81.70083654 | L29: 2.411203765 | M29: 99.86101853 | N29: 60.96620209 | O29: 2524.940913
B30: >=65 Years | C30: 907.1567363 | D30: 820.2763749 | E30: 990.5803283 | G30: 7 | H30: 3.514083863 | I30: 0 | J30: 10.22226146 | L30: 0.1389814676 | M30: 100 | N30: 3.514083863 | O30: 2528.454997
B31: Total Special Needs | C31: =SUM(C27:C30) -> 2528.454997 | D31: =SUM(D27:D30) -> 2288.155033 | E31: 2759.193797 | G31: Total | H31: =SUM(H23:H30) -> 2528.454997 | I31: =SUM(I23:I30) -> 2151.176865 | J31: 2894.056012 | L31: 100 | N31: 2528.454997
B33: Adjustment factors for Table 1 | G33: Adjustment factors for Table 1
B34: Sum of selected seven med condition | C34: 6949.836044 | D34: 6361.971297 | E34: 7514.311008 | G34: 0 | H34: 0.0537232523 | I34: 0.679730331 | J34: 1.307526877
B35: Ratio of at least with one condition to total | C35: 0.3442697289 | D35: 0.8604985449 | E35: 1.135344429 | G35: 1 | H35: 0.1503272753 | I35: 0.8388903517 | J35: 1.154699467
B36: Ratio of other than selected condition to at least one condition | C36: 0.05677329854 | D36: 0.5611255009 | E36: 1.120023695 | G36: 2 | H36: 0.2244887953 | I36: 0.8871381936 | J36: 1.108371295
B37: Ratio of total to at least one condition | C37: 1.056773299 | D37: 0.8444152513 | E37: 1.091256835 | G37: 3 | H37: 0.2737728027 | I37: 0.8921477221 | J37: 1.103561084
G38: 4 | H38: 0.1873050178 | I38: 0.8635141319 | J38: 1.13105541
G39: 5 | H39: 0.0848810042 | I39: 0.7946541751 | J39: 1.197175588
B40: Adjustment factors for Table 2 | G40: 6 | H40: 0.02411203765 | I40: 0.6458069987 | J40: 1.340100478
G41: 7 | H41: 0.001389814676 | I41: 0 | J41: 2.908940669
B42: <5 Years | C42: =C27/$C$31 -> 0.002939752781 | D42: =D27/C27 -> 0.0162107739 | E42: =E27/C27 -> 1.944622068 | G42: Total | H42: 1 | I42: 0.8507870885 | J42: 1.14459463
B43: 5-17 Years | C43: =C28/$C$31 -> 0.01915586329 | D43: =D28/C28 -> 0.374403269 | E43: =E28/C28 -> 1.600705678
B44: 18-64 Years | C44: =C29/$C$31 -> 0.6191253123 | D44: =D29/C29 -> 0.9260226167 | E44: =E29/C29 -> 1.071033994
B45: >=65 Years | C45: =C30/$C$31 -> 0.3587790716 | D45: =D30/C30 -> 0.9042278386 | E45: =E30/C30 -> 1.091961608 | G45: Adjustment factors for Table 1(Calculation)
B46: Total Special Needs | C46: =C31/$C$31 -> 1 | D46: =D31/C31 -> 0.9049617397 | E46: =E31/C31 -> 1.091256835 | G46: 0 | H46: =H23/$H$31 -> 0.0537232523 | I46: =I23/H23 -> 0.679730331 | J46: =J23/H23 -> 1.307526877
G47: 1 | H47: =H24/$H$31 -> 0.1503272753 | I47: =I24/H24 -> 0.8388903517 | J47: =J24/H24 -> 1.154699467
G48: 2 | H48: 0.2244887953 | I48: 0.8871381936 | J48: 1.108371295
B49: Adjustment factors and calculation for Table 1 (Calculation) | G49: 3 | H49: 0.2737728027 | I49: 0.8921477221 | J49: 1.103561084
B50: Sum of selected seven med condition | C50: =SUM(C11:C17) -> 6949.836044 | D50: =SUM(D11:D17) -> 6361.971297 | E50: =SUM(E11:E17) -> 7514.311008 | G50: 4 | H50: 0.1873050178 | I50: 0.8635141319 | J50: 1.13105541
B51: Ratio of at least with one condition to total | C51: =C18/C50 -> 0.3442697289 | D51: =D18/C18 -> 0.8604985449 | E51: =E18/C18 -> 1.135344429 | G51: 5 | H51: 0.0848810042 | I51: 0.7946541751 | J51: 1.197175588
B52: Ratio of other than selected condition to at least one condition | C52: =C19/C18 -> 0.05677329854 | D52: =D19/C19 -> 0.5611255009 | E52: =E19/C19 -> 1.120023695 | G52: 6 | H52: 0.02411203765 | I52: 0.6458069987 | J52: 1.340100478
B53: Ratio of total to at least one condition | C53: =C20/C18 -> 1.056773299 | D53: =D20/C20 -> 0.8444152513 | E53: =E31/C31 -> 1.091256835 | G53: 7 | H53: 0.001389814676 | I53: 0 | J53: 2.908940669
G54: Total | H54: 1 | I54: 0.8507870885 | J54: 1.14459463
B56: Updated: 01/20/2016
B59: Table of SMC4 by HEARTPROB
B60: Controlling for CHAD=1
B61: SMC4 | C61: HEARTPROB | D61: Frequency | E61: Weighted | F61: Std Dev of | G61: 95% Confidence Limits | I61: Percent | J61: Std Err of
E62: Frequency | F62: Wgt Freq | G62: for Wgt Freq | J62: Percent
B63: 0 | C63: 0 | D63: 44606 | E63: 124016747 | F63: 1338395 | G63: 121382915 | H63: 126650579 | I63: 88.8673 | J63: 0.1926
C64: 1 | D64: 4183 | E64: 12007456 | F64: 265603 | G64: 11484776 | H64: 12530136 | I64: 8.6042 | J64: 0.1718
C65: Total | D65: 48789 | E65: 136024203 | F65: 1432095 | G65: 133205979 | H65: 138842427 | I65: 97.4715 | J65: 0.0951
B66: 1 | C66: 0 | D66: 754 | E66: 2063175 | F66: 98959 | G66: 1868432 | H66: 2257918 | I66: 1.4784 | J66: 0.071 | K66: % | L66: LL (%) | M66: UL (%)
C67: 1 | D67: 534 | E67: 1465353 | F67: 81137 | G67: 1305684 | H67: 1625022 | I67: 1.05 | J67: 0.0587 | K67: =E67/E71 -> 0.01050035345 | L67: =G67/G71 -> 0.009550048804 | M67: =H67/H71 -> 0.01141284766
C68: Total | D68: 1288 | E68: 3528528 | F68: 131327 | G68: 3270089 | H68: 3786967 | I68: 2.5285 | J68: 0.0951
B69: Total | C69: 0 | D69: 45360 | E69: 126079922 | F69: 1346079 | G69: 123430969 | H69: 128728875 | I69: 90.3457 | J69: 0.1847
C70: 1 | D70: 4717 | E70: 13472809 | F70: 282734 | G70: 12916415 | H70: 14029203 | I70: 9.6543 | J70: 0.1847
C71: Total | D71: 50077 | E71: 139552731 | F71: 1439396 | G71: 136720139 | H71: 142385323 | I71: 100
B73: Table of SMC4 by HEARTPROB
B74: Controlling for CHAD=2
B75: SMC4 | C75: HEARTPROB | D75: Frequency | E75: Weighted | F75: Std Dev of | G75: 95% Confidence Limits | I75: Percent | J75: Std Err of
E76: Frequency | F76: Wgt Freq | G76: for Wgt Freq | J76: Percent
B77: 0 | C77: 0 | D77: 60343 | E77: 169946950 | F77: 2088926 | G77: 165836146 | H77: 174057754 | I77: 97.931 | J77: 0.0787
C78: 1 | D78: 0 | E78: . | F78: . | G78: . | H78: . | I78: . | J78: .
C79: Total | D79: 60343 | E79: 169946950 | F79: 2088926 | G79: 165836146 | H79: 174057754 | I79: 97.931 | J79: 0.0787
B80: 1 | C80: 0 | D80: 1262 | E80: 3590566 | F80: 143394 | G80: 3308380 | H80: 3872752 | I80: 2.069 | J80: 0.0787
C81: 1 | D81: 0 | E81: . | F81: . | G81: . | H81: . | I81: . | J81: .
C82: Total | D82: 1262 | E82: 3590566 | F82: 143394 | G82: 3308380 | H82: 3872752 | I82: 2.069 | J82: 0.0787
B83: Total | C83: 0 | D83: 61605 | E83: 173537516 | F83: 2128034 | G83: 169349751 | H83: 177725281 | I83: 100 | J83: 0
C84: 1 | D84: 0 | E84: . | F84: . | G84: . | H84: . | I84: . | J84: .
C85: Total | D85: 61605 | E85: 173537516 | F85: 2128034 | G85: 169349751 | H85: 177725281 | I85: 100
B87: Table of SMC4 by HYPERTENSION
B88: Controlling for CHAD=1
B89: SMC4 | C89: HYPERTENSION | D89: Frequency | E89: Weighted | F89: Std Dev of | G89: 95% Confidence Limits | I89: Percent | J89: Std Err of
E90: Frequency | F90: Wgt Freq | G90: for Wgt Freq | J90: Percent
B91: 0 | C91: 0 | D91: 37253 | E91: 103519383 | F91: 1195515 | G91: 101166725 | H91: 105872041 | I91: 74.1794 | J91: 0.2826
C92: 1 | D92: 11536 | E92: 32504820 | F92: 475093 | G92: 31569883 | H92: 33439757 | I92: 23.2921 | J92: 0.2679
C93: Total | D93: 48789 | E93: 136024203 | F93: 1432095 | G93: 133205979 | H93: 138842427 | I93: 97.4715 | J93: 0.0951
B94: 1 | C94: 0 | D94: 428 | E94: 1220365 | F94: 74208 | G94: 1074330 | H94: 1366400 | I94: 0.8745 | J94: 0.0529 | K94: % | L94: LL (%) | M94: UL (%)
C95: 1 | D95: 860 | E95: 2308163 | F95: 96288 | G95: 2118678 | H95: 2497648 | I95: 1.654 | J95: 0.0702 | K95: =E95/E99 -> 0.01653971931 | L95: =G95/G99 -> 0.01549645879 | M95: =H95/H99 -> 0.0175414709
C96: Total | D96: 1288 | E96: 3528528 | F96: 131327 | G96: 3270089 | H96: 3786967 | I96: 2.5285 | J96: 0.0951
B97: Total | C97: 0 | D97: 37681 | E97: 104739748 | F97: 1202441 | G97: 102373462 | H97: 107106034 | I97: 75.0539 | J97: 0.28
C98: 1 | D98: 12396 | E98: 34812983 | F98: 489604 | G98: 33849490 | H98: 35776476 | I98: 24.9461 | J98: 0.28
C99: Total | D99: 50077 | E99: 139552731 | F99: 1439396 | G99: 136720139 | H99: 142385323 | I99: 100
B101: Table of SMC4 by HYPERTENSION
B102: Controlling for CHAD=2
B103: SMC4 | C103: HYPERTENSION | D103: Frequency | E103: Weighted | F103: Std Dev of | G103: 95% Confidence Limits | I103: Percent | J103: Std Err of
E104: Frequency | F104: Wgt Freq | G104: for Wgt Freq | J104: Percent
B105: 0 | C105: 0 | D105: 60343 | E105: 169946950 | F105: 2088926 | G105: 165836146 | H105: 174057754 | I105: 97.931 | J105: 0.0787
C106: 1 | D106: 0 | E106: . | F106: . | G106: . | H106: . | I106: . | J106: .
C107: Total | D107: 60343 | E107: 169946950 | F107: 2088926 | G107: 165836146 | H107: 174057754 | I107: 97.931 | J107: 0.0787
B108: 1 | C108: 0 | D108: 1262 | E108: 3590566 | F108: 143394 | G108: 3308380 | H108: 3872752 | I108: 2.069 | J108: 0.0787
C109: 1 | D109: 0 | E109: . | F109: . | G109: . | H109: . | I109: . | J109: .
C110: Total | D110: 1262 | E110: 3590566 | F110: 143394 | G110: 3308380 | H110: 3872752 | I110: 2.069 | J110: 0.0787
B111: Total | C111: 0 | D111: 61605 | E111: 173537516 | F111: 2128034 | G111: 169349751 | H111: 177725281 | I111: 100 | J111: 0
C112: 1 | D112: 0 | E112: . | F112: . | G112: . | H112: . | I112: . | J112: .
C113: Total | D113: 61605 | E113: 173537516 | F113: 2128034 | G113: 169349751 | H113: 177725281 | I113: 100
B115: Table of SMC4 by STROKE
B116: Controlling for CHAD=1
B117: SMC4 | C117: STROKE | D117: Frequency | E117: Weighted | F117: Std Dev of | G117: 95% Confidence Limits | I117: Percent | J117: Std Err of
E118: Frequency | F118: Wgt Freq | G118: for Wgt Freq | J118: Percent
B119: 0 | C119: 0 | D119: 47798 | E119: 133335067 | F119: 1412565 | G119: 130555277 | H119: 136114857 | I119: 95.5446 | J119: 0.1222
C120: 1 | D120: 991 | E120: 2689136 | F120: 111808 | G120: 2469109 | H120: 2909163 | I120: 1.927 | J120: 0.0784
C121: Total | D121: 48789 | E121: 136024203 | F121: 1432095 | G121: 133205979 | H121: 138842427 | I121: 97.4715 | J121: 0.0951
B122: 1 | C122: 0 | D122: 1096 | E122: 3030616 | F122: 115101 | G122: 2804107 | H122: 3257125 | I122: 2.1717 | J122: 0.0837 | K122: % | L122: LL (%) | M122: UL (%)
C123: 1 | D123: 192 | E123: 497912 | F123: 42590 | G123: 414099 | H123: 581725 | I123: 0.3568 | J123: 0.0304 | K123: =E123/E127 -> 0.003567912978 | L123: =G123/G127 -> 0.003028807629 | M123: =H123/H127 -> 0.004085568567
C124: Total | D124: 1288 | E124: 3528528 | F124: 131327 | G124: 3270089 | H124: 3786967 | I124: 2.5285 | J124: 0.0951
B125: Total | C125: 0 | D125: 48894 | E125: 136365683 | F125: 1416515 | G125: 133578119 | H125: 139153247 | I125: 97.7162 | J125: 0.0821
C126: 1 | D126: 1183 | E126: 3187048 | F126: 117644 | G126: 2955535 | H126: 3418561 | I126: 2.2838 | J126: 0.0821
C127: Total | D127: 50077 | E127: 139552731 | F127: 1439396 | G127: 136720139 | H127: 142385323 | I127: 100
B129: Table of SMC4 by STROKE
B130: Controlling for CHAD=2
B131: SMC4 | C131: STROKE | D131: Frequency | E131: Weighted | F131: Std Dev of | G131: 95% Confidence Limits | I131: Percent | J131: Std Err of
E132: Frequency | F132: Wgt Freq | G132: for Wgt Freq | J132: Percent
B133: 0 | C133: 0 | D133: 60343 | E133: 169946950 | F133: 2088926 | G133: 165836146 | H133: 174057754 | I133: 97.931 | J133: 0.0787
C134: 1 | D134: 0 | E134: . | F134: . | G134: . | H134: . | I134: . | J134: .
C135: Total | D135: 60343 | E135: 169946950 | F135: 2088926 | G135: 165836146 | H135: 174057754 | I135: 97.931 | J135: 0.0787
B136: 1 | C136: 0 | D136: 1262 | E136: 3590566 | F136: 143394 | G136: 3308380 | H136: 3872752 | I136: 2.069 | J136: 0.0787
C137: 1 | D137: 0 | E137: . | F137: . | G137: . | H137: . | I137: . | J137: .
C138: Total | D138: 1262 | E138: 3590566 | F138: 143394 | G138: 3308380 | H138: 3872752 | I138: 2.069 | J138: 0.0787
B139: Total | C139: 0 | D139: 61605 | E139: 173537516 | F139: 2128034 | G139: 169349751 | H139: 177725281 | I139: 100 | J139: 0
C140: 1 | D140: 0 | E140: . | F140: . | G140: . | H140: . | I140: . | J140: .
C141: Total | D141: 61605 | E141: 173537516 | F141: 2128034 | G141: 169349751 | H141: 177725281 | I141: 100
B143: Table of SMC4 by DIABETES
B144: Controlling for CHAD=1
B145: SMC4 | C145: DIABETES | D145: Frequency | E145: Weighted | F145: Std Dev of | G145: 95% Confidence Limits | I145: Percent | J145: Std Err of
E146: Frequency | F146: Wgt Freq | G146: for Wgt Freq | J146: Percent
B147: 0 | C147: 0 | D147: 45409 | E147: 126960480 | F147: 1358905 | G147: 124286286 | H147: 129634674 | I147: 90.9767 | J147: 0.1719
C148: 1 | D148: 3380 | E148: 9063723 | F148: 209744 | G148: 8650967 | H148: 9476479 | I148: 6.4948 | J148: 0.1364
C149: Total | D149: 48789 | E149: 136024203 | F149: 1432095 | G149: 133205979 | H149: 138842427 | I149: 97.4715 | J149: 0.0951
B150: 1 | C150: 0 | D150: 836 | E150: 2279420 | F150: 101269 | G150: 2080132 | H150: 2478708 | I150: 1.6334 | J150: 0.0723 | K150: % | L150: LL (%) | M150: UL (%)
C151: 1 | D151: 452 | E151: 1249108 | F151: 68888 | G151: 1113544 | H151: 1384672 | I151: 0.8951 | J151: 0.0502 | K151: =E151/E155 -> 0.008950795811 | L151: =G151/G155 -> 0.008144696225 | M151: =H151/H155 -> 0.009724822551
C152: Total | D152: 1288 | E152: 3528528 | F152: 131327 | G152: 3270089 | H152: 3786967 | I152: 2.5285 | J152: 0.0951
B153: Total | C153: 0 | D153: 46245 | E153: 129239900 | F153: 1366390 | G153: 126550978 | H153: 131928822 | I153: 92.6101 | J153: 0.1461
C154: 1 | D154: 3832 | E154: 10312831 | F154: 221372 | G154: 9877192 | H154: 10748470 | I154: 7.3899 | J154: 0.1461
C155: Total | D155: 50077 | E155: 139552731 | F155: 1439396 | G155: 136720139 | H155: 142385323 | I155: 100
B157: Table of SMC4 by DIABETES
B158: Controlling for CHAD=2
B159: SMC4 | C159: DIABETES | D159: Frequency | E159: Weighted | F159: Std Dev of | G159: 95% Confidence Limits | I159: Percent | J159: Std Err of
E160: Frequency | F160: Wgt Freq | G160: for Wgt Freq | J160: Percent
B161: 0 | C161: 0 | D161: 60343 | E161: 169946950 | F161: 2088926 | G161: 165836146 | H161: 174057754 | I161: 97.931 | J161: 0.0787
C162: 1 | D162: 0 | E162: . | F162: . | G162: . | H162: . | I162: . | J162: .
C163: Total | D163: 60343 | E163: 169946950 | F163: 2088926 | G163: 165836146 | H163: 174057754 | I163: 97.931 | J163: 0.0787
B164: 1 | C164: 0 | D164: 1262 | E164: 3590566 | F164: 143394 | G164: 3308380 | H164: 3872752 | I164: 2.069 | J164: 0.0787
C165: 1 | D165: 0 | E165: . | F165: . | G165: . | H165: . | I165: . | J165: .
C166: Total | D166: 1262 | E166: 3590566 | F166: 143394 | G166: 3308380 | H166: 3872752 | I166: 2.069 | J166: 0.0787
B167: Total | C167: 0 | D167: 61605 | E167: 173537516 | F167: 2128034 | G167: 169349751 | H167: 177725281 | I167: 100 | J167: 0
C168: 1 | D168: 0 | E168: . | F168: . | G168: . | H168: . | I168: . | J168: .
C169: Total | D169: 61605 | E169: 173537516 | F169: 2128034 | G169: 169349751 | H169: 177725281 | I169: 100
B171: Table of SMC4 by RESPIRATORY
B172: Controlling for CHAD=1
B173: SMC4 | C173: RESPIRATORY | D173: Frequency | E173: Weighted | F173: Std Dev of | G173: 95% Confidence Limits | I173: Percent | J173: Std Err of
E174: Frequency | F174: Wgt Freq | G174: for Wgt Freq | J174: Percent
B175: 0 | C175: 0 | D175: 45683 | E175: 127577270 | F175: 1324000 | G175: 124971766 | H175: 130182774 | I175: 91.4187 | J175: 0.1666
C176: 1 | D176: 3106 | E176: 8446933 | F176: 225752 | G176: 8002675 | H176: 8891191 | I176: 6.0529 | J176: 0.1382
C177: Total | D177: 48789 | E177: 136024203 | F177: 1432095 | G177: 133205979 | H177: 138842427 | I177: 97.4715 | J177: 0.0951
B178: 1 | C178: 0 | D178: 1049 | E178: 2913275 | F178: 121253 | G178: 2674661 | H178: 3151889 | I178: 2.0876 | J178: 0.0878 | K178: % | L178: LL (%) | M178: UL (%)
C179: 1 | D179: 239 | E179: 615253 | F179: 45832 | G179: 525059 | H179: 705447 | I179: 0.4409 | J179: 0.0328 | K179: =E179/E183 -> 0.004408749263 | L179: =G179/G183 -> 0.003840392526 | M179: =H179/H183 -> 0.004954492395
C180: Total | D180: 1288 | E180: 3528528 | F180: 131327 | G180: 3270089 | H180: 3786967 | I180: 2.5285 | J180: 0.0951
B181: Total | C181: 0 | D181: 46732 | E181: 130490545 | F181: 1328214 | G181: 127876749 | H181: 133104341 | I181: 93.5063 | J181: 0.1426
C182: 1 | D182: 3345 | E182: 9062186 | F182: 233146 | G182: 8603378 | H182: 9520994 | I182: 6.4937 | J182: 0.1426
C183: Total | D183: 50077 | E183: 139552731 | F183: 1439396 | G183: 136720139 | H183: 142385323 | I183: 100
B185: Table of SMC4 by RESPIRATORY
B186: Controlling for CHAD=2
B187: SMC4 | C187: RESPIRATORY | D187: Frequency | E187: Weighted | F187: Std Dev of | G187: 95% Confidence Limits | I187: Percent | J187: Std Err of
E188: Frequency | F188: Wgt Freq | G188: for Wgt Freq | J188: Percent
B189: 0 | C189: 0 | D189: 60343 | E189: 169946950 | F189: 2088926 | G189: 165836146 | H189: 174057754 | I189: 97.931 | J189: 0.0787
C190: 1 | D190: 0 | E190: . | F190: . | G190: . | H190: . | I190: . | J190: .
C191: Total | D191: 60343 | E191: 169946950 | F191: 2088926 | G191: 165836146 | H191: 174057754 | I191: 97.931 | J191: 0.0787
B192: 1 | C192: 0 | D192: 1262 | E192: 3590566 | F192: 143394 | G192: 3308380 | H192: 3872752 | I192: 2.069 | J192: 0.0787
C193: 1 | D193: 0 | E193: . | F193: . | G193: . | H193: . | I193: . | J193: .
C194: Total | D194: 1262 | E194: 3590566 | F194: 143394 | G194: 3308380 | H194: 3872752 | I194: 2.069 | J194: 0.0787
B195: Total | C195: 0 | D195: 61605 | E195: 173537516 | F195: 2128034 | G195: 169349751 | H195: 177725281 | I195: 100 | J195: 0
C196: 1 | D196: 0 | E196: . | F196: . | G196: . | H196: . | I196: . | J196: .
C197: Total | D197: 61605 | E197: 173537516 | F197: 2128034 | G197: 169349751 | H197: 177725281 | I197: 100
B199: Table of SMC4 by CANCER
B200: Controlling for CHAD=1
B201: SMC4 | C201: CANCER | D201: Frequency | E201: Weighted | F201: Std Dev of | G201: 95% Confidence Limits | I201: Percent | J201: Std Err of
E202: Frequency | F202: Wgt Freq | G202: for Wgt Freq | J202: Percent
B203: 0 | C203: 0 | D203: 45585 | E203: 126770497 | F203: 1363581 | G203: 124087102 | H203: 129453892 | I203: 90.8406 | J203: 0.1772
C204: 1 | D204: 3204 | E204: 9253706 | F204: 221826 | G204: 8817174 | H204: 9690238 | I204: 6.631 | J204: 0.1471
C205: Total | D205: 48789 | E205: 136024203 | F205: 1432095 | G205: 133205979 | H205: 138842427 | I205: 97.4715 | J205: 0.0951
B206: 1 | C206: 0 | D206: 1044 | E206: 2821111 | F206: 116388 | G206: 2592070 | H206: 3050152 | I206: 2.0215 | J206: 0.083 | K206: % | L206: LL (%) | M206: UL (%)
C207: 1 | D207: 244 | E207: 707417 | F207: 52658 | G207: 603791 | H207: 811043 | I207: 0.5069 | J207: 0.0384 | K207: =E207/E211 -> 0.005069173458 | L207: =G207/G211 -> 0.004416255019 | M207: =H207/H211 -> 0.005696113777
C208: Total | D208: 1288 | E208: 3528528 | F208: 131327 | G208: 3270089 | H208: 3786967 | I208: 2.5285 | J208: 0.0951
B209: Total | C209: 0 | D209: 46629 | E209: 129591608 | F209: 1374492 | G209: 126886741 | H209: 132296475 | I209: 92.8621 | J209: 0.1523
C210: 1 | D210: 3448 | E210: 9961123 | F210: 226503 | G210: 9515387 | H210: 10406859 | I210: 7.1379 | J210: 0.1523
C211: Total | D211: 50077 | E211: 139552731 | F211: 1439396 | G211: 136720139 | H211: 142385323 | I211: 100
B213: Table of SMC4 by CANCER
B214: Controlling for CHAD=2
B215: SMC4 | C215: CANCER | D215: Frequency | E215: Weighted | F215: Std Dev of | G215: 95% Confidence Limits | I215: Percent | J215: Std Err of
E216: Frequency | F216: Wgt Freq | G216: for Wgt Freq | J216: Percent
B217: 0 | C217: 0 | D217: 60343 | E217: 169946950 | F217: 2088926 | G217: 165836146 | H217: 174057754 | I217: 97.931 | J217: 0.0787
C218: 1 | D218: 0 | E218: . | F218: . | G218: . | H218: . | I218: . | J218: .
... 209 more rows

Sheet Input_SMC_Option4
B2: Special Medical Care (SMC)
B3: Input Worksheet for Option 4: Medical Condition
B5: Step 8: Enter the rate of those needing SMC per 100,000 persons by medical condition
B6: Medical Conditions | C6: Rate (No.) | D6: 95% Confidence Limits
D7: Lower Limit | E7: Upper Limit
B8: Heart diseases | C8: =Calculation_SN_Option4!C11 -> 1050.035345 | D8: =Calculation_SN_Option4!D11 -> 955.0048804 | E8: =Calculation_SN_Option4!E11 -> 1141.284766
B9: Hypertension | C9: =Calculation_SN_Option4!C12 -> 1653.971931 | D9: =Calculation_SN_Option4!D12 -> 1549.645879 | E9: =Calculation_SN_Option4!E12 -> 1754.14709
B10: Stroke | C10: =Calculation_SN_Option4!C13 -> 356.7912978 | D10: =Calculation_SN_Option4!D13 -> 302.8807629 | E10: =Calculation_SN_Option4!E13 -> 408.5568567
B11: Respiratory problems | C11: =Calculation_SN_Option4!C14 -> 440.8749263 | D11: =Calculation_SN_Option4!D14 -> 384.0392526 | E11: =Calculation_SN_Option4!E14 -> 495.4492395 | G11: Additional Intermediate Results for Option 4:
B12: Cancer | C12: =Calculation_SN_Option4!C15 -> 506.9173458 | D12: =Calculation_SN_Option4!D15 -> 441.6255019 | E12: =Calculation_SN_Option4!E15 -> 569.6113777 | G12: Distribution by:
B13: Diabetes | C13: =Calculation_SN_Option4!C16 -> 895.0795811 | D13: =Calculation_SN_Option4!D16 -> 814.4696225 | E13: =Calculation_SN_Option4!E16 -> 972.4822551
B14: Musculoskeletal/connective tissue problems | C14: =Calculation_SN_Option4!C17 -> 2046.165617 | D14: =Calculation_SN_Option4!D17 -> 1914.305397 | E14: =Calculation_SN_Option4!E17 -> 2172.779423
B16: Intermediate results: Subtotal and total
B17: At least one of the above medical conditions | C17: =SUM(C8:C14)*Calculation_SN_Option4!C35 -> 2392.618171 | D17: =C17*Calculation_SN_Option4!D35 -> 2058.844455 | E17: =C17*Calculation_SN_Option4!E35 -> 2716.445711
B18: Other | C18: =C17*Calculation_SN_Option4!C36 -> 135.8368257 | D18: =C18*Calculation_SN_Option4!D36 -> 76.22150688 | E18: =C18*Calculation_SN_Option4!E36 -> 152.1404635
B19: Total | C19: =C17*Calculation_SN_Option4!C37 -> 2528.454997 | D19: =C19*Calculation_SN_Option4!D37 -> 2135.065961 | E19: =C19*Calculation_SN_Option4!E37 -> 2759.193797
B20: Data source: National Health Interview Survey, NCHS, CDC, 2014
B22: Notes: 1. The rates in the WHITE cells are national estimates per 100,000 persons. MedCon:PreEvent calculates the rates in the Gold
B23: colored cells based on weights derived from national estimates. 2. If you enter your own rates, they MUST be per 100,000 population
B24: 3. Other= Persons who do not have any of the listed seven medical conditions but need SMC

Sheet Input_SMC_Option44
B2: "Special Medical Care"
B3: Input Worksheet for Option 4: Clinical Visits
B5: Step9: Determine the number of clinical visits by those needing "Special Medical Care" in the first month following an event
F6: Number of Office visits by those needing "Special Medical Care" in past 12 months due to pre-existing medical conditions
F8: <6 | G8: 6-12 | H8: >12
B9: Proportion of total office visits before an event in past 12 months* | F9: ='Input_Special Needs'!D22 -> 0.8483 | G9: ='Input_Special Needs'!E22 -> 0.1517 | H9: ='Input_Special Needs'!F22 -> 0 | I9: =F9+G9+H9 -> 1 | J9: Note: The sum of the proportions must be 1
B10: Assumption: Number of clinical visits in the first month following an event | F10: 1 | G10: 1.5 | H10: 2
B11: *Data source: National Health Interview Survey, 2014
B13: Intermediate results:
B14: Average number of clinical visits by those needing "Special Medical Care" in the first month following disaster | I14: =(F9*F10+G9*G10+H9*H10) -> 1.07585
B16: Step 10: Determine distribution of clinical visits by week among those needing "Special Medical Care"
B17: Week | E17: 1 | F17: 2 | G17: 3 | H17: 4
B18: Proportion | E18: =Distribution!H41 -> 0.6624172185 | F18: =Distribution!O41-Distribution!H41 -> 0.2430463576 | G18: =Distribution!S41-Distribution!O41 -> 0.09453642384 | H18: =1-E18-F18-G18 -> 0 | I18: =SUM(E18:H18) -> 1 | J18: Note: The sum of the proportions must be 1
B19: Cum_Proportion | E19: =E18 -> 0.6624172185 | F19: =E19+F18 -> 0.9054635762 | G19: =F19+G18 -> 1 | H19: =G19+H18 -> 1
B21: Additional Intermediate Results for Option 1:Distribution by

Sheet Input_SMC_Option4_NoMedCon
B2: Special Medical Care (SMC)
B3: Intermediate Results for Option 4: No. of Medical Conditions
B5: Step 8.1: Rate of those needing SMC by number of the selected medical condition per 100,000 persons
B6: No. of Medical Conditions | C6: Rate (No.) | D6: 95% Confidence Limits
D7: Lower Limit | E7: Upper Limit
B8: Other | C8: =Input_SMC_Option4!$C$19*Calculation_SN_Option4!H34 -> 135.8368257 | D8: =C8*Calculation_SN_Option4!I34 -> 92.33241052 | E8: =C8*Calculation_SN_Option4!J34 -> 177.6103005
B9: 1 | C9: =Input_SMC_Option4!$C$19*Calculation_SN_Option4!H35 -> 380.0957503 | D9: =C9*Calculation_SN_Option4!I35 -> 318.8586577 | E9: =C9*Calculation_SN_Option4!J35 -> 438.8963601
B10: 2 | C10: =Input_SMC_Option4!$C$19*Calculation_SN_Option4!H36 -> 567.6098162 | D10: =C10*Calculation_SN_Option4!I36 -> 503.548347 | E10: =C10*Calculation_SN_Option4!J36 -> 629.1224272
B11: 3 | C11: =Input_SMC_Option4!$C$19*Calculation_SN_Option4!H37 -> 692.222211 | D11: =C11*Calculation_SN_Option4!I37 -> 617.5644687 | E11: =C11*Calculation_SN_Option4!J37 -> 763.9094937
B12: 4 | C12: =Input_SMC_Option4!$C$19*Calculation_SN_Option4!H38 -> 473.5923083 | D12: =C12*Calculation_SN_Option4!I38 -> 408.9536509 | E12: =C12*Calculation_SN_Option4!J38 -> 535.6591423
B13: 5 | C13: =Input_SMC_Option4!$C$19*Calculation_SN_Option4!H39 -> 214.6177992 | D13: =C13*Calculation_SN_Option4!I39 -> 170.5469302 | E13: =C13*Calculation_SN_Option4!J39 -> 256.9351899
B14: 6 | C14: =Input_SMC_Option4!$C$19*Calculation_SN_Option4!H40 -> 60.96620209 | D14: =C14*Calculation_SN_Option4!I40 -> 39.37239999 | E14: =C14*Calculation_SN_Option4!J40 -> 81.70083654
B15: 7 | C15: =Input_SMC_Option4!$C$19*Calculation_SN_Option4!H41 -> 3.514083863 | D15: =C15*Calculation_SN_Option4!I41 -> 0 | E15: =C15*Calculation_SN_Option4!J41 -> 10.22226146
B16: Total | C16: =Input_SMC_Option4!$C$19*Calculation_SN_Option4!H42 -> 2528.454997 | D16: =C16*Calculation_SN_Option4!I42 -> 2151.176865 | E16: =C16*Calculation_SN_Option4!J42 -> 2894.056012
B17: Data source: National Health Interview Survey, 2014
B19: Note: 1. Values in Yellow cells are estimated based on weights derived from national
B20: estimates of the distribution of "Special Medical Care" needs with Option 4
B21: 2. "Others" includes other than seven selected medical conditions
B22: 3. Other= Persons who do not have any of the listed seven medical conditions but need SMC

Sheet Input_SMC_Option4_Age
B2: Special Medical Care (SMC)
B3: Intermediate Results for Option 4: Age Category
B5: Step 8.2: Rates of those needing SMC per 100,000 persons by age category
B6: Age Category (Yrs.) | C6: Rate (No.) | D6: 95% Confidence Limits
D7: Lower Limit | E7: Upper Limit
B8: <5 | C8: =Input_SMC_Option4!$C$19*Calculation_SN_Option4!C42 -> 7.433032608 | D8: =C8*Calculation_SN_Option4!D42 -> 0.120495211 | E8: =C8*Calculation_SN_Option4!E42 -> 14.45443924
B9: 5-17 | C9: =Input_SMC_Option4!$C$19*Calculation_SN_Option4!C43 -> 48.43473826 | D9: =C9*Calculation_SN_Option4!D43 -> 18.13412434 | E9: =C9*Calculation_SN_Option4!E43 -> 77.52976056
B10: 18-64 | C10: =Input_SMC_Option4!$C$19*Calculation_SN_Option4!C44 -> 1565.430489 | D10: =C10*Calculation_SN_Option4!D44 -> 1449.624038 | E10: =C10*Calculation_SN_Option4!E44 -> 1676.629269
B11: ≥65 | C11: =Input_SMC_Option4!$C$19*Calculation_SN_Option4!C45 -> 907.1567363 | D11: =C11*Calculation_SN_Option4!D45 -> 820.2763749 | E11: =C11*Calculation_SN_Option4!E45 -> 990.5803283
B12: Total | C12: =Input_SMC_Option4!$C$19*Calculation_SN_Option4!C46 -> 2528.454997 | D12: =C12*Calculation_SN_Option4!D46 -> 2288.155033 | E12: =C12*Calculation_SN_Option4!E46 -> 2759.193797
B13: Data source: National Health Interview Survey, 2014
B15: Note: Values in Gold cells are estimated based on weights derived from national estimates of the distribution of SMC needs with option 4

Sheet Input_SMC_Option4_ClinicalVisit
B2: "Special Medical Care"
B3: Intermediate Results for Option 4: Clinical Visits
B5: Step 10.1: Distribution of clinical visits by week among those needing "Special Medical Care" per 100,000 persons
B6: Week | C6: Rate (Visit) | D6: 95% Confidence Limits
D7: LL | E7: UL
B8: 1 | C8: =Input_SMC_Option4!$C$19*Input_SMC_Option44!$I$14*Input_SMC_Option44!E18 -> 1801.932694 | D8: =Input_SMC_Option4!$D$19*Input_SMC_Option44!$I$14*Input_SMC_Option44!E18 -> 1521.579449 | E8: =Input_SMC_Option4!$E$19*Input_SMC_Option44!$I$14*Input_SMC_Option44!E18 -> 1966.371368
B9: 2 | C9: =Input_SMC_Option4!$C$19*Input_SMC_Option44!$I$14*Input_SMC_Option44!F18 -> 661.1440127 | D9: =Input_SMC_Option4!$D$19*Input_SMC_Option44!$I$14*Input_SMC_Option44!F18 -> 558.2800876 | E9: =Input_SMC_Option4!$E$19*Input_SMC_Option44!$I$14*Input_SMC_Option44!F18 -> 721.4779227
B10: 3 | C10: =Input_SMC_Option4!$C$19*Input_SMC_Option44!$I$14*Input_SMC_Option44!G18 -> 257.1616017 | D10: =Input_SMC_Option4!$D$19*Input_SMC_Option44!$I$14*Input_SMC_Option44!G18 -> 217.1511785 | E10: =Input_SMC_Option4!$E$19*Input_SMC_Option44!$I$14*Input_SMC_Option44!G18 -> 280.6293555
B11: 4 | C11: =Input_SMC_Option4!$C$19*Input_SMC_Option44!$I$14*Input_SMC_Option44!H18 -> 0 | D11: =Input_SMC_Option4!$D$19*Input_SMC_Option44!$I$14*Input_SMC_Option44!H18 -> 0 | E11: =Input_SMC_Option4!$E$19*Input_SMC_Option44!$I$14*Input_SMC_Option44!H18 -> 0
B12: Total Visits | C12: =Input_SMC_Option4!$C$19*Input_SMC_Option44!$I$14 -> 2720.238308 | D12: =Input_SMC_Option4!$D$19*Input_SMC_Option44!$I$14 -> 2297.010715 | E12: =Input_SMC_Option4!$E$19*Input_SMC_Option44!$I$14 -> 2968.478646
B13: Data source: National Health Interview Survey, 2014

Sheet Calculation_SN_Option5
B2: Calculation: Special Need Population
C3: Option 5
B6: Table 1
B7: Rate of special need population per 100,000 population
B8: by medical condition
B9: Medical Condition | C9: Rate | D9: 95% Confidence Limits
D10: LL | E10: UL
B11: Heart diseases | C11: =K67*100000 -> 1122.541271 | D11: =L67*100000 -> 1027.304397 | E11: 1213.988888
B12: Hypertension | C12: =K95*100000 -> 1804.456267 | D12: =L95*100000 -> 1691.627888 | E12: 1912.795464
B13: Stroke | C13: =K123*100000 -> 349.8233223 | D13: =L123*100000 -> 295.8327888 | E13: 401.665697
B14: Respiratory problems | C14: =K179*100000 -> 439.486204 | D14: =L179*100000 -> 380.9116958 | E14: 495.7301674
B15: Cancer | C15: =K207*100000 -> 681.1217474 | D15: =L207*100000 -> 601.9222962 | E15: 757.170035
B16: Diabetes | C16: =K151*100000 -> 933.0602065 | D16: =L151*100000 -> 844.0168423 | E16: 1018.56074
B17: Musculoskeletal/connective tissue problems | C17: =K235*100000 -> 2353.356309 | D17: =L235*100000 -> 2220.81474 | E17: 2480.624355
B18: Total: At least with one condition | C18: =H31-H23 -> 2698.621498 | D18: =I31-I23 -> 2342.30818 | E18: 3043.608645 | G18: Table 3
B19: Other | C19: =K327*100000 -> 159.0746368 | D19: =L327*100000 -> 123.0023618 | E19: 193.7116791 | G19: Rate of special need population
B20: Total Special Needs | C20: =C18+C19 -> 2857.696135 | D20: =D18+D19 -> 2465.310542 | E20: 3237.320324 | G20: by number of selected medical condition (per 100,000)
G21: No. of Medical Condition | H21: Rate | I21: 95% Confidence Limits
B22: Table 2 | I22: LL | J22: UL | L22: % | M22: Cumulative % | N22: No. | O22: Cumulative_No.
B23: Rate of special need population per 100,000 population | G23: 0 | H23: =L268 -> 159.0746368 | I23: =M268 -> 123.0023618 | J23: 193.7116791 | L23: =H23/$H$31*100 -> 5.566534344 | M23: =L23 -> 5.566534344 | N23: =H23 -> 159.0746368 | O23: =N23 -> 159.0746368
B24: by age category | G24: 1 | H24: =L269 -> 447.7726774 | I24: =M269 -> 380.3104676 | J24: =N269 -> 512.5507213 | L24: =H24/$H$31*100 -> 15.66900945 | M24: =L24+M23 -> 21.23554379 | N24: =H24 -> 447.7726774 | O24: =N24+O23 -> 606.8473142
B25: Age category | C25: Rate | D25: 95% Confidence Limits | G25: 2 | H25: 671.3397819 | I25: 599.9116195 | J25: 739.9259824 | L25: 23.49234314 | M25: =L25+M24 -> 44.72788693 | N25: 671.3397819 | O25: =N25+O24 -> 1278.187096
D26: LL | E26: UL | G26: 3 | H26: 773.4022776 | I26: 696.7656755 | J26: 846.9896859 | L26: 27.06383888 | M26: 71.79172581 | N26: 773.4022776 | O26: 2051.589374
B27: <5 Years | C27: =K356*100000 -> 21.78101409 | D27: =L356*100000 -> 7.703327452 | E27: 35.298582 | G27: 4 | H27: 521.5039468 | I27: 453.7824526 | J27: 586.5309587 | L27: 18.24910425 | M27: 90.04083006 | N27: 521.5039468 | O27: 2573.093321
B28: 5-17 Years | C28: =K357*100000 -> 65.37385499 | D28: =L357*100000 -> 35.01605568 | E28: =M357*100000 -> 94.5237874 | G28: 5 | H28: 224.5495289 | I28: 176.962225 | J28: 270.2434436 | L28: 7.857711887 | M28: 97.89854195 | N28: 224.5495289 | O28: 2797.642849
B29: 18-64 Years | C29: 1773.356911 | D29: 1651.054495 | E29: 1890.793196 | G29: 6 | H29: 55.950177 | I29: 34.57574015 | J29: 76.47417424 | L29: 1.957877057 | M29: 99.85641901 | N29: 55.950177 | O29: 2853.593026
B30: >=65 Years | C30: 997.1843546 | D30: 907.4391008 | E30: 1083.358852 | G30: 7 | H30: 4.103108523 | I30: 0 | J30: 10.89367898 | L30: 0.1435809942 | M30: 100 | N30: 4.103108523 | O30: 2857.696135
B31: Total Special Needs | C31: =SUM(C27:C30) -> 2857.696135 | D31: =SUM(D27:D30) -> 2601.212979 | E31: 3103.974417 | G31: Total | H31: =SUM(H23:H30) -> 2857.696135 | I31: =SUM(I23:I30) -> 2465.310542 | J31: 3237.320324 | L31: 100 | N31: 2857.696135
B33: Adjustment factors for Table 1 | G33: Adjustment factors for Table 1
B34: Sum of selected seven med condition | C34: 7683.845327 | D34: 7062.430649 | E34: 8280.535347 | G34: 0 | H34: 0.05566534344 | I34: 0.7732367915 | J34: 1.217740823
B35: Ratio of at least with one condition to total | C35: 0.3512071604 | D35: 0.8679646931 | E35: 1.127838286 | G35: 1 | H35: 0.1566900945 | I35: 0.8493382621 | J35: 1.144667254
B36: Ratio of other than selected condition to at least one condition | C36: 0.05894662772 | D36: 0.7732367915 | E36: 1.217740823 | G36: 2 | H36: 0.2349234314 | I36: 0.8936035605 | J36: 1.10216317
B37: Ratio of total to at least one condition | C37: 1.058946628 | D37: 0.8626916319 | E37: 1.08618071 | G37: 3 | H37: 0.2706383888 | I37: 0.9009097796 | J37: 1.095147649
G38: 4 | H38: 0.1824910425 | I38: 0.8701419336 | J38: 1.124691313
G39: 5 | H39: 0.07857711887 | I39: 0.7880765811 | J39: 1.203491474
B40: Adjustment factors for Table 2 | G40: 6 | H40: 0.01957877057 | I40: 0.6179737404 | J40: 1.366826315
G41: 7 | H41: 0.001435809942 | I41: 0 | J41: 2.654981928
B42: <5 Years | C42: =C27/$C$31 -> 0.007621878975 | D42: =D27/C27 -> 0.353671662 | E42: =E27/C27 -> 1.620612422 | G42: Total | H42: 1 | I42: 0.8626916319 | J42: 1.132842742
B43: 5-17 Years | C43: =C28/$C$31 -> 0.02287641929 | D43: =D28/C28 -> 0.5356278238 | E43: =E28/C28 -> 1.445895877
B44: 18-64 Years | C44: =C29/$C$31 -> 0.6205547502 | D44: =D29/C29 -> 0.9310333888 | E44: =E29/C29 -> 1.066222589
B45: >=65 Years | C45: =C30/$C$31 -> 0.3489469515 | D45: =D30/C30 -> 0.9100013419 | E45: =E30/C30 -> 1.086417819 | G45: Adjustment factors for Table 1(Calculation)
B46: Total Special Needs | C46: =C31/$C$31 -> 1 | D46: =D31/C31 -> 0.9102482754 | E46: =E31/C31 -> 1.08618071 | G46: 0 | H46: =H23/$H$31 -> 0.05566534344 | I46: =I23/H23 -> 0.7732367915 | J46: =J23/H23 -> 1.217740823
G47: 1 | H47: =H24/$H$31 -> 0.1566900945 | I47: =I24/H24 -> 0.8493382621 | J47: =J24/H24 -> 1.144667254
G48: 2 | H48: 0.2349234314 | I48: 0.8936035605 | J48: 1.10216317
B49: Adjustment factors and calculation for Table 1 (Calculation) | G49: 3 | H49: 0.2706383888 | I49: 0.9009097796 | J49: 1.095147649
B50: Sum of selected seven med condition | C50: =SUM(C11:C17) -> 7683.845327 | D50: =SUM(D11:D17) -> 7062.430649 | E50: =SUM(E11:E17) -> 8280.535347 | G50: 4 | H50: 0.1824910425 | I50: 0.8701419336 | J50: 1.124691313
B51: Ratio of at least with one condition to total | C51: =C18/C50 -> 0.3512071604 | D51: =D18/C18 -> 0.8679646931 | E51: =E18/C18 -> 1.127838286 | G51: 5 | H51: 0.07857711887 | I51: 0.7880765811 | J51: 1.203491474
B52: Ratio of other than selected condition to at least one condition | C52: =C19/C18 -> 0.05894662772 | D52: =D19/C19 -> 0.7732367915 | E52: =E19/C19 -> 1.217740823 | G52: 6 | H52: 0.01957877057 | I52: 0.6179737404 | J52: 1.366826315
B53: Ratio of total to at least one condition | C53: =C20/C18 -> 1.058946628 | D53: =D20/C20 -> 0.8626916319 | E53: =E31/C31 -> 1.08618071 | G53: 7 | H53: 0.001435809942 | I53: 0 | J53: 2.654981928
G54: Total | H54: 1 | I54: 0.8626916319 | J54: 1.132842742
B56: Updated: 01/20/2016
B59: Table of SMC5 by HEARTPROB
B60: Controlling for CHAD=1
B61: SMC5 | C61: HEARTPROB | D61: Frequency | E61: Weighted | F61: Std Dev of | G61: 95% Confidence Limits | I61: Percent | J61: Std Err of
E62: Frequency | F62: Wgt Freq | G62: for Wgt Freq | J62: Percent
B63: 0 | C63: 0 | D63: 44464 | E63: 123658466 | F63: 1334361 | G63: 121032573 | H63: 126284359 | I63: 88.6106 | J63: 0.1865
C64: 1 | D64: 4136 | E64: 11906272 | F64: 258304 | G64: 11397954 | H64: 12414590 | I64: 8.5317 | J64: 0.1659
C65: Total | D65: 48600 | E65: 135564738 | F65: 1429961 | G65: 132750713 | H65: 138378763 | I65: 97.1423 | J65: 0.0961
B66: 1 | C66: 0 | D66: 896 | E66: 2421456 | F66: 104954 | G66: 2214917 | H66: 2627995 | I66: 1.7352 | J66: 0.0753 | K66: % | L66: LL (%) | M66: UL (%)
C67: 1 | D67: 581 | E67: 1566537 | F67: 82324 | G67: 1404532 | H67: 1728542 | I67: 1.1225 | J67: 0.0597 | K67: =E67/E71 -> 0.01122541271 | L67: =G67/G71 -> 0.01027304397 | M67: =H67/H71 -> 0.01213988888
C68: Total | D68: 1477 | E68: 3987993 | F68: 132562 | G68: 3727123 | H68: 4248863 | I68: 2.8577 | J68: 0.0961
B69: Total | C69: 0 | D69: 45360 | E69: 126079922 | F69: 1346079 | G69: 123430969 | H69: 128728875 | I69: 90.3457 | J69: 0.1847
C70: 1 | D70: 4717 | E70: 13472809 | F70: 282734 | G70: 12916415 | H70: 14029203 | I70: 9.6543 | J70: 0.1847
C71: Total | D71: 50077 | E71: 139552731 | F71: 1439396 | G71: 136720139 | H71: 142385323 | I71: 100
B73: Table of SMC5 by HEARTPROB
B74: Controlling for CHAD=2
B75: SMC5 | C75: HEARTPROB | D75: Frequency | E75: Weighted | F75: Std Dev of | G75: 95% Confidence Limits | I75: Percent | J75: Std Err of
E76: Frequency | F76: Wgt Freq | G76: for Wgt Freq | J76: Percent
B77: 0 | C77: 0 | D77: 61605 | E77: 173537516 | F77: 2128034 | G77: 169349751 | H77: 177725281 | I77: 100 | J77: 0
C78: 1 | D78: 0 | E78: . | F78: . | G78: . | H78: . | I78: . | J78: .
C79: Total | D79: 61605 | E79: 173537516 | F79: 2128034 | G79: 169349751 | H79: 177725281 | I79: 100 | J79: 0
B80: 1 | C80: 0 | D80: 0 | E80: . | F80: . | G80: . | H80: . | I80: . | J80: .
C81: 1 | D81: 0 | E81: . | F81: . | G81: . | H81: . | I81: . | J81: .
C82: Total | D82: 0 | E82: . | F82: . | G82: . | H82: . | I82: . | J82: .
B83: Total | C83: 0 | D83: 61605 | E83: 173537516 | F83: 2128034 | G83: 169349751 | H83: 177725281 | I83: 100 | J83: 0
C84: 1 | D84: 0 | E84: . | F84: . | G84: . | H84: . | I84: . | J84: .
C85: Total | D85: 61605 | E85: 173537516 | F85: 2128034 | G85: 169349751 | H85: 177725281 | I85: 100
B87: Table of SMC5 by HYPERTENSION
B88: Controlling for CHAD=1
B89: SMC5 | C89: HYPERTENSION | D89: Frequency | E89: Weighted | F89: Std Dev of | G89: 95% Confidence Limits | I89: Percent | J89: Std Err of
E90: Frequency | F90: Wgt Freq | G90: for Wgt Freq | J90: Percent
B91: 0 | C91: 0 | D91: 37146 | E91: 103269923 | F91: 1192392 | G91: 100923412 | H91: 105616434 | I91: 74.0006 | J91: 0.2791
C92: 1 | D92: 11454 | E92: 32294815 | F92: 476920 | G92: 31356282 | H92: 33233348 | I92: 23.1417 | J92: 0.2698
C93: Total | D93: 48600 | E93: 135564738 | F93: 1429961 | G93: 132750713 | H93: 138378763 | I93: 97.1423 | J93: 0.0961
B94: 1 | C94: 0 | D94: 535 | E94: 1469825 | F94: 83675 | G94: 1305161 | H94: 1634489 | I94: 1.0532 | J94: 0.0597 | K94: % | L94: LL (%) | M94: UL (%)
C95: 1 | D95: 942 | E95: 2518168 | F95: 104361 | G95: 2312796 | H95: 2723540 | I95: 1.8045 | J95: 0.0761 | K95: =E95/E99 -> 0.01804456267 | L95: =G95/G99 -> 0.01691627888 | M95: =H95/H99 -> 0.01912795464
C96: Total | D96: 1477 | E96: 3987993 | F96: 132562 | G96: 3727123 | H96: 4248863 | I96: 2.8577 | J96: 0.0961
B97: Total | C97: 0 | D97: 37681 | E97: 104739748 | F97: 1202441 | G97: 102373462 | H97: 107106034 | I97: 75.0539 | J97: 0.28
C98: 1 | D98: 12396 | E98: 34812983 | F98: 489604 | G98: 33849490 | H98: 35776476 | I98: 24.9461 | J98: 0.28
C99: Total | D99: 50077 | E99: 139552731 | F99: 1439396 | G99: 136720139 | H99: 142385323 | I99: 100
B101: Table of SMC5 by HYPERTENSION
B102: Controlling for CHAD=2
B103: SMC5 | C103: HYPERTENSION | D103: Frequency | E103: Weighted | F103: Std Dev of | G103: 95% Confidence Limits | I103: Percent | J103: Std Err of
E104: Frequency | F104: Wgt Freq | G104: for Wgt Freq | J104: Percent
B105: 0 | C105: 0 | D105: 61605 | E105: 173537516 | F105: 2128034 | G105: 169349751 | H105: 177725281 | I105: 100 | J105: 0
C106: 1 | D106: 0 | E106: . | F106: . | G106: . | H106: . | I106: . | J106: .
C107: Total | D107: 61605 | E107: 173537516 | F107: 2128034 | G107: 169349751 | H107: 177725281 | I107: 100 | J107: 0
B108: 1 | C108: 0 | D108: 0 | E108: . | F108: . | G108: . | H108: . | I108: . | J108: .
C109: 1 | D109: 0 | E109: . | F109: . | G109: . | H109: . | I109: . | J109: .
C110: Total | D110: 0 | E110: . | F110: . | G110: . | H110: . | I110: . | J110: .
B111: Total | C111: 0 | D111: 61605 | E111: 173537516 | F111: 2128034 | G111: 169349751 | H111: 177725281 | I111: 100 | J111: 0
C112: 1 | D112: 0 | E112: . | F112: . | G112: . | H112: . | I112: . | J112: .
C113: Total | D113: 61605 | E113: 173537516 | F113: 2128034 | G113: 169349751 | H113: 177725281 | I113: 100
B115: Table of SMC5 by STROKE
B116: Controlling for CHAD=1
B117: SMC5 | C117: STROKE | D117: Frequency | E117: Weighted | F117: Std Dev of | G117: 95% Confidence Limits | I117: Percent | J117: Std Err of
E118: Frequency | F118: Wgt Freq | G118: for Wgt Freq | J118: Percent
B119: 0 | C119: 0 | D119: 47618 | E119: 132865878 | F119: 1409692 | G119: 130091742 | H119: 135640014 | I119: 95.2084 | J119: 0.1247
C120: 1 | D120: 982 | E120: 2698860 | F120: 109844 | G120: 2482699 | H120: 2915021 | I120: 1.9339 | J120: 0.0767
C121: Total | D121: 48600 | E121: 135564738 | F121: 1429961 | G121: 132750713 | H121: 138378763 | I121: 97.1423 | J121: 0.0961
B122: 1 | C122: 0 | D122: 1276 | E122: 3499805 | F122: 123240 | G122: 3257280 | H122: 3742330 | I122: 2.5079 | J122: 0.0894 | K122: % | L122: LL (%) | M122: UL (%)
C123: 1 | D123: 201 | E123: 488188 | F123: 42545 | G123: 404463 | H123: 571913 | I123: 0.3498 | J123: 0.0305 | K123: =E123/E127 -> 0.003498233223 | L123: =G123/G127 -> 0.002958327888 | M123: =H123/H127 -> 0.00401665697
C124: Total | D124: 1477 | E124: 3987993 | F124: 132562 | G124: 3727123 | H124: 4248863 | I124: 2.8577 | J124: 0.0961
B125: Total | C125: 0 | D125: 48894 | E125: 136365683 | F125: 1416515 | G125: 133578119 | H125: 139153247 | I125: 97.7162 | J125: 0.0821
C126: 1 | D126: 1183 | E126: 3187048 | F126: 117644 | G126: 2955535 | H126: 3418561 | I126: 2.2838 | J126: 0.0821
C127: Total | D127: 50077 | E127: 139552731 | F127: 1439396 | G127: 136720139 | H127: 142385323 | I127: 100
B129: Table of SMC5 by STROKE
B130: Controlling for CHAD=2
B131: SMC5 | C131: STROKE | D131: Frequency | E131: Weighted | F131: Std Dev of | G131: 95% Confidence Limits | I131: Percent | J131: Std Err of
E132: Frequency | F132: Wgt Freq | G132: for Wgt Freq | J132: Percent
B133: 0 | C133: 0 | D133: 61605 | E133: 173537516 | F133: 2128034 | G133: 169349751 | H133: 177725281 | I133: 100 | J133: 0
C134: 1 | D134: 0 | E134: . | F134: . | G134: . | H134: . | I134: . | J134: .
C135: Total | D135: 61605 | E135: 173537516 | F135: 2128034 | G135: 169349751 | H135: 177725281 | I135: 100 | J135: 0
B136: 1 | C136: 0 | D136: 0 | E136: . | F136: . | G136: . | H136: . | I136: . | J136: .
C137: 1 | D137: 0 | E137: . | F137: . | G137: . | H137: . | I137: . | J137: .
C138: Total | D138: 0 | E138: . | F138: . | G138: . | H138: . | I138: . | J138: .
B139: Total | C139: 0 | D139: 61605 | E139: 173537516 | F139: 2128034 | G139: 169349751 | H139: 177725281 | I139: 100 | J139: 0
C140: 1 | D140: 0 | E140: . | F140: . | G140: . | H140: . | I140: . | J140: .
C141: Total | D141: 61605 | E141: 173537516 | F141: 2128034 | G141: 169349751 | H141: 177725281 | I141: 100
B143: Table of SMC5 by DIABETES
B144: Controlling for CHAD=1
B145: SMC5 | C145: DIABETES | D145: Frequency | E145: Weighted | F145: Std Dev of | G145: 95% Confidence Limits | I145: Percent | J145: Std Err of
E146: Frequency | F146: Wgt Freq | G146: for Wgt Freq | J146: Percent
B147: 0 | C147: 0 | D147: 45241 | E147: 126554018 | F147: 1356267 | G147: 123885016 | H147: 129223020 | I147: 90.6854 | J147: 0.1656
C148: 1 | D148: 3359 | E148: 9010720 | F148: 208934 | G148: 8599558 | H148: 9421882 | I148: 6.4569 | J148: 0.1362
C149: Total | D149: 48600 | E149: 135564738 | F149: 1429961 | G149: 132750713 | H149: 138378763 | I149: 97.1423 | J149: 0.0961
B150: 1 | C150: 0 | D150: 1004 | E150: 2685882 | F150: 109502 | G150: 2470392 | H150: 2901372 | I150: 1.9246 | J150: 0.0784 | K150: % | L150: LL (%) | M150: UL (%)
C151: 1 | D151: 473 | E151: 1302111 | F151: 75293 | G151: 1153941 | H151: 1450281 | I151: 0.9331 | J151: 0.0547 | K151: =E151/E155 -> 0.009330602065 | L151: =G151/G155 -> 0.008440168423 | M151: =H151/H155 -> 0.0101856074
C152: Total | D152: 1477 | E152: 3987993 | F152: 132562 | G152: 3727123 | H152: 4248863 | I152: 2.8577 | J152: 0.0961
B153: Total | C153: 0 | D153: 46245 | E153: 129239900 | F153: 1366390 | G153: 126550978 | H153: 131928822 | I153: 92.6101 | J153: 0.1461
C154: 1 | D154: 3832 | E154: 10312831 | F154: 221372 | G154: 9877192 | H154: 10748470 | I154: 7.3899 | J154: 0.1461
C155: Total | D155: 50077 | E155: 139552731 | F155: 1439396 | G155: 136720139 | H155: 142385323 | I155: 100
B157: Table of SMC5 by DIABETES
B158: Controlling for CHAD=2
B159: SMC5 | C159: DIABETES | D159: Frequency | E159: Weighted | F159: Std Dev of | G159: 95% Confidence Limits | I159: Percent | J159: Std Err of
E160: Frequency | F160: Wgt Freq | G160: for Wgt Freq | J160: Percent
B161: 0 | C161: 0 | D161: 61605 | E161: 173537516 | F161: 2128034 | G161: 169349751 | H161: 177725281 | I161: 100 | J161: 0
C162: 1 | D162: 0 | E162: . | F162: . | G162: . | H162: . | I162: . | J162: .
C163: Total | D163: 61605 | E163: 173537516 | F163: 2128034 | G163: 169349751 | H163: 177725281 | I163: 100 | J163: 0
B164: 1 | C164: 0 | D164: 0 | E164: . | F164: . | G164: . | H164: . | I164: . | J164: .
C165: 1 | D165: 0 | E165: . | F165: . | G165: . | H165: . | I165: . | J165: .
C166: Total | D166: 0 | E166: . | F166: . | G166: . | H166: . | I166: . | J166: .
B167: Total | C167: 0 | D167: 61605 | E167: 173537516 | F167: 2128034 | G167: 169349751 | H167: 177725281 | I167: 100 | J167: 0
C168: 1 | D168: 0 | E168: . | F168: . | G168: . | H168: . | I168: . | J168: .
C169: Total | D169: 61605 | E169: 173537516 | F169: 2128034 | G169: 169349751 | H169: 177725281 | I169: 100
B171: Table of SMC5 by RESPIRATORY
B172: Controlling for CHAD=1
B173: SMC5 | C173: RESPIRATORY | D173: Frequency | E173: Weighted | F173: Std Dev of | G173: 95% Confidence Limits | I173: Percent | J173: Std Err of
E174: Frequency | F174: Wgt Freq | G174: for Wgt Freq | J174: Percent
B175: 0 | C175: 0 | D175: 45500 | E175: 127115867 | F175: 1320428 | G175: 124517392 | H175: 129714342 | I175: 91.0881 | J175: 0.164
C176: 1 | D176: 3100 | E176: 8448871 | F176: 224845 | G176: 8006398 | H176: 8891344 | I176: 6.0542 | J176: 0.1372
C177: Total | D177: 48600 | E177: 135564738 | F177: 1429961 | G177: 132750713 | H177: 138378763 | I177: 97.1423 | J177: 0.0961
B178: 1 | C178: 0 | D178: 1232 | E178: 3374678 | F178: 123429 | G178: 3131781 | H178: 3617575 | I178: 2.4182 | J178: 0.0893 | K178: % | L178: LL (%) | M178: UL (%)
C179: 1 | D179: 245 | E179: 613315 | F179: 47020 | G179: 520783 | H179: 705847 | I179: 0.4395 | J179: 0.0338 | K179: =E179/E183 -> 0.00439486204 | L179: =G179/G183 -> 0.003809116958 | M179: =H179/H183 -> 0.004957301674
C180: Total | D180: 1477 | E180: 3987993 | F180: 132562 | G180: 3727123 | H180: 4248863 | I180: 2.8577 | J180: 0.0961
B181: Total | C181: 0 | D181: 46732 | E181: 130490545 | F181: 1328214 | G181: 127876749 | H181: 133104341 | I181: 93.5063 | J181: 0.1426
C182: 1 | D182: 3345 | E182: 9062186 | F182: 233146 | G182: 8603378 | H182: 9520994 | I182: 6.4937 | J182: 0.1426
C183: Total | D183: 50077 | E183: 139552731 | F183: 1439396 | G183: 136720139 | H183: 142385323 | I183: 100
B185: Table of SMC5 by RESPIRATORY
B186: Controlling for CHAD=2
B187: SMC5 | C187: RESPIRATORY | D187: Frequency | E187: Weighted | F187: Std Dev of | G187: 95% Confidence Limits | I187: Percent | J187: Std Err of
E188: Frequency | F188: Wgt Freq | G188: for Wgt Freq | J188: Percent
B189: 0 | C189: 0 | D189: 61605 | E189: 173537516 | F189: 2128034 | G189: 169349751 | H189: 177725281 | I189: 100 | J189: 0
C190: 1 | D190: 0 | E190: . | F190: . | G190: . | H190: . | I190: . | J190: .
C191: Total | D191: 61605 | E191: 173537516 | F191: 2128034 | G191: 169349751 | H191: 177725281 | I191: 100 | J191: 0
B192: 1 | C192: 0 | D192: 0 | E192: . | F192: . | G192: . | H192: . | I192: . | J192: .
C193: 1 | D193: 0 | E193: . | F193: . | G193: . | H193: . | I193: . | J193: .
C194: Total | D194: 0 | E194: . | F194: . | G194: . | H194: . | I194: . | J194: .
B195: Total | C195: 0 | D195: 61605 | E195: 173537516 | F195: 2128034 | G195: 169349751 | H195: 177725281 | I195: 100 | J195: 0
C196: 1 | D196: 0 | E196: . | F196: . | G196: . | H196: . | I196: . | J196: .
C197: Total | D197: 61605 | E197: 173537516 | F197: 2128034 | G197: 169349751 | H197: 177725281 | I197: 100
B199: Table of SMC5 by CANCER
B200: Controlling for CHAD=1
B201: SMC5 | C201: CANCER | D201: Frequency | E201: Weighted | F201: Std Dev of | G201: 95% Confidence Limits | I201: Percent | J201: Std Err of
E202: Frequency | F202: Wgt Freq | G202: for Wgt Freq | J202: Percent
B203: 0 | C203: 0 | D203: 45491 | E203: 126554139 | F203: 1363570 | G203: 123870765 | H203: 129237513 | I203: 90.6855 | J203: 0.1715
C204: 1 | D204: 3109 | E204: 9010599 | F204: 222308 | G204: 8573118 | H204: 9448080 | I204: 6.4568 | J204: 0.1486
C205: Total | D205: 48600 | E205: 135564738 | F205: 1429961 | G205: 132750713 | H205: 138378763 | I205: 97.1423 | J205: 0.0961
B206: 1 | C206: 0 | D206: 1138 | E206: 3037469 | F206: 113117 | G206: 2814866 | H206: 3260072 | I206: 2.1766 | J206: 0.0811 | K206: % | L206: LL (%) | M206: UL (%)
C207: 1 | D207: 339 | E207: 950524 | F207: 64828 | G207: 822949 | H207: 1078099 | I207: 0.6811 | J207: 0.0469 | K207: =E207/E211 -> 0.006811217474 | L207: =G207/G211 -> 0.006019222962 | M207: =H207/H211 -> 0.00757170035
C208: Total | D208: 1477 | E208: 3987993 | F208: 132562 | G208: 3727123 | H208: 4248863 | I208: 2.8577 | J208: 0.0961
B209: Total | C209: 0 | D209: 46629 | E209: 129591608 | F209: 1374492 | G209: 126886741 | H209: 132296475 | I209: 92.8621 | J209: 0.1523
C210: 1 | D210: 3448 | E210: 9961123 | F210: 226503 | G210: 9515387 | H210: 10406859 | I210: 7.1379 | J210: 0.1523
C211: Total | D211: 50077 | E211: 139552731 | F211: 1439396 | G211: 136720139 | H211: 142385323 | I211: 100
B213: Table of SMC5 by CANCER
B214: Controlling for CHAD=2
B215: SMC5 | C215: CANCER | D215: Frequency | E215: Weighted | F215: Std Dev of | G215: 95% Confidence Limits | I215: Percent | J215: Std Err of
E216: Frequency | F216: Wgt Freq | G216: for Wgt Freq | J216: Percent
B217: 0 | C217: 0 | D217: 61605 | E217: 173537516 | F217: 2128034 | G217: 169349751 | H217: 177725281 | I217: 100 | J217: 0
C218: 1 | D218: 0 | E218: . | F218: . | G218: . | H218: . | I218: . | J218: .
... 209 more rows

Sheet Input_SMC_Option5
B2: Special Medical Care (SMC)
B3: Input Worksheet for Option 5: Medical Condition
B5: Step 8: Enter the rate of those needing SMC per 100,000 persons by medical condition
B6: Medical Conditions | C6: Rate (No.) | D6: 95% Confidence Limits
D7: Lower Limit | E7: Upper Limit
B8: Heart diseases | C8: =Calculation_SN_Option5!C11 -> 1122.541271 | D8: =Calculation_SN_Option5!D11 -> 1027.304397 | E8: =Calculation_SN_Option5!E11 -> 1213.988888
B9: Hypertension | C9: =Calculation_SN_Option5!C12 -> 1804.456267 | D9: =Calculation_SN_Option5!D12 -> 1691.627888 | E9: =Calculation_SN_Option5!E12 -> 1912.795464
B10: Stroke | C10: =Calculation_SN_Option5!C13 -> 349.8233223 | D10: =Calculation_SN_Option5!D13 -> 295.8327888 | E10: =Calculation_SN_Option5!E13 -> 401.665697
B11: Respiratory problems | C11: =Calculation_SN_Option5!C14 -> 439.486204 | D11: =Calculation_SN_Option5!D14 -> 380.9116958 | E11: =Calculation_SN_Option5!E14 -> 495.7301674 | G11: Additional Intermediate Results for Option 5:
B12: Cancer | C12: =Calculation_SN_Option5!C15 -> 681.1217474 | D12: =Calculation_SN_Option5!D15 -> 601.9222962 | E12: =Calculation_SN_Option5!E15 -> 757.170035 | G12: Distribution by:
B13: Diabetes | C13: =Calculation_SN_Option5!C16 -> 933.0602065 | D13: =Calculation_SN_Option5!D16 -> 844.0168423 | E13: =Calculation_SN_Option5!E16 -> 1018.56074
B14: Musculoskeletal/connective tissue problems | C14: =Calculation_SN_Option5!C17 -> 2353.356309 | D14: =Calculation_SN_Option5!D17 -> 2220.81474 | E14: =Calculation_SN_Option5!E17 -> 2480.624355
B16: Intermediate results: Subtotal and total
B17: At least one of the above medical conditions | C17: =SUM(C8:C14)*Calculation_SN_Option5!C35 -> 2698.621498 | D17: =C17*Calculation_SN_Option5!D35 -> 2342.30818 | E17: =C17*Calculation_SN_Option5!E35 -> 3043.608645
B18: Other | C18: =C17*Calculation_SN_Option5!C36 -> 159.0746368 | D18: =C18*Calculation_SN_Option5!D36 -> 123.0023618 | E18: =C18*Calculation_SN_Option5!E36 -> 193.7116791
B19: Total | C19: =C17*Calculation_SN_Option5!C37 -> 2857.696135 | D19: =C19*Calculation_SN_Option5!D37 -> 2465.310542 | E19: =C19*Calculation_SN_Option5!E37 -> 3103.974417
B20: Data source: National Health Interview Survey, NCHS, CDC, 2014
B22: Notes: 1. The rates in the WHITE cells are national estimates per 100,000 persons. MedCon:PreEvent calculates the rates in the GOLD
B23: colored cells based on weights derived from national estimates. 2. If you enter your own rates, they MUST be per 100,000 population
B24: 3. Other= Persons who do not have any of the listed seven medical conditions but need SMS

Sheet Input_SMC_Option55
B2: Special Medical Care (SMC)
B3: Input Worksheet for Option 5: Clinical Visits
B5: Step9: Determine the number of clinical visits by those needing SMC in the first month following an event
F6: Number of Office visits by those needing "Special Medical Care" in past 12 months due to pre-existing medical conditions
F8: <6 | G8: 6-12 | H8: >12
B9: Proportion of total office visits before an event in past 12 months* | F9: ='Input_Special Needs'!D23 -> 0.281 | G9: ='Input_Special Needs'!E23 -> 0.719 | H9: ='Input_Special Needs'!F23 -> 0 | I9: =F9+G9+H9 -> 1 | J9: Note: The sum of the proportions must be 1
B10: Assumption: Number of clinical visits in the first month following an event | F10: 1 | G10: 1.5 | H10: 2
B11: *Data source: National Health Interview Survey, 2014
B13: Intermediate results:
B14: Average number of clinical visits by those needing "Special Medical Care" in the first month following disaster | I14: =(F9*F10+G9*G10+H9*H10) -> 1.3595
B16: Step 10: Determine distribution of clinical visits by week among those needing SMC
B17: Week | E17: 1 | F17: 2 | G17: 3 | H17: 4
B18: Proportion | E18: =Distribution!H41 -> 0.6624172185 | F18: =Distribution!O41-Distribution!H41 -> 0.2430463576 | G18: =Distribution!S41-Distribution!O41 -> 0.09453642384 | H18: =1-E18-F18-G18 -> 0 | I18: =SUM(E18:H18) -> 1 | J18: Note: The sum of the proportions must be 1
B19: Cum_Proportion | E19: =E18 -> 0.6624172185 | F19: =E19+F18 -> 0.9054635762 | G19: =F19+G18 -> 1 | H19: =G19+H18 -> 1
B21: Additional Intermediate Results for Option 1:Distribution by

Sheet Input_SMC_Option5_NoMedCon
B2: Special Medical Care (SMC)
B3: Intermediate Results for Option 5: No. of Medical Conditions
B5: Step 8.1: Rate of those needing SMC by number of the selected medical condition per 100,000 persons
B6: No. of Medical Conditions | C6: Rate (No.) | D6: 95% Confidence Limits
D7: Lower Limit | E7: Upper Limit
B8: Other | C8: =Input_SMC_Option5!$C$19*Calculation_SN_Option5!H34 -> 159.0746368 | D8: =C8*Calculation_SN_Option5!I34 -> 123.0023618 | E8: =C8*Calculation_SN_Option5!J34 -> 193.7116791
B9: 1 | C9: =Input_SMC_Option5!$C$19*Calculation_SN_Option5!H35 -> 447.7726774 | D9: =C9*Calculation_SN_Option5!I35 -> 380.3104676 | E9: =C9*Calculation_SN_Option5!J35 -> 512.5507213
B10: 2 | C10: =Input_SMC_Option5!$C$19*Calculation_SN_Option5!H36 -> 671.3397819 | D10: =C10*Calculation_SN_Option5!I36 -> 599.9116195 | E10: =C10*Calculation_SN_Option5!J36 -> 739.9259824
B11: 3 | C11: =Input_SMC_Option5!$C$19*Calculation_SN_Option5!H37 -> 773.4022776 | D11: =C11*Calculation_SN_Option5!I37 -> 696.7656755 | E11: =C11*Calculation_SN_Option5!J37 -> 846.9896859
B12: 4 | C12: =Input_SMC_Option5!$C$19*Calculation_SN_Option5!H38 -> 521.5039468 | D12: =C12*Calculation_SN_Option5!I38 -> 453.7824526 | E12: =C12*Calculation_SN_Option5!J38 -> 586.5309587
B13: 5 | C13: =Input_SMC_Option5!$C$19*Calculation_SN_Option5!H39 -> 224.5495289 | D13: =C13*Calculation_SN_Option5!I39 -> 176.962225 | E13: =C13*Calculation_SN_Option5!J39 -> 270.2434436
B14: 6 | C14: =Input_SMC_Option5!$C$19*Calculation_SN_Option5!H40 -> 55.950177 | D14: =C14*Calculation_SN_Option5!I40 -> 34.57574015 | E14: =C14*Calculation_SN_Option5!J40 -> 76.47417424
B15: 7 | C15: =Input_SMC_Option5!$C$19*Calculation_SN_Option5!H41 -> 4.103108523 | D15: =C15*Calculation_SN_Option5!I41 -> 0 | E15: =C15*Calculation_SN_Option5!J41 -> 10.89367898
B16: Total | C16: =Input_SMC_Option5!$C$19*Calculation_SN_Option5!H42 -> 2857.696135 | D16: =C16*Calculation_SN_Option5!I42 -> 2465.310542 | E16: =C16*Calculation_SN_Option5!J42 -> 3237.320324
B17: Data source: National Health Interview Survey, 2014
B19: Note: 1. Values in Gold cells are estimated based on weights derived from national
B20: estimates of the distribution of "Special Medical Care" needs with Option 5
B21: 2. "Others" includes other than seven selected medical conditions
B22: 3. Other= Persons who do not have any of the listed seven medical conditions but need SMC

Sheet Input_SMC_Option5_Age
B2: Special Medical Care (SMC)
B3: Intermediate Results for Option 5: Age Category
B5: Step 8.2: Rates of those needing SMC per 100,000 persons by age category
B6: Age Category | C6: Rate (No.) | D6: 95% Confidence Limits
D7: Lower Limit | E7: Upper Limit
B8: <5 | C8: =Input_SMC_Option5!$C$19*Calculation_SN_Option5!C42 -> 21.78101409 | D8: =C8*Calculation_SN_Option5!D42 -> 7.703327452 | E8: =C8*Calculation_SN_Option5!E42 -> 35.298582
B9: 5-17 | C9: =Input_SMC_Option5!$C$19*Calculation_SN_Option5!C43 -> 65.37385499 | D9: =C9*Calculation_SN_Option5!D43 -> 35.01605568 | E9: =C9*Calculation_SN_Option5!E43 -> 94.5237874
B10: 18-64 | C10: =Input_SMC_Option5!$C$19*Calculation_SN_Option5!C44 -> 1773.356911 | D10: =C10*Calculation_SN_Option5!D44 -> 1651.054495 | E10: =C10*Calculation_SN_Option5!E44 -> 1890.793196
B11: ≥65 | C11: =Input_SMC_Option5!$C$19*Calculation_SN_Option5!C45 -> 997.1843546 | D11: =C11*Calculation_SN_Option5!D45 -> 907.4391008 | E11: =C11*Calculation_SN_Option5!E45 -> 1083.358852
B12: Total | C12: =Input_SMC_Option5!$C$19*Calculation_SN_Option5!C46 -> 2857.696135 | D12: =C12*Calculation_SN_Option5!D46 -> 2601.212979 | E12: =C12*Calculation_SN_Option5!E46 -> 3103.974417
B13: Data source: National Health Interview Survey, 2014
B15: Note: Values in Gold cells are estimated based on weights derived from national estimates of the distribution of SMC needs with option 5

Sheet Input_SMC_Option5_ClinicalVisit
B2: Special Medical Care (SMC)
B3: Intermediate Results for Option 5: Clinical Visits
B5: Step 10.1: Distribution of clinical visits by week among those needing SMC per 100,000 persons
B6: Week | C6: Rate (Visit) | D6: 95% Confidence Limits
D7: Lower Limit | E7: Upper Limit
B8: 1 | C8: =Input_SMC_Option5!$C$19*Input_SMC_Option55!$I$14*Input_SMC_Option55!E18 -> 2573.515997 | D8: =Input_SMC_Option5!$D$19*Input_SMC_Option55!$I$14*Input_SMC_Option55!E18 -> 2220.150715 | E8: =Input_SMC_Option5!$E$19*Input_SMC_Option55!$I$14*Input_SMC_Option55!E18 -> 2795.303433
B9: 2 | C9: =Input_SMC_Option5!$C$19*Input_SMC_Option55!$I$14*Input_SMC_Option55!F18 -> 944.2443097 | D9: =Input_SMC_Option5!$D$19*Input_SMC_Option55!$I$14*Input_SMC_Option55!F18 -> 814.5916644 | E9: =Input_SMC_Option5!$E$19*Input_SMC_Option55!$I$14*Input_SMC_Option55!F18 -> 1025.619955
B10: 3 | C10: =Input_SMC_Option5!$C$19*Input_SMC_Option55!$I$14*Input_SMC_Option55!G18 -> 367.2775891 | D10: =Input_SMC_Option5!$D$19*Input_SMC_Option55!$I$14*Input_SMC_Option55!G18 -> 316.8473027 | E10: =Input_SMC_Option5!$E$19*Input_SMC_Option55!$I$14*Input_SMC_Option55!G18 -> 398.9298326
B11: 4 | C11: =Input_SMC_Option5!$C$19*Input_SMC_Option55!$I$14*Input_SMC_Option55!H18 -> 0 | D11: =Input_SMC_Option5!$D$19*Input_SMC_Option55!$I$14*Input_SMC_Option55!H18 -> 0 | E11: =Input_SMC_Option5!$E$19*Input_SMC_Option55!$I$14*Input_SMC_Option55!H18 -> 0
B12: Total Visits | C12: =Input_SMC_Option5!$C$19*Input_SMC_Option55!$I$14 -> 3885.037895 | D12: =Input_SMC_Option5!$D$19*Input_SMC_Option55!$I$14 -> 3351.589682 | E12: =Input_SMC_Option5!$E$19*Input_SMC_Option55!$I$14 -> 4219.85322
B13: Data source: National Health Interview Survey, 2014

Sheet Calculation_SN_Option6
B2: Calculation: Special Need Population
C3: Option 6
B6: Table 1
B7: Rate of special need population per 100,000 population
B8: by medical condition
B9: Medical Condition | C9: Rate | D9: 95% Confidence Limits
D10: LL | E10: UL
B11: Heart diseases | C11: =K67*100000 -> 1492.898767 | D11: =L67*100000 -> 1386.138146 | E11: 1595.411628
B12: Hypertension | C12: =K95*100000 -> 2419.12643 | D12: =L95*100000 -> 2299.277212 | E12: 2534.207125
B13: Stroke | C13: =K123*100000 -> 472.2007196 | D13: =L123*100000 -> 412.871874 | E13: 529.1690071
B14: Respiratory problems | C14: =K179*100000 -> 595.3262212 | D14: =L179*100000 -> 529.8078288 | E14: 658.2377876
B15: Cancer | C15: =K207*100000 -> 841.4195778 | D15: =L207*100000 -> 757.3039404 | E15: 922.1884478
B16: Diabetes | C16: =K151*100000 -> 1237.306492 | D16: =L151*100000 -> 1140.124645 | E16: 1330.621696
B17: Musculoskeletal/connective tissue problems | C17: =K235*100000 -> 3107.317907 | D17: =L235*100000 -> 2966.545404 | E17: 3242.489396
B18: Total: At least with one condition | C18: =H31-H23 -> 3593.609358 | D18: =I31-I23 -> 3495.871958 | E18: 3687.458011 | G18: Table 3
B19: Other | C19: =K327*100000 -> 224.8626722 | D19: =L327*100000 -> 178.4375014 | E19: 269.4406923 | G19: Rate of special need population
B20: Total Special Needs | C20: =C18+C19 -> 3818.47203 | D20: =D18+D19 -> 3674.309459 | E20: 3956.898704 | G20: by number of selected medical condition (per 100,000)
G21: No. of Medical Condition | H21: Rate | I21: 95% Confidence Limits
B22: Table 2 | I22: LL | J22: UL | L22: % | M22: Cumulative % | N22: No. | O22: Cumulative_No.
B23: Rate of special need population per 100,000 population | G23: 0 | H23: =L268 -> 224.8626722 | I23: =M268 -> 178.4375014 | J23: 269.4406923 | L23: =H23/$H$31*100 -> 5.888812866 | M23: =L23 -> 5.888812866 | N23: =H23 -> 224.8626722 | O23: =N23 -> 224.8626722
B24: by age category | G24: 1 | H24: =L269 -> 619.8474181 | I24: =M269 -> 545.7352556 | J24: =N269 -> 691.0108284 | L24: =H24/$H$31*100 -> 16.23286522 | M24: =L24+M23 -> 22.12167809 | N24: =H24 -> 619.8474181 | O24: =N24+O23 -> 844.7100903
B25: Age category | C25: Rate | D25: 95% Confidence Limits | G25: 2 | H25: 892.2390777 | I25: 814.4952222 | J25: 966.8896843 | L25: 23.36639029 | M25: =L25+M24 -> 45.48806838 | N25: 892.2390777 | O25: =N25+O24 -> 1736.949168
D26: LL | E26: UL | G26: 3 | H26: 1019.045625 | I26: 937.6153428 | J26: 1097.235984 | L26: 26.68726174 | M26: 72.17533012 | N26: 1019.045625 | O26: 2755.994793
B27: <5 Years | C27: =K356*100000 -> 25.47065883 | D27: =L356*100000 -> 10.55221279 | E27: 39.79553426 | G27: 4 | H27: 686.8435989 | I27: 609.7594737 | J27: 760.8607244 | L27: 17.98739374 | M27: 90.16272386 | N27: 686.8435989 | O27: 3442.838392
B28: 5-17 Years | C28: =K357*100000 -> 83.08543958 | D28: =L357*100000 -> 48.21455016 | E28: =M357*100000 -> 116.5688966 | G28: 5 | H28: 301.1456651 | I28: 247.8515619 | J28: 352.3193188 | L28: 7.886548934 | M28: 98.0492728 | N28: 301.1456651 | O28: 3743.984057
B29: 18-64 Years | C29: 2357.629963 | D29: 2221.634663 | E29: 2488.214322 | G29: 6 | H29: 70.38486406 | I29: 48.24746411 | J29: 91.64146785 | L29: 1.843273003 | M29: 99.8925458 | N29: 70.38486406 | O29: 3814.368921
B30: >=65 Years | C30: 1352.285969 | D30: 1249.642527 | E30: 1450.845464 | G30: 7 | H30: 4.103108523 | I30: 0 | J30: 10.89367898 | L30: 0.1074541987 | M30: 100 | N30: 4.103108523 | O30: 3818.47203
B31: Total Special Needs | C31: 3818.47203 | D31: 3674.309459 | E31: 3956.898704 | G31: Total | H31: 3818.47203 | I31: 3674.309459 | J31: 3956.898704 | L31: 100 | N31: 3818.47203
B33: Adjustment factors for Table 1 | G33: Adjustment factors for Table 1
B34: Sum of selected seven med condition | C34: 10165.59611 | D34: 9492.069051 | E34: 10812.32509 | G34: 0 | H34: 0.05888812866 | I34: 0.7935398958 | J34: 1.198245532
B35: Ratio of at least with one condition to total | C35: 0.3535069972 | D35: 0.9728024418 | E35: 1.02611543 | G35: 1 | H35: 0.1623286522 | I35: 0.880434829 | J35: 1.114807948
B36: Ratio of other than selected condition to at least one condition | C36: 0.0625729315 | D36: 0.7935398958 | E36: 1.198245532 | G36: 2 | H36: 0.2336639029 | I36: 0.9128665652 | J36: 1.083666596
B37: Ratio of total to at least one condition | C37: 1.062572931 | D37: 0.9622460059 | E37: 1.03625185 | G37: 3 | H37: 0.2668726174 | I37: 0.9200916227 | J37: 1.076729007
G38: 4 | H38: 0.1798739374 | I38: 0.8877704832 | J38: 1.107764163
G39: 5 | H39: 0.07886548934 | I39: 0.8230288217 | J39: 1.169929903
B40: Adjustment factors for Table 2 | G40: 6 | H40: 0.01843273003 | I40: 0.6854806749 | J40: 1.302005326
G41: 7 | H41: 0.001074541987 | I41: 0 | J41: 2.654981928
B42: <5 Years | C42: =C27/$C$31 -> 0.006670379835 | D42: =D27/C27 -> 0.4142889615 | E42: =E27/C27 -> 1.562406946 | G42: Total | H42: 1 | I42: 0.9622460059 | J42: 1.03625185
B43: 5-17 Years | C43: =C28/$C$31 -> 0.02175881843 | D43: =D28/C28 -> 0.5803008374 | E43: =E28/C28 -> 1.4030003
B44: 18-64 Years | C44: =C29/$C$31 -> 0.6174275848 | D44: =D29/C29 -> 0.9423169448 | E44: =E29/C29 -> 1.055387979
B45: >=65 Years | C45: =C30/$C$31 -> 0.354143217 | D45: =D30/C30 -> 0.9240963496 | E45: =E30/C30 -> 1.072883619 | G45: Adjustment factors for Table 1(Calculation)
B46: Total Special Needs | C46: =C31/$C$31 -> 1 | D46: =D31/C31 -> 0.9622460059 | E46: =E31/C31 -> 1.03625185 | G46: 0 | H46: =H23/$H$31 -> 0.05888812866 | I46: =I23/H23 -> 0.7935398958 | J46: =J23/H23 -> 1.198245532
G47: 1 | H47: =H24/$H$31 -> 0.1623286522 | I47: =I24/H24 -> 0.880434829 | J47: =J24/H24 -> 1.114807948
G48: 2 | H48: 0.2336639029 | I48: 0.9128665652 | J48: 1.083666596
B49: Adjustment factors and calculation for Table 1 (Calculation) | G49: 3 | H49: 0.2668726174 | I49: 0.9200916227 | J49: 1.076729007
B50: Sum of selected seven med condition | C50: =SUM(C11:C17) -> 10165.59611 | D50: =SUM(D11:D17) -> 9492.069051 | E50: =SUM(E11:E17) -> 10812.32509 | G50: 4 | H50: 0.1798739374 | I50: 0.8877704832 | J50: 1.107764163
B51: Ratio of at least with one condition to total | C51: =C18/C50 -> 0.3535069972 | D51: =D18/C18 -> 0.9728024418 | E51: =E18/C18 -> 1.02611543 | G51: 5 | H51: 0.07886548934 | I51: 0.8230288217 | J51: 1.169929903
B52: Ratio of other than selected condition to at least one condition | C52: =C19/C18 -> 0.0625729315 | D52: =D19/C19 -> 0.7935398958 | E52: =E19/C19 -> 1.198245532 | G52: 6 | H52: 0.01843273003 | I52: 0.6854806749 | J52: 1.302005326
B53: Ratio of total to at least one condition | C53: =C20/C18 -> 1.062572931 | D53: =D20/C20 -> 0.9622460059 | E53: =E31/C31 -> 1.03625185 | G53: 7 | H53: 0.001074541987 | I53: 0 | J53: 2.654981928
G54: Total | H54: 1 | I54: 0.9622460059 | J54: 1.03625185
B56: Updated: 01/20/2016
B59: Table of SMC6 by HEARTPROB
B60: Controlling for CHAD=1
B61: SMC6 | C61: HEARTPROB | D61: Frequency | E61: Weighted | F61: Std Dev of | G61: 95% Confidence Limits | I61: Percent | J61: Std Err of
E62: Frequency | F62: Wgt Freq | G62: for Wgt Freq | J62: Percent
B63: 0 | C63: 0 | D63: 44155 | E63: 122834521 | F63: 1330796 | G63: 120215644 | H63: 125453398 | I63: 88.0201 | J63: 0.1932
C64: 1 | D64: 3959 | E64: 11389428 | F64: 252719 | G64: 10892101 | H64: 11886755 | I64: 8.1614 | J64: 0.1627
C65: Total | D65: 48114 | E65: 134223949 | F65: 1423230 | G65: 131423169 | H65: 137024729 | I65: 96.1815 | J65: 0.1119
B66: 1 | C66: 0 | D66: 1205 | E66: 3245401 | F66: 121985 | G66: 3005346 | H66: 3485456 | I66: 2.3256 | J66: 0.0872 | K66: % | L66: LL (%) | M66: UL (%)
C67: 1 | D67: 758 | E67: 2083381 | F67: 95661 | G67: 1895130 | H67: 2271632 | I67: 1.4929 | J67: 0.0692 | K67: =E67/E71 -> 0.01492898767 | L67: =G67/G71 -> 0.01386138146 | M67: =H67/H71 -> 0.01595411628
C68: Total | D68: 1963 | E68: 5328782 | F68: 155120 | G68: 5023521 | H68: 5634043 | I68: 3.8185 | J68: 0.1119
B69: Total | C69: 0 | D69: 45360 | E69: 126079922 | F69: 1346079 | G69: 123430969 | H69: 128728875 | I69: 90.3457 | J69: 0.1847
C70: 1 | D70: 4717 | E70: 13472809 | F70: 282734 | G70: 12916415 | H70: 14029203 | I70: 9.6543 | J70: 0.1847
C71: Total | D71: 50077 | E71: 139552731 | F71: 1439396 | G71: 136720139 | H71: 142385323 | I71: 100
B73: Table of SMC6 by HEARTPROB
B74: Controlling for CHAD=2
B75: SMC6 | C75: HEARTPROB | D75: Frequency | E75: Weighted | F75: Std Dev of | G75: 95% Confidence Limits | I75: Percent | J75: Std Err of
E76: Frequency | F76: Wgt Freq | G76: for Wgt Freq | J76: Percent
B77: 0 | C77: 0 | D77: 60343 | E77: 169946950 | F77: 2088926 | G77: 165836146 | H77: 174057754 | I77: 97.931 | J77: 0.0787
C78: 1 | D78: 0 | E78: . | F78: . | G78: . | H78: . | I78: . | J78: .
C79: Total | D79: 60343 | E79: 169946950 | F79: 2088926 | G79: 165836146 | H79: 174057754 | I79: 97.931 | J79: 0.0787
B80: 1 | C80: 0 | D80: 1262 | E80: 3590566 | F80: 143394 | G80: 3308380 | H80: 3872752 | I80: 2.069 | J80: 0.0787
C81: 1 | D81: 0 | E81: . | F81: . | G81: . | H81: . | I81: . | J81: .
C82: Total | D82: 1262 | E82: 3590566 | F82: 143394 | G82: 3308380 | H82: 3872752 | I82: 2.069 | J82: 0.0787
B83: Total | C83: 0 | D83: 61605 | E83: 173537516 | F83: 2128034 | G83: 169349751 | H83: 177725281 | I83: 100 | J83: 0
C84: 1 | D84: 0 | E84: . | F84: . | G84: . | H84: . | I84: . | J84: .
C85: Total | D85: 61605 | E85: 173537516 | F85: 2128034 | G85: 169349751 | H85: 177725281 | I85: 100
B87: Table of SMC6 by HYPERTENSION
B88: Controlling for CHAD=1
B89: SMC6 | C89: HYPERTENSION | D89: Frequency | E89: Weighted | F89: Std Dev of | G89: 95% Confidence Limits | I89: Percent | J89: Std Err of
E90: Frequency | F90: Wgt Freq | G90: for Wgt Freq | J90: Percent
B91: 0 | C91: 0 | D91: 36975 | E91: 102786923 | F91: 1188287 | G91: 100448489 | H91: 105125357 | I91: 73.6545 | J91: 0.2795
C92: 1 | D92: 11139 | E92: 31437026 | F92: 465733 | G92: 30520508 | H92: 32353544 | I92: 22.527 | J92: 0.2619
C93: Total | D93: 48114 | E93: 134223949 | F93: 1423230 | G93: 131423169 | H93: 137024729 | I93: 96.1815 | J93: 0.1119
B94: 1 | C94: 0 | D94: 706 | E94: 1952825 | F94: 96346 | G94: 1763225 | H94: 2142425 | I94: 1.3993 | J94: 0.0684 | K94: % | L94: LL (%) | M94: UL (%)
C95: 1 | D95: 1257 | E95: 3375957 | F95: 118086 | G95: 3143575 | H95: 3608339 | I95: 2.4191 | J95: 0.0862 | K95: =E95/E99 -> 0.0241912643 | L95: =G95/G99 -> 0.02299277212 | M95: =H95/H99 -> 0.02534207125
C96: Total | D96: 1963 | E96: 5328782 | F96: 155120 | G96: 5023521 | H96: 5634043 | I96: 3.8185 | J96: 0.1119
B97: Total | C97: 0 | D97: 37681 | E97: 104739748 | F97: 1202441 | G97: 102373462 | H97: 107106034 | I97: 75.0539 | J97: 0.28
C98: 1 | D98: 12396 | E98: 34812983 | F98: 489604 | G98: 33849490 | H98: 35776476 | I98: 24.9461 | J98: 0.28
C99: Total | D99: 50077 | E99: 139552731 | F99: 1439396 | G99: 136720139 | H99: 142385323 | I99: 100
B101: Table of SMC6 by HYPERTENSION
B102: Controlling for CHAD=2
B103: SMC6 | C103: HYPERTENSION | D103: Frequency | E103: Weighted | F103: Std Dev of | G103: 95% Confidence Limits | I103: Percent | J103: Std Err of
E104: Frequency | F104: Wgt Freq | G104: for Wgt Freq | J104: Percent
B105: 0 | C105: 0 | D105: 60343 | E105: 169946950 | F105: 2088926 | G105: 165836146 | H105: 174057754 | I105: 97.931 | J105: 0.0787
C106: 1 | D106: 0 | E106: . | F106: . | G106: . | H106: . | I106: . | J106: .
C107: Total | D107: 60343 | E107: 169946950 | F107: 2088926 | G107: 165836146 | H107: 174057754 | I107: 97.931 | J107: 0.0787
B108: 1 | C108: 0 | D108: 1262 | E108: 3590566 | F108: 143394 | G108: 3308380 | H108: 3872752 | I108: 2.069 | J108: 0.0787
C109: 1 | D109: 0 | E109: . | F109: . | G109: . | H109: . | I109: . | J109: .
C110: Total | D110: 1262 | E110: 3590566 | F110: 143394 | G110: 3308380 | H110: 3872752 | I110: 2.069 | J110: 0.0787
B111: Total | C111: 0 | D111: 61605 | E111: 173537516 | F111: 2128034 | G111: 169349751 | H111: 177725281 | I111: 100 | J111: 0
C112: 1 | D112: 0 | E112: . | F112: . | G112: . | H112: . | I112: . | J112: .
C113: Total | D113: 61605 | E113: 173537516 | F113: 2128034 | G113: 169349751 | H113: 177725281 | I113: 100
B115: Table of SMC6 by STROKE
B116: Controlling for CHAD=1
B117: SMC6 | C117: STROKE | D117: Frequency | E117: Weighted | F117: Std Dev of | G117: 95% Confidence Limits | I117: Percent | J117: Std Err of
E118: Frequency | F118: Wgt Freq | G118: for Wgt Freq | J118: Percent
B119: 0 | C119: 0 | D119: 47192 | E119: 131695870 | F119: 1404161 | G119: 128932618 | H119: 134459122 | I119: 94.37 | J119: 0.1366
C120: 1 | D120: 922 | E120: 2528079 | F120: 106202 | G120: 2319083 | H120: 2737075 | I120: 1.8116 | J120: 0.0743
C121: Total | D121: 48114 | E121: 134223949 | F121: 1423230 | G121: 131423169 | H121: 137024729 | I121: 96.1815 | J121: 0.1119
B122: 1 | C122: 0 | D122: 1702 | E122: 4669813 | F122: 143546 | G122: 4387329 | H122: 4952297 | I122: 3.3463 | J122: 0.1038 | K122: % | L122: LL (%) | M122: UL (%)
C123: 1 | D123: 261 | E123: 658969 | F123: 48015 | G123: 564479 | H123: 753459 | I123: 0.4722 | J123: 0.0343 | K123: =E123/E127 -> 0.004722007196 | L123: =G123/G127 -> 0.00412871874 | M123: =H123/H127 -> 0.005291690071
C124: Total | D124: 1963 | E124: 5328782 | F124: 155120 | G124: 5023521 | H124: 5634043 | I124: 3.8185 | J124: 0.1119
B125: Total | C125: 0 | D125: 48894 | E125: 136365683 | F125: 1416515 | G125: 133578119 | H125: 139153247 | I125: 97.7162 | J125: 0.0821
C126: 1 | D126: 1183 | E126: 3187048 | F126: 117644 | G126: 2955535 | H126: 3418561 | I126: 2.2838 | J126: 0.0821
C127: Total | D127: 50077 | E127: 139552731 | F127: 1439396 | G127: 136720139 | H127: 142385323 | I127: 100
B129: Table of SMC6 by STROKE
B130: Controlling for CHAD=2
B131: SMC6 | C131: STROKE | D131: Frequency | E131: Weighted | F131: Std Dev of | G131: 95% Confidence Limits | I131: Percent | J131: Std Err of
E132: Frequency | F132: Wgt Freq | G132: for Wgt Freq | J132: Percent
B133: 0 | C133: 0 | D133: 60343 | E133: 169946950 | F133: 2088926 | G133: 165836146 | H133: 174057754 | I133: 97.931 | J133: 0.0787
C134: 1 | D134: 0 | E134: . | F134: . | G134: . | H134: . | I134: . | J134: .
C135: Total | D135: 60343 | E135: 169946950 | F135: 2088926 | G135: 165836146 | H135: 174057754 | I135: 97.931 | J135: 0.0787
B136: 1 | C136: 0 | D136: 1262 | E136: 3590566 | F136: 143394 | G136: 3308380 | H136: 3872752 | I136: 2.069 | J136: 0.0787
C137: 1 | D137: 0 | E137: . | F137: . | G137: . | H137: . | I137: . | J137: .
C138: Total | D138: 1262 | E138: 3590566 | F138: 143394 | G138: 3308380 | H138: 3872752 | I138: 2.069 | J138: 0.0787
B139: Total | C139: 0 | D139: 61605 | E139: 173537516 | F139: 2128034 | G139: 169349751 | H139: 177725281 | I139: 100 | J139: 0
C140: 1 | D140: 0 | E140: . | F140: . | G140: . | H140: . | I140: . | J140: .
C141: Total | D141: 61605 | E141: 173537516 | F141: 2128034 | G141: 169349751 | H141: 177725281 | I141: 100
B143: Table of SMC6 by DIABETES
B144: Controlling for CHAD=1
B145: SMC6 | C145: DIABETES | D145: Frequency | E145: Weighted | F145: Std Dev of | G145: 95% Confidence Limits | I145: Percent | J145: Std Err of
E146: Frequency | F146: Wgt Freq | G146: for Wgt Freq | J146: Percent
B147: 0 | C147: 0 | D147: 44912 | E147: 125637813 | F147: 1351578 | G147: 122978039 | H147: 128297587 | I147: 90.0289 | J147: 0.1763
C148: 1 | D148: 3202 | E148: 8586136 | F148: 205864 | G148: 8181015 | H148: 8991257 | I148: 6.1526 | J148: 0.1342
C149: Total | D149: 48114 | E149: 134223949 | F149: 1423230 | G149: 131423169 | H149: 137024729 | I149: 96.1815 | J149: 0.1119
B150: 1 | C150: 0 | D150: 1333 | E150: 3602087 | F150: 124033 | G150: 3358003 | H150: 3846171 | I150: 2.5812 | J150: 0.0882 | K150: % | L150: LL (%) | M150: UL (%)
C151: 1 | D151: 630 | E151: 1726695 | F151: 85327 | G151: 1558780 | H151: 1894610 | I151: 1.2373 | J151: 0.0621 | K151: =E151/E155 -> 0.01237306492 | L151: =G151/G155 -> 0.01140124645 | M151: =H151/H155 -> 0.01330621696
C152: Total | D152: 1963 | E152: 5328782 | F152: 155120 | G152: 5023521 | H152: 5634043 | I152: 3.8185 | J152: 0.1119
B153: Total | C153: 0 | D153: 46245 | E153: 129239900 | F153: 1366390 | G153: 126550978 | H153: 131928822 | I153: 92.6101 | J153: 0.1461
C154: 1 | D154: 3832 | E154: 10312831 | F154: 221372 | G154: 9877192 | H154: 10748470 | I154: 7.3899 | J154: 0.1461
C155: Total | D155: 50077 | E155: 139552731 | F155: 1439396 | G155: 136720139 | H155: 142385323 | I155: 100
B157: Table of SMC6 by DIABETES
B158: Controlling for CHAD=2
B159: SMC6 | C159: DIABETES | D159: Frequency | E159: Weighted | F159: Std Dev of | G159: 95% Confidence Limits | I159: Percent | J159: Std Err of
E160: Frequency | F160: Wgt Freq | G160: for Wgt Freq | J160: Percent
B161: 0 | C161: 0 | D161: 60343 | E161: 169946950 | F161: 2088926 | G161: 165836146 | H161: 174057754 | I161: 97.931 | J161: 0.0787
C162: 1 | D162: 0 | E162: . | F162: . | G162: . | H162: . | I162: . | J162: .
C163: Total | D163: 60343 | E163: 169946950 | F163: 2088926 | G163: 165836146 | H163: 174057754 | I163: 97.931 | J163: 0.0787
B164: 1 | C164: 0 | D164: 1262 | E164: 3590566 | F164: 143394 | G164: 3308380 | H164: 3872752 | I164: 2.069 | J164: 0.0787
C165: 1 | D165: 0 | E165: . | F165: . | G165: . | H165: . | I165: . | J165: .
C166: Total | D166: 1262 | E166: 3590566 | F166: 143394 | G166: 3308380 | H166: 3872752 | I166: 2.069 | J166: 0.0787
B167: Total | C167: 0 | D167: 61605 | E167: 173537516 | F167: 2128034 | G167: 169349751 | H167: 177725281 | I167: 100 | J167: 0
C168: 1 | D168: 0 | E168: . | F168: . | G168: . | H168: . | I168: . | J168: .
C169: Total | D169: 61605 | E169: 173537516 | F169: 2128034 | G169: 169349751 | H169: 177725281 | I169: 100
B171: Table of SMC6 by RESPIRATORY
B172: Controlling for CHAD=1
B173: SMC6 | C173: RESPIRATORY | D173: Frequency | E173: Weighted | F173: Std Dev of | G173: 95% Confidence Limits | I173: Percent | J173: Std Err of
E174: Frequency | F174: Wgt Freq | G174: for Wgt Freq | J174: Percent
B175: 0 | C175: 0 | D175: 45100 | E175: 125992557 | F175: 1315455 | G175: 123403869 | H175: 128581245 | I175: 90.2831 | J175: 0.1728
C176: 1 | D176: 3014 | E176: 8231392 | F176: 221944 | G176: 7794628 | H176: 8668156 | I176: 5.8984 | J176: 0.1356
C177: Total | D177: 48114 | E177: 134223949 | F177: 1423230 | G177: 131423169 | H177: 137024729 | I177: 96.1815 | J177: 0.1119
B178: 1 | C178: 0 | D178: 1632 | E178: 4497988 | F178: 145133 | G178: 4212380 | H178: 4783596 | I178: 3.2231 | J178: 0.1046 | K178: % | L178: LL (%) | M178: UL (%)
C179: 1 | D179: 331 | E179: 830794 | F179: 54088 | G179: 724354 | H179: 937234 | I179: 0.5953 | J179: 0.0388 | K179: =E179/E183 -> 0.005953262212 | L179: =G179/G183 -> 0.005298078288 | M179: =H179/H183 -> 0.006582377876
C180: Total | D180: 1963 | E180: 5328782 | F180: 155120 | G180: 5023521 | H180: 5634043 | I180: 3.8185 | J180: 0.1119
B181: Total | C181: 0 | D181: 46732 | E181: 130490545 | F181: 1328214 | G181: 127876749 | H181: 133104341 | I181: 93.5063 | J181: 0.1426
C182: 1 | D182: 3345 | E182: 9062186 | F182: 233146 | G182: 8603378 | H182: 9520994 | I182: 6.4937 | J182: 0.1426
C183: Total | D183: 50077 | E183: 139552731 | F183: 1439396 | G183: 136720139 | H183: 142385323 | I183: 100
B185: Table of SMC6 by RESPIRATORY
B186: Controlling for CHAD=2
B187: SMC6 | C187: RESPIRATORY | D187: Frequency | E187: Weighted | F187: Std Dev of | G187: 95% Confidence Limits | I187: Percent | J187: Std Err of
E188: Frequency | F188: Wgt Freq | G188: for Wgt Freq | J188: Percent
B189: 0 | C189: 0 | D189: 60343 | E189: 169946950 | F189: 2088926 | G189: 165836146 | H189: 174057754 | I189: 97.931 | J189: 0.0787
C190: 1 | D190: 0 | E190: . | F190: . | G190: . | H190: . | I190: . | J190: .
C191: Total | D191: 60343 | E191: 169946950 | F191: 2088926 | G191: 165836146 | H191: 174057754 | I191: 97.931 | J191: 0.0787
B192: 1 | C192: 0 | D192: 1262 | E192: 3590566 | F192: 143394 | G192: 3308380 | H192: 3872752 | I192: 2.069 | J192: 0.0787
C193: 1 | D193: 0 | E193: . | F193: . | G193: . | H193: . | I193: . | J193: .
C194: Total | D194: 1262 | E194: 3590566 | F194: 143394 | G194: 3308380 | H194: 3872752 | I194: 2.069 | J194: 0.0787
B195: Total | C195: 0 | D195: 61605 | E195: 173537516 | F195: 2128034 | G195: 169349751 | H195: 177725281 | I195: 100 | J195: 0
C196: 1 | D196: 0 | E196: . | F196: . | G196: . | H196: . | I196: . | J196: .
C197: Total | D197: 61605 | E197: 173537516 | F197: 2128034 | G197: 169349751 | H197: 177725281 | I197: 100
B199: Table of SMC6 by CANCER
B200: Controlling for CHAD=1
B201: SMC6 | C201: CANCER | D201: Frequency | E201: Weighted | F201: Std Dev of | G201: 95% Confidence Limits | I201: Percent | J201: Std Err of
E202: Frequency | F202: Wgt Freq | G202: for Wgt Freq | J202: Percent
B203: 0 | C203: 0 | D203: 45082 | E203: 125437050 | F203: 1358691 | G203: 122763277 | H203: 128110823 | I203: 89.8851 | J203: 0.1834
C204: 1 | D204: 3032 | E204: 8786899 | F204: 217950 | G204: 8357995 | H204: 9215803 | I204: 6.2965 | J204: 0.1455
C205: Total | D205: 48114 | E205: 134223949 | F205: 1423230 | G205: 131423169 | H205: 137024729 | I205: 96.1815 | J205: 0.1119
B206: 1 | C206: 0 | D206: 1547 | E206: 4154558 | F206: 134869 | G206: 3889150 | H206: 4419966 | I206: 2.9771 | J206: 0.0963 | K206: % | L206: LL (%) | M206: UL (%)
C207: 1 | D207: 416 | E207: 1174224 | F207: 70551 | G207: 1035387 | H207: 1313061 | I207: 0.8414 | J207: 0.0511 | K207: =E207/E211 -> 0.008414195778 | L207: =G207/G211 -> 0.007573039404 | M207: =H207/H211 -> 0.009221884478
C208: Total | D208: 1963 | E208: 5328782 | F208: 155120 | G208: 5023521 | H208: 5634043 | I208: 3.8185 | J208: 0.1119
B209: Total | C209: 0 | D209: 46629 | E209: 129591608 | F209: 1374492 | G209: 126886741 | H209: 132296475 | I209: 92.8621 | J209: 0.1523
C210: 1 | D210: 3448 | E210: 9961123 | F210: 226503 | G210: 9515387 | H210: 10406859 | I210: 7.1379 | J210: 0.1523
C211: Total | D211: 50077 | E211: 139552731 | F211: 1439396 | G211: 136720139 | H211: 142385323 | I211: 100
B213: Table of SMC6 by CANCER
B214: Controlling for CHAD=2
B215: SMC6 | C215: CANCER | D215: Frequency | E215: Weighted | F215: Std Dev of | G215: 95% Confidence Limits | I215: Percent | J215: Std Err of
E216: Frequency | F216: Wgt Freq | G216: for Wgt Freq | J216: Percent
B217: 0 | C217: 0 | D217: 60343 | E217: 169946950 | F217: 2088926 | G217: 165836146 | H217: 174057754 | I217: 97.931 | J217: 0.0787
C218: 1 | D218: 0 | E218: . | F218: . | G218: . | H218: . | I218: . | J218: .
... 209 more rows

Sheet Input_SMC_Option6
B2: Special Medical Care (SMC)
B3: Input Worksheet for Option 6: Medical Condition
B5: Step 8: Enter the rate of those needing SMC per 100,000 persons by medical condition
B6: Medical Conditions | C6: Rate (No.) | D6: 95% Confidence Limits
D7: Lower Limit | E7: Upper Limit
B8: Heart diseases | C8: =Calculation_SN_Option6!C11 -> 1492.898767 | D8: =Calculation_SN_Option6!D11 -> 1386.138146 | E8: =Calculation_SN_Option6!E11 -> 1595.411628
B9: Hypertension | C9: =Calculation_SN_Option6!C12 -> 2419.12643 | D9: =Calculation_SN_Option6!D12 -> 2299.277212 | E9: =Calculation_SN_Option6!E12 -> 2534.207125
B10: Stroke | C10: =Calculation_SN_Option6!C13 -> 472.2007196 | D10: =Calculation_SN_Option6!D13 -> 412.871874 | E10: =Calculation_SN_Option6!E13 -> 529.1690071
B11: Respiratory problems | C11: =Calculation_SN_Option6!C14 -> 595.3262212 | D11: =Calculation_SN_Option6!D14 -> 529.8078288 | E11: =Calculation_SN_Option6!E14 -> 658.2377876 | G11: Additional Intermediate Results for Option 6:
B12: Cancer | C12: =Calculation_SN_Option6!C15 -> 841.4195778 | D12: =Calculation_SN_Option6!D15 -> 757.3039404 | E12: =Calculation_SN_Option6!E15 -> 922.1884478 | G12: Distribution by:
B13: Diabetes | C13: =Calculation_SN_Option6!C16 -> 1237.306492 | D13: =Calculation_SN_Option6!D16 -> 1140.124645 | E13: =Calculation_SN_Option6!E16 -> 1330.621696
B14: Musculoskeletal/connective tissue problems | C14: =Calculation_SN_Option6!C17 -> 3107.317907 | D14: =Calculation_SN_Option6!D17 -> 2966.545404 | E14: =Calculation_SN_Option6!E17 -> 3242.489396
B16: Intermediate results: Subtotal and total
B17: At least one of the above medical conditions | C17: =SUM(C8:C14)*Calculation_SN_Option6!C35 -> 3593.609358 | D17: =C17*Calculation_SN_Option6!D35 -> 3495.871958 | E17: =C17*Calculation_SN_Option6!E35 -> 3687.458011
B18: Other | C18: =C17*Calculation_SN_Option6!C36 -> 224.8626722 | D18: =C18*Calculation_SN_Option6!D36 -> 178.4375014 | E18: =C18*Calculation_SN_Option6!E36 -> 269.4406923
B19: Total | C19: =C17*Calculation_SN_Option6!C37 -> 3818.47203 | D19: =C19*Calculation_SN_Option6!D37 -> 3674.309459 | E19: =C19*Calculation_SN_Option6!E37 -> 3956.898704
B20: Data source: National Health Interview Survey, NCHS, CDC, 2014
B22: Notes: 1. The rates in the WHITE cells are national estimates per 100,000 persons. MedCon:PreEvent calculates the rates in the YELLOW
B23: colored cells based on weights derived from national estimates. 2. If you enter your own rates, they MUST be per 100,000 population
B24: 3. Other= Persons who do not have any of the listed seven medical conditions but need SMC

Sheet Input_SMC_Option66
B2: "Special Medical Care (SMC)
B3: Input Worksheet for Option 6: Clinical Visits
B5: Step9: Determine the number of clinical visits by those needing SMC in the first month following an event
F6: No. of Office visits by those needing SMC in past 12 months due to pre-existing medical conditions
F8: <6 | G8: 6-12 | H8: >12
B9: Proportion of total office visits before an event in past 12 months* | F9: ='Input_Special Needs'!D24 -> 0.6708 | G9: ='Input_Special Needs'!E24 -> 0.3292 | H9: ='Input_Special Needs'!F24 -> 0 | I9: =F9+G9+H9 -> 1 | J9: Note: The sum of the proportions must be 1
B10: Assumption: Number of clinical visits in the first month following an event | F10: 1 | G10: 1.5 | H10: 2
B11: *Data source: National Health Interview Survey, 2014
B13: Intermediate results:
B14: Average number of clinical visits by those needing SMC in the first month following disaster | I14: =(F9*F10+G9*G10+H9*H10) -> 1.1646
B16: Step 10: Determine distribution of clinical visits by week among those needing SMC
B17: Week | E17: 1 | F17: 2 | G17: 3 | H17: 4
B18: Proportion | E18: =Distribution!H41 -> 0.6624172185 | F18: =Distribution!O41-Distribution!H41 -> 0.2430463576 | G18: =Distribution!S41-Distribution!O41 -> 0.09453642384 | H18: =1-E18-F18-G18 -> 0 | I18: =SUM(E18:H18) -> 1 | J18: Note: The sum of the proportions must be 1
B19: Cum_Proportion | E19: =E18 -> 0.6624172185 | F19: =E19+F18 -> 0.9054635762 | G19: =F19+G18 -> 1 | H19: =G19+H18 -> 1
B21: Additional Intermediate Results for Option 1:Distribution by

Sheet Input_SMC_Option6_NoMedCon
B2: Special Medical Care (SMC)
B3: Intermediate Results for Option 6: No. of Medical Conditions
B5: Step 8.1: Rate of those needing SMC by number of the selected medical condition per 100,000 persons
B6: No. of Medical Conditions | C6: Rate (No.) | D6: 95% Confidence Limits
D7: Lower Limit | E7: Upper Limit
B8: Other | C8: =Input_SMC_Option6!$C$19*Calculation_SN_Option6!H34 -> 224.8626722 | D8: =C8*Calculation_SN_Option6!I34 -> 178.4375014 | E8: =C8*Calculation_SN_Option6!J34 -> 269.4406923
B9: 1 | C9: =Input_SMC_Option6!$C$19*Calculation_SN_Option6!H35 -> 619.8474181 | D9: =C9*Calculation_SN_Option6!I35 -> 545.7352556 | E9: =C9*Calculation_SN_Option6!J35 -> 691.0108284
B10: 2 | C10: =Input_SMC_Option6!$C$19*Calculation_SN_Option6!H36 -> 892.2390777 | D10: =C10*Calculation_SN_Option6!I36 -> 814.4952222 | E10: =C10*Calculation_SN_Option6!J36 -> 966.8896843
B11: 3 | C11: =Input_SMC_Option6!$C$19*Calculation_SN_Option6!H37 -> 1019.045625 | D11: =C11*Calculation_SN_Option6!I37 -> 937.6153428 | E11: =C11*Calculation_SN_Option6!J37 -> 1097.235984
B12: 4 | C12: =Input_SMC_Option6!$C$19*Calculation_SN_Option6!H38 -> 686.8435989 | D12: =C12*Calculation_SN_Option6!I38 -> 609.7594737 | E12: =C12*Calculation_SN_Option6!J38 -> 760.8607244
B13: 5 | C13: =Input_SMC_Option6!$C$19*Calculation_SN_Option6!H39 -> 301.1456651 | D13: =C13*Calculation_SN_Option6!I39 -> 247.8515619 | E13: =C13*Calculation_SN_Option6!J39 -> 352.3193188
B14: 6 | C14: =Input_SMC_Option6!$C$19*Calculation_SN_Option6!H40 -> 70.38486406 | D14: =C14*Calculation_SN_Option6!I40 -> 48.24746411 | E14: =C14*Calculation_SN_Option6!J40 -> 91.64146785
B15: 7 | C15: =Input_SMC_Option6!$C$19*Calculation_SN_Option6!H41 -> 4.103108523 | D15: =C15*Calculation_SN_Option6!I41 -> 0 | E15: =C15*Calculation_SN_Option6!J41 -> 10.89367898
B16: Total | C16: =Input_SMC_Option6!$C$19*Calculation_SN_Option6!H42 -> 3818.47203 | D16: =C16*Calculation_SN_Option6!I42 -> 3674.309459 | E16: =C16*Calculation_SN_Option6!J42 -> 3956.898704
B17: Data source: National Health Interview Survey, NCHS, CDC, 2006
B19: Note: 1. Values in Goldcells are estimated based on weights derived from national
B20: estimates of the distribution of SMC needs with Option 6
B21: 2. Other= Persons who do not have any of the listed seven medical conditions but need SMC

Sheet Input_SMC_Option6_Age
B2: Special Medical Care (SMC)
B3: Intermediate Results for Option 6: Age Category
B5: Step 8.2: Rates of those needing SMC per 100,000 persons by age category
B6: Age Category (Yrs) | C6: Rate (No.) | D6: 95% Confidence Limits
D7: Lower Limit | E7: Upper Limit
B8: <5 | C8: =Input_SMC_Option6!$C$19*Calculation_SN_Option6!C42 -> 25.47065883 | D8: =C8*Calculation_SN_Option6!D42 -> 10.55221279 | E8: =C8*Calculation_SN_Option6!E42 -> 39.79553426
B9: 5-17 | C9: =Input_SMC_Option6!$C$19*Calculation_SN_Option6!C43 -> 83.08543958 | D9: =C9*Calculation_SN_Option6!D43 -> 48.21455016 | E9: =C9*Calculation_SN_Option6!E43 -> 116.5688966
B10: 18-64 | C10: =Input_SMC_Option6!$C$19*Calculation_SN_Option6!C44 -> 2357.629963 | D10: =C10*Calculation_SN_Option6!D44 -> 2221.634663 | E10: =C10*Calculation_SN_Option6!E44 -> 2488.214322
B11: ≥65 | C11: =Input_SMC_Option6!$C$19*Calculation_SN_Option6!C45 -> 1352.285969 | D11: =C11*Calculation_SN_Option6!D45 -> 1249.642527 | E11: =C11*Calculation_SN_Option6!E45 -> 1450.845464
B12: Total | C12: =Input_SMC_Option6!$C$19*Calculation_SN_Option6!C46 -> 3818.47203 | D12: =C12*Calculation_SN_Option6!D46 -> 3674.309459 | E12: =C12*Calculation_SN_Option6!E46 -> 3956.898704
B13: Data source: National Health Interview Survey, NCHS, CDC, 2006
B15: Note: Values in Gold cells are estimated based on weights derived from national estimates of the distribution of SMC needs with option 6

Sheet Input_SMC_Option6_ClinicalVisit
B2: Special Medical Care (SMC)
B3: Intermediate Results for Option 6: Clinical Visits
B5: Step 10.1: Distribution of clinical visits by week among those needing SMC per 100,000 persons
B6: Week | C6: Rate (Visit) | D6: 95% Confidence Limits
D7: Lower Limit | E7: Upper Limit
B8: 1 | C8: =Input_SMC_Option6!$C$19*Input_SMC_Option66!$I$14*Input_SMC_Option66!E18 -> 2945.76442 | D8: =Input_SMC_Option6!$D$19*Input_SMC_Option66!$I$14*Input_SMC_Option66!E18 -> 2834.550047 | E8: =Input_SMC_Option6!$E$19*Input_SMC_Option66!$I$14*Input_SMC_Option66!E18 -> 3052.553829
B9: 2 | C9: =Input_SMC_Option6!$C$19*Input_SMC_Option66!$I$14*Input_SMC_Option66!F18 -> 1080.825336 | D9: =Input_SMC_Option6!$D$19*Input_SMC_Option66!$I$14*Input_SMC_Option66!F18 -> 1040.019862 | E9: =Input_SMC_Option6!$E$19*Input_SMC_Option66!$I$14*Input_SMC_Option66!F18 -> 1120.007253
B10: 3 | C10: =Input_SMC_Option6!$C$19*Input_SMC_Option66!$I$14*Input_SMC_Option66!G18 -> 420.4027702 | D10: =Input_SMC_Option6!$D$19*Input_SMC_Option66!$I$14*Input_SMC_Option66!G18 -> 404.5308865 | E10: =Input_SMC_Option6!$E$19*Input_SMC_Option66!$I$14*Input_SMC_Option66!G18 -> 435.6431483
B11: 4 | C11: =Input_SMC_Option6!$C$19*Input_SMC_Option66!$I$14*Input_SMC_Option66!H18 -> 0 | D11: =Input_SMC_Option6!$D$19*Input_SMC_Option66!$I$14*Input_SMC_Option66!H18 -> 0 | E11: =Input_SMC_Option6!$E$19*Input_SMC_Option66!$I$14*Input_SMC_Option66!H18 -> 0
B12: Total Visits | C12: =Input_SMC_Option6!$C$19*Input_SMC_Option66!$I$14 -> 4446.992526 | D12: =Input_SMC_Option6!$D$19*Input_SMC_Option66!$I$14 -> 4279.100796 | E12: =Input_SMC_Option6!$E$19*Input_SMC_Option66!$I$14 -> 4608.20423
B13: Data source: National Health Interview Survey, 2014

Sheet Summary Results
B1: Summary Results
B2: Inputs Entered by User
B3: State/Country: | E3: ='Main Menu1'!D11 -> USA | H3: No. of office visits past 12 months, OR | M3: =IF(Working!C4=1,">12",IF(Working!C4=2,">9",IF(Working!C4=3,"≥6",IF(Working!C4=4,"NA",IF(Working!C4=5,"NA",IF(Working!C4=6,"NA")))))) -> >12 | N3: =IF(Working!C4=1,"NA",IF(Working!C4=2,"NA",IF(Working!C4=3,"NA",IF(Working!C4=4,"POOR Health",IF(Working!C4=5,"POOR Health and >=6 office visits or FAIR Health and >12 office visits",IF(Working!C4=6,"POOR Health or FAIR Health and >12 office visits")))))) -> NA | O3: =IF(Working!#REF!=1,">=6",IF(Working!#REF!=2,">=6",IF(Working!#REF!=3,">=6",IF(Working!#REF!=4,">3",IF(Working!#REF!=5,">3"))))) -> 
B4: City: | E4: ='Main Menu1'!D12 -> None | H4: No. of home visits per month past 12 months, OR | M4: =IF(Working!C4=1,">4",IF(Working!C4=2,">4",IF(Working!C4=3,">2",IF(Working!C4=4,"NA",IF(Working!C4=5,"NA",IF(Working!C4=6,"NA")))))) -> >4 | N4: =IF(Working!D1=1,">=6",IF(Working!D1=2,">=6",IF(Working!D1=3,">=6",IF(Working!D1=4,">3",IF(Working!D1=5,">3"))))) -> FALSE | O4: =IF(Working!E1=1,">=6",IF(Working!E1=2,">=6",IF(Working!E1=3,">=6",IF(Working!E1=4,">3",IF(Working!E1=5,">3"))))) -> FALSE
B5: Population at risk | E5: ='Main Menu1'!D20 -> 1000000 | H5: No. of times in hospital overnight past 12 months, OR | M5: =IF(Working!C4=1,">6",IF(Working!C4=2,">6",IF(Working!C4=3,">3",IF(Working!C4=4,"NA",IF(Working!C4=5,"NA",IF(Working!C4=6,"NA")))))) -> >6 | N5: =IF(Working!D2=1,">=6",IF(Working!D2=2,">=6",IF(Working!D2=3,">=6",IF(Working!D2=4,">3",IF(Working!D2=5,">3"))))) -> FALSE | O5: =IF(Working!E2=1,">=6",IF(Working!E2=2,">=6",IF(Working!E2=3,">=6",IF(Working!E2=4,">3",IF(Working!E2=5,">3"))))) -> FALSE
B6: Cut-off option for special needs | E6: =Working!C4 -> 1 | H6: No. of times ER/Ed visits past 12 months, OR | M6: =IF(Working!C4=1,"≥6",IF(Working!C4=2,">6",IF(Working!C4=3,">3",IF(Working!C4=4,"NA",IF(Working!C4=5,"NA",IF(Working!C4=6,"NA")))))) -> ≥6 | N6: =IF(Working!D3=1,">=6",IF(Working!D3=2,">=6",IF(Working!D3=3,">=6",IF(Working!D3=4,">3",IF(Working!D3=5,">3"))))) -> FALSE | O6: =IF(Working!E3=1,">=6",IF(Working!E3=2,">=6",IF(Working!E3=3,">=6",IF(Working!E3=4,">3",IF(Working!E3=5,">3"))))) -> FALSE
B7: Hospitalization rate: Month/Annual | E7: =Working!A54 -> Annual | H7: No. of surgeries past 12 months | M7: =IF(Working!C4=1,"≥6",IF(Working!C4=2,"≥6",IF(Working!C4=3,">3",IF(Working!C4=4,"NA",IF(Working!C4=5,"NA",IF(Working!C4=6,"NA")))))) -> ≥6 | N7: =IF(Working!D4=1,">=6",IF(Working!D4=2,">=6",IF(Working!D4=3,">=6",IF(Working!D4=4,">3",IF(Working!D4=5,">3"))))) -> FALSE | O7: =IF(Working!E4=1,">=6",IF(Working!E4=2,">=6",IF(Working!E4=3,">=6",IF(Working!E4=4,">3",IF(Working!E4=5,">3"))))) -> FALSE
B8: Outputs
F9: Special Medical Care | J9: Clinical Visits in the First Month
G10: =IF(Working!C4=1,Input_SMC_Option1!C19/100000*'Main Menu1'!$D$20,IF(Working!C4=2,Input_SMC_Option2!C19/100000*'Main Menu1'!$D$20,IF(Working!C4=3,Input_SMC_Option3!C19/100000*'Main Menu1'!$D$20,IF(Working!C4=4,Input_SMC_Option4!C19/100000*'Main Menu1'!$D$20,IF(Working!C4=5,Input_SMC_Option5!C19/100000*'Main Menu1'!$D$20,IF(Working!C4=6,Input_SMC_Option6!C19/100000*'Main Menu1'!$D$20)))))) -> 71243.94434 | K10: =IF(Working!C4=1,Input_SMC_Option1_ClinicalVisit!C12/100000*'Main Menu1'!$D$20,IF(Working!C4=2,Input_SMC_Option2_ClinicalVisit!C12/100000*'Main Menu1'!$D$20,IF(Working!C4=3,Input_SMC_Option3_ClinicalVisit!C12/100000*'Main Menu1'!$D$20,IF(Working!C4=4,Input_SMC_Option4_ClinicalVisit!C12/100000*'Main Menu1'!$D$20,IF(Working!C4=5,Input_SMC_Option5_ClinicalVisit!C12/100000*'Main Menu1'!$D$20,IF(Working!C4=6,Input_SMC_Option6_ClinicalVisit!C12/100000*'Main Menu1'!$D$20)))))) -> 101807.5965
F11: CL = | G11: =IF(Working!C4=1,Input_SMC_Option1!D19/100000*'Main Menu1'!$D$20,IF(Working!C4=2,Input_SMC_Option2!D19/100000*'Main Menu1'!$D$20,IF(Working!C4=3,Input_SMC_Option3!D19/100000*'Main Menu1'!$D$20,IF(Working!C4=4,Input_SMC_Option4!D19/100000*'Main Menu1'!$D$20,IF(Working!C4=5,Input_SMC_Option5!D19/100000*'Main Menu1'!$D$20,IF(Working!C4=6,Input_SMC_Option6!D19/100000*'Main Menu1'!$D$20)))))) -> 65313.16502 | H11: =IF(Working!C4=1,Input_SMC_Option1!E19/100000*'Main Menu1'!$D$20,IF(Working!C4=2,Input_SMC_Option2!E19/100000*'Main Menu1'!$D$20,IF(Working!C4=3,Input_SMC_Option3!E19/100000*'Main Menu1'!$D$20,IF(Working!C4=4,Input_SMC_Option4!E19/100000*'Main Menu1'!$D$20,IF(Working!C4=5,Input_SMC_Option5!E19/100000*'Main Menu1'!$D$20,IF(Working!C4=6,Input_SMC_Option6!E19/100000*'Main Menu1'!$D$20)))))) -> 75255.82535 | J11: CL = | K11: =IF(Working!C4=1,Input_SMC_Option1_ClinicalVisit!D12/100000*'Main Menu1'!$D$20,IF(Working!C4=2,Input_SMC_Option2_ClinicalVisit!D12/100000*'Main Menu1'!$D$20,IF(Working!C4=3,Input_SMC_Option3_ClinicalVisit!D12/100000*'Main Menu1'!$D$20,IF(Working!C4=4,Input_SMC_Option4_ClinicalVisit!D12/100000*'Main Menu1'!$D$20,IF(Working!C4=5,Input_SMC_Option5_ClinicalVisit!D12/100000*'Main Menu1'!$D$20,IF(Working!C4=6,Input_SMC_Option6_ClinicalVisit!D12/100000*'Main Menu1'!$D$20)))))) -> 93332.51281 | L11: =IF(Working!C4=1,Input_SMC_Option1_ClinicalVisit!E12/100000*'Main Menu1'!$D$20,IF(Working!C4=2,Input_SMC_Option2_ClinicalVisit!E12/100000*'Main Menu1'!$D$20,IF(Working!C4=3,Input_SMC_Option3_ClinicalVisit!E12/100000*'Main Menu1'!$D$20,IF(Working!C4=4,Input_SMC_Option4_ClinicalVisit!E12/100000*'Main Menu1'!$D$20,IF(Working!C4=5,Input_SMC_Option5_ClinicalVisit!E12/100000*'Main Menu1'!$D$20,IF(Working!C4=6,Input_SMC_Option6_ClinicalVisit!E12/100000*'Main Menu1'!$D$20)))))) -> 107540.5744
B13: Population | F13: Daily Hospitalization | J13: Daily Occupation of Hospital Beds
B14: ='Main Menu1'!D20 -> 1000000 | G14: =(INPUT_Hos_Season!I12/100000)*'Main Menu1'!D20 -> 346.0805627 | K14: =(INPUT_Hos_Season!I12*INPUT_HosLOS_MedCond!C20)/100000*'Main Menu1'!D20 -> 1389.354262
F15: CL = | G15: =(INPUT_Hos_Season!J12/100000)*'Main Menu1'!D$20 -> 279.8849323 | H15: =(INPUT_Hos_Season!K12/100000)*'Main Menu1'!D$20 -> 435.93744 | J15: CL = | K15: =(INPUT_Hos_Season!J12*INPUT_HosLOS_MedCond!D20)/100000*'Main Menu1'!D20 -> 1055.83229 | L15: =(INPUT_Hos_Season!K12*INPUT_HosLOS_MedCond!E20)/100000*'Main Menu1'!D20 -> 1855.655315
F17: Demand for Nursing Home Beds
G18: =('INPUT_Nursing Homes'!C11/100000)*'Main Menu1'!D20 -> 5094.385557 | M18: CL=95% confidence limits
F19: CL = | G19: =('INPUT_Nursing Homes'!D11/100000)*'Main Menu1'!$D$20 -> 5040.417083 | H19: =('INPUT_Nursing Homes'!E11/100000)*'Main Menu1'!$D$20 -> 5148.354031

Sheet Detail Result_Hospitalization
B1: Demand for Hospital Services
B3: Estimated Hospitalization rate: Month/Annual | E3: =Working!A54 -> Annual
B4: No. of Persons at Risk of Daily Hospitalization and Demand for Beds
B5: Medical Condition | C5: Daily Hospitalization | F5: Daily Bed Occupation
C6: No. | D6: 95% Confidence Limit | F6: No. | G6: 95% Confidence Limit
D7: Lower Limit | E7: Upper limit | G7: Lower Limit | H7: Upper limit
B8: Heart Diseases | C8: =(INPUT_HosRate_MedCond!C9/100000)*'Main Menu1'!$D$20 -> 108.330711 | D8: =(INPUT_HosRate_MedCond!D9/100000)*'Main Menu1'!$D$20 -> 79.67186623 | E8: =(INPUT_HosRate_MedCond!E9/100000)*'Main Menu1'!$D$20 -> 140.6579868 | F8: =(INPUT_HosRate_MedCond!C9*INPUT_HosLOS_MedCond!C9)/100000*'Main Menu1'!$D$20 -> 485.3292769 | G8: =(INPUT_HosRate_MedCond!D9*INPUT_HosLOS_MedCond!D9)/100000*'Main Menu1'!$D$20 -> 329.2216592 | H8: =(INPUT_HosRate_MedCond!E9*INPUT_HosLOS_MedCond!E9)/100000*'Main Menu1'!$D$20 -> 679.0857873
B9: Hypertension | C9: =(INPUT_HosRate_MedCond!C10/100000)*'Main Menu1'!$D$20 -> 168.7379257 | D9: =(INPUT_HosRate_MedCond!D10/100000)*'Main Menu1'!$D$20 -> 130.1085155 | E9: =(INPUT_HosRate_MedCond!E10/100000)*'Main Menu1'!$D$20 -> 210.2637641 | F9: =(INPUT_HosRate_MedCond!C10*INPUT_HosLOS_MedCond!C10)/100000*'Main Menu1'!$D$20 -> 892.4756438 | G9: =(INPUT_HosRate_MedCond!D10*INPUT_HosLOS_MedCond!D10)/100000*'Main Menu1'!$D$20 -> 528.3003498 | H9: =(INPUT_HosRate_MedCond!E10*INPUT_HosLOS_MedCond!E10)/100000*'Main Menu1'!$D$20 -> 1015.027903
B10: Stroke | C10: =(INPUT_HosRate_MedCond!C11/100000)*'Main Menu1'!$D$20 -> 33.56252817 | D10: =(INPUT_HosRate_MedCond!D11/100000)*'Main Menu1'!$D$20 -> 20.56038853 | E10: =(INPUT_HosRate_MedCond!E11/100000)*'Main Menu1'!$D$20 -> 51.91478967 | F10: =(INPUT_HosRate_MedCond!C11*INPUT_HosLOS_MedCond!C11)/100000*'Main Menu1'!$D$20 -> 199.5967578 | G10: =(INPUT_HosRate_MedCond!D11*INPUT_HosLOS_MedCond!D11)/100000*'Main Menu1'!$D$20 -> 101.9661604 | H10: =(INPUT_HosRate_MedCond!E11*INPUT_HosLOS_MedCond!E11)/100000*'Main Menu1'!$D$20 -> 360.0121121
B11: Respiratory Conditions | C11: =(INPUT_HosRate_MedCond!C12/100000)*'Main Menu1'!$D$20 -> 38.00876815 | D11: =(INPUT_HosRate_MedCond!D12/100000)*'Main Menu1'!$D$20 -> 20.78925321 | E11: =(INPUT_HosRate_MedCond!E12/100000)*'Main Menu1'!$D$20 -> 62.60544145 | F11: =(INPUT_HosRate_MedCond!C12*INPUT_HosLOS_MedCond!C12)/100000*'Main Menu1'!$D$20 -> 173.524736 | G11: =(INPUT_HosRate_MedCond!D12*INPUT_HosLOS_MedCond!D12)/100000*'Main Menu1'!$D$20 -> 75.76473589 | H11: =(INPUT_HosRate_MedCond!E12*INPUT_HosLOS_MedCond!E12)/100000*'Main Menu1'!$D$20 -> 343.4756642
B12: Cancer | C12: =(INPUT_HosRate_MedCond!C13/100000)*'Main Menu1'!$D$20 -> 61.41291299 | D12: =(INPUT_HosRate_MedCond!D13/100000)*'Main Menu1'!$D$20 -> 42.05148542 | E12: =(INPUT_HosRate_MedCond!E13/100000)*'Main Menu1'!$D$20 -> 86.00424498 | F12: =(INPUT_HosRate_MedCond!C13*INPUT_HosLOS_MedCond!C13)/100000*'Main Menu1'!$D$20 -> 293.0461464 | G12: =(INPUT_HosRate_MedCond!D13*INPUT_HosLOS_MedCond!D13)/100000*'Main Menu1'!$D$20 -> 170.4879299 | H12: =(INPUT_HosRate_MedCond!E13*INPUT_HosLOS_MedCond!E13)/100000*'Main Menu1'!$D$20 -> 400.3635572
B13: Diabetes | C13: =(INPUT_HosRate_MedCond!C14/100000)*'Main Menu1'!$D$20 -> 68.46130187 | D13: =(INPUT_HosRate_MedCond!D14/100000)*'Main Menu1'!$D$20 -> 47.08344244 | E13: =(INPUT_HosRate_MedCond!E14/100000)*'Main Menu1'!$D$20 -> 97.792054 | F13: =(INPUT_HosRate_MedCond!C14*INPUT_HosLOS_MedCond!C14)/100000*'Main Menu1'!$D$20 -> 347.0537529 | G13: =(INPUT_HosRate_MedCond!D14*INPUT_HosLOS_MedCond!D14)/100000*'Main Menu1'!$D$20 -> 210.0013068 | H13: =(INPUT_HosRate_MedCond!E14*INPUT_HosLOS_MedCond!E14)/100000*'Main Menu1'!$D$20 -> 555.3112291
B14: Musculoskeletal/Connective Tissue | C14: =(INPUT_HosRate_MedCond!C15/100000)*'Main Menu1'!$D$20 -> 201.8479122 | D14: =(INPUT_HosRate_MedCond!D15/100000)*'Main Menu1'!$D$20 -> 159.8137357 | E14: =(INPUT_HosRate_MedCond!E15/100000)*'Main Menu1'!$D$20 -> 257.0028528 | F14: =(INPUT_HosRate_MedCond!C15*INPUT_HosLOS_MedCond!C15)/100000*'Main Menu1'!$D$20 -> 852.2345848 | G14: =(INPUT_HosRate_MedCond!D15*INPUT_HosLOS_MedCond!D15)/100000*'Main Menu1'!$D$20 -> 622.1393313 | H14: =(INPUT_HosRate_MedCond!E15*INPUT_HosLOS_MedCond!E15)/100000*'Main Menu1'!$D$20 -> 1169.728374
B15: At least one of the above medical conditions | C15: =(INPUT_HosRate_MedCond!C19/100000)*'Main Menu1'!$D$20 -> 264.1671257 | D15: =(INPUT_HosRate_MedCond!D19/100000)*'Main Menu1'!$D$20 -> 214.1450407 | E15: =(INPUT_HosRate_MedCond!E19/100000)*'Main Menu1'!$D$20 -> 330.7675164 | F15: =(INPUT_HosRate_MedCond!C19*INPUT_HosLOS_MedCond!C18)/100000*'Main Menu1'!$D$20 -> 1134.861972 | G15: =(INPUT_HosRate_MedCond!D19*INPUT_HosLOS_MedCond!D18)/100000*'Main Menu1'!$D$20 -> 856.1518726 | H15: =(INPUT_HosRate_MedCond!E19*INPUT_HosLOS_MedCond!E18)/100000*'Main Menu1'!$D$20 -> 1519.215203
B16: Other | C16: =(INPUT_HosRate_MedCond!C20/100000)*'Main Menu1'!$D$20 -> 81.91343698 | D16: =(INPUT_HosRate_MedCond!D20/100000)*'Main Menu1'!$D$20 -> 65.73989164 | E16: =(INPUT_HosRate_MedCond!E20/100000)*'Main Menu1'!$D$20 -> 105.1699236 | F16: =(INPUT_HosRate_MedCond!C20*INPUT_HosLOS_MedCond!C19)/100000*'Main Menu1'!$D$20 -> 270.9595742 | G16: =(INPUT_HosRate_MedCond!D20*INPUT_HosLOS_MedCond!D19)/100000*'Main Menu1'!$D$20 -> 192.4756194 | H16: =(INPUT_HosRate_MedCond!E20*INPUT_HosLOS_MedCond!E19)/100000*'Main Menu1'!$D$20 -> 387.8579534
B17: Total | C17: =(INPUT_HosRate_MedCond!C21/100000)*'Main Menu1'!$D$20 -> 346.0805627 | D17: =(INPUT_HosRate_MedCond!D21/100000)*'Main Menu1'!$D$20 -> 279.8849323 | E17: =(INPUT_HosRate_MedCond!E21/100000)*'Main Menu1'!$D$20 -> 435.93744 | F17: =(INPUT_HosRate_MedCond!C21*INPUT_HosLOS_MedCond!C20)/100000*'Main Menu1'!$D$20 -> 1389.354262 | G17: =(INPUT_HosRate_MedCond!D21*INPUT_HosLOS_MedCond!D20)/100000*'Main Menu1'!$D$20 -> 1055.83229 | H17: =(INPUT_HosRate_MedCond!E21*INPUT_HosLOS_MedCond!E20)/100000*'Main Menu1'!$D$20 -> 1855.655315
B18: Note: Others= Persons who do not have any of seven listed medical conditions but need special medical care.
G20: Monthly Variation in Hospitalization
G21: Month | H21: Annual Mean | I21: Monthly Mean | J21: LL | K21: UL
G22: Jan | H22: =(INPUT_Hospitalization_Total!$C$8/100000)*'Main Menu1'!$D$20 -> 346.0805627 | I22: =INPUT_Hos_Season!C7*(INPUT_Hospitalization_Total!$C$8/100000)*'Main Menu1'!$D$20 -> 354.8791517 | J22: =INPUT_Hos_Season!D7*(INPUT_Hospitalization_Total!$C$8/100000)*'Main Menu1'!$D$20 -> 347.5340474 | K22: =INPUT_Hos_Season!E7*(INPUT_Hospitalization_Total!$C$8/100000)*'Main Menu1'!$D$20 -> 362.2242559
B23: Estimates for the month chosen | G23: Feb | H23: =(INPUT_Hospitalization_Total!$C$8/100000)*'Main Menu1'!$D$20 -> 346.0805627 | I23: =INPUT_Hos_Season!C8*(INPUT_Hospitalization_Total!$C$8/100000)*'Main Menu1'!$D$20 -> 384.1640856 | J23: =INPUT_Hos_Season!D8*(INPUT_Hospitalization_Total!$C$8/100000)*'Main Menu1'!$D$20 -> 376.4792595 | K23: =INPUT_Hos_Season!E8*(INPUT_Hospitalization_Total!$C$8/100000)*'Main Menu1'!$D$20 -> 391.8489118
D24: Hospitalization | E24: Hospital Bed Use | G24: Mar | H24: =(INPUT_Hospitalization_Total!$C$8/100000)*'Main Menu1'!$D$20 -> 346.0805627 | I24: =INPUT_Hos_Season!C9*(INPUT_Hospitalization_Total!$C$8/100000)*'Main Menu1'!$D$20 -> 364.9724271 | J24: =INPUT_Hos_Season!D9*(INPUT_Hospitalization_Total!$C$8/100000)*'Main Menu1'!$D$20 -> 357.6075603 | K24: =INPUT_Hos_Season!E9*(INPUT_Hospitalization_Total!$C$8/100000)*'Main Menu1'!$D$20 -> 372.3372939
B25: Annual Average | D25: =C17 -> 346.0805627 | E25: =F17 -> 1389.354262 | G25: Apr | H25: =(INPUT_Hospitalization_Total!$C$8/100000)*'Main Menu1'!$D$20 -> 346.0805627 | I25: =INPUT_Hos_Season!C10*(INPUT_Hospitalization_Total!$C$8/100000)*'Main Menu1'!$D$20 -> 362.839042 | J25: =INPUT_Hos_Season!D10*(INPUT_Hospitalization_Total!$C$8/100000)*'Main Menu1'!$D$20 -> 355.4956562 | K25: =INPUT_Hos_Season!E10*(INPUT_Hospitalization_Total!$C$8/100000)*'Main Menu1'!$D$20 -> 370.1824278
B26: =Working!A54 -> Annual | D26: =INPUT_Hos_Season!I12/100000*'Main Menu1'!D20 -> 346.0805627 | E26: =(INPUT_Hos_Season!I12*Calculation_HosLos_MedCon!C18)/100000*'Main Menu1'!D20 -> 1389.354262 | G26: May | H26: =(INPUT_Hospitalization_Total!$C$8/100000)*'Main Menu1'!$D$20 -> 346.0805627 | I26: =INPUT_Hos_Season!C11*(INPUT_Hospitalization_Total!$C$8/100000)*'Main Menu1'!$D$20 -> 355.0834359 | J26: =INPUT_Hos_Season!D11*(INPUT_Hospitalization_Total!$C$8/100000)*'Main Menu1'!$D$20 -> 347.7282356 | K26: =INPUT_Hos_Season!E11*(INPUT_Hospitalization_Total!$C$8/100000)*'Main Menu1'!$D$20 -> 362.4386363
G27: Jun | H27: =(INPUT_Hospitalization_Total!$C$8/100000)*'Main Menu1'!$D$20 -> 346.0805627 | I27: =INPUT_Hos_Season!C12*(INPUT_Hospitalization_Total!$C$8/100000)*'Main Menu1'!$D$20 -> 333.7763289 | J27: =INPUT_Hos_Season!D12*(INPUT_Hospitalization_Total!$C$8/100000)*'Main Menu1'!$D$20 -> 327.0543884 | K27: =INPUT_Hos_Season!E12*(INPUT_Hospitalization_Total!$C$8/100000)*'Main Menu1'!$D$20 -> 340.4982695
G28: Jul | H28: =(INPUT_Hospitalization_Total!$C$8/100000)*'Main Menu1'!$D$20 -> 346.0805627 | I28: =INPUT_Hos_Season!C13*(INPUT_Hospitalization_Total!$C$8/100000)*'Main Menu1'!$D$20 -> 338.4831373 | J28: =INPUT_Hos_Season!D13*(INPUT_Hospitalization_Total!$C$8/100000)*'Main Menu1'!$D$20 -> 331.7245716 | K28: =INPUT_Hos_Season!E13*(INPUT_Hospitalization_Total!$C$8/100000)*'Main Menu1'!$D$20 -> 345.241703
G29: Aug | H29: =(INPUT_Hospitalization_Total!$C$8/100000)*'Main Menu1'!$D$20 -> 346.0805627 | I29: =INPUT_Hos_Season!C14*(INPUT_Hospitalization_Total!$C$8/100000)*'Main Menu1'!$D$20 -> 336.5247149 | J29: =INPUT_Hos_Season!D14*(INPUT_Hospitalization_Total!$C$8/100000)*'Main Menu1'!$D$20 -> 329.7336056 | K29: =INPUT_Hos_Season!E14*(INPUT_Hospitalization_Total!$C$8/100000)*'Main Menu1'!$D$20 -> 343.3158243
G30: Sep | H30: =(INPUT_Hospitalization_Total!$C$8/100000)*'Main Menu1'!$D$20 -> 346.0805627 | I30: =INPUT_Hos_Season!C15*(INPUT_Hospitalization_Total!$C$8/100000)*'Main Menu1'!$D$20 -> 320.3695025 | J30: =INPUT_Hos_Season!D15*(INPUT_Hospitalization_Total!$C$8/100000)*'Main Menu1'!$D$20 -> 313.8765494 | K30: =INPUT_Hos_Season!E15*(INPUT_Hospitalization_Total!$C$8/100000)*'Main Menu1'!$D$20 -> 326.8624557
G31: Oct | H31: =(INPUT_Hospitalization_Total!$C$8/100000)*'Main Menu1'!$D$20 -> 346.0805627 | I31: =INPUT_Hos_Season!C16*(INPUT_Hospitalization_Total!$C$8/100000)*'Main Menu1'!$D$20 -> 307.662527 | J31: =INPUT_Hos_Season!D16*(INPUT_Hospitalization_Total!$C$8/100000)*'Main Menu1'!$D$20 -> 301.2605458 | K31: =INPUT_Hos_Season!E16*(INPUT_Hospitalization_Total!$C$8/100000)*'Main Menu1'!$D$20 -> 314.0645081
G32: Nov | H32: =(INPUT_Hospitalization_Total!$C$8/100000)*'Main Menu1'!$D$20 -> 346.0805627 | I32: =INPUT_Hos_Season!C17*(INPUT_Hospitalization_Total!$C$8/100000)*'Main Menu1'!$D$20 -> 324.3237242 | J32: =INPUT_Hos_Season!D17*(INPUT_Hospitalization_Total!$C$8/100000)*'Main Menu1'!$D$20 -> 317.8695443 | K32: =INPUT_Hos_Season!E17*(INPUT_Hospitalization_Total!$C$8/100000)*'Main Menu1'!$D$20 -> 330.7779042
G33: Dec | H33: =(INPUT_Hospitalization_Total!$C$8/100000)*'Main Menu1'!$D$20 -> 346.0805627 | I33: =INPUT_Hos_Season!C18*(INPUT_Hospitalization_Total!$C$8/100000)*'Main Menu1'!$D$20 -> 369.8886752 | J33: =INPUT_Hos_Season!D18*(INPUT_Hospitalization_Total!$C$8/100000)*'Main Menu1'!$D$20 -> 362.3493827 | K33: =INPUT_Hos_Season!E18*(INPUT_Hospitalization_Total!$C$8/100000)*'Main Menu1'!$D$20 -> 377.4279676

Sheet Detail Results_Nursing Homes
B2: Occupation of Beds in Nursing Home
B4: State/Country: | C4: ='Main Menu1'!D11 -> USA
B5: City: | C5: ='Main Menu1'!D12 -> None
B6: Population at risk | C6: ='Main Menu1'!D20 -> 1000000
B8: Number of Patients in Nursing Homes
B9: Age Category (Yrs.) | C9: No. | D9: 95% Confidence Limits
D10: Lower Limit | E10: Upper Limit | I10: Age category | J10: No. | K10: %
B11: <5 | C11: =('INPUT_Nursing Homes'!C7/100000)*'Main Menu1'!$D$20 -> 4.545756162 | D11: =('INPUT_Nursing Homes'!D7/100000)*'Main Menu1'!$D$20 -> 0.9827925165 | E11: =('INPUT_Nursing Homes'!E7/100000)*'Main Menu1'!$D$20 -> 8.107907686 | I11: <5 | J11: =C11 -> 4.545756162 | K11: =C11/$C$15*100 -> 0.08923070528
B12: 5-17 | C12: =('INPUT_Nursing Homes'!C8/100000)*'Main Menu1'!$D$20 -> 4.832640849 | D12: =('INPUT_Nursing Homes'!D8/100000)*'Main Menu1'!$D$20 -> 1.131804828 | E12: =('INPUT_Nursing Homes'!E8/100000)*'Main Menu1'!$D$20 -> 8.534819422 | I12: 5-17 | J12: =C12 -> 4.832640849 | K12: =C12/$C$15*100 -> 0.09486209465
B13: 18-64 | C13: =('INPUT_Nursing Homes'!C9/100000)*'Main Menu1'!$D$20 -> 588.3048637 | D13: =('INPUT_Nursing Homes'!D9/100000)*'Main Menu1'!$D$20 -> 555.002333 | E13: =('INPUT_Nursing Homes'!E9/100000)*'Main Menu1'!$D$20 -> 621.6073943 | I13: 18-64 | J13: =C13 -> 588.3048637 | K13: =C13/$C$15*100 -> 11.54810246
B14: ≥65 | C14: =('INPUT_Nursing Homes'!C10/100000)*'Main Menu1'!$D$20 -> 4496.702296 | D14: =('INPUT_Nursing Homes'!D10/100000)*'Main Menu1'!$D$20 -> 4439.171671 | E14: =('INPUT_Nursing Homes'!E10/100000)*'Main Menu1'!$D$20 -> 4554.232922 | I14: ≥65 | J14: =C14 -> 4496.702296 | K14: =C14/$C$15*100 -> 88.26780474
B15: Total | C15: =('INPUT_Nursing Homes'!C11/100000)*'Main Menu1'!$D$20 -> 5094.385557 | D15: =('INPUT_Nursing Homes'!D11/100000)*'Main Menu1'!$D$20 -> 5040.417083 | E15: =('INPUT_Nursing Homes'!E11/100000)*'Main Menu1'!$D$20 -> 5148.354031 | J15: =C15 -> 5094.385557 | K15: =C15/$C$15*100 -> 100

Sheet DetailResults_SMC
B1: Demand for Special Medical Care (SMC)
B2: Input Entered By User
B4: State/Country: | C4: ='Main Menu1'!C11 -> State
B5: City: | C5: ='Main Menu1'!C12 -> City
B6: Population at risk | C6: ='Main Menu1'!D20 -> 1000000
B7: Selected Option | C7: =Working!C4 -> 1
B9: Markers | F9: Threshold
B10: Number of office visits past 12 months, or | F10: =IF(Working!C4=1,">12",IF(Working!C4=2,">9",IF(Working!C4=3,"≥6",IF(Working!C4=4,"NA",IF(Working!C4=5,"NA",IF(Working!C4=6,"NA")))))) -> >12 | G10: =IF(Working!C4=1,"NA",IF(Working!C4=2,"NA",IF(Working!C4=3,"NA",IF(Working!C4=4,"POOR Health",IF(Working!C4=5,"POOR Health and >=6 office visits or FAIR Health and >12 office visits",IF(Working!C4=6,"POOR Health or FAIR Health and >12 office visits")))))) -> NA
B11: Number of home visits per month past 12 months, or | F11: =IF(Working!C4=1,">4",IF(Working!C4=2,">4",IF(Working!C4=3,">2",IF(Working!C4=4,"NA",IF(Working!C4=5,"NA",IF(Working!C4=6,"NA")))))) -> >4 | G11: =IF(Working!#REF!=1,">=6",IF(Working!#REF!=2,">=6",IF(Working!#REF!=3,">=6",IF(Working!#REF!=4,">3",IF(Working!#REF!=5,">3"))))) -> 
B12: Number of times in hospital overnight past 12 months, or | F12: =IF(Working!C4=1,">6",IF(Working!C4=2,">6",IF(Working!C4=3,">3",IF(Working!C4=4,"NA",IF(Working!C4=5,"NA",IF(Working!C4=6,"NA")))))) -> >6 | G12: =IF(Working!C1=1,">=6",IF(Working!C1=2,">=6",IF(Working!C1=3,">=6",IF(Working!C1=4,">3",IF(Working!C1=5,">3"))))) -> FALSE
B13: Number of ER/Ed visits past 12 months, or | F13: =IF(Working!C4=1,"≥6",IF(Working!C4=2,"≥6",IF(Working!C4=3,">3",IF(Working!C4=4,"NA",IF(Working!C4=5,"NA",IF(Working!C4=6,"NA")))))) -> ≥6 | G13: =IF(Working!C2=1,">=6",IF(Working!C2=2,">=6",IF(Working!C2=3,">=6",IF(Working!C2=4,">3",IF(Working!C2=5,">3"))))) -> FALSE
B14: Number of surgeries past 12 months | F14: =IF(Working!C4=1,"≥6",IF(Working!C4=2,"≥6",IF(Working!C4=3,">3",IF(Working!C4=4,"NA",IF(Working!C4=5,"NA",IF(Working!C4=6,"NA")))))) -> ≥6 | G14: =IF(Working!C3=1,">=6",IF(Working!C3=2,">=6",IF(Working!C3=3,">=6",IF(Working!C3=4,">3",IF(Working!C3=5,">3"))))) -> FALSE
B16: Detailed Results: By

Sheet DetailResults_SMC_MedCon
B2: Demand for Special Medical Care (SMC)
B3: by Medical Condition
B4: Option | C4: =Working!C4 -> 1
B5: Number of persons requiring Special Medical Care by medical condition
B6: Medical Conditions | C6: No. | D6: 95% Confidence Limits
D7: Lower Limit | E7: Upper Limit
B8: Heart diseases | C8: =IF(Working!$C$4=1,(Input_SMC_Option1!C8/100000)*'Main Menu1'!$D$20,IF(Working!$C$4=2,(Input_SMC_Option2!C8/100000)*'Main Menu1'!$D$20,IF(Working!$C$4=3,(Input_SMC_Option3!C8/100000)*'Main Menu1'!$D$20,IF(Working!$C$4=4,(Input_SMC_Option4!C8/100000)*'Main Menu1'!$D$20,IF(Working!$C$4=5,(Input_SMC_Option5!C8/100000)*'Main Menu1'!$D$20,IF(Working!$C$4=6,(Input_SMC_Option6!C8/100000)*'Main Menu1'!$D$20)))))) -> 18391.06252 | D8: =IF(Working!$C$4=1,(Input_SMC_Option1!D8/100000)*'Main Menu1'!$D$20,IF(Working!$C$4=2,(Input_SMC_Option2!D8/100000)*'Main Menu1'!$D$20,IF(Working!$C$4=3,(Input_SMC_Option3!D8/100000)*'Main Menu1'!$D$20,IF(Working!$C$4=4,(Input_SMC_Option4!D8/100000)*'Main Menu1'!$D$20,IF(Working!$C$4=5,(Input_SMC_Option5!D8/100000)*'Main Menu1'!$D$20,IF(Working!$C$4=6,(Input_SMC_Option6!D8/100000)*'Main Menu1'!$D$20)))))) -> 17176.84035 | E8: =IF(Working!$C$4=1,(Input_SMC_Option1!E8/100000)*'Main Menu1'!$D$20,IF(Working!$C$4=2,(Input_SMC_Option2!E8/100000)*'Main Menu1'!$D$20,IF(Working!$C$4=3,(Input_SMC_Option3!E8/100000)*'Main Menu1'!$D$20,IF(Working!$C$4=4,(Input_SMC_Option4!E8/100000)*'Main Menu1'!$D$20,IF(Working!$C$4=5,(Input_SMC_Option5!E8/100000)*'Main Menu1'!$D$20,IF(Working!$C$4=6,(Input_SMC_Option6!E8/100000)*'Main Menu1'!$D$20)))))) -> 19556.97358 | G8: Medical Condition | H8: No. | I8: %
B9: Hypertension | C9: =IF(Working!$C$4=1,(Input_SMC_Option1!C9/100000)*'Main Menu1'!$D$20,IF(Working!$C$4=2,(Input_SMC_Option2!C9/100000)*'Main Menu1'!$D$20,IF(Working!$C$4=3,(Input_SMC_Option3!C9/100000)*'Main Menu1'!$D$20,IF(Working!$C$4=4,(Input_SMC_Option4!C9/100000)*'Main Menu1'!$D$20,IF(Working!$C$4=5,(Input_SMC_Option5!C9/100000)*'Main Menu1'!$D$20,IF(Working!$C$4=6,(Input_SMC_Option6!C9/100000)*'Main Menu1'!$D$20)))))) -> 31063.19718 | D9: =IF(Working!$C$4=1,(Input_SMC_Option1!D9/100000)*'Main Menu1'!$D$20,IF(Working!$C$4=2,(Input_SMC_Option2!D9/100000)*'Main Menu1'!$D$20,IF(Working!$C$4=3,(Input_SMC_Option3!D9/100000)*'Main Menu1'!$D$20,IF(Working!$C$4=4,(Input_SMC_Option4!D9/100000)*'Main Menu1'!$D$20,IF(Working!$C$4=5,(Input_SMC_Option5!D9/100000)*'Main Menu1'!$D$20,IF(Working!$C$4=6,(Input_SMC_Option6!D9/100000)*'Main Menu1'!$D$20)))))) -> 29783.13239 | E9: =IF(Working!$C$4=1,(Input_SMC_Option1!E9/100000)*'Main Menu1'!$D$20,IF(Working!$C$4=2,(Input_SMC_Option2!E9/100000)*'Main Menu1'!$D$20,IF(Working!$C$4=3,(Input_SMC_Option3!E9/100000)*'Main Menu1'!$D$20,IF(Working!$C$4=4,(Input_SMC_Option4!E9/100000)*'Main Menu1'!$D$20,IF(Working!$C$4=5,(Input_SMC_Option5!E9/100000)*'Main Menu1'!$D$20,IF(Working!$C$4=6,(Input_SMC_Option6!E9/100000)*'Main Menu1'!$D$20)))))) -> 32292.33114 | G9: Heart | H9: =C8 -> 18391.06252 | I9: =C8/$C$17*100 -> 25.81421156
B10: Stroke | C10: =IF(Working!$C$4=1,(Input_SMC_Option1!C10/100000)*'Main Menu1'!$D$20,IF(Working!$C$4=2,(Input_SMC_Option2!C10/100000)*'Main Menu1'!$D$20,IF(Working!$C$4=3,(Input_SMC_Option3!C10/100000)*'Main Menu1'!$D$20,IF(Working!$C$4=4,(Input_SMC_Option4!C10/100000)*'Main Menu1'!$D$20,IF(Working!$C$4=5,(Input_SMC_Option5!C10/100000)*'Main Menu1'!$D$20,IF(Working!$C$4=6,(Input_SMC_Option6!C10/100000)*'Main Menu1'!$D$20)))))) -> 5117.735747 | D10: =IF(Working!$C$4=1,(Input_SMC_Option1!D10/100000)*'Main Menu1'!$D$20,IF(Working!$C$4=2,(Input_SMC_Option2!D10/100000)*'Main Menu1'!$D$20,IF(Working!$C$4=3,(Input_SMC_Option3!D10/100000)*'Main Menu1'!$D$20,IF(Working!$C$4=4,(Input_SMC_Option4!D10/100000)*'Main Menu1'!$D$20,IF(Working!$C$4=5,(Input_SMC_Option5!D10/100000)*'Main Menu1'!$D$20,IF(Working!$C$4=6,(Input_SMC_Option6!D10/100000)*'Main Menu1'!$D$20)))))) -> 4467.812895 | E10: =IF(Working!$C$4=1,(Input_SMC_Option1!E10/100000)*'Main Menu1'!$D$20,IF(Working!$C$4=2,(Input_SMC_Option2!E10/100000)*'Main Menu1'!$D$20,IF(Working!$C$4=3,(Input_SMC_Option3!E10/100000)*'Main Menu1'!$D$20,IF(Working!$C$4=4,(Input_SMC_Option4!E10/100000)*'Main Menu1'!$D$20,IF(Working!$C$4=5,(Input_SMC_Option5!E10/100000)*'Main Menu1'!$D$20,IF(Working!$C$4=6,(Input_SMC_Option6!E10/100000)*'Main Menu1'!$D$20)))))) -> 5741.799666 | G10: Hypertension | H10: 31063.19718 | I10: 43.60117546
B11: Respiratory problems | C11: =IF(Working!$C$4=1,(Input_SMC_Option1!C11/100000)*'Main Menu1'!$D$20,IF(Working!$C$4=2,(Input_SMC_Option2!C11/100000)*'Main Menu1'!$D$20,IF(Working!$C$4=3,(Input_SMC_Option3!C11/100000)*'Main Menu1'!$D$20,IF(Working!$C$4=4,(Input_SMC_Option4!C11/100000)*'Main Menu1'!$D$20,IF(Working!$C$4=5,(Input_SMC_Option5!C11/100000)*'Main Menu1'!$D$20,IF(Working!$C$4=6,(Input_SMC_Option6!C11/100000)*'Main Menu1'!$D$20)))))) -> 7907.132968 | D11: =IF(Working!$C$4=1,(Input_SMC_Option1!D11/100000)*'Main Menu1'!$D$20,IF(Working!$C$4=2,(Input_SMC_Option2!D11/100000)*'Main Menu1'!$D$20,IF(Working!$C$4=3,(Input_SMC_Option3!D11/100000)*'Main Menu1'!$D$20,IF(Working!$C$4=4,(Input_SMC_Option4!D11/100000)*'Main Menu1'!$D$20,IF(Working!$C$4=5,(Input_SMC_Option5!D11/100000)*'Main Menu1'!$D$20,IF(Working!$C$4=6,(Input_SMC_Option6!D11/100000)*'Main Menu1'!$D$20)))))) -> 7149.707477 | E11: =IF(Working!$C$4=1,(Input_SMC_Option1!E11/100000)*'Main Menu1'!$D$20,IF(Working!$C$4=2,(Input_SMC_Option2!E11/100000)*'Main Menu1'!$D$20,IF(Working!$C$4=3,(Input_SMC_Option3!E11/100000)*'Main Menu1'!$D$20,IF(Working!$C$4=4,(Input_SMC_Option4!E11/100000)*'Main Menu1'!$D$20,IF(Working!$C$4=5,(Input_SMC_Option5!E11/100000)*'Main Menu1'!$D$20,IF(Working!$C$4=6,(Input_SMC_Option6!E11/100000)*'Main Menu1'!$D$20)))))) -> 8634.422243 | G11: Stroke | H11: 5117.735747 | I11: 7.183397542
B12: Cancer | C12: =IF(Working!$C$4=1,(Input_SMC_Option1!C12/100000)*'Main Menu1'!$D$20,IF(Working!$C$4=2,(Input_SMC_Option2!C12/100000)*'Main Menu1'!$D$20,IF(Working!$C$4=3,(Input_SMC_Option3!C12/100000)*'Main Menu1'!$D$20,IF(Working!$C$4=4,(Input_SMC_Option4!C12/100000)*'Main Menu1'!$D$20,IF(Working!$C$4=5,(Input_SMC_Option5!C12/100000)*'Main Menu1'!$D$20,IF(Working!$C$4=6,(Input_SMC_Option6!C12/100000)*'Main Menu1'!$D$20)))))) -> 13195.37774 | D12: =IF(Working!$C$4=1,(Input_SMC_Option1!D12/100000)*'Main Menu1'!$D$20,IF(Working!$C$4=2,(Input_SMC_Option2!D12/100000)*'Main Menu1'!$D$20,IF(Working!$C$4=3,(Input_SMC_Option3!D12/100000)*'Main Menu1'!$D$20,IF(Working!$C$4=4,(Input_SMC_Option4!D12/100000)*'Main Menu1'!$D$20,IF(Working!$C$4=5,(Input_SMC_Option5!D12/100000)*'Main Menu1'!$D$20,IF(Working!$C$4=6,(Input_SMC_Option6!D12/100000)*'Main Menu1'!$D$20)))))) -> 12152.87676 | E12: =IF(Working!$C$4=1,(Input_SMC_Option1!E12/100000)*'Main Menu1'!$D$20,IF(Working!$C$4=2,(Input_SMC_Option2!E12/100000)*'Main Menu1'!$D$20,IF(Working!$C$4=3,(Input_SMC_Option3!E12/100000)*'Main Menu1'!$D$20,IF(Working!$C$4=4,(Input_SMC_Option4!E12/100000)*'Main Menu1'!$D$20,IF(Working!$C$4=5,(Input_SMC_Option5!E12/100000)*'Main Menu1'!$D$20,IF(Working!$C$4=6,(Input_SMC_Option6!E12/100000)*'Main Menu1'!$D$20)))))) -> 14196.4 | G12: Respiratory | H12: 7907.132968 | I12: 11.09867378
B13: Diabetes | C13: =IF(Working!$C$4=1,(Input_SMC_Option1!C13/100000)*'Main Menu1'!$D$20,IF(Working!$C$4=2,(Input_SMC_Option2!C13/100000)*'Main Menu1'!$D$20,IF(Working!$C$4=3,(Input_SMC_Option3!C13/100000)*'Main Menu1'!$D$20,IF(Working!$C$4=4,(Input_SMC_Option4!C13/100000)*'Main Menu1'!$D$20,IF(Working!$C$4=5,(Input_SMC_Option5!C13/100000)*'Main Menu1'!$D$20,IF(Working!$C$4=6,(Input_SMC_Option6!C13/100000)*'Main Menu1'!$D$20)))))) -> 12604.9056 | D13: =IF(Working!$C$4=1,(Input_SMC_Option1!D13/100000)*'Main Menu1'!$D$20,IF(Working!$C$4=2,(Input_SMC_Option2!D13/100000)*'Main Menu1'!$D$20,IF(Working!$C$4=3,(Input_SMC_Option3!D13/100000)*'Main Menu1'!$D$20,IF(Working!$C$4=4,(Input_SMC_Option4!D13/100000)*'Main Menu1'!$D$20,IF(Working!$C$4=5,(Input_SMC_Option5!D13/100000)*'Main Menu1'!$D$20,IF(Working!$C$4=6,(Input_SMC_Option6!D13/100000)*'Main Menu1'!$D$20)))))) -> 11549.6518 | E13: =IF(Working!$C$4=1,(Input_SMC_Option1!E13/100000)*'Main Menu1'!$D$20,IF(Working!$C$4=2,(Input_SMC_Option2!E13/100000)*'Main Menu1'!$D$20,IF(Working!$C$4=3,(Input_SMC_Option3!E13/100000)*'Main Menu1'!$D$20,IF(Working!$C$4=4,(Input_SMC_Option4!E13/100000)*'Main Menu1'!$D$20,IF(Working!$C$4=5,(Input_SMC_Option5!E13/100000)*'Main Menu1'!$D$20,IF(Working!$C$4=6,(Input_SMC_Option6!E13/100000)*'Main Menu1'!$D$20)))))) -> 13618.17327 | G13: Cancer | H13: 13195.37774 | I13: 18.52140257
B14: Musculoskeletal/connective tissue problems | C14: =IF(Working!$C$4=1,(Input_SMC_Option1!C14/100000)*'Main Menu1'!$D$20,IF(Working!$C$4=2,(Input_SMC_Option2!C14/100000)*'Main Menu1'!$D$20,IF(Working!$C$4=3,(Input_SMC_Option3!C14/100000)*'Main Menu1'!$D$20,IF(Working!$C$4=4,(Input_SMC_Option4!C14/100000)*'Main Menu1'!$D$20,IF(Working!$C$4=5,(Input_SMC_Option5!C14/100000)*'Main Menu1'!$D$20,IF(Working!$C$4=6,(Input_SMC_Option6!C14/100000)*'Main Menu1'!$D$20)))))) -> 47581.34042 | D14: =IF(Working!$C$4=1,(Input_SMC_Option1!D14/100000)*'Main Menu1'!$D$20,IF(Working!$C$4=2,(Input_SMC_Option2!D14/100000)*'Main Menu1'!$D$20,IF(Working!$C$4=3,(Input_SMC_Option3!D14/100000)*'Main Menu1'!$D$20,IF(Working!$C$4=4,(Input_SMC_Option4!D14/100000)*'Main Menu1'!$D$20,IF(Working!$C$4=5,(Input_SMC_Option5!D14/100000)*'Main Menu1'!$D$20,IF(Working!$C$4=6,(Input_SMC_Option6!D14/100000)*'Main Menu1'!$D$20)))))) -> 45828.17166 | E14: =IF(Working!$C$4=1,(Input_SMC_Option1!E14/100000)*'Main Menu1'!$D$20,IF(Working!$C$4=2,(Input_SMC_Option2!E14/100000)*'Main Menu1'!$D$20,IF(Working!$C$4=3,(Input_SMC_Option3!E14/100000)*'Main Menu1'!$D$20,IF(Working!$C$4=4,(Input_SMC_Option4!E14/100000)*'Main Menu1'!$D$20,IF(Working!$C$4=5,(Input_SMC_Option5!E14/100000)*'Main Menu1'!$D$20,IF(Working!$C$4=6,(Input_SMC_Option6!E14/100000)*'Main Menu1'!$D$20)))))) -> 49264.75463 | G14: Diabetes | H14: 12604.9056 | I14: 17.6925993
B15: At least one of the above medical conditions | C15: =IF(Working!$C$4=1,(Input_SMC_Option1!C17/100000)*'Main Menu1'!$D$20,IF(Working!$C$4=2,(Input_SMC_Option2!C17/100000)*'Main Menu1'!$D$20,IF(Working!$C$4=3,(Input_SMC_Option3!C17/100000)*'Main Menu1'!$D$20,IF(Working!$C$4=4,(Input_SMC_Option4!C17/100000)*'Main Menu1'!$D$20,IF(Working!$C$4=5,(Input_SMC_Option5!C17/100000)*'Main Menu1'!$D$20,IF(Working!$C$4=6,(Input_SMC_Option6!C17/100000)*'Main Menu1'!$D$20)))))) -> 57838.7606 | D15: =IF(Working!$C$4=1,(Input_SMC_Option1!D17/100000)*'Main Menu1'!$D$20,IF(Working!$C$4=2,(Input_SMC_Option2!D17/100000)*'Main Menu1'!$D$20,IF(Working!$C$4=3,(Input_SMC_Option3!D17/100000)*'Main Menu1'!$D$20,IF(Working!$C$4=4,(Input_SMC_Option4!D17/100000)*'Main Menu1'!$D$20,IF(Working!$C$4=5,(Input_SMC_Option5!D17/100000)*'Main Menu1'!$D$20,IF(Working!$C$4=6,(Input_SMC_Option6!D17/100000)*'Main Menu1'!$D$20)))))) -> 52933.9061 | E15: =IF(Working!$C$4=1,(Input_SMC_Option1!E17/100000)*'Main Menu1'!$D$20,IF(Working!$C$4=2,(Input_SMC_Option2!E17/100000)*'Main Menu1'!$D$20,IF(Working!$C$4=3,(Input_SMC_Option3!E17/100000)*'Main Menu1'!$D$20,IF(Working!$C$4=4,(Input_SMC_Option4!E17/100000)*'Main Menu1'!$D$20,IF(Working!$C$4=5,(Input_SMC_Option5!E17/100000)*'Main Menu1'!$D$20,IF(Working!$C$4=6,(Input_SMC_Option6!E17/100000)*'Main Menu1'!$D$20)))))) -> 62576.9694 | G15: Musculoskeletal | H15: 47581.34042 | I15: 66.78650496
B16: Other | C16: =IF(Working!$C$4=1,(Input_SMC_Option1!C18/100000)*'Main Menu1'!$D$20,IF(Working!$C$4=2,(Input_SMC_Option2!C18/100000)*'Main Menu1'!$D$20,IF(Working!$C$4=3,(Input_SMC_Option3!C18/100000)*'Main Menu1'!$D$20,IF(Working!$C$4=4,(Input_SMC_Option4!C18/100000)*'Main Menu1'!$D$20,IF(Working!$C$4=5,(Input_SMC_Option5!C18/100000)*'Main Menu1'!$D$20,IF(Working!$C$4=6,(Input_SMC_Option6!C18/100000)*'Main Menu1'!$D$20)))))) -> 13405.18374 | D16: =IF(Working!$C$4=1,(Input_SMC_Option1!D18/100000)*'Main Menu1'!$D$20,IF(Working!$C$4=2,(Input_SMC_Option2!D18/100000)*'Main Menu1'!$D$20,IF(Working!$C$4=3,(Input_SMC_Option3!D18/100000)*'Main Menu1'!$D$20,IF(Working!$C$4=4,(Input_SMC_Option4!D18/100000)*'Main Menu1'!$D$20,IF(Working!$C$4=5,(Input_SMC_Option5!D18/100000)*'Main Menu1'!$D$20,IF(Working!$C$4=6,(Input_SMC_Option6!D18/100000)*'Main Menu1'!$D$20)))))) -> 12379.25892 | E16: =IF(Working!$C$4=1,(Input_SMC_Option1!E18/100000)*'Main Menu1'!$D$20,IF(Working!$C$4=2,(Input_SMC_Option2!E18/100000)*'Main Menu1'!$D$20,IF(Working!$C$4=3,(Input_SMC_Option3!E18/100000)*'Main Menu1'!$D$20,IF(Working!$C$4=4,(Input_SMC_Option4!E18/100000)*'Main Menu1'!$D$20,IF(Working!$C$4=5,(Input_SMC_Option5!E18/100000)*'Main Menu1'!$D$20,IF(Working!$C$4=6,(Input_SMC_Option6!E18/100000)*'Main Menu1'!$D$20)))))) -> 14390.28937 | G16: Other | H16: =C16 -> 13405.18374 | I16: =C16/C17*100 -> 18.81589216
B17: Total | C17: =IF(Working!$C$4=1,(Input_SMC_Option1!C19/100000)*'Main Menu1'!$D$20,IF(Working!$C$4=2,(Input_SMC_Option2!C19/100000)*'Main Menu1'!$D$20,IF(Working!$C$4=3,(Input_SMC_Option3!C19/100000)*'Main Menu1'!$D$20,IF(Working!$C$4=4,(Input_SMC_Option4!C19/100000)*'Main Menu1'!$D$20,IF(Working!$C$4=5,(Input_SMC_Option5!C19/100000)*'Main Menu1'!$D$20,IF(Working!$C$4=6,(Input_SMC_Option6!C19/100000)*'Main Menu1'!$D$20)))))) -> 71243.94434 | D17: =IF(Working!$C$4=1,(Input_SMC_Option1!D19/100000)*'Main Menu1'!$D$20,IF(Working!$C$4=2,(Input_SMC_Option2!D19/100000)*'Main Menu1'!$D$20,IF(Working!$C$4=3,(Input_SMC_Option3!D19/100000)*'Main Menu1'!$D$20,IF(Working!$C$4=4,(Input_SMC_Option4!D19/100000)*'Main Menu1'!$D$20,IF(Working!$C$4=5,(Input_SMC_Option5!D19/100000)*'Main Menu1'!$D$20,IF(Working!$C$4=6,(Input_SMC_Option6!D19/100000)*'Main Menu1'!$D$20)))))) -> 65313.16502 | E17: =IF(Working!$C$4=1,(Input_SMC_Option1!E19/100000)*'Main Menu1'!$D$20,IF(Working!$C$4=2,(Input_SMC_Option2!E19/100000)*'Main Menu1'!$D$20,IF(Working!$C$4=3,(Input_SMC_Option3!E19/100000)*'Main Menu1'!$D$20,IF(Working!$C$4=4,(Input_SMC_Option4!E19/100000)*'Main Menu1'!$D$20,IF(Working!$C$4=5,(Input_SMC_Option5!E19/100000)*'Main Menu1'!$D$20,IF(Working!$C$4=6,(Input_SMC_Option6!E19/100000)*'Main Menu1'!$D$20)))))) -> 75255.82535
B18: Note: Others= Persons who do not have any of seven listed medical conditions but need SMC.

Sheet DetailResults_SMC_NoMedCon
B2: Demand for Special Medical Care (SMC)
B3: by No. of Medical Conditions
C4: Option | D4: =Working!C4 -> 1
B5: Number of persons needing Special Medical Care by number of medical conditions
B7: No. of Medical Conditions | C7: No. | D7: 95% Confidence Limits
D8: Lower Limit | E8: Upper Limit | G8: No. | H8: No. | I8: Cum_No. | J8: Cum_%
B9: Others | C9: =IF(Working!$C$4=1,(Input_SMC_Option1_NoMedCon!C8/100000)*'Main Menu1'!$D$20,IF(Working!$C$4=2,(Input_SMC_Option2_NoMedCon!C8/100000)*'Main Menu1'!$D$20,IF(Working!$C$4=3,(Input_SMC_Option3_NoMedCon!C8/100000)*'Main Menu1'!$D$20,IF(Working!$C$4=4,(Input_SMC_Option4_NoMedCon!C8/100000)*'Main Menu1'!$D$20,IF(Working!$C$4=5,(Input_SMC_Option5_NoMedCon!C8/100000)*'Main Menu1'!$D$20,IF(Working!$C$4=6,(Input_SMC_Option6_NoMedCon!C8/100000)*'Main Menu1'!$D$20)))))) -> 13405.18374 | D9: =IF(Working!$C$4=1,(Input_SMC_Option1_NoMedCon!D8/100000)*'Main Menu1'!$D$20,IF(Working!$C$4=2,(Input_SMC_Option2_NoMedCon!D8/100000)*'Main Menu1'!$D$20,IF(Working!$C$4=3,(Input_SMC_Option3_NoMedCon!D8/100000)*'Main Menu1'!$D$20,IF(Working!$C$4=4,(Input_SMC_Option4_NoMedCon!D8/100000)*'Main Menu1'!$D$20,IF(Working!$C$4=5,(Input_SMC_Option5_NoMedCon!D8/100000)*'Main Menu1'!$D$20,IF(Working!$C$4=6,(Input_SMC_Option6_NoMedCon!D8/100000)*'Main Menu1'!$D$20)))))) -> 12379.25892 | E9: =IF(Working!$C$4=1,(Input_SMC_Option1_NoMedCon!E8/100000)*'Main Menu1'!$D$20,IF(Working!$C$4=2,(Input_SMC_Option2_NoMedCon!E8/100000)*'Main Menu1'!$D$20,IF(Working!$C$4=3,(Input_SMC_Option3_NoMedCon!E8/100000)*'Main Menu1'!$D$20,IF(Working!$C$4=4,(Input_SMC_Option4_NoMedCon!E8/100000)*'Main Menu1'!$D$20,IF(Working!$C$4=5,(Input_SMC_Option5_NoMedCon!E8/100000)*'Main Menu1'!$D$20,IF(Working!$C$4=6,(Input_SMC_Option6_NoMedCon!E8/100000)*'Main Menu1'!$D$20)))))) -> 14390.28937 | G9: Others | H9: =C9 -> 13405.18374 | I9: =H9 -> 13405.18374 | J9: =H9/H17*100 -> 18.81589216
B10: 1 | C10: =IF(Working!$C$4=1,(Input_SMC_Option1_NoMedCon!C9/100000)*'Main Menu1'!$D$20,IF(Working!$C$4=2,(Input_SMC_Option2_NoMedCon!C9/100000)*'Main Menu1'!$D$20,IF(Working!$C$4=3,(Input_SMC_Option3_NoMedCon!C9/100000)*'Main Menu1'!$D$20,IF(Working!$C$4=4,(Input_SMC_Option4_NoMedCon!C9/100000)*'Main Menu1'!$D$20,IF(Working!$C$4=5,(Input_SMC_Option5_NoMedCon!C9/100000)*'Main Menu1'!$D$20,IF(Working!$C$4=6,(Input_SMC_Option6_NoMedCon!C9/100000)*'Main Menu1'!$D$20)))))) -> 18314.21701 | D10: =IF(Working!$C$4=1,(Input_SMC_Option1_NoMedCon!D9/100000)*'Main Menu1'!$D$20,IF(Working!$C$4=2,(Input_SMC_Option2_NoMedCon!D9/100000)*'Main Menu1'!$D$20,IF(Working!$C$4=3,(Input_SMC_Option3_NoMedCon!D9/100000)*'Main Menu1'!$D$20,IF(Working!$C$4=4,(Input_SMC_Option4_NoMedCon!D9/100000)*'Main Menu1'!$D$20,IF(Working!$C$4=5,(Input_SMC_Option5_NoMedCon!D9/100000)*'Main Menu1'!$D$20,IF(Working!$C$4=6,(Input_SMC_Option6_NoMedCon!D9/100000)*'Main Menu1'!$D$20)))))) -> 16986.90491 | E10: =IF(Working!$C$4=1,(Input_SMC_Option1_NoMedCon!E9/100000)*'Main Menu1'!$D$20,IF(Working!$C$4=2,(Input_SMC_Option2_NoMedCon!E9/100000)*'Main Menu1'!$D$20,IF(Working!$C$4=3,(Input_SMC_Option3_NoMedCon!E9/100000)*'Main Menu1'!$D$20,IF(Working!$C$4=4,(Input_SMC_Option4_NoMedCon!E9/100000)*'Main Menu1'!$D$20,IF(Working!$C$4=5,(Input_SMC_Option5_NoMedCon!E9/100000)*'Main Menu1'!$D$20,IF(Working!$C$4=6,(Input_SMC_Option6_NoMedCon!E9/100000)*'Main Menu1'!$D$20)))))) -> 19588.71842 | G10: 1 | H10: 18314.21701 | I10: =H10+I9 -> 31719.40075 | J10: =(H10/$H$17*100)+J9 -> 44.52224121
B11: 2 | C11: =IF(Working!$C$4=1,(Input_SMC_Option1_NoMedCon!C10/100000)*'Main Menu1'!$D$20,IF(Working!$C$4=2,(Input_SMC_Option2_NoMedCon!C10/100000)*'Main Menu1'!$D$20,IF(Working!$C$4=3,(Input_SMC_Option3_NoMedCon!C10/100000)*'Main Menu1'!$D$20,IF(Working!$C$4=4,(Input_SMC_Option4_NoMedCon!C10/100000)*'Main Menu1'!$D$20,IF(Working!$C$4=5,(Input_SMC_Option5_NoMedCon!C10/100000)*'Main Menu1'!$D$20,IF(Working!$C$4=6,(Input_SMC_Option6_NoMedCon!C10/100000)*'Main Menu1'!$D$20)))))) -> 16262.26147 | D11: =IF(Working!$C$4=1,(Input_SMC_Option1_NoMedCon!D10/100000)*'Main Menu1'!$D$20,IF(Working!$C$4=2,(Input_SMC_Option2_NoMedCon!D10/100000)*'Main Menu1'!$D$20,IF(Working!$C$4=3,(Input_SMC_Option3_NoMedCon!D10/100000)*'Main Menu1'!$D$20,IF(Working!$C$4=4,(Input_SMC_Option4_NoMedCon!D10/100000)*'Main Menu1'!$D$20,IF(Working!$C$4=5,(Input_SMC_Option5_NoMedCon!D10/100000)*'Main Menu1'!$D$20,IF(Working!$C$4=6,(Input_SMC_Option6_NoMedCon!D10/100000)*'Main Menu1'!$D$20)))))) -> 15086.10227 | E11: =IF(Working!$C$4=1,(Input_SMC_Option1_NoMedCon!E10/100000)*'Main Menu1'!$D$20,IF(Working!$C$4=2,(Input_SMC_Option2_NoMedCon!E10/100000)*'Main Menu1'!$D$20,IF(Working!$C$4=3,(Input_SMC_Option3_NoMedCon!E10/100000)*'Main Menu1'!$D$20,IF(Working!$C$4=4,(Input_SMC_Option4_NoMedCon!E10/100000)*'Main Menu1'!$D$20,IF(Working!$C$4=5,(Input_SMC_Option5_NoMedCon!E10/100000)*'Main Menu1'!$D$20,IF(Working!$C$4=6,(Input_SMC_Option6_NoMedCon!E10/100000)*'Main Menu1'!$D$20)))))) -> 17391.62399 | G11: 2 | H11: 16262.26147 | I11: =H11+I10 -> 47981.66221 | J11: 67.34840787
B12: 3 | C12: =IF(Working!$C$4=1,(Input_SMC_Option1_NoMedCon!C11/100000)*'Main Menu1'!$D$20,IF(Working!$C$4=2,(Input_SMC_Option2_NoMedCon!C11/100000)*'Main Menu1'!$D$20,IF(Working!$C$4=3,(Input_SMC_Option3_NoMedCon!C11/100000)*'Main Menu1'!$D$20,IF(Working!$C$4=4,(Input_SMC_Option4_NoMedCon!C11/100000)*'Main Menu1'!$D$20,IF(Working!$C$4=5,(Input_SMC_Option5_NoMedCon!C11/100000)*'Main Menu1'!$D$20,IF(Working!$C$4=6,(Input_SMC_Option6_NoMedCon!C11/100000)*'Main Menu1'!$D$20)))))) -> 12235.73332 | D12: =IF(Working!$C$4=1,(Input_SMC_Option1_NoMedCon!D11/100000)*'Main Menu1'!$D$20,IF(Working!$C$4=2,(Input_SMC_Option2_NoMedCon!D11/100000)*'Main Menu1'!$D$20,IF(Working!$C$4=3,(Input_SMC_Option3_NoMedCon!D11/100000)*'Main Menu1'!$D$20,IF(Working!$C$4=4,(Input_SMC_Option4_NoMedCon!D11/100000)*'Main Menu1'!$D$20,IF(Working!$C$4=5,(Input_SMC_Option5_NoMedCon!D11/100000)*'Main Menu1'!$D$20,IF(Working!$C$4=6,(Input_SMC_Option6_NoMedCon!D11/100000)*'Main Menu1'!$D$20)))))) -> 11433.10716 | E12: =IF(Working!$C$4=1,(Input_SMC_Option1_NoMedCon!E11/100000)*'Main Menu1'!$D$20,IF(Working!$C$4=2,(Input_SMC_Option2_NoMedCon!E11/100000)*'Main Menu1'!$D$20,IF(Working!$C$4=3,(Input_SMC_Option3_NoMedCon!E11/100000)*'Main Menu1'!$D$20,IF(Working!$C$4=4,(Input_SMC_Option4_NoMedCon!E11/100000)*'Main Menu1'!$D$20,IF(Working!$C$4=5,(Input_SMC_Option5_NoMedCon!E11/100000)*'Main Menu1'!$D$20,IF(Working!$C$4=6,(Input_SMC_Option6_NoMedCon!E11/100000)*'Main Menu1'!$D$20)))))) -> 13006.42483 | G12: 3 | H12: 12235.73332 | I12: 60217.39553 | J12: 84.52282659
B13: 4 | C13: =IF(Working!$C$4=1,(Input_SMC_Option1_NoMedCon!C12/100000)*'Main Menu1'!$D$20,IF(Working!$C$4=2,(Input_SMC_Option2_NoMedCon!C12/100000)*'Main Menu1'!$D$20,IF(Working!$C$4=3,(Input_SMC_Option3_NoMedCon!C12/100000)*'Main Menu1'!$D$20,IF(Working!$C$4=4,(Input_SMC_Option4_NoMedCon!C12/100000)*'Main Menu1'!$D$20,IF(Working!$C$4=5,(Input_SMC_Option5_NoMedCon!C12/100000)*'Main Menu1'!$D$20,IF(Working!$C$4=6,(Input_SMC_Option6_NoMedCon!C12/100000)*'Main Menu1'!$D$20)))))) -> 7490.473261 | D13: =IF(Working!$C$4=1,(Input_SMC_Option1_NoMedCon!D12/100000)*'Main Menu1'!$D$20,IF(Working!$C$4=2,(Input_SMC_Option2_NoMedCon!D12/100000)*'Main Menu1'!$D$20,IF(Working!$C$4=3,(Input_SMC_Option3_NoMedCon!D12/100000)*'Main Menu1'!$D$20,IF(Working!$C$4=4,(Input_SMC_Option4_NoMedCon!D12/100000)*'Main Menu1'!$D$20,IF(Working!$C$4=5,(Input_SMC_Option5_NoMedCon!D12/100000)*'Main Menu1'!$D$20,IF(Working!$C$4=6,(Input_SMC_Option6_NoMedCon!D12/100000)*'Main Menu1'!$D$20)))))) -> 6638.831753 | E13: =IF(Working!$C$4=1,(Input_SMC_Option1_NoMedCon!E12/100000)*'Main Menu1'!$D$20,IF(Working!$C$4=2,(Input_SMC_Option2_NoMedCon!E12/100000)*'Main Menu1'!$D$20,IF(Working!$C$4=3,(Input_SMC_Option3_NoMedCon!E12/100000)*'Main Menu1'!$D$20,IF(Working!$C$4=4,(Input_SMC_Option4_NoMedCon!E12/100000)*'Main Menu1'!$D$20,IF(Working!$C$4=5,(Input_SMC_Option5_NoMedCon!E12/100000)*'Main Menu1'!$D$20,IF(Working!$C$4=6,(Input_SMC_Option6_NoMedCon!E12/100000)*'Main Menu1'!$D$20)))))) -> 8308.229915 | G13: 4 | H13: 7490.473261 | I13: 67707.86879 | J13: 95.03666511
B14: 5 | C14: =IF(Working!$C$4=1,(Input_SMC_Option1_NoMedCon!C13/100000)*'Main Menu1'!$D$20,IF(Working!$C$4=2,(Input_SMC_Option2_NoMedCon!C13/100000)*'Main Menu1'!$D$20,IF(Working!$C$4=3,(Input_SMC_Option3_NoMedCon!C13/100000)*'Main Menu1'!$D$20,IF(Working!$C$4=4,(Input_SMC_Option4_NoMedCon!C13/100000)*'Main Menu1'!$D$20,IF(Working!$C$4=5,(Input_SMC_Option5_NoMedCon!C13/100000)*'Main Menu1'!$D$20,IF(Working!$C$4=6,(Input_SMC_Option6_NoMedCon!C13/100000)*'Main Menu1'!$D$20)))))) -> 2904.565157 | D14: =IF(Working!$C$4=1,(Input_SMC_Option1_NoMedCon!D13/100000)*'Main Menu1'!$D$20,IF(Working!$C$4=2,(Input_SMC_Option2_NoMedCon!D13/100000)*'Main Menu1'!$D$20,IF(Working!$C$4=3,(Input_SMC_Option3_NoMedCon!D13/100000)*'Main Menu1'!$D$20,IF(Working!$C$4=4,(Input_SMC_Option4_NoMedCon!D13/100000)*'Main Menu1'!$D$20,IF(Working!$C$4=5,(Input_SMC_Option5_NoMedCon!D13/100000)*'Main Menu1'!$D$20,IF(Working!$C$4=6,(Input_SMC_Option6_NoMedCon!D13/100000)*'Main Menu1'!$D$20)))))) -> 2416.278995 | E14: =IF(Working!$C$4=1,(Input_SMC_Option1_NoMedCon!E13/100000)*'Main Menu1'!$D$20,IF(Working!$C$4=2,(Input_SMC_Option2_NoMedCon!E13/100000)*'Main Menu1'!$D$20,IF(Working!$C$4=3,(Input_SMC_Option3_NoMedCon!E13/100000)*'Main Menu1'!$D$20,IF(Working!$C$4=4,(Input_SMC_Option4_NoMedCon!E13/100000)*'Main Menu1'!$D$20,IF(Working!$C$4=5,(Input_SMC_Option5_NoMedCon!E13/100000)*'Main Menu1'!$D$20,IF(Working!$C$4=6,(Input_SMC_Option6_NoMedCon!E13/100000)*'Main Menu1'!$D$20)))))) -> 3373.423537 | G14: 5 | H14: 2904.565157 | I14: 70612.43395 | J14: 99.11359429
B15: 6 | C15: =IF(Working!$C$4=1,(Input_SMC_Option1_NoMedCon!C14/100000)*'Main Menu1'!$D$20,IF(Working!$C$4=2,(Input_SMC_Option2_NoMedCon!C14/100000)*'Main Menu1'!$D$20,IF(Working!$C$4=3,(Input_SMC_Option3_NoMedCon!C14/100000)*'Main Menu1'!$D$20,IF(Working!$C$4=4,(Input_SMC_Option4_NoMedCon!C14/100000)*'Main Menu1'!$D$20,IF(Working!$C$4=5,(Input_SMC_Option5_NoMedCon!C14/100000)*'Main Menu1'!$D$20,IF(Working!$C$4=6,(Input_SMC_Option6_NoMedCon!C14/100000)*'Main Menu1'!$D$20)))))) -> 590.4793078 | D15: =IF(Working!$C$4=1,(Input_SMC_Option1_NoMedCon!D14/100000)*'Main Menu1'!$D$20,IF(Working!$C$4=2,(Input_SMC_Option2_NoMedCon!D14/100000)*'Main Menu1'!$D$20,IF(Working!$C$4=3,(Input_SMC_Option3_NoMedCon!D14/100000)*'Main Menu1'!$D$20,IF(Working!$C$4=4,(Input_SMC_Option4_NoMedCon!D14/100000)*'Main Menu1'!$D$20,IF(Working!$C$4=5,(Input_SMC_Option5_NoMedCon!D14/100000)*'Main Menu1'!$D$20,IF(Working!$C$4=6,(Input_SMC_Option6_NoMedCon!D14/100000)*'Main Menu1'!$D$20)))))) -> 372.6810137 | E15: =IF(Working!$C$4=1,(Input_SMC_Option1_NoMedCon!E14/100000)*'Main Menu1'!$D$20,IF(Working!$C$4=2,(Input_SMC_Option2_NoMedCon!E14/100000)*'Main Menu1'!$D$20,IF(Working!$C$4=3,(Input_SMC_Option3_NoMedCon!E14/100000)*'Main Menu1'!$D$20,IF(Working!$C$4=4,(Input_SMC_Option4_NoMedCon!E14/100000)*'Main Menu1'!$D$20,IF(Working!$C$4=5,(Input_SMC_Option5_NoMedCon!E14/100000)*'Main Menu1'!$D$20,IF(Working!$C$4=6,(Input_SMC_Option6_NoMedCon!E14/100000)*'Main Menu1'!$D$20)))))) -> 799.6119094 | G15: 6 | H15: 590.4793078 | I15: 71202.91326 | J15: 99.94240762
B16: 7 | C16: =IF(Working!$C$4=1,(Input_SMC_Option1_NoMedCon!C15/100000)*'Main Menu1'!$D$20,IF(Working!$C$4=2,(Input_SMC_Option2_NoMedCon!C15/100000)*'Main Menu1'!$D$20,IF(Working!$C$4=3,(Input_SMC_Option3_NoMedCon!C15/100000)*'Main Menu1'!$D$20,IF(Working!$C$4=4,(Input_SMC_Option4_NoMedCon!C15/100000)*'Main Menu1'!$D$20,IF(Working!$C$4=5,(Input_SMC_Option5_NoMedCon!C15/100000)*'Main Menu1'!$D$20,IF(Working!$C$4=6,(Input_SMC_Option6_NoMedCon!C15/100000)*'Main Menu1'!$D$20)))))) -> 41.03108523 | D16: =IF(Working!$C$4=1,(Input_SMC_Option1_NoMedCon!D15/100000)*'Main Menu1'!$D$20,IF(Working!$C$4=2,(Input_SMC_Option2_NoMedCon!D15/100000)*'Main Menu1'!$D$20,IF(Working!$C$4=3,(Input_SMC_Option3_NoMedCon!D15/100000)*'Main Menu1'!$D$20,IF(Working!$C$4=4,(Input_SMC_Option4_NoMedCon!D15/100000)*'Main Menu1'!$D$20,IF(Working!$C$4=5,(Input_SMC_Option5_NoMedCon!D15/100000)*'Main Menu1'!$D$20,IF(Working!$C$4=6,(Input_SMC_Option6_NoMedCon!D15/100000)*'Main Menu1'!$D$20)))))) -> 0 | E16: =IF(Working!$C$4=1,(Input_SMC_Option1_NoMedCon!E15/100000)*'Main Menu1'!$D$20,IF(Working!$C$4=2,(Input_SMC_Option2_NoMedCon!E15/100000)*'Main Menu1'!$D$20,IF(Working!$C$4=3,(Input_SMC_Option3_NoMedCon!E15/100000)*'Main Menu1'!$D$20,IF(Working!$C$4=4,(Input_SMC_Option4_NoMedCon!E15/100000)*'Main Menu1'!$D$20,IF(Working!$C$4=5,(Input_SMC_Option5_NoMedCon!E15/100000)*'Main Menu1'!$D$20,IF(Working!$C$4=6,(Input_SMC_Option6_NoMedCon!E15/100000)*'Main Menu1'!$D$20)))))) -> 108.9367898 | G16: 7 | H16: 41.03108523 | I16: 71243.94434 | J16: 100
B17: Total | C17: =IF(Working!$C$4=1,(Input_SMC_Option1_NoMedCon!C16/100000)*'Main Menu1'!$D$20,IF(Working!$C$4=2,(Input_SMC_Option2_NoMedCon!C16/100000)*'Main Menu1'!$D$20,IF(Working!$C$4=3,(Input_SMC_Option3_NoMedCon!C16/100000)*'Main Menu1'!$D$20,IF(Working!$C$4=4,(Input_SMC_Option4_NoMedCon!C16/100000)*'Main Menu1'!$D$20,IF(Working!$C$4=5,(Input_SMC_Option5_NoMedCon!C16/100000)*'Main Menu1'!$D$20,IF(Working!$C$4=6,(Input_SMC_Option6_NoMedCon!C16/100000)*'Main Menu1'!$D$20)))))) -> 71243.94434 | D17: =IF(Working!$C$4=1,(Input_SMC_Option1_NoMedCon!D16/100000)*'Main Menu1'!$D$20,IF(Working!$C$4=2,(Input_SMC_Option2_NoMedCon!D16/100000)*'Main Menu1'!$D$20,IF(Working!$C$4=3,(Input_SMC_Option3_NoMedCon!D16/100000)*'Main Menu1'!$D$20,IF(Working!$C$4=4,(Input_SMC_Option4_NoMedCon!D16/100000)*'Main Menu1'!$D$20,IF(Working!$C$4=5,(Input_SMC_Option5_NoMedCon!D16/100000)*'Main Menu1'!$D$20,IF(Working!$C$4=6,(Input_SMC_Option6_NoMedCon!D16/100000)*'Main Menu1'!$D$20)))))) -> 69333.60417 | E17: =IF(Working!$C$4=1,(Input_SMC_Option1_NoMedCon!E16/100000)*'Main Menu1'!$D$20,IF(Working!$C$4=2,(Input_SMC_Option2_NoMedCon!E16/100000)*'Main Menu1'!$D$20,IF(Working!$C$4=3,(Input_SMC_Option3_NoMedCon!E16/100000)*'Main Menu1'!$D$20,IF(Working!$C$4=4,(Input_SMC_Option4_NoMedCon!E16/100000)*'Main Menu1'!$D$20,IF(Working!$C$4=5,(Input_SMC_Option5_NoMedCon!E16/100000)*'Main Menu1'!$D$20,IF(Working!$C$4=6,(Input_SMC_Option6_NoMedCon!E16/100000)*'Main Menu1'!$D$20)))))) -> 73078.27647 | G17: Total | H17: 71243.94434
B19: Note: Others= Persons who do not have any of seven listed medical conditions but need Special Medical Care. | G19: Cum_No.= Cumulative Numbers | I19: Cum_%= Cumulative percentage

Sheet DetailResults_SMC_Age
B2: Demand for Special Medical Care (SMC)
B3: by Age Category
C4: Option | D4: =Working!C4 -> 1
B5: Number of persons needing Special Medical Care by Age Category
B8: Age Category (Yrs) | C8: No. | D8: 95% Confidence Limits | G8: Age category | H8: Numbers | I8: Cum_No. | J8: Cum_%
D9: Lower Limit | E9: Upper Limit
B10: <5 | C10: =IF(Working!$C$4=1,(Input_SMC_Option1_Age!C8/100000)*'Main Menu1'!$D$20,IF(Working!$C$4=2,(Input_SMC_Option2_Age!C8/100000)*'Main Menu1'!$D$20,IF(Working!$C$4=3,(Input_SMC_Option3_Age!C8/100000)*'Main Menu1'!$D$20,IF(Working!$C$4=4,(Input_SMC_Option4_Age!C8/100000)*'Main Menu1'!$D$20,IF(Working!$C$4=5,(Input_SMC_Option5_Age!C8/100000)*'Main Menu1'!$D$20,IF(Working!$C$4=6,(Input_SMC_Option6_Age!C8/100000)*'Main Menu1'!$D$20)))))) -> 2716.679188 | D10: =IF(Working!$C$4=1,(Input_SMC_Option1_Age!D8/100000)*'Main Menu1'!$D$20,IF(Working!$C$4=2,(Input_SMC_Option2_Age!D8/100000)*'Main Menu1'!$D$20,IF(Working!$C$4=3,(Input_SMC_Option3_Age!D8/100000)*'Main Menu1'!$D$20,IF(Working!$C$4=4,(Input_SMC_Option4_Age!D8/100000)*'Main Menu1'!$D$20,IF(Working!$C$4=5,(Input_SMC_Option5_Age!D8/100000)*'Main Menu1'!$D$20,IF(Working!$C$4=6,(Input_SMC_Option6_Age!D8/100000)*'Main Menu1'!$D$20)))))) -> 2245.389759 | E10: =IF(Working!$C$4=1,(Input_SMC_Option1_Age!E8/100000)*'Main Menu1'!$D$20,IF(Working!$C$4=2,(Input_SMC_Option2_Age!E8/100000)*'Main Menu1'!$D$20,IF(Working!$C$4=3,(Input_SMC_Option3_Age!E8/100000)*'Main Menu1'!$D$20,IF(Working!$C$4=4,(Input_SMC_Option4_Age!E8/100000)*'Main Menu1'!$D$20,IF(Working!$C$4=5,(Input_SMC_Option5_Age!E8/100000)*'Main Menu1'!$D$20,IF(Working!$C$4=6,(Input_SMC_Option6_Age!E8/100000)*'Main Menu1'!$D$20)))))) -> 3169.217097 | G10: <5 | H10: =C10 -> 2716.679188 | I10: =H10 -> 2716.679188 | J10: =H10/H14*100 -> 3.813207162
B11: 5-17 | C11: =IF(Working!$C$4=1,(Input_SMC_Option1_Age!C9/100000)*'Main Menu1'!$D$20,IF(Working!$C$4=2,(Input_SMC_Option2_Age!C9/100000)*'Main Menu1'!$D$20,IF(Working!$C$4=3,(Input_SMC_Option3_Age!C9/100000)*'Main Menu1'!$D$20,IF(Working!$C$4=4,(Input_SMC_Option4_Age!C9/100000)*'Main Menu1'!$D$20,IF(Working!$C$4=5,(Input_SMC_Option5_Age!C9/100000)*'Main Menu1'!$D$20,IF(Working!$C$4=6,(Input_SMC_Option6_Age!C9/100000)*'Main Menu1'!$D$20)))))) -> 5066.89475 | D11: =IF(Working!$C$4=1,(Input_SMC_Option1_Age!D9/100000)*'Main Menu1'!$D$20,IF(Working!$C$4=2,(Input_SMC_Option2_Age!D9/100000)*'Main Menu1'!$D$20,IF(Working!$C$4=3,(Input_SMC_Option3_Age!D9/100000)*'Main Menu1'!$D$20,IF(Working!$C$4=4,(Input_SMC_Option4_Age!D9/100000)*'Main Menu1'!$D$20,IF(Working!$C$4=5,(Input_SMC_Option5_Age!D9/100000)*'Main Menu1'!$D$20,IF(Working!$C$4=6,(Input_SMC_Option6_Age!D9/100000)*'Main Menu1'!$D$20)))))) -> 4399.315305 | E11: =IF(Working!$C$4=1,(Input_SMC_Option1_Age!E9/100000)*'Main Menu1'!$D$20,IF(Working!$C$4=2,(Input_SMC_Option2_Age!E9/100000)*'Main Menu1'!$D$20,IF(Working!$C$4=3,(Input_SMC_Option3_Age!E9/100000)*'Main Menu1'!$D$20,IF(Working!$C$4=4,(Input_SMC_Option4_Age!E9/100000)*'Main Menu1'!$D$20,IF(Working!$C$4=5,(Input_SMC_Option5_Age!E9/100000)*'Main Menu1'!$D$20,IF(Working!$C$4=6,(Input_SMC_Option6_Age!E9/100000)*'Main Menu1'!$D$20)))))) -> 5707.912746 | G11: 5-17 | H11: =C11 -> 5066.89475 | I11: =H11+I10 -> 7783.573938 | J11: =(H11/H14*100)+J10 -> 10.92524285
B12: 18-64 | C12: =IF(Working!$C$4=1,(Input_SMC_Option1_Age!C10/100000)*'Main Menu1'!$D$20,IF(Working!$C$4=2,(Input_SMC_Option2_Age!C10/100000)*'Main Menu1'!$D$20,IF(Working!$C$4=3,(Input_SMC_Option3_Age!C10/100000)*'Main Menu1'!$D$20,IF(Working!$C$4=4,(Input_SMC_Option4_Age!C10/100000)*'Main Menu1'!$D$20,IF(Working!$C$4=5,(Input_SMC_Option5_Age!C10/100000)*'Main Menu1'!$D$20,IF(Working!$C$4=6,(Input_SMC_Option6_Age!C10/100000)*'Main Menu1'!$D$20)))))) -> 42326.35189 | D12: =IF(Working!$C$4=1,(Input_SMC_Option1_Age!D10/100000)*'Main Menu1'!$D$20,IF(Working!$C$4=2,(Input_SMC_Option2_Age!D10/100000)*'Main Menu1'!$D$20,IF(Working!$C$4=3,(Input_SMC_Option3_Age!D10/100000)*'Main Menu1'!$D$20,IF(Working!$C$4=4,(Input_SMC_Option4_Age!D10/100000)*'Main Menu1'!$D$20,IF(Working!$C$4=5,(Input_SMC_Option5_Age!D10/100000)*'Main Menu1'!$D$20,IF(Working!$C$4=6,(Input_SMC_Option6_Age!D10/100000)*'Main Menu1'!$D$20)))))) -> 40558.64074 | E12: =IF(Working!$C$4=1,(Input_SMC_Option1_Age!E10/100000)*'Main Menu1'!$D$20,IF(Working!$C$4=2,(Input_SMC_Option2_Age!E10/100000)*'Main Menu1'!$D$20,IF(Working!$C$4=3,(Input_SMC_Option3_Age!E10/100000)*'Main Menu1'!$D$20,IF(Working!$C$4=4,(Input_SMC_Option4_Age!E10/100000)*'Main Menu1'!$D$20,IF(Working!$C$4=5,(Input_SMC_Option5_Age!E10/100000)*'Main Menu1'!$D$20,IF(Working!$C$4=6,(Input_SMC_Option6_Age!E10/100000)*'Main Menu1'!$D$20)))))) -> 44023.72989 | G12: 18-64 | H12: =C12 -> 42326.35189 | I12: =H12+I11 -> 50109.92583 | J12: =(H12/H14*100)+J11 -> 70.33569842
B13: ≥65 | C13: =IF(Working!$C$4=1,(Input_SMC_Option1_Age!C11/100000)*'Main Menu1'!$D$20,IF(Working!$C$4=2,(Input_SMC_Option2_Age!C11/100000)*'Main Menu1'!$D$20,IF(Working!$C$4=3,(Input_SMC_Option3_Age!C11/100000)*'Main Menu1'!$D$20,IF(Working!$C$4=4,(Input_SMC_Option4_Age!C11/100000)*'Main Menu1'!$D$20,IF(Working!$C$4=5,(Input_SMC_Option5_Age!C11/100000)*'Main Menu1'!$D$20,IF(Working!$C$4=6,(Input_SMC_Option6_Age!C11/100000)*'Main Menu1'!$D$20)))))) -> 21134.01851 | D13: =IF(Working!$C$4=1,(Input_SMC_Option1_Age!D11/100000)*'Main Menu1'!$D$20,IF(Working!$C$4=2,(Input_SMC_Option2_Age!D11/100000)*'Main Menu1'!$D$20,IF(Working!$C$4=3,(Input_SMC_Option3_Age!D11/100000)*'Main Menu1'!$D$20,IF(Working!$C$4=4,(Input_SMC_Option4_Age!D11/100000)*'Main Menu1'!$D$20,IF(Working!$C$4=5,(Input_SMC_Option5_Age!D11/100000)*'Main Menu1'!$D$20,IF(Working!$C$4=6,(Input_SMC_Option6_Age!D11/100000)*'Main Menu1'!$D$20)))))) -> 19862.47981 | E13: =IF(Working!$C$4=1,(Input_SMC_Option1_Age!E11/100000)*'Main Menu1'!$D$20,IF(Working!$C$4=2,(Input_SMC_Option2_Age!E11/100000)*'Main Menu1'!$D$20,IF(Working!$C$4=3,(Input_SMC_Option3_Age!E11/100000)*'Main Menu1'!$D$20,IF(Working!$C$4=4,(Input_SMC_Option4_Age!E11/100000)*'Main Menu1'!$D$20,IF(Working!$C$4=5,(Input_SMC_Option5_Age!E11/100000)*'Main Menu1'!$D$20,IF(Working!$C$4=6,(Input_SMC_Option6_Age!E11/100000)*'Main Menu1'!$D$20)))))) -> 22354.96562 | G13: ≥65 | H13: =C13 -> 21134.01851 | I13: =H13+I12 -> 71243.94434 | J13: =(H13/H14*100)+J12 -> 100
B14: Total | C14: =IF(Working!$C$4=1,(Input_SMC_Option1_Age!C12/100000)*'Main Menu1'!$D$20,IF(Working!$C$4=2,(Input_SMC_Option2_Age!C12/100000)*'Main Menu1'!$D$20,IF(Working!$C$4=3,(Input_SMC_Option3_Age!C12/100000)*'Main Menu1'!$D$20,IF(Working!$C$4=4,(Input_SMC_Option4_Age!C12/100000)*'Main Menu1'!$D$20,IF(Working!$C$4=5,(Input_SMC_Option5_Age!C12/100000)*'Main Menu1'!$D$20,IF(Working!$C$4=6,(Input_SMC_Option6_Age!C12/100000)*'Main Menu1'!$D$20)))))) -> 71243.94434 | D14: =IF(Working!$C$4=1,(Input_SMC_Option1_Age!D12/100000)*'Main Menu1'!$D$20,IF(Working!$C$4=2,(Input_SMC_Option2_Age!D12/100000)*'Main Menu1'!$D$20,IF(Working!$C$4=3,(Input_SMC_Option3_Age!D12/100000)*'Main Menu1'!$D$20,IF(Working!$C$4=4,(Input_SMC_Option4_Age!D12/100000)*'Main Menu1'!$D$20,IF(Working!$C$4=5,(Input_SMC_Option5_Age!D12/100000)*'Main Menu1'!$D$20,IF(Working!$C$4=6,(Input_SMC_Option6_Age!D12/100000)*'Main Menu1'!$D$20)))))) -> 67065.82561 | E14: =IF(Working!$C$4=1,(Input_SMC_Option1_Age!E12/100000)*'Main Menu1'!$D$20,IF(Working!$C$4=2,(Input_SMC_Option2_Age!E12/100000)*'Main Menu1'!$D$20,IF(Working!$C$4=3,(Input_SMC_Option3_Age!E12/100000)*'Main Menu1'!$D$20,IF(Working!$C$4=4,(Input_SMC_Option4_Age!E12/100000)*'Main Menu1'!$D$20,IF(Working!$C$4=5,(Input_SMC_Option5_Age!E12/100000)*'Main Menu1'!$D$20,IF(Working!$C$4=6,(Input_SMC_Option6_Age!E12/100000)*'Main Menu1'!$D$20)))))) -> 75255.82535 | G14: Total: Special Needs | H14: =C14 -> 71243.94434
G16: Cum_No.= Cumulative Numbers | J16: Cum_%= Cumulative percentage

Sheet DetailResults_SMC_ClinicalVisit
B2: Demand for Special Medical Care (SMC)
B3: No. of Clinical Visits
C4: Option | D4: =Working!C4 -> 1
B5: Number of clinical visits among persons requiring Special Medical Care
B7: Week | C7: No. | D7: 95% Confidence Limits
D8: Lower Limit | E8: Upper Limit
B9: 1 | C9: =IF(Working!$C$4=1,(Input_SMC_Option1_ClinicalVisit!C8/100000)*'Main Menu1'!$D$20,IF(Working!$C$4=2,(Input_SMC_Option2_ClinicalVisit!C8/100000)*'Main Menu1'!$D$20,IF(Working!$C$4=3,(Input_SMC_Option3_ClinicalVisit!C8/100000)*'Main Menu1'!$D$20,IF(Working!$C$4=4,(Input_SMC_Option4_ClinicalVisit!C8/100000)*'Main Menu1'!$D$20,IF(Working!$C$4=5,(Input_SMC_Option5_ClinicalVisit!C8/100000)*'Main Menu1'!$D$20,IF(Working!$C$4=6,(Input_SMC_Option6_ClinicalVisit!C8/100000)*'Main Menu1'!$D$20)))))) -> 67439.10488 | D9: =IF(Working!$C$4=1,(Input_SMC_Option1_ClinicalVisit!D8/100000)*'Main Menu1'!$D$20,IF(Working!$C$4=2,(Input_SMC_Option2_ClinicalVisit!D8/100000)*'Main Menu1'!$D$20,IF(Working!$C$4=3,(Input_SMC_Option3_ClinicalVisit!D8/100000)*'Main Menu1'!$D$20,IF(Working!$C$4=4,(Input_SMC_Option4_ClinicalVisit!D8/100000)*'Main Menu1'!$D$20,IF(Working!$C$4=5,(Input_SMC_Option5_ClinicalVisit!D8/100000)*'Main Menu1'!$D$20,IF(Working!$C$4=6,(Input_SMC_Option6_ClinicalVisit!D8/100000)*'Main Menu1'!$D$20)))))) -> 61825.06354 | E9: =IF(Working!$C$4=1,(Input_SMC_Option1_ClinicalVisit!E8/100000)*'Main Menu1'!$D$20,IF(Working!$C$4=2,(Input_SMC_Option2_ClinicalVisit!E8/100000)*'Main Menu1'!$D$20,IF(Working!$C$4=3,(Input_SMC_Option3_ClinicalVisit!E8/100000)*'Main Menu1'!$D$20,IF(Working!$C$4=4,(Input_SMC_Option4_ClinicalVisit!E8/100000)*'Main Menu1'!$D$20,IF(Working!$C$4=5,(Input_SMC_Option5_ClinicalVisit!E8/100000)*'Main Menu1'!$D$20,IF(Working!$C$4=6,(Input_SMC_Option6_ClinicalVisit!E8/100000)*'Main Menu1'!$D$20)))))) -> 71236.72819 | G9: Week | H9: 1 | I9: 2 | J9: 3 | K9: 4
B10: 2 | C10: =IF(Working!$C$4=1,(Input_SMC_Option1_ClinicalVisit!C9/100000)*'Main Menu1'!$D$20,IF(Working!$C$4=2,(Input_SMC_Option2_ClinicalVisit!C9/100000)*'Main Menu1'!$D$20,IF(Working!$C$4=3,(Input_SMC_Option3_ClinicalVisit!C9/100000)*'Main Menu1'!$D$20,IF(Working!$C$4=4,(Input_SMC_Option4_ClinicalVisit!C9/100000)*'Main Menu1'!$D$20,IF(Working!$C$4=5,(Input_SMC_Option5_ClinicalVisit!C9/100000)*'Main Menu1'!$D$20,IF(Working!$C$4=6,(Input_SMC_Option6_ClinicalVisit!C9/100000)*'Main Menu1'!$D$20)))))) -> 24743.9655 | D10: =IF(Working!$C$4=1,(Input_SMC_Option1_ClinicalVisit!D9/100000)*'Main Menu1'!$D$20,IF(Working!$C$4=2,(Input_SMC_Option2_ClinicalVisit!D9/100000)*'Main Menu1'!$D$20,IF(Working!$C$4=3,(Input_SMC_Option3_ClinicalVisit!D9/100000)*'Main Menu1'!$D$20,IF(Working!$C$4=4,(Input_SMC_Option4_ClinicalVisit!D9/100000)*'Main Menu1'!$D$20,IF(Working!$C$4=5,(Input_SMC_Option5_ClinicalVisit!D9/100000)*'Main Menu1'!$D$20,IF(Working!$C$4=6,(Input_SMC_Option6_ClinicalVisit!D9/100000)*'Main Menu1'!$D$20)))))) -> 22684.12729 | E10: =IF(Working!$C$4=1,(Input_SMC_Option1_ClinicalVisit!E9/100000)*'Main Menu1'!$D$20,IF(Working!$C$4=2,(Input_SMC_Option2_ClinicalVisit!E9/100000)*'Main Menu1'!$D$20,IF(Working!$C$4=3,(Input_SMC_Option3_ClinicalVisit!E9/100000)*'Main Menu1'!$D$20,IF(Working!$C$4=4,(Input_SMC_Option4_ClinicalVisit!E9/100000)*'Main Menu1'!$D$20,IF(Working!$C$4=5,(Input_SMC_Option5_ClinicalVisit!E9/100000)*'Main Menu1'!$D$20,IF(Working!$C$4=6,(Input_SMC_Option6_ClinicalVisit!E9/100000)*'Main Menu1'!$D$20)))))) -> 26137.34491 | G10: Numbers | H10: =C9 -> 67439.10488 | I10: =C10 -> 24743.9655 | J10: =C11 -> 9624.526089 | K10: =C12 -> 0
B11: 3 | C11: =IF(Working!$C$4=1,(Input_SMC_Option1_ClinicalVisit!C10/100000)*'Main Menu1'!$D$20,IF(Working!$C$4=2,(Input_SMC_Option2_ClinicalVisit!C10/100000)*'Main Menu1'!$D$20,IF(Working!$C$4=3,(Input_SMC_Option3_ClinicalVisit!C10/100000)*'Main Menu1'!$D$20,IF(Working!$C$4=4,(Input_SMC_Option4_ClinicalVisit!C10/100000)*'Main Menu1'!$D$20,IF(Working!$C$4=5,(Input_SMC_Option5_ClinicalVisit!C10/100000)*'Main Menu1'!$D$20,IF(Working!$C$4=6,(Input_SMC_Option6_ClinicalVisit!C10/100000)*'Main Menu1'!$D$20)))))) -> 9624.526089 | D11: =IF(Working!$C$4=1,(Input_SMC_Option1_ClinicalVisit!D10/100000)*'Main Menu1'!$D$20,IF(Working!$C$4=2,(Input_SMC_Option2_ClinicalVisit!D10/100000)*'Main Menu1'!$D$20,IF(Working!$C$4=3,(Input_SMC_Option3_ClinicalVisit!D10/100000)*'Main Menu1'!$D$20,IF(Working!$C$4=4,(Input_SMC_Option4_ClinicalVisit!D10/100000)*'Main Menu1'!$D$20,IF(Working!$C$4=5,(Input_SMC_Option5_ClinicalVisit!D10/100000)*'Main Menu1'!$D$20,IF(Working!$C$4=6,(Input_SMC_Option6_ClinicalVisit!D10/100000)*'Main Menu1'!$D$20)))))) -> 8823.321989 | E11: =IF(Working!$C$4=1,(Input_SMC_Option1_ClinicalVisit!E10/100000)*'Main Menu1'!$D$20,IF(Working!$C$4=2,(Input_SMC_Option2_ClinicalVisit!E10/100000)*'Main Menu1'!$D$20,IF(Working!$C$4=3,(Input_SMC_Option3_ClinicalVisit!E10/100000)*'Main Menu1'!$D$20,IF(Working!$C$4=4,(Input_SMC_Option4_ClinicalVisit!E10/100000)*'Main Menu1'!$D$20,IF(Working!$C$4=5,(Input_SMC_Option5_ClinicalVisit!E10/100000)*'Main Menu1'!$D$20,IF(Working!$C$4=6,(Input_SMC_Option6_ClinicalVisit!E10/100000)*'Main Menu1'!$D$20)))))) -> 10166.50132 | G11: Cum_Num | H11: =H10 -> 67439.10488 | I11: =H11+I10 -> 92183.07037 | J11: =I11+J10 -> 101807.5965 | K11: =J11+K10 -> 101807.5965
B12: 4 | C12: =IF(Working!$C$4=1,(Input_SMC_Option1_ClinicalVisit!C11/100000)*'Main Menu1'!$D$20,IF(Working!$C$4=2,(Input_SMC_Option2_ClinicalVisit!C11/100000)*'Main Menu1'!$D$20,IF(Working!$C$4=3,(Input_SMC_Option3_ClinicalVisit!C11/100000)*'Main Menu1'!$D$20,IF(Working!$C$4=4,(Input_SMC_Option4_ClinicalVisit!C11/100000)*'Main Menu1'!$D$20,IF(Working!$C$4=5,(Input_SMC_Option5_ClinicalVisit!C11/100000)*'Main Menu1'!$D$20,IF(Working!$C$4=6,(Input_SMC_Option6_ClinicalVisit!C11/100000)*'Main Menu1'!$D$20)))))) -> 0 | D12: =IF(Working!$C$4=1,(Input_SMC_Option1_ClinicalVisit!D11/100000)*'Main Menu1'!$D$20,IF(Working!$C$4=2,(Input_SMC_Option2_ClinicalVisit!D11/100000)*'Main Menu1'!$D$20,IF(Working!$C$4=3,(Input_SMC_Option3_ClinicalVisit!D11/100000)*'Main Menu1'!$D$20,IF(Working!$C$4=4,(Input_SMC_Option4_ClinicalVisit!D11/100000)*'Main Menu1'!$D$20,IF(Working!$C$4=5,(Input_SMC_Option5_ClinicalVisit!D11/100000)*'Main Menu1'!$D$20,IF(Working!$C$4=6,(Input_SMC_Option6_ClinicalVisit!D11/100000)*'Main Menu1'!$D$20)))))) -> 0 | E12: =IF(Working!$C$4=1,(Input_SMC_Option1_ClinicalVisit!E11/100000)*'Main Menu1'!$D$20,IF(Working!$C$4=2,(Input_SMC_Option2_ClinicalVisit!E11/100000)*'Main Menu1'!$D$20,IF(Working!$C$4=3,(Input_SMC_Option3_ClinicalVisit!E11/100000)*'Main Menu1'!$D$20,IF(Working!$C$4=4,(Input_SMC_Option4_ClinicalVisit!E11/100000)*'Main Menu1'!$D$20,IF(Working!$C$4=5,(Input_SMC_Option5_ClinicalVisit!E11/100000)*'Main Menu1'!$D$20,IF(Working!$C$4=6,(Input_SMC_Option6_ClinicalVisit!E11/100000)*'Main Menu1'!$D$20)))))) -> 0 | G12: Cum_% | H12: =H11/K11*100 -> 66.24172185 | I12: =I11/K11*100 -> 90.54635762 | J12: =J11/K11*100 -> 100 | K12: =K11/K11*100 -> 100
